Workbook

Sheet Eingabe
J1: 1
K2: =Vokabel!$A$21 -> Kunden-Adressdaten
K4: Ganztec AG
K6: Badstrasse 38
K7: 5312 | L7: Döttingen
K8: =Vokabel!$A$22 -> PLZ | L8: =Vokabel!$A$23 -> Ort
K10: =Vokabel!$A$24 -> Ansprechpartner
K12: =Vokabel!$A$25 -> Tel.Nr. | N12: E-Mail
Q13: =IF(INDEX(Kundenstamm!$A$3:$L$5000,Kundenstamm!$T$2,1)="","",INDEX(Kundenstamm!$A$3:$L$5000,Kundenstamm!$T$2,1)) -> 9999
K14: Fax | N14: =Vokabel!$A$222 -> Handy
K15: =Vokabel!$A$27 -> Objekt
K19: =Vokabel!$A$22 -> PLZ | L19: =Vokabel!$A$23 -> Ort
N20: Nettorabatt | O20: 0
K21: =Vokabel!$A$28 -> Konditionen / Lohn | N21: =Vokabel!$A$29 -> Rabatt 1 | O21: 0
K22: =Vokabel!$A$34 -> Rabatt 3 | M22: 0 | N22: =Vokabel!$A$33 -> Rabatt 2 | O22: 0
K23: =Vokabel!$A$30 -> Stunden | N23: =Vokabel!$A$35 -> CHF per Std. | O23: 0
K24: =Vokabel!$A$31 -> Kilometer | N24: =Vokabel!$A$36 -> CHF per km | O24: 0
K25: =Vokabel!$A$32 -> Pauschale | N25: =Vokabel!$A$37 -> CHF per P. | O25: 0
N27: =Vokabel!$A$38 -> MwSt | O27: 0.077
N29: ="CD "&Hinweise!N3 -> CD Version 20230101
A60: 0

Sheet Commercant (hidden)
B1: =Vokabel!$A$241 -> INFO:
B2: =Vokabel!$A$240 -> In den Zeilen 5-10 tragen Sie bitte Ihre Firma, und den Zeilen 14-15 den Sachbearbeiter u. Tel.Nr., ein.
B4: =Vokabel!$A$242 -> Firmendaten:
A5: =Vokabel!$A$226 -> 1.Zeile | B5: Ganztec AG
A6: =Vokabel!$A$227 -> 2.Zeile | B6: Badstrasse 38
A7: =Vokabel!$A$228 -> 3.Zeile | B7: 5312 Döttingen
A8: =Vokabel!$A$229 -> 4.Zeile | B8: Tel. 0562680000 Fax. 0562680001
A9: =Vokabel!$A$230 -> 5.Zeile | B9: Mail: info@ganztec.ch
A10: Schiedel N° client
B13: =Vokabel!$A$247 -> Sachbearbeiter: | C13: =Vokabel!$A$248 -> Pers.-Nr. | E13: =Vokabel!$A$249 -> Frachteinstellungen:
A14: =Vokabel!$A$250 -> Vorname/Name | B14: Herr Mustermann | E14: 63 | F14: =Vokabel!$A$256 -> CHF per Tonne
A15: =Vokabel!$A$251 -> Telefon | B15: Tel. 000000 | C15: =Eingabe!$K$4&" "&Eingabe!$K$16&" "&Eingabe!$L$18 -> Ganztec AG
A16: =Vokabel!$A$252 -> Fax | B16: Fax. 0000000
A44: 3 | B44: =INDEX(Commercant!B46:B48,A44,1) -> nichts
A45: Mailprogramm
A46: Outlook (Express) | B46: Outlook
A47: Lotus Notes | B47: Lotus
A48: keines von Beiden | B48: nichts

Sheet Fournisseur (hidden)
A2: Fournisseur
A5: N° client | B5: Adresse 1 | C5: Adresse 2 | D5: Rue | E5: NP | F5: Lieu | G5: N°. Téléphone | H5: N°. Télécopie | I5: E-Mail | J5: Matchcode
A6: 1 | B6: Ganztec AG | D6: Badstrasse 38 | E6: 5312 | F6: Döttingen | G6: Tel. 0562680000 | H6: Fax. 0562680001 | I6: info@ganztec.ch | J6: =B6&" "&E6&" "&F6 -> Ganztec AG 5312 Döttingen
A7: 2
A8: 3
A9: 4
A10: 5
A11: 6
A12: 7
A13: 8
A14: 9
A15: 10
A16: 11
A17: 12
A18: 13
A19: 14
A20: 15
A21: 16
A22: 17
A23: 18
A24: 19
A25: 20
A26: 21
A27: 22
A28: 23
A29: 24
A30: 25
A31: 26
A32: 27
A33: 28
A34: 29
A35: 30

Sheet Indications (hidden)
B3: Le nouveau logicielle d'offre et commande de Ganztec | N3: =Daten!$F$161 -> Version 20230101
B5: Indications
B8: Installation: | C8: Le programme est installer automatiquement par le setup.exe sur votre PC (c:\Schiedel-CH\Kaminprofi\...)
C9: et sur le Desktop
C10: En plus du programme un fichier (Kaminprofi_Offerte) est également installé pour stockées les proposition.
B12: Internet Update: | C12: La dernière version du programme est toujours disponible sur internet (http://www.ganztec.ch)
B14: Condition : | C14: Microsoft Windows 2000, NT, XP
C15: Microsoft Office (des MS Office 2000 et Programme e-Mail MS Outlook ou Lotus Notes)
C16: Les commandes ne peuvent devenir automatiques qu'avec EM Outlook ou Lotus Notes
C17: Les réglages mail peuvent être modifiées à tout moment dans le masque "commerçant".
B19: Données de base: | C19: Base de clients: | E19: L'installation nouvelle d'un client a lieu dans le masque d'entrée.
E20: Vous pouvez enregistrer ce client dans votre base de clients - presser le bouton "enregistrer client"!
E21: Le client doit être saisi dans la base de clients, afin que celui-ci puisse être choisi dans le programme.
E22: La base de clients est un élément essentiel du programme.
E23: Avec une mise à jour de programme, la base de clients stockée est importée automatiquement dans le logicielle.
C26: Adresse de marchand: | E26: Entrée des données du responsable et d'entreprise.
C27: Textes de preuve et d'assemblage: | E27: Tous les champs blancs sont des textes de preuve et d'assemblage librement définissables.
B29: Masque d'entrée: | C29: Projet de construction: | E29: Entrée de l'adresse du chantier.
C30: Conditions/salaire: | E30: Entrée de deux remises. La base de calcul pour la deuxième remise est
E31: Brut moins première remise
E32: Les travaux de montage peuvent être introduit à l’heure, par kilomètres ou par un forfait.
E33: (Attention: saisir le texte de montage avant !)
C34: Justificatif N°: | E34: Entrée individuelle d'un numéro de document.
C35: Type de justificatif: | E35: Calcul, offre ou confirmation de commande.
E36: En cliquant sur le logo du produit, le masque d'entrée respectif s'ouvre.
B38: Masques de produit: | C38: Champs de sélection : | E38: Introduisez les données nécessaires dans les champs de sélection.
C39: Calcul de l' installation: | E39: Après le choix effectué, les articles sont inséré en cliquant sur "calculation installation"
E40: dans le tableau calculation.
C41: Entrée par élément: | E41: La pièce avec le Ø correspondant est inséré sans quantité dans le tableau calculation.
D43: Après chaque calcul enregistrer l'offre ou après l’impression retourner à l'entrée!
B45: Calcul: | C45: Enregistrer le calcul. | E45: Le calcul (offre) est stocké automatiquement comme petit fichier Excel.
E46: Tous les champs peuvent être modifiés dans ce fichier.
D48: Chemin : C:\Schiedel-CH\Kaminprofi\Kaminprofi_Offerte\....... Xls
E49: Ce chemin d'accès ne peut pas être rebaptisée, puisque le programme ne fonctionne plus.
C51: Étendre liste des pièces: | E51: Ici, des articles supplémentaires peuvent être choisis.
C52: Aperçu d'impression: | E52: L'impression devrait toujours s'effectuer par l'aperçu avant impression, puisqu'une liste de pièces
E53: étendue est ainsi également filtrée sur les articles choisis.
C54: Commande: | E54: Génération de commandes automatique au Centre de Client Schiedel de votre choix.
B56: Commande: | C56: Ganztec-CC: | E56: Sélection du Centre de Client Ganztec.
C57: Mode d'expédition: | E57: Pour le mode d'expédition choisir livraison au marchand de matériaux ou livraison chantier.
C58: Délai de livraison: | E58: Dans ce champ, on peut introduire une date ou d'autres informations (p. ex. semaine. 15)
E59: La commande peut être imprimé, télécopié ou envoyer par courriel.
C60: Courriel de commande: | E60: La commande est préparée pour l'envoi au Centre de Client défini, en tant que pièce jointe
B62: Inséré le propre logo d'entreprise: | E62: Il existe la possibilité d'insérer son propre logo pour les offres lors de l'enregistrement,
E63: le quelle apparaît alors sur toutes les documents.
C64: Procédure: | E64: Ouvrez le chemin dans le Explorer - : C:\Schiedel-CH\Kaminprofi\
E65: le fichier Kalkulation-Muster_F.xls
E66: remplacez ensuite le logo Schiedel par le votre, enregistrer et fermer
E67: Aucune autre modification ne peut être entreprise.
B69: Note juridique: | E69: Schiedel peut soumettre les offres représentées dans ce logiciel au marchand de matériaux spécialisé
E70: conformément aux conditions de livraison et vente Ganztec en vigueur.
E71: Prix départ usine, TVA en sus.
E72: Valable des le 1. janvier 2019

Sheet Indicazioni (hidden)
B3: Il nuovo programma di offerta e l'ordine di Ganztec | N3: =Daten!$F$161 -> Version 20230101
B5: Note
B8: Installazione: | C8: Il programma viene avviato automaticamente attraverso il File setup.exe sul vostro PC (c:\Schiedel-CH\Kaminprofi\....)
C9: ed installato sul desktop.
C10: Con il programma viene inoltre installata una cartella (Kaminprofi_Offerte) per le Offerte memorizzate.
B12: Internet-Update: | C12: In Internet trovate sempre la versione più attuale! (http://www.ganztec.ch)
B14: Condizione: | C14: Microsoft Windows 2000, NT, XP
C15: Pacchetto Microsoft Office (MS Office 2000 e programma di posta elettronica di Microsoft Outlook o Lotus Notes)
C16: Le Ordinazioni possono essere inviate automaticamente solo con MS Outlook o Lotus Notes.
C17: Le impostazioni della posta nella maschera "rivenditori" possono essere modificate in qualsiasi momento.
B19: Banco Dati : | C19: Dati Clientela: | E19: Si crea un nuovo cliente attraverso la maschera di inseriment.
E20: Si puo' memorizzare un cliente cliccando sul Tasto "cliente salvare"
E21: Il cliente deve essere memorizzato affinchè possa poi essere selezionato nel file della clientela. Il Banco Dati di Clientela è una parte del programma.
E22: Con un aggiornamento del programma, il File della clientela viene automaticamente importato nel programma.
C24: Indirizzo di concessionari | E24: Inserire i dati della Ditta e addetto responsabile.
C25: Assemblea testi-line: | E25: Tutte le caselle bianche sono liberamente definibili di assemblaggio e documento di testo.
B27: Maschera di | C27: Progetti di costruzione: | E27: Immettere l'indirizzo del Cantiere
B28: inserimento | C28: Condizioni / salario: | E28: Immettere due riduzioni. La base di calcolo per la seconda
E29: riduzione è data dal prezzo lordo con detrazione del primo sconto.
E30: Servizi di installazione possono essere inseriti in ore, chilometraggio o in una somma forfettaria.
E31: (Nota: Immettere per prima il testo di montaggio/installazione)
C32: Numero del documento: | E32: Entrare un numero di documento.
C33: Tipo di documento | E33: Calcolo, Offerta o conferma d'ordine.
E34: Cliccando sul logo di un prodotto si aprire la corrispondente maschera d'inserimento.
B36: Maschera di prodotto: | C36: Selezione campi: | E36: Inserire i dati necessari per la selezione campi.
C37: Il calcolo dei costi di sistema: | E37: Dopo la selezione, cliccando su "sistema di prezzi" gli articoli vengono generati nella tabella die costi.
C39: Inserisci i singoli | E39: Il tipo con il corrispondente diametro viene generato senza quantitativo nella tabella dei costi.
D41: Dopo il calcolo di ogni Offerta memorizzare oppure dopo aver stampato ritornare sulla maschera d'immissione !
B43: Calcolo dei costi: | C43: Memorizzazione Calcoli | E43: Il calcolo dei costi (range) è un piccolo file formato Excel che viene salvato automaticamente.
E44: In questo file, tutti i campi possono essere mutati.
D46: C:\Schiedel-CH\Kaminprofi\Kaminprofi_Offerte \....... .xls
E47: Il nome di questo percorso non può essere cambiato(rinomina), altrimenti il programma non funziona più !!
C49: Estensione lista dei Pezzi | E49: Quì, possono essere selezionati ulteriori articoli.
C50: Stampa | E50: Stampare sempre con il passo "visione stampa" in maniera
E51: che venga filtrata anche una ampia lista di pezzi dell'articolo selezionato
C52: Ordinazione: | E52: Generazione automatica di Ordinazione al Centro Schiedel di vostra scelta.
B54: Ordinazione: | C54: Ganztec-CC: | E54: Scelta Centro Ganztec
C55: tipo di Spedizione: | E55: sceglere il tipo di spedizione "consegna magazzino del commerciante" o "consegna sul cantiere"
C56: Data di consegna: | E56: In questo campo, inserire la data di consegna o altre informazioni (ad esempio, numero della Settimana)
E57: Le Ordinazioni possono essere stampate, inviate via fax o per Posta Elettronica.
C58: Invio d'ordine via Email: | E58: L'Ordinazione sarà inviata in allegato via Email al centro clienti definito.
B60: Inserimento logo aziendale: | E60: E 'possibile, per le offerte memorizzate, di inserire il proprio logo aziendale
E61: che apparirebbe poi in tutte le Offerte di tale Azienda..
C62: Procedura | E62: Aprire l'Explorer - via C: \ Schiedel-CH\Kaminprofi\..
E63: \ camino professionale \ file "Kalkulation-Muster_I.xls.
E64: Riampiazzare il Logo Aziendale al Posto del Logo Schiedel e poi salvare il documento e chiudere.
E65: Non si devono apportare ulteriori modifiche al documento.
B67: Avviso legale: | E67: Schiedel può presentare ai concessionari di materiale di costruzione, le Offerte contenute nel presente Programma
E68: in conformità con i termini e le condizioni della Ganztec.
E69: Prezzi franco fabbrica più IVA.
E70: Valido dal 1 Gennaio 2019.

Sheet Hinweise (hidden)
B3: Das neue Angebots- und Bestellprogramm von Ganztec | N3: =Daten!$F$161 -> Version 20230101
B5: Hinweise
B8: Installation: | C8: Das Programm wird automatisch durch die setup.exe auf Ihrem PC (c:\Schiedel-CH\Kaminprofi\....)
C9: und auf dem Desktop installiert.
C10: Zusätzlich zum Programm wird auch ein Ordner (Kaminprofi_Offerte) für gespeicherte Angebote installiert.
B12: Internet-Update: | C12: Im Internet steht immer die aktuelle Programmversion zur Verfügung ! (http://www.ganztec.ch)
B14: Voraussetzung: | C14: Microsoft Windows 2000, NT, XP
C15: Microsoft Officepaket (ab MS Office 2000 und e-Mail-Programm MS Outlook oder Lotus Notes)
C16: Bestellungen können nur mit MS Outlook oder Lotus Notes automatisch gemailt werden.
C17: Die Mail-Einstellungen können jederzeit in der Maske "Händler" geändert werden.
C19: Achtung: Die Makro-Sicherheitseinstellungen sind auf Mittel oder Niedrig einzustellen!
C20: Vorgehensweise bei:
C21: Office 2000, XP oder 2003: Extras - Makro - Sicherheit - Mittel oder Niedrig auswählen.
C22: Wenn Sie Mittel auswählen, werden Sie gefragt ob Sie die Makros akzeptieren - mit ja bestätigen !
C23: Wenn Sie Niedrig auswählen wird das Programm automatisch mit den Makros gestartet.
C24: Office 2007 und Office 2010: Schaltfläche Office - Excel Optionen - Vertrauensstellungscenter -
C25: Einstellungen für das Vertrauensstellungcenter - Einstellungen für Makros - alle Makros aktivieren
C26: oder alle Makros mit Benachrichtigung deaktivieren auswählen.
C27: Wenn Sie Makros mit Benachrichtigung deaktivieren auswählen, dann sind bei jedem Neustart die Makros zu aktivieren.
B29: Stammdaten: | C29: Kundenstamm: | E29: Neuanlage eines Kunden erfolgt in der Eingabe-Maske.
E30: Sie können diesen Kunden in Ihrem Kundenstamm speichern - Button "Kunde speichern" drücken !
E31: Der Kunde muss im Kundenstamm erfasst sein, damit dieser im Programm ausgewählt werden kann.
E32: Der Kundenstamm ist ein Bestandteil des Programms.
E33: Bei einem Programmupdate wird der abgespeicherte Kundenstamm automatisch in das
E34: Programm importiert.
C36: Händleradresse: | E36: Eingabe der Firmen- und Sachbearbeiter-Daten.
C37: Montage-Belegtexte: | E37: Alle weißen Felder sind frei definierbare Montage- und Belegtexte.
B39: Eingabemaske: | C39: Bauvorhaben: | E39: Eingabe der Baustellen-Anschrift.
C40: Konditionen/Lohn: | E40: Eingabe von zwei Rabatten. Die Berechnungsgrundlage für den zweiten Rabatt ist
E41: Brutto abzüglich erster Rabatt.
E42: Montageleistungen können in Stunden, Kilometer oder in einer Pauschale eingegeben werden.
E43: (Achtung: Montagetext vorher eingeben!)
C44: Beleg Nr: | E44: Individuelle Eingabe einer Belegnummer.
C45: Belegart: | E45: Kalkulation, Angebot oder Auftragsbestätigung.
E46: Durch klicken auf ein Produkt-Logo öffnet sich die jeweilige Eingabemaske.
B48: Produktmasken: | C48: Auswahlfelder: | E48: Geben sie die notwendigen Daten in den Auswahlfeldern ein.
C49: Kalkulation Anlage: | E49: Nach erfolgter Auswahl werden die Artikel durch klicken auf "Kalkulation-Anlage" in die Tabelle
E50: Kalkulation generiert.
C51: Einzelteileingabe: | E51: Der Typ mit dem entsprechenden Ø wird ohne Mengenvorgaben in die Tabelle Kalkulation generiert.
D53: Nach jeder Kalkulation das Angebot speichern oder nach Ausdruck zur Eingabe zurückkehren!
B55: Kalkulation: | C55: Kalkulation speichern: | E55: Die Kalkulation (Angebot) wird als kleine Excel-Datei automatisch gespeichert.
E56: In dieser Datei können alle Felder geändert werden.
D58: Pfad: C:\Schiedel-CH\Kaminprofi\Kaminprofi_Offerte\....... .xls
E59: Dieser Pfad darf nicht umbenannt werden, da sonst das Programm nicht mehr funktioniert.
C61: Stückliste erweitern: | E61: Hier können zusätzliche Artikel ausgewählt werden.
C62: Druckansicht: | E62: Der Ausdruck sollte immer über die Druckansicht erfolgen, da damit auch eine erweiterte
E63: Stückliste auf die ausgewählten Artikel gefiltert wird.
C64: Bestellung: | E64: Automatische Bestellgenerierung an das Schiedel Kunden-Center Ihrer Wahl.
B66: Bestellung: | C66: Ganztec-KC: | E66: Auswahl des Lieferanten.
C67: Versandart: | E67: Die Versandart Zustellung Händlerlager oder Zustellung Baustelle auswählen.
C68: Liefertermin: | E68: In diesem Feld kann ein Datum oder andere Informationen (z.B. KW 15) eingegeben werden.
E69: Die Bestellung kann ausgedruckt, gefaxt oder gemailt werden.
C70: Bestellung mailen: | E70: Die Bestellung wird an das definierte Kunden-Center als Mail-Anhang vorbereitet.
B72: Eigenes Firmenlogo einfügen: | E72: Es besteht die Möglichkeit, für Angebote, die gespeichert werden, ein eigenes Logo einzufügen,
E73: das dann bei allen gespeicherten Angeboten erscheint.
C74: Vorgehensweise: | E74: Öffnen Sie im Explorer - Pfad: C:\Schiedel-CH\Kaminprofi\
E75: die Datei Kalkulation-Muster.xls (Deutsch), die Datei Kalkulation-Muster_F.xls (Francais)
E76: und die Datei Kalkulation-Muster_I.xls (Italiano).
E77: Ersetzen Sie das Logo durch Ihr Eigenes, anschließend speichern und schließen.
E78: Es dürfen ansonsten keine weiteren Änderungen vorgenommen werden.
B80: Rechtlicher Hinweis: | E80: Ganztec kann dem Baustoff-Fachhandel die in dieser Software dargestellten
E81: Angebote gemäß den Geschäfts- und Lieferbedingungen von Ganztec unterbreiten.
E82: Preise ab Werk zzgl. MwSt.
E83: Gültig ab 1. Januar 2022

Sheet MSE (hidden)
E26: office@egsa.at

Sheet Kundenstamm (hidden)
B1: =Vokabel!$A$283 -> Kundenstamm | S1: 9999 | T1: =VLOOKUP(S1,T2:U7000,2,0) -> 1 | U1: -1 | W1: =IF(INDEX(Kundenstamm!$A$3:$J$7000,Kundenstamm!$T$2,2)="","",INDEX(Kundenstamm!$A$3:$J$7000,Kundenstamm!$T$2,2)) -> Ganztec AG | AB1: Anschrift 1 | AC1: Anschrift 2 | AD1: Straße | AE1: PLZ | AF1: Ort | AG1: Ansprechpartner | AH1: Tel.Nr. | AI1: E-Mail | AJ1: Handy | AK1: Fax | AL1: Ku.Nr.
A2: =Vokabel!$A$213 -> Ku.Nr. | B2: =Vokabel!$A$214 -> Anschrift 1 | C2: =Vokabel!$A$215 -> Anschrift 2 | D2: =Vokabel!$A$216 -> Strasse | E2: =Vokabel!$A$217 -> PLZ | F2: =Vokabel!$A$218 -> Ort | G2: =Vokabel!$A$219 -> Ansprechpartner | H2: =Vokabel!$A$220 -> Tel.Nr. | I2: E-Mail | J2: =Vokabel!$A$222 -> Handy | K2: Fax.Nr. | L2: =Vokabel!$A$224 -> Info | S2: Kunden-Matchcode | T2: 1 | U2: =U1+1 -> 0 | V2: 1083 | W2: =IF(INDEX(Kundenstamm!$A$3:$J$7000,Kundenstamm!$T$2,3)="","",INDEX(Kundenstamm!$A$3:$J$7000,Kundenstamm!$T$2,3)) ->  | AB2: =Eingabe!K4 -> Ganztec AG | AC2: =IF(Eingabe!K5="","",Eingabe!K5) ->  | AD2: =IF(Eingabe!K6="","",Eingabe!K6) -> Badstrasse 38 | AE2: =IF(Eingabe!K7="","",Eingabe!K7) -> 5312 | AF2: =IF(Eingabe!L7="","",Eingabe!L7) -> Döttingen | AG2: =IF(Eingabe!K9="","",Eingabe!K9) ->  | AH2: =IF(Eingabe!K11="","",Eingabe!K11) ->  | AI2: =IF(Eingabe!N11="","",Eingabe!N11) ->  | AJ2: =IF(Eingabe!N13="","",Eingabe!N13) ->  | AK2: =Eingabe!K13 -> 0 | AL2: =IF(Eingabe!$Q$13="","",Eingabe!$Q$13) -> 9999
A3: 9999 | B3: Ganztec AG | D3: Badstrasse 38 | E3: 5312 | F3: Döttingen | S3: =IF(B3="","",B3&", "&F3&", "&G3) -> Ganztec AG, Döttingen, | T3: =IF(A3="","",A3) -> 9999 | U3: =U2+1 -> 1 | V3: =T3 -> 9999 | W3: =IF(INDEX(Kundenstamm!$A$3:$J$7000,Kundenstamm!$T$2,4)="","",INDEX(Kundenstamm!$A$3:$J$7000,Kundenstamm!$T$2,4)) -> Badstrasse 38
A4: 10000 | B4: Muster | D4: Musterstr. | E4: 5312 | F4: Döttingen | S4: Muster, Döttingen, | T4: 10000 | U4: 2 | V4: =T4 -> 10000 | W4: =IF(INDEX(Kundenstamm!$A$3:$J$7000,Kundenstamm!$T$2,5)="","",INDEX(Kundenstamm!$A$3:$J$7000,Kundenstamm!$T$2,5)) -> 5312 | X4: =IF(INDEX(Kundenstamm!$A$3:$J$7000,Kundenstamm!$T$2,6)="","",INDEX(Kundenstamm!$A$3:$J$7000,Kundenstamm!$T$2,6)) -> Döttingen
U5: 3 | W5: =Vokabel!$A$22 -> PLZ | X5: =Vokabel!$A$23 -> Ort
U6: 4 | W6: =IF(INDEX(Kundenstamm!$A$3:$J$7000,Kundenstamm!$T$2,7)="","",INDEX(Kundenstamm!$A$3:$J$7000,Kundenstamm!$T$2,7)) -> 
U7: 5 | W7: =Vokabel!$A$24 -> Ansprechpartner
U8: 6 | W8: =IF(INDEX(Kundenstamm!$A$3:$J$7000,Kundenstamm!$T$2,8)="","",INDEX(Kundenstamm!$A$3:$J$7000,Kundenstamm!$T$2,8)) ->  | Z8: =IF(INDEX(Kundenstamm!$A$3:$J$7000,Kundenstamm!$T$2,9)="","",INDEX(Kundenstamm!$A$3:$J$7000,Kundenstamm!$T$2,9)) -> 
T9: =IF(A9="","",A9) ->  | U9: 7 | W9: =Vokabel!$A$25 -> Tel.Nr. | Z9: E-Mail
T10: =IF(A10="","",A10) ->  | U10: 8 | W10: =IF(INDEX(Kundenstamm!$A$3:$L$7000,Kundenstamm!$T$2,11)="","",INDEX(Kundenstamm!$A$3:$L$7000,Kundenstamm!$T$2,11)) ->  | Z10: =IF(INDEX(Kundenstamm!$A$3:$J$7000,Kundenstamm!$T$2,10)="","",INDEX(Kundenstamm!$A$3:$J$7000,Kundenstamm!$T$2,10)) -> 
U11: =U10+1 -> 9
U12: 10
U13: 11
U14: 12
U15: 13
U16: 14
U17: 15
U18: 16
U19: 17
U20: 18
U21: 19
U22: 20
U23: 21
U24: 22
U25: 23
U26: 24
U27: 25
U28: 26
U29: 27
U30: 28
U31: 29
U32: 30
U33: 31
U34: 32
U35: 33
U36: 34
U37: 35
U38: 36
U39: 37
U40: 38
U41: 39
U42: 40
U43: 41
U44: 42
U45: 43
U46: 44
U47: 45
U48: 46
U49: 47
U50: 48
U51: 49
U52: 50
U53: 51
U54: 52
U55: 53
U56: 54
U57: 55
U58: 56
U59: 57
U60: 58
U61: 59
U62: 60
U63: 61
U64: 62
U65: 63
U66: 64
S67: =IF(B67="","",B67&", "&F67&", "&G67) ->  | U67: =U66+1 -> 65
U68: 66 | V68: =T68 -> 
U69: 67
U70: 68
U71: 69
U72: 70
U73: 71
T74: =IF(A74="","",A74) ->  | U74: 72
U75: 73
U76: 74
U77: 75
U78: 76
U79: 77
U80: 78
U81: 79
U82: 80
U83: 81
U84: 82
U85: 83
U86: 84
U87: 85
U88: 86
U89: 87
U90: 88
U91: 89
U92: 90
U93: 91
U94: 92
U95: 93
U96: 94
U97: 95
U98: 96
U99: 97
U100: 98
U101: 99
U102: 100
U103: 101
U104: 102
U105: 103
U106: 104
U107: 105
U108: 106
U109: 107
U110: 108
U111: 109
U112: 110
U113: 111
U114: 112
U115: 113
U116: 114
U117: 115
U118: 116
U119: 117
U120: 118
U121: 119
U122: 120
U123: 121
U124: 122
U125: 123
U126: 124
U127: 125
U128: 126
U129: 127
U130: 128
S131: =IF(B131="","",B131&", "&F131&", "&G131) ->  | U131: =U130+1 -> 129
U132: 130 | V132: =T132 -> 
U133: 131
U134: 132
U135: 133
U136: 134
U137: 135
T138: =IF(A138="","",A138) ->  | U138: 136
U139: 137
U140: 138
U141: 139
U142: 140
U143: 141
U144: 142
U145: 143
U146: 144
U147: 145
U148: 146
U149: 147
U150: 148
U151: 149
U152: 150
U153: 151
U154: 152
U155: 153
U156: 154
U157: 155
U158: 156
U159: 157
U160: 158
U161: 159
U162: 160
U163: 161
U164: 162
U165: 163
U166: 164
U167: 165
U168: 166
U169: 167
U170: 168
U171: 169
U172: 170
U173: 171
U174: 172
U175: 173
U176: 174
U177: 175
U178: 176
U179: 177
U180: 178
U181: 179
U182: 180
U183: 181
U184: 182
U185: 183
U186: 184
U187: 185
U188: 186
U189: 187
U190: 188
U191: 189
U192: 190
U193: 191
U194: 192
S195: =IF(B195="","",B195&", "&F195&", "&G195) ->  | U195: =U194+1 -> 193
U196: 194 | V196: =T196 -> 
U197: 195
U198: 196
U199: 197
U200: 198
... 4300 more rows

Sheet ICS (hidden)
F2: =Daten!AL92 -> TypICS Matt Ø 180 | P2: =M4&" "&Daten!V92 -> ICS Matt 180
F4: =Vokabel!$A$479 -> Typ/Lichter Ø mm | M4: =Daten!$H$489 -> ICS Matt
F6: =Vokabel!$A$96 -> Betriebsweise
F8: =Vokabel!$A$75 -> Brennstoff | M8: =Vokabel!$A$89 -> Anpassung der Anlagenhöhe
F10: =Vokabel!$A$40 -> Anlagenhöhe in m | J10: 10 | M10: =Vokabel!$A$90 -> tatsächliche Anlagenhöhe | P10: =VLOOKUP(P2,Sortimente!G:P,10,0) -> 10.306
F12: =Vokabel!$A$76 -> Wand- o. Bodenmontage | M12: =Vokabel!$A$91 -> Differenz +/- | P12: =P10-J10 -> 0.306
F14: =Vokabel!$A$77 -> Putztüranschluss | M14: =Vokabel!$A$101 -> Anpassung durch Eingabe kürzerer Rohrelemente:
F16: =Vokabel!$A$78 -> Rauchrohranschluss RA
F18: =Vokabel!$A$79 -> RA-Höhe in m | N18: =Vokabel!$A$336 -> Rohr 455 mm
F20: =Vokabel!$A$331 -> RA-Verlängerung (ICS) | N20: =Vokabel!$A$337 -> Rohr 205 mm
F22: =Vokabel!A384 -> Abdeckblende
F24: =Vokabel!$A$82 -> Dachdurchführung
F26: =Vokabel!$A$385 -> Mündungslösung
F28: =Vokabel!$A$382 -> Wandabstand (>50 mm)
F30: =Vokabel!$A$333 -> Statische Klemmbänder (2 Stk)
F36: =Vokabel!$A$88 -> Verbindungsleitung

Sheet ICS5000 (hidden)
F2: =Daten!$AL$230 -> Typ ICS 5000 Matt Ø 180 | P2: =M4&" "&Daten!$V$230 -> ICS5000 180
M4: =Daten!$H$500 -> ICS5000
F8: =Vokabel!$A$479 -> Typ/Lichter Ø mm | M8: =Vokabel!$A$89 -> Anpassung der Anlagenhöhe
F10: =Vokabel!$A$40 -> Anlagenhöhe in m | J10: 10 | M10: =Vokabel!$A$90 -> tatsächliche Anlagenhöhe | P10: =VLOOKUP(P2,Sortimente!G:P,10,0) -> 10.85
F12: =Vokabel!$A$76 -> Wand- o. Bodenmontage | M12: =Vokabel!$A$91 -> Differenz +/- | P12: =P10-J10 -> 0.85
F14: =Vokabel!$A$77 -> Putztüranschluss | M14: =Vokabel!$A$101 -> Anpassung durch Eingabe kürzerer Rohrelemente:
F16: =Vokabel!$A$78 -> Rauchrohranschluss RA
F18: =Vokabel!$A$331 -> RA-Verlängerung (ICS) | N18: =Vokabel!$A$336 -> Rohr 455 mm
F20: =Vokabel!A384 -> Abdeckblende | N20: =Vokabel!$A$337 -> Rohr 205 mm
F22: =Vokabel!$A$82 -> Dachdurchführung
F24: =Vokabel!$A$385 -> Mündungslösung
F26: =Vokabel!$A$382 -> Wandabstand (>50 mm)
F28: =Vokabel!A489 -> Winkel | H28: 15°
H30: 30°
H32: 45°
H34: 90°

Sheet Keranova (hidden)
P2: =VLOOKUP(Daten!$U$117,Daten!$T:$U,2,0)&" "&VLOOKUP(Daten!$U$117,Daten!$T:$V,3,0) -> Keranova 160
F3: =VLOOKUP(Daten!$U$117,Daten!$T:$AL,19,0) -> Typ KERANOVA 160
F6: =Vokabel!$A$311 -> Lichter Ø mm
F8: =Vokabel!$A$96 -> Betriebsweise
F10: =Vokabel!$A$75 -> Brennstoff | M10: =Vokabel!$A$89 -> Anpassung der Anlagenhöhe
F12: =Vokabel!$A$40 -> Anlagenhöhe in m | J12: 11 | M12: =Vokabel!$A$90 -> tatsächliche Anlagenhöhe | P12: =VLOOKUP(P2,Sortimente!G:P,10,0) -> 11.306
F14: =Vokabel!$A$78 -> Rauchrohranschluss RA | M14: =Vokabel!$A$97 -> Differenz +/- | P14: =P12-J12 -> 0.306
M15: =Vokabel!$A$98 -> (14 cm für Mündung vorsehen!)
F16: =Vokabel!$A$99 -> Doppelwandfutter in mm
M17: =Vokabel!$A$101 -> Anpassung durch Eingabe kürzerer Rohrelemente:
F18: =Vokabel!$A$77 -> Putztüranschluss
F20: =Vokabel!$A$100 -> Putztür | N20: =Vokabel!$A$104 -> Rohr 660 mm
F22: =Vokabel!$A$102 -> Regenhaube
F24: =Vokabel!$A$54 -> Kaminaufsätze | H24: =Vokabel!$A$63 -> (ab Ø 16)
F28: =Vokabel!$A$88 -> Verbindungsleitung

Sheet Kerastar (hidden)
F2: =VLOOKUP(Daten!$U$22,Daten!$T:$AL,19,0) -> Typ KRS 180 | P2: =VLOOKUP(Daten!$U$22,Daten!$T:$U,2,0)&" "&VLOOKUP(Daten!$U$22,Daten!$T:$V,3,0) -> KERASTAR 180
F4: =Vokabel!$A$311 -> Lichter Ø mm
F6: =Vokabel!$A$75 -> Brennstoff | M6: =Vokabel!$A$89 -> Anpassung der Anlagenhöhe
F8: =Vokabel!$A$40 -> Anlagenhöhe in m | J8: 10 | M8: =Vokabel!$A$90 -> tatsächliche Anlagenhöhe | P8: =VLOOKUP(P2,Sortimente!G:P,10,0) -> 10.178
F10: =Vokabel!$A$76 -> Wand- o. Bodenmontage | M10: =Vokabel!$A$91 -> Differenz +/- | P10: =P8-J8 -> 0.178
F12: =Vokabel!$A$77 -> Putztüranschluss | M12: =Vokabel!$A$92 -> Anpassung durch Eingabe
F14: =Vokabel!$A$78 -> Rauchrohranschluss RA | M14: =Vokabel!$A$93 -> kürzerer Rohrelemente:
F16: =Vokabel!$A$79 -> RA-Höhe in m | N16: =Vokabel!$A$94 -> Rohr 330 mm
F18: =Vokabel!$A$80 -> RA-Verlängerung (KRS) | N18: =Vokabel!$A$95 -> Rohr 165 mm
F20: =Vokabel!$A$81 -> Sparrenhalterung
F22: =Vokabel!$A$82 -> Dachdurchführung
F24: =Vokabel!$A$83 -> Regenhaube
F26: =Vokabel!$A$84 -> Mündungslösung
F28: =Vokabel!$A$85 -> Wandabstand (>=50 mm)
F30: =Vokabel!$A$86 -> Wandhalterung statisch
F31: =Vokabel!$A$87 -> (inkl. 2 St. statischer Manschetten)
F33: =Vokabel!$A$88 -> Verbindungsleitung

Sheet Texte (hidden)
D1: =Vokabel!$A$225 -> Variabler Text für Montagearbeiten
B3: =Vokabel!$A$226 -> 1.Zeile
B4: =Vokabel!$A$227 -> 2.Zeile
B5: =Vokabel!$A$228 -> 3.Zeile
B6: =Vokabel!$A$229 -> 4.Zeile
D10: =Vokabel!$A$232 -> Variabler Kopftext für Angebot
B12: =Vokabel!$A$226 -> 1.Zeile | D12: =IF(Eingabe!K9=0,"",IF(Eingabe!K9="","",Vokabel!$A$233&" "&Eingabe!K9&",")) -> 
B13: =Vokabel!$A$227 -> 2.Zeile | D13: =Vokabel!$A$234 -> wir bedanken uns für Ihre Anfrage und bieten Ihnen folgendes an:
D14: =Vokabel!$A$236 -> Wenn es keine Ansprechperson gibt wird der Kopftext (1.u.2.Zeile) genommen
B15: =Vokabel!$A$231 -> 1.u.2.Zeile | D15: =Vokabel!$A$235 -> Wir bedanken uns für Ihre Anfrage und bieten Ihnen folgendes an:
D16: =Vokabel!$A$237 -> Variabler Schlusstext für Angebot
B18: =Vokabel!$A$226 -> 1.Zeile
B19: =Vokabel!$A$227 -> 2.Zeile
B20: =Vokabel!$A$228 -> 3.Zeile | D20: =Vokabel!$A$238 -> Wir hoffen, dass Ihnen unser Angebot zusagt und freuen uns auf Ihren Auftrag.
B21: =Vokabel!$A$229 -> 4.Zeile | D21: =Vokabel!$A$239 -> Freundliche Grüsse

Sheet Musteranlage (hidden)
A1: =IF(J1="Absolut",Daten!$U$35,IF(J1="Cheminee",Daten!$U$79,IF(J1="ICS",Daten!$U$92,IF(J1="ICS Matt",Daten!$U$92,IF(J1="ICS Kupfer",Daten!$U$92,IF(J1="Keranova",Daten!$U$117,IF(J1="Kerastar",Daten!$U$22,A2))))))) -> ABSOLUT18 | J1: Absolut
A2: =IF(J1="Prima+1,0",Daten!$U$162,IF(J1="Prima Plus",Daten!$U$139,IF(J1="Technostar120",Daten!$U$10,IF(J1="ISOLIT",Daten!$U$1,IF(J1="ICS5000",Daten!$U$230,""))))) ->  | H2: =VLOOKUP(A1,Daten!T:U,2,0) -> ABSOLUT | I2: =VLOOKUP(A1,Daten!T:AM,20,0) -> Schiedel ABSOLUT, ABS 18 | L2: =VLOOKUP(A1,Daten!$T:$Y,6,0) -> Mehrschaliges feuchteunempfindliches Kaminsystem
I3: =IF(H2="Kerastar",Vokabel!$A$411&" "&Daten!$C$401,IF(H2="ADW TecnoStar",Vokabel!$A$411&" "&Daten!$C$401,IF(H2="ICS",Vokabel!$A$411&" "&Daten!$C$499,IF($H$2="Absolut",Vokabel!$A$412&" "&Daten!$Z$35,IF($H$2="Cheminee",Vokabel!$A$412&" "&Daten!$AK$79,IF(H2="ISOLIT",Vokabel!$A$412&" "&Daten!$Z$1,IF(H2="ICS5000",Vokabel!$A$411&" "&Daten!$M$499,""))))))) -> Aussenmass: 36/36 cm | L3: =IF(VLOOKUP(A1,Daten!$T:$AA,8,0)=0,"",(VLOOKUP(A1,Daten!$T:$AA,8,0))) -> mit integrierter Wärmedämmung
L4: =IF(VLOOKUP(A1,Daten!$T:$AB,9,0)=0,"",(VLOOKUP(A1,Daten!$T:$AB,9,0))) -> und keramischem Profil-Innenrohr
N5: =IF($R$5="","",IF($R$5=1,"","(inkl. "&$S$5&" "&Vokabel!$A$259&")")) ->  | R5: =IF(H2="Kerastar",Daten!$B$461,IF(H2="ICS",Daten!$B$507,IF(H2="ICS Kupfer",Daten!$B$507,IF(H2="ICS5000",Daten!$L$507,"")))) ->  | S5: =IF(H2="Kerastar",Daten!$C$461,IF(H2="ICS",Daten!$C$507,IF(H2="ICS Kupfer",Daten!$C$507,IF(H2="ICS5000",Daten!$M$507,"")))) -> 
A7: Nr. | B7: Verkn. | H7: Rabatt- fähig | I7: Pos. | J7: Artikelbezeichnung | K7: Baulänge | L7: Artikelnummer | M7: Menge
A8: 0 | B8: =$A$1&Musteranlage!A8 -> ABSOLUT180 | H8: =IF(L8="","",IF(L8="Sonder","J",VLOOKUP(L8,sanschie!B:K,10,0))) -> J | I8: =IF(ISNA(VLOOKUP($B8,Sortimente!D:G,2,0))=TRUE,"",VLOOKUP($B8,Sortimente!D:G,2,0)) -> P | L8: =IF(I8="","",VLOOKUP($B8,Sortimente!D:G,4,0)) -> Absolut 18 | M8: =IF(I8="","",IF(VLOOKUP(B8,Sortimente!D:L,9,0)=0,"",VLOOKUP(B8,Sortimente!D:L,9,0))) -> 
A9: 1 | B9: =$A$1&Musteranlage!A9 -> ABSOLUT181 | H9: =IF(L9="","",IF(L9="Sonder","J",VLOOKUP(L9,sanschie!A:K,11,0))) -> J | I9: =IF(ISNA(VLOOKUP($B9,Sortimente!D:G,2,0))=TRUE,"",VLOOKUP($B9,Sortimente!D:G,2,0)) -> 0 | L9: =IF(I9="","",VLOOKUP($B9,Sortimente!D:G,4,0)) -> 103912 | M9: =IF(I9="","",IF(VLOOKUP(B9,Sortimente!D:L,9,0)=0,"",VLOOKUP(B9,Sortimente!D:L,9,0))) -> 23
A10: 2 | B10: =$A$1&Musteranlage!A10 -> ABSOLUT182 | H10: =IF(L10="","",IF(L10="Sonder","J",VLOOKUP(L10,sanschie!A:K,11,0))) -> J | I10: =IF(ISNA(VLOOKUP($B10,Sortimente!D:G,2,0))=TRUE,"",VLOOKUP($B10,Sortimente!D:G,2,0)) -> 0 | L10: =IF(I10="","",VLOOKUP($B10,Sortimente!D:G,4,0)) -> 103931 | M10: =IF(I10="","",IF(VLOOKUP(B10,Sortimente!D:L,9,0)=0,"",VLOOKUP(B10,Sortimente!D:L,9,0))) -> 
A11: 3 | B11: =$A$1&Musteranlage!A11 -> ABSOLUT183 | H11: =IF(L11="","",IF(L11="Sonder","J",VLOOKUP(L11,sanschie!A:K,11,0))) -> J | I11: =IF(ISNA(VLOOKUP($B11,Sortimente!D:G,2,0))=TRUE,"",VLOOKUP($B11,Sortimente!D:G,2,0)) -> 0 | L11: =IF(I11="","",VLOOKUP($B11,Sortimente!D:G,4,0)) -> 103849 | M11: =IF(I11="","",IF(VLOOKUP(B11,Sortimente!D:L,9,0)=0,"",VLOOKUP(B11,Sortimente!D:L,9,0))) -> 
A12: 4 | B12: =$A$1&Musteranlage!A12 -> ABSOLUT184 | H12: =IF(L12="","",IF(L12="Sonder","J",VLOOKUP(L12,sanschie!A:K,11,0))) -> J | I12: =IF(ISNA(VLOOKUP($B12,Sortimente!D:G,2,0))=TRUE,"",VLOOKUP($B12,Sortimente!D:G,2,0)) -> 0 | L12: =IF(I12="","",VLOOKUP($B12,Sortimente!D:G,4,0)) -> 103948 | M12: =IF(I12="","",IF(VLOOKUP(B12,Sortimente!D:L,9,0)=0,"",VLOOKUP(B12,Sortimente!D:L,9,0))) -> 5
A13: 5 | B13: =$A$1&Musteranlage!A13 -> ABSOLUT185 | H13: =IF(L13="","",IF(L13="Sonder","J",VLOOKUP(L13,sanschie!A:K,11,0))) -> J | I13: =IF(ISNA(VLOOKUP($B13,Sortimente!D:G,2,0))=TRUE,"",VLOOKUP($B13,Sortimente!D:G,2,0)) -> 0 | L13: =IF(I13="","",VLOOKUP($B13,Sortimente!D:G,4,0)) -> 103859 | M13: =IF(I13="","",IF(VLOOKUP(B13,Sortimente!D:L,9,0)=0,"",VLOOKUP(B13,Sortimente!D:L,9,0))) -> 1
A14: 6 | B14: =$A$1&Musteranlage!A14 -> ABSOLUT186 | H14: =IF(L14="","",IF(L14="Sonder","J",VLOOKUP(L14,sanschie!A:K,11,0))) -> J | I14: =IF(ISNA(VLOOKUP($B14,Sortimente!D:G,2,0))=TRUE,"",VLOOKUP($B14,Sortimente!D:G,2,0)) -> 0 | L14: =IF(I14="","",VLOOKUP($B14,Sortimente!D:G,4,0)) -> 103953 | M14: =IF(I14="","",IF(VLOOKUP(B14,Sortimente!D:L,9,0)=0,"",VLOOKUP(B14,Sortimente!D:L,9,0))) -> 
A15: 7 | B15: =$A$1&Musteranlage!A15 -> ABSOLUT187 | H15: =IF(L15="","",IF(L15="Sonder","J",VLOOKUP(L15,sanschie!A:K,11,0))) -> J | I15: =IF(ISNA(VLOOKUP($B15,Sortimente!D:G,2,0))=TRUE,"",VLOOKUP($B15,Sortimente!D:G,2,0)) -> 0 | L15: =IF(I15="","",VLOOKUP($B15,Sortimente!D:G,4,0)) -> 103891 | M15: =IF(I15="","",IF(VLOOKUP(B15,Sortimente!D:L,9,0)=0,"",VLOOKUP(B15,Sortimente!D:L,9,0))) -> 1
A16: 8 | B16: =$A$1&Musteranlage!A16 -> ABSOLUT188 | H16: =IF(L16="","",IF(L16="Sonder","J",VLOOKUP(L16,sanschie!A:K,11,0))) -> J | I16: =IF(ISNA(VLOOKUP($B16,Sortimente!D:G,2,0))=TRUE,"",VLOOKUP($B16,Sortimente!D:G,2,0)) -> 0 | L16: =IF(I16="","",VLOOKUP($B16,Sortimente!D:G,4,0)) -> 103709 | M16: =IF(I16="","",IF(VLOOKUP(B16,Sortimente!D:L,9,0)=0,"",VLOOKUP(B16,Sortimente!D:L,9,0))) -> 
A17: 9 | B17: =$A$1&Musteranlage!A17 -> ABSOLUT189 | H17: =IF(L17="","",IF(L17="Sonder","J",VLOOKUP(L17,sanschie!A:K,11,0))) -> J | I17: =IF(ISNA(VLOOKUP($B17,Sortimente!D:G,2,0))=TRUE,"",VLOOKUP($B17,Sortimente!D:G,2,0)) -> 0 | L17: =IF(I17="","",VLOOKUP($B17,Sortimente!D:G,4,0)) -> 103700 | M17: =IF(I17="","",IF(VLOOKUP(B17,Sortimente!D:L,9,0)=0,"",VLOOKUP(B17,Sortimente!D:L,9,0))) -> 
A18: 10 | B18: =$A$1&Musteranlage!A18 -> ABSOLUT1810 | H18: =IF(L18="","",IF(L18="Sonder","J",VLOOKUP(L18,sanschie!A:K,11,0))) -> J | I18: =IF(ISNA(VLOOKUP($B18,Sortimente!D:G,2,0))=TRUE,"",VLOOKUP($B18,Sortimente!D:G,2,0)) -> 0 | L18: =IF(I18="","",VLOOKUP($B18,Sortimente!D:G,4,0)) -> 103871 | M18: =IF(I18="","",IF(VLOOKUP(B18,Sortimente!D:L,9,0)=0,"",VLOOKUP(B18,Sortimente!D:L,9,0))) -> 
A19: 11 | B19: =$A$1&Musteranlage!A19 -> ABSOLUT1811 | H19: =IF(L19="","",IF(L19="Sonder","J",VLOOKUP(L19,sanschie!A:K,11,0))) -> J | I19: =IF(ISNA(VLOOKUP($B19,Sortimente!D:G,2,0))=TRUE,"",VLOOKUP($B19,Sortimente!D:G,2,0)) -> 0 | L19: =IF(I19="","",VLOOKUP($B19,Sortimente!D:G,4,0)) -> 103983 | M19: =IF(I19="","",IF(VLOOKUP(B19,Sortimente!D:L,9,0)=0,"",VLOOKUP(B19,Sortimente!D:L,9,0))) -> 1
A20: 12 | B20: =$A$1&Musteranlage!A20 -> ABSOLUT1812 | H20: =IF(L20="","",IF(L20="Sonder","J",VLOOKUP(L20,sanschie!A:K,11,0))) -> J | I20: =IF(ISNA(VLOOKUP($B20,Sortimente!D:G,2,0))=TRUE,"",VLOOKUP($B20,Sortimente!D:G,2,0)) -> 0 | L20: =IF(I20="","",VLOOKUP($B20,Sortimente!D:G,4,0)) -> 103995 | M20: =IF(I20="","",IF(VLOOKUP(B20,Sortimente!D:L,9,0)=0,"",VLOOKUP(B20,Sortimente!D:L,9,0))) -> 
A21: 13 | B21: =$A$1&Musteranlage!A21 -> ABSOLUT1813 | H21: =IF(L21="","",IF(L21="Sonder","J",VLOOKUP(L21,sanschie!A:K,11,0))) -> J | I21: =IF(ISNA(VLOOKUP($B21,Sortimente!D:G,2,0))=TRUE,"",VLOOKUP($B21,Sortimente!D:G,2,0)) -> 0 | L21: =IF(I21="","",VLOOKUP($B21,Sortimente!D:G,4,0)) -> 104001 | M21: =IF(I21="","",IF(VLOOKUP(B21,Sortimente!D:L,9,0)=0,"",VLOOKUP(B21,Sortimente!D:L,9,0))) -> 
A22: 14 | B22: =$A$1&Musteranlage!A22 -> ABSOLUT1814 | H22: =IF(L22="","",IF(L22="Sonder","J",VLOOKUP(L22,sanschie!A:K,11,0))) -> J | I22: =IF(ISNA(VLOOKUP($B22,Sortimente!D:G,2,0))=TRUE,"",VLOOKUP($B22,Sortimente!D:G,2,0)) -> 0 | L22: =IF(I22="","",VLOOKUP($B22,Sortimente!D:G,4,0)) -> 104007 | M22: =IF(I22="","",IF(VLOOKUP(B22,Sortimente!D:L,9,0)=0,"",VLOOKUP(B22,Sortimente!D:L,9,0))) -> 
A23: 15 | B23: =$A$1&Musteranlage!A23 -> ABSOLUT1815 | H23: =IF(L23="","",IF(L23="Sonder","J",VLOOKUP(L23,sanschie!A:K,11,0))) -> J | I23: =IF(ISNA(VLOOKUP($B23,Sortimente!D:G,2,0))=TRUE,"",VLOOKUP($B23,Sortimente!D:G,2,0)) -> 0 | L23: =IF(I23="","",VLOOKUP($B23,Sortimente!D:G,4,0)) -> 104268 | M23: =IF(I23="","",IF(VLOOKUP(B23,Sortimente!D:L,9,0)=0,"",VLOOKUP(B23,Sortimente!D:L,9,0))) -> 
A24: 16 | B24: =$A$1&Musteranlage!A24 -> ABSOLUT1816 | H24: =IF(L24="","",IF(L24="Sonder","J",VLOOKUP(L24,sanschie!A:K,11,0))) -> J | I24: =IF(ISNA(VLOOKUP($B24,Sortimente!D:G,2,0))=TRUE,"",VLOOKUP($B24,Sortimente!D:G,2,0)) -> 0 | L24: =IF(I24="","",VLOOKUP($B24,Sortimente!D:G,4,0)) -> 103966 | M24: =IF(I24="","",IF(VLOOKUP(B24,Sortimente!D:L,9,0)=0,"",VLOOKUP(B24,Sortimente!D:L,9,0))) -> 
A25: 17 | B25: =$A$1&Musteranlage!A25 -> ABSOLUT1817 | H25: =IF(L25="","",IF(L25="Sonder","J",VLOOKUP(L25,sanschie!A:K,11,0))) -> J | I25: =IF(ISNA(VLOOKUP($B25,Sortimente!D:G,2,0))=TRUE,"",VLOOKUP($B25,Sortimente!D:G,2,0)) -> 0 | L25: =IF(I25="","",VLOOKUP($B25,Sortimente!D:G,4,0)) -> 104274 | M25: =IF(I25="","",IF(VLOOKUP(B25,Sortimente!D:L,9,0)=0,"",VLOOKUP(B25,Sortimente!D:L,9,0))) -> 
A26: 18 | B26: =$A$1&Musteranlage!A26 -> ABSOLUT1818 | H26: =IF(L26="","",IF(L26="Sonder","J",VLOOKUP(L26,sanschie!A:K,11,0))) -> J | I26: =IF(ISNA(VLOOKUP($B26,Sortimente!D:G,2,0))=TRUE,"",VLOOKUP($B26,Sortimente!D:G,2,0)) -> 0 | L26: =IF(I26="","",VLOOKUP($B26,Sortimente!D:G,4,0)) -> 104243 | M26: =IF(I26="","",IF(VLOOKUP(B26,Sortimente!D:L,9,0)=0,"",VLOOKUP(B26,Sortimente!D:L,9,0))) -> 
A27: 19 | B27: =$A$1&Musteranlage!A27 -> ABSOLUT1819 | H27: =IF(L27="","",IF(L27="Sonder","J",VLOOKUP(L27,sanschie!A:K,11,0))) -> J | I27: =IF(ISNA(VLOOKUP($B27,Sortimente!D:G,2,0))=TRUE,"",VLOOKUP($B27,Sortimente!D:G,2,0)) -> 0 | L27: =IF(I27="","",VLOOKUP($B27,Sortimente!D:G,4,0)) -> 104190 | M27: =IF(I27="","",IF(VLOOKUP(B27,Sortimente!D:L,9,0)=0,"",VLOOKUP(B27,Sortimente!D:L,9,0))) -> 
A28: 20 | B28: =$A$1&Musteranlage!A28 -> ABSOLUT1820 | H28: =IF(L28="","",IF(L28="Sonder","J",VLOOKUP(L28,sanschie!A:K,11,0))) -> J | I28: =IF(ISNA(VLOOKUP($B28,Sortimente!D:G,2,0))=TRUE,"",VLOOKUP($B28,Sortimente!D:G,2,0)) -> 0 | L28: =IF(I28="","",VLOOKUP($B28,Sortimente!D:G,4,0)) -> 104144 | M28: =IF(I28="","",IF(VLOOKUP(B28,Sortimente!D:L,9,0)=0,"",VLOOKUP(B28,Sortimente!D:L,9,0))) -> 1
A29: 21 | B29: =$A$1&Musteranlage!A29 -> ABSOLUT1821 | H29: =IF(L29="","",IF(L29="Sonder","J",VLOOKUP(L29,sanschie!A:K,11,0))) -> J | I29: =IF(ISNA(VLOOKUP($B29,Sortimente!D:G,2,0))=TRUE,"",VLOOKUP($B29,Sortimente!D:G,2,0)) -> 0 | L29: =IF(I29="","",VLOOKUP($B29,Sortimente!D:G,4,0)) -> 104170 | M29: =IF(I29="","",IF(VLOOKUP(B29,Sortimente!D:L,9,0)=0,"",VLOOKUP(B29,Sortimente!D:L,9,0))) -> 
A30: 22 | B30: =$A$1&Musteranlage!A30 -> ABSOLUT1822 | H30: =IF(L30="","",IF(L30="Sonder","J",VLOOKUP(L30,sanschie!A:K,11,0))) -> J | I30: =IF(ISNA(VLOOKUP($B30,Sortimente!D:G,2,0))=TRUE,"",VLOOKUP($B30,Sortimente!D:G,2,0)) -> 0 | L30: =IF(I30="","",VLOOKUP($B30,Sortimente!D:G,4,0)) -> 104162 | M30: =IF(I30="","",IF(VLOOKUP(B30,Sortimente!D:L,9,0)=0,"",VLOOKUP(B30,Sortimente!D:L,9,0))) -> 1
A31: 23 | B31: =$A$1&Musteranlage!A31 -> ABSOLUT1823 | H31: =IF(L31="","",IF(L31="Sonder","J",VLOOKUP(L31,sanschie!A:K,11,0))) -> J | I31: =IF(ISNA(VLOOKUP($B31,Sortimente!D:G,2,0))=TRUE,"",VLOOKUP($B31,Sortimente!D:G,2,0)) -> 0 | L31: =IF(I31="","",VLOOKUP($B31,Sortimente!D:G,4,0)) -> 104175 | M31: =IF(I31="","",IF(VLOOKUP(B31,Sortimente!D:L,9,0)=0,"",VLOOKUP(B31,Sortimente!D:L,9,0))) -> 
A32: 24 | B32: =$A$1&Musteranlage!A32 -> ABSOLUT1824 | H32: =IF(L32="","",IF(L32="Sonder","J",VLOOKUP(L32,sanschie!A:K,11,0))) -> J | I32: =IF(ISNA(VLOOKUP($B32,Sortimente!D:G,2,0))=TRUE,"",VLOOKUP($B32,Sortimente!D:G,2,0)) -> 0 | L32: =IF(I32="","",VLOOKUP($B32,Sortimente!D:G,4,0)) -> 140787 | M32: =IF(I32="","",IF(VLOOKUP(B32,Sortimente!D:L,9,0)=0,"",VLOOKUP(B32,Sortimente!D:L,9,0))) -> 
A33: 25 | B33: =$A$1&Musteranlage!A33 -> ABSOLUT1825 | H33: =IF(L33="","",IF(L33="Sonder","J",VLOOKUP(L33,sanschie!A:K,11,0))) -> J | I33: =IF(ISNA(VLOOKUP($B33,Sortimente!D:G,2,0))=TRUE,"",VLOOKUP($B33,Sortimente!D:G,2,0)) -> 0 | L33: =IF(I33="","",VLOOKUP($B33,Sortimente!D:G,4,0)) -> 140932 | M33: =IF(I33="","",IF(VLOOKUP(B33,Sortimente!D:L,9,0)=0,"",VLOOKUP(B33,Sortimente!D:L,9,0))) -> 
A34: 26 | B34: =$A$1&Musteranlage!A34 -> ABSOLUT1826 | H34: =IF(L34="","",IF(L34="Sonder","J",VLOOKUP(L34,sanschie!A:K,11,0))) -> J | I34: =IF(ISNA(VLOOKUP($B34,Sortimente!D:G,2,0))=TRUE,"",VLOOKUP($B34,Sortimente!D:G,2,0)) -> 0 | L34: =IF(I34="","",VLOOKUP($B34,Sortimente!D:G,4,0)) -> 104206 | M34: =IF(I34="","",IF(VLOOKUP(B34,Sortimente!D:L,9,0)=0,"",VLOOKUP(B34,Sortimente!D:L,9,0))) -> 
A35: 27 | B35: =$A$1&Musteranlage!A35 -> ABSOLUT1827 | H35: =IF(L35="","",IF(L35="Sonder","J",VLOOKUP(L35,sanschie!A:K,11,0))) -> J | I35: =IF(ISNA(VLOOKUP($B35,Sortimente!D:G,2,0))=TRUE,"",VLOOKUP($B35,Sortimente!D:G,2,0)) -> 0 | L35: =IF(I35="","",VLOOKUP($B35,Sortimente!D:G,4,0)) -> 103917 | M35: =IF(I35="","",IF(VLOOKUP(B35,Sortimente!D:L,9,0)=0,"",VLOOKUP(B35,Sortimente!D:L,9,0))) -> 1
A36: 28 | B36: =$A$1&Musteranlage!A36 -> ABSOLUT1828 | H36: =IF(L36="","",IF(L36="Sonder","J",VLOOKUP(L36,sanschie!A:K,11,0))) -> J | I36: =IF(ISNA(VLOOKUP($B36,Sortimente!D:G,2,0))=TRUE,"",VLOOKUP($B36,Sortimente!D:G,2,0)) -> 0 | L36: =IF(I36="","",VLOOKUP($B36,Sortimente!D:G,4,0)) -> 104059 | M36: =IF(I36="","",IF(VLOOKUP(B36,Sortimente!D:L,9,0)=0,"",VLOOKUP(B36,Sortimente!D:L,9,0))) -> 
A37: 29 | B37: =$A$1&Musteranlage!A37 -> ABSOLUT1829 | H37: =IF(L37="","",IF(L37="Sonder","J",VLOOKUP(L37,sanschie!A:K,11,0))) -> J | I37: =IF(ISNA(VLOOKUP($B37,Sortimente!D:G,2,0))=TRUE,"",VLOOKUP($B37,Sortimente!D:G,2,0)) -> 0 | L37: =IF(I37="","",VLOOKUP($B37,Sortimente!D:G,4,0)) -> 104083 | M37: =IF(I37="","",IF(VLOOKUP(B37,Sortimente!D:L,9,0)=0,"",VLOOKUP(B37,Sortimente!D:L,9,0))) -> 
A38: 30 | B38: =$A$1&Musteranlage!A38 -> ABSOLUT1830 | H38: =IF(L38="","",IF(L38="Sonder","J",VLOOKUP(L38,sanschie!A:K,11,0))) -> J | I38: =IF(ISNA(VLOOKUP($B38,Sortimente!D:G,2,0))=TRUE,"",VLOOKUP($B38,Sortimente!D:G,2,0)) -> 0 | L38: =IF(I38="","",VLOOKUP($B38,Sortimente!D:G,4,0)) -> 103899 | M38: =IF(I38="","",IF(VLOOKUP(B38,Sortimente!D:L,9,0)=0,"",VLOOKUP(B38,Sortimente!D:L,9,0))) -> 
A39: 31 | B39: =$A$1&Musteranlage!A39 -> ABSOLUT1831 | H39: =IF(L39="","",IF(L39="Sonder","J",VLOOKUP(L39,sanschie!A:K,11,0))) -> J | I39: =IF(ISNA(VLOOKUP($B39,Sortimente!D:G,2,0))=TRUE,"",VLOOKUP($B39,Sortimente!D:G,2,0)) -> 0 | L39: =IF(I39="","",VLOOKUP($B39,Sortimente!D:G,4,0)) -> 103907 | M39: =IF(I39="","",IF(VLOOKUP(B39,Sortimente!D:L,9,0)=0,"",VLOOKUP(B39,Sortimente!D:L,9,0))) -> 
A40: 32 | B40: =$A$1&Musteranlage!A40 -> ABSOLUT1832 | H40: =IF(L40="","",IF(L40="Sonder","J",VLOOKUP(L40,sanschie!A:K,11,0))) -> J | I40: =IF(ISNA(VLOOKUP($B40,Sortimente!D:G,2,0))=TRUE,"",VLOOKUP($B40,Sortimente!D:G,2,0)) -> 0 | L40: =IF(I40="","",VLOOKUP($B40,Sortimente!D:G,4,0)) -> 103474 | M40: =IF(I40="","",IF(VLOOKUP(B40,Sortimente!D:L,9,0)=0,"",VLOOKUP(B40,Sortimente!D:L,9,0))) -> 
A41: 33 | B41: =$A$1&Musteranlage!A41 -> ABSOLUT1833 | H41: =IF(L41="","",IF(L41="Sonder","J",VLOOKUP(L41,sanschie!A:K,11,0))) -> J | I41: =IF(ISNA(VLOOKUP($B41,Sortimente!D:G,2,0))=TRUE,"",VLOOKUP($B41,Sortimente!D:G,2,0)) -> 0 | L41: =IF(I41="","",VLOOKUP($B41,Sortimente!D:G,4,0)) -> 104014 | M41: =IF(I41="","",IF(VLOOKUP(B41,Sortimente!D:L,9,0)=0,"",VLOOKUP(B41,Sortimente!D:L,9,0))) -> 
A42: 34 | B42: =$A$1&Musteranlage!A42 -> ABSOLUT1834 | H42: =IF(L42="","",IF(L42="Sonder","J",VLOOKUP(L42,sanschie!A:K,11,0))) -> J | I42: =IF(ISNA(VLOOKUP($B42,Sortimente!D:G,2,0))=TRUE,"",VLOOKUP($B42,Sortimente!D:G,2,0)) -> 0 | L42: =IF(I42="","",VLOOKUP($B42,Sortimente!D:G,4,0)) -> 104015 | M42: =IF(I42="","",IF(VLOOKUP(B42,Sortimente!D:L,9,0)=0,"",VLOOKUP(B42,Sortimente!D:L,9,0))) -> 
A43: 35 | B43: =$A$1&Musteranlage!A43 -> ABSOLUT1835 | H43: =IF(L43="","",IF(L43="Sonder","J",VLOOKUP(L43,sanschie!A:K,11,0))) -> J | I43: =IF(ISNA(VLOOKUP($B43,Sortimente!D:G,2,0))=TRUE,"",VLOOKUP($B43,Sortimente!D:G,2,0)) -> 0 | L43: =IF(I43="","",VLOOKUP($B43,Sortimente!D:G,4,0)) -> 104016 | M43: =IF(I43="","",IF(VLOOKUP(B43,Sortimente!D:L,9,0)=0,"",VLOOKUP(B43,Sortimente!D:L,9,0))) -> 
A44: 36 | B44: =$A$1&Musteranlage!A44 -> ABSOLUT1836 | H44: =IF(L44="","",IF(L44="Sonder","J",VLOOKUP(L44,sanschie!A:K,11,0))) -> J | I44: =IF(ISNA(VLOOKUP($B44,Sortimente!D:G,2,0))=TRUE,"",VLOOKUP($B44,Sortimente!D:G,2,0)) -> 0 | L44: =IF(I44="","",VLOOKUP($B44,Sortimente!D:G,4,0)) -> 104017 | M44: =IF(I44="","",IF(VLOOKUP(B44,Sortimente!D:L,9,0)=0,"",VLOOKUP(B44,Sortimente!D:L,9,0))) -> 
A45: 37 | B45: =$A$1&Musteranlage!A45 -> ABSOLUT1837 | H45: =IF(L45="","",IF(L45="Sonder","J",VLOOKUP(L45,sanschie!A:K,11,0))) -> J | I45: =IF(ISNA(VLOOKUP($B45,Sortimente!D:G,2,0))=TRUE,"",VLOOKUP($B45,Sortimente!D:G,2,0)) -> 0 | L45: =IF(I45="","",VLOOKUP($B45,Sortimente!D:G,4,0)) -> 104018 | M45: =IF(I45="","",IF(VLOOKUP(B45,Sortimente!D:L,9,0)=0,"",VLOOKUP(B45,Sortimente!D:L,9,0))) -> 
A46: 38 | B46: =$A$1&Musteranlage!A46 -> ABSOLUT1838 | H46: =IF(L46="","",IF(L46="Sonder","J",VLOOKUP(L46,sanschie!A:K,11,0))) -> J | I46: =IF(ISNA(VLOOKUP($B46,Sortimente!D:G,2,0))=TRUE,"",VLOOKUP($B46,Sortimente!D:G,2,0)) -> 0 | L46: =IF(I46="","",VLOOKUP($B46,Sortimente!D:G,4,0)) -> 104032 | M46: =IF(I46="","",IF(VLOOKUP(B46,Sortimente!D:L,9,0)=0,"",VLOOKUP(B46,Sortimente!D:L,9,0))) -> 
A47: 39 | B47: =$A$1&Musteranlage!A47 -> ABSOLUT1839 | H47: =IF(L47="","",IF(L47="Sonder","J",VLOOKUP(L47,sanschie!A:K,11,0))) -> J | I47: =IF(ISNA(VLOOKUP($B47,Sortimente!D:G,2,0))=TRUE,"",VLOOKUP($B47,Sortimente!D:G,2,0)) -> 0 | L47: =IF(I47="","",VLOOKUP($B47,Sortimente!D:G,4,0)) -> 104033 | M47: =IF(I47="","",IF(VLOOKUP(B47,Sortimente!D:L,9,0)=0,"",VLOOKUP(B47,Sortimente!D:L,9,0))) -> 
A48: 40 | B48: =$A$1&Musteranlage!A48 -> ABSOLUT1840 | H48: =IF(L48="","",IF(L48="Sonder","J",VLOOKUP(L48,sanschie!A:K,11,0))) -> J | I48: =IF(ISNA(VLOOKUP($B48,Sortimente!D:G,2,0))=TRUE,"",VLOOKUP($B48,Sortimente!D:G,2,0)) -> 0 | L48: =IF(I48="","",VLOOKUP($B48,Sortimente!D:G,4,0)) -> 104034 | M48: =IF(I48="","",IF(VLOOKUP(B48,Sortimente!D:L,9,0)=0,"",VLOOKUP(B48,Sortimente!D:L,9,0))) -> 
A49: 41 | B49: =$A$1&Musteranlage!A49 -> ABSOLUT1841 | H49: =IF(L49="","",IF(L49="Sonder","J",VLOOKUP(L49,sanschie!A:K,11,0))) -> J | I49: =IF(ISNA(VLOOKUP($B49,Sortimente!D:G,2,0))=TRUE,"",VLOOKUP($B49,Sortimente!D:G,2,0)) -> 0 | L49: =IF(I49="","",VLOOKUP($B49,Sortimente!D:G,4,0)) -> 104035 | M49: =IF(I49="","",IF(VLOOKUP(B49,Sortimente!D:L,9,0)=0,"",VLOOKUP(B49,Sortimente!D:L,9,0))) -> 
A50: 42 | B50: =$A$1&Musteranlage!A50 -> ABSOLUT1842 | H50: =IF(L50="","",IF(L50="Sonder","J",VLOOKUP(L50,sanschie!A:K,11,0))) -> J | I50: =IF(ISNA(VLOOKUP($B50,Sortimente!D:G,2,0))=TRUE,"",VLOOKUP($B50,Sortimente!D:G,2,0)) -> 0 | L50: =IF(I50="","",VLOOKUP($B50,Sortimente!D:G,4,0)) -> 104251 | M50: =IF(I50="","",IF(VLOOKUP(B50,Sortimente!D:L,9,0)=0,"",VLOOKUP(B50,Sortimente!D:L,9,0))) -> 
A51: 43 | B51: =$A$1&Musteranlage!A51 -> ABSOLUT1843 | H51: =IF(L51="","",IF(L51="Sonder","J",VLOOKUP(L51,sanschie!A:K,11,0))) -> J | I51: =IF(ISNA(VLOOKUP($B51,Sortimente!D:G,2,0))=TRUE,"",VLOOKUP($B51,Sortimente!D:G,2,0)) -> 0 | L51: =IF(I51="","",VLOOKUP($B51,Sortimente!D:G,4,0)) -> 104252 | M51: =IF(I51="","",IF(VLOOKUP(B51,Sortimente!D:L,9,0)=0,"",VLOOKUP(B51,Sortimente!D:L,9,0))) -> 
A52: 44 | B52: =$A$1&Musteranlage!A52 -> ABSOLUT1844 | H52: =IF(L52="","",IF(L52="Sonder","J",VLOOKUP(L52,sanschie!A:K,11,0))) -> J | I52: =IF(ISNA(VLOOKUP($B52,Sortimente!D:G,2,0))=TRUE,"",VLOOKUP($B52,Sortimente!D:G,2,0)) -> 0 | L52: =IF(I52="","",VLOOKUP($B52,Sortimente!D:G,4,0)) -> 104253 | M52: =IF(I52="","",IF(VLOOKUP(B52,Sortimente!D:L,9,0)=0,"",VLOOKUP(B52,Sortimente!D:L,9,0))) -> 
A53: 45 | B53: =$A$1&Musteranlage!A53 -> ABSOLUT1845 | H53: =IF(L53="","",IF(L53="Sonder","J",VLOOKUP(L53,sanschie!A:K,11,0))) -> J | I53: =IF(ISNA(VLOOKUP($B53,Sortimente!D:G,2,0))=TRUE,"",VLOOKUP($B53,Sortimente!D:G,2,0)) -> 0 | L53: =IF(I53="","",VLOOKUP($B53,Sortimente!D:G,4,0)) -> 103870 | M53: =IF(I53="","",IF(VLOOKUP(B53,Sortimente!D:L,9,0)=0,"",VLOOKUP(B53,Sortimente!D:L,9,0))) -> 1
A54: 46 | B54: =$A$1&Musteranlage!A54 -> ABSOLUT1846 | H54: =IF(L54="","",IF(L54="Sonder","J",VLOOKUP(L54,sanschie!A:K,11,0))) -> J | I54: =IF(ISNA(VLOOKUP($B54,Sortimente!D:G,2,0))=TRUE,"",VLOOKUP($B54,Sortimente!D:G,2,0)) -> 0 | L54: =IF(I54="","",VLOOKUP($B54,Sortimente!D:G,4,0)) -> 104246 | M54: =IF(I54="","",IF(VLOOKUP(B54,Sortimente!D:L,9,0)=0,"",VLOOKUP(B54,Sortimente!D:L,9,0))) -> 
A55: 47 | B55: =$A$1&Musteranlage!A55 -> ABSOLUT1847 | H55: =IF(L55="","",IF(L55="Sonder","J",VLOOKUP(L55,sanschie!A:K,11,0))) -> J | I55: =IF(ISNA(VLOOKUP($B55,Sortimente!D:G,2,0))=TRUE,"",VLOOKUP($B55,Sortimente!D:G,2,0)) -> 0 | L55: =IF(I55="","",VLOOKUP($B55,Sortimente!D:G,4,0)) -> 104245 | M55: =IF(I55="","",IF(VLOOKUP(B55,Sortimente!D:L,9,0)=0,"",VLOOKUP(B55,Sortimente!D:L,9,0))) -> 
A56: 48 | B56: =$A$1&Musteranlage!A56 -> ABSOLUT1848 | H56: =IF(L56="","",IF(L56="Sonder","J",VLOOKUP(L56,sanschie!A:K,11,0))) -> J | I56: =IF(ISNA(VLOOKUP($B56,Sortimente!D:G,2,0))=TRUE,"",VLOOKUP($B56,Sortimente!D:G,2,0)) -> 0 | L56: =IF(I56="","",VLOOKUP($B56,Sortimente!D:G,4,0)) -> 104244 | M56: =IF(I56="","",IF(VLOOKUP(B56,Sortimente!D:L,9,0)=0,"",VLOOKUP(B56,Sortimente!D:L,9,0))) -> 
A57: 49 | B57: =$A$1&Musteranlage!A57 -> ABSOLUT1849 | H57: =IF(L57="","",IF(L57="Sonder","J",VLOOKUP(L57,sanschie!A:K,11,0))) -> J | I57: =IF(ISNA(VLOOKUP($B57,Sortimente!D:G,2,0))=TRUE,"",VLOOKUP($B57,Sortimente!D:G,2,0)) -> 0 | L57: =IF(I57="","",VLOOKUP($B57,Sortimente!D:G,4,0)) -> 103944 | M57: =IF(I57="","",IF(VLOOKUP(B57,Sortimente!D:L,9,0)=0,"",VLOOKUP(B57,Sortimente!D:L,9,0))) -> 
A58: 50 | B58: =$A$1&Musteranlage!A58 -> ABSOLUT1850 | H58: =IF(L58="","",IF(L58="Sonder","J",VLOOKUP(L58,sanschie!A:K,11,0))) -> J | I58: =IF(ISNA(VLOOKUP($B58,Sortimente!D:G,2,0))=TRUE,"",VLOOKUP($B58,Sortimente!D:G,2,0)) -> 0 | L58: =IF(I58="","",VLOOKUP($B58,Sortimente!D:G,4,0)) -> 104256 | M58: =IF(I58="","",IF(VLOOKUP(B58,Sortimente!D:L,9,0)=0,"",VLOOKUP(B58,Sortimente!D:L,9,0))) -> 
A59: 51 | B59: =$A$1&Musteranlage!A59 -> ABSOLUT1851 | H59: =IF(L59="","",IF(L59="Sonder","J",VLOOKUP(L59,sanschie!A:K,11,0))) -> J | I59: =IF(ISNA(VLOOKUP($B59,Sortimente!D:G,2,0))=TRUE,"",VLOOKUP($B59,Sortimente!D:G,2,0)) -> 0 | L59: =IF(I59="","",VLOOKUP($B59,Sortimente!D:G,4,0)) -> 104257 | M59: =IF(I59="","",IF(VLOOKUP(B59,Sortimente!D:L,9,0)=0,"",VLOOKUP(B59,Sortimente!D:L,9,0))) -> 
A60: 52 | B60: =$A$1&Musteranlage!A60 -> ABSOLUT1852 | H60: =IF(L60="","",IF(L60="Sonder","J",VLOOKUP(L60,sanschie!A:K,11,0))) -> J | I60: =IF(ISNA(VLOOKUP($B60,Sortimente!D:G,2,0))=TRUE,"",VLOOKUP($B60,Sortimente!D:G,2,0)) -> 0 | L60: =IF(I60="","",VLOOKUP($B60,Sortimente!D:G,4,0)) -> 103963 | M60: =IF(I60="","",IF(VLOOKUP(B60,Sortimente!D:L,9,0)=0,"",VLOOKUP(B60,Sortimente!D:L,9,0))) -> 
A61: 53 | B61: =$A$1&Musteranlage!A61 -> ABSOLUT1853 | H61: =IF(L61="","",IF(L61="Sonder","J",VLOOKUP(L61,sanschie!A:K,11,0))) -> J | I61: =IF(ISNA(VLOOKUP($B61,Sortimente!D:G,2,0))=TRUE,"",VLOOKUP($B61,Sortimente!D:G,2,0)) -> 0 | L61: =IF(I61="","",VLOOKUP($B61,Sortimente!D:G,4,0)) -> 103941 | M61: =IF(I61="","",IF(VLOOKUP(B61,Sortimente!D:L,9,0)=0,"",VLOOKUP(B61,Sortimente!D:L,9,0))) -> 1
A62: 54 | B62: =$A$1&Musteranlage!A62 -> ABSOLUT1854 | H62: =IF(L62="","",IF(L62="Sonder","J",VLOOKUP(L62,sanschie!A:K,11,0))) -> J | I62: =IF(ISNA(VLOOKUP($B62,Sortimente!D:G,2,0))=TRUE,"",VLOOKUP($B62,Sortimente!D:G,2,0)) -> 0 | L62: =IF(I62="","",VLOOKUP($B62,Sortimente!D:G,4,0)) -> 104212 | M62: =IF(I62="","",IF(VLOOKUP(B62,Sortimente!D:L,9,0)=0,"",VLOOKUP(B62,Sortimente!D:L,9,0))) -> 
A63: 55 | B63: =$A$1&Musteranlage!A63 -> ABSOLUT1855 | H63: =IF(L63="","",IF(L63="Sonder","J",VLOOKUP(L63,sanschie!A:K,11,0))) -> J | I63: =IF(ISNA(VLOOKUP($B63,Sortimente!D:G,2,0))=TRUE,"",VLOOKUP($B63,Sortimente!D:G,2,0)) -> 0 | L63: =IF(I63="","",VLOOKUP($B63,Sortimente!D:G,4,0)) -> 104218 | M63: =IF(I63="","",IF(VLOOKUP(B63,Sortimente!D:L,9,0)=0,"",VLOOKUP(B63,Sortimente!D:L,9,0))) -> 
A64: 56 | B64: =$A$1&Musteranlage!A64 -> ABSOLUT1856 | H64: =IF(L64="","",IF(L64="Sonder","J",VLOOKUP(L64,sanschie!A:K,11,0))) -> J | I64: =IF(ISNA(VLOOKUP($B64,Sortimente!D:G,2,0))=TRUE,"",VLOOKUP($B64,Sortimente!D:G,2,0)) -> 0 | L64: =IF(I64="","",VLOOKUP($B64,Sortimente!D:G,4,0)) -> 104224 | M64: =IF(I64="","",IF(VLOOKUP(B64,Sortimente!D:L,9,0)=0,"",VLOOKUP(B64,Sortimente!D:L,9,0))) -> 
A65: 57 | B65: =$A$1&Musteranlage!A65 -> ABSOLUT1857 | H65: =IF(L65="","",IF(L65="Sonder","J",VLOOKUP(L65,sanschie!A:K,11,0))) -> J | I65: =IF(ISNA(VLOOKUP($B65,Sortimente!D:G,2,0))=TRUE,"",VLOOKUP($B65,Sortimente!D:G,2,0)) -> 0 | L65: =IF(I65="","",VLOOKUP($B65,Sortimente!D:G,4,0)) -> 104229 | M65: =IF(I65="","",IF(VLOOKUP(B65,Sortimente!D:L,9,0)=0,"",VLOOKUP(B65,Sortimente!D:L,9,0))) -> 
A66: 58 | B66: =$A$1&Musteranlage!A66 -> ABSOLUT1858 | H66: =IF(L66="","",IF(L66="Sonder","J",VLOOKUP(L66,sanschie!A:K,11,0))) -> J | I66: =IF(ISNA(VLOOKUP($B66,Sortimente!D:G,2,0))=TRUE,"",VLOOKUP($B66,Sortimente!D:G,2,0)) -> 0 | L66: =IF(I66="","",VLOOKUP($B66,Sortimente!D:G,4,0)) -> 103838 | M66: =IF(I66="","",IF(VLOOKUP(B66,Sortimente!D:L,9,0)=0,"",VLOOKUP(B66,Sortimente!D:L,9,0))) -> 
A67: 59 | B67: =$A$1&Musteranlage!A67 -> ABSOLUT1859 | H67: =IF(L67="","",IF(L67="Sonder","J",VLOOKUP(L67,sanschie!A:K,11,0))) -> J | I67: =IF(ISNA(VLOOKUP($B67,Sortimente!D:G,2,0))=TRUE,"",VLOOKUP($B67,Sortimente!D:G,2,0)) -> 0 | L67: =IF(I67="","",VLOOKUP($B67,Sortimente!D:G,4,0)) -> 100265 | M67: =IF(I67="","",IF(VLOOKUP(B67,Sortimente!D:L,9,0)=0,"",VLOOKUP(B67,Sortimente!D:L,9,0))) -> 
A68: 60 | B68: =$A$1&Musteranlage!A68 -> ABSOLUT1860 | H68: =IF(L68="","",IF(L68="Sonder","J",VLOOKUP(L68,sanschie!A:K,11,0))) -> J | I68: =IF(ISNA(VLOOKUP($B68,Sortimente!D:G,2,0))=TRUE,"",VLOOKUP($B68,Sortimente!D:G,2,0)) -> 0 | L68: =IF(I68="","",VLOOKUP($B68,Sortimente!D:G,4,0)) -> 100266 | M68: =IF(I68="","",IF(VLOOKUP(B68,Sortimente!D:L,9,0)=0,"",VLOOKUP(B68,Sortimente!D:L,9,0))) -> 
A69: 61 | B69: =$A$1&Musteranlage!A69 -> ABSOLUT1861 | H69: =IF(L69="","",IF(L69="Sonder","J",VLOOKUP(L69,sanschie!A:K,11,0))) -> J | I69: =IF(ISNA(VLOOKUP($B69,Sortimente!D:G,2,0))=TRUE,"",VLOOKUP($B69,Sortimente!D:G,2,0)) -> 0 | L69: =IF(I69="","",VLOOKUP($B69,Sortimente!D:G,4,0)) -> 103841 | M69: =IF(I69="","",IF(VLOOKUP(B69,Sortimente!D:L,9,0)=0,"",VLOOKUP(B69,Sortimente!D:L,9,0))) -> 
A70: 62 | B70: =$A$1&Musteranlage!A70 -> ABSOLUT1862 | H70: =IF(L70="","",IF(L70="Sonder","J",VLOOKUP(L70,sanschie!A:K,11,0))) -> J | I70: =IF(ISNA(VLOOKUP($B70,Sortimente!D:G,2,0))=TRUE,"",VLOOKUP($B70,Sortimente!D:G,2,0)) -> 0 | L70: =IF(I70="","",VLOOKUP($B70,Sortimente!D:G,4,0)) -> 100264 | M70: =IF(I70="","",IF(VLOOKUP(B70,Sortimente!D:L,9,0)=0,"",VLOOKUP(B70,Sortimente!D:L,9,0))) -> 
A71: 63 | B71: =$A$1&Musteranlage!A71 -> ABSOLUT1863 | H71: =IF(L71="","",IF(L71="Sonder","J",VLOOKUP(L71,sanschie!A:K,11,0))) -> J | I71: =IF(ISNA(VLOOKUP($B71,Sortimente!D:G,2,0))=TRUE,"",VLOOKUP($B71,Sortimente!D:G,2,0)) -> 0 | L71: =IF(I71="","",VLOOKUP($B71,Sortimente!D:G,4,0)) -> 103833 | M71: =IF(I71="","",IF(VLOOKUP(B71,Sortimente!D:L,9,0)=0,"",VLOOKUP(B71,Sortimente!D:L,9,0))) -> 
A72: 64 | B72: =$A$1&Musteranlage!A72 -> ABSOLUT1864 | H72: =IF(L72="","",IF(L72="Sonder","J",VLOOKUP(L72,sanschie!A:K,11,0))) -> J | I72: =IF(ISNA(VLOOKUP($B72,Sortimente!D:G,2,0))=TRUE,"",VLOOKUP($B72,Sortimente!D:G,2,0)) -> 0 | L72: =IF(I72="","",VLOOKUP($B72,Sortimente!D:G,4,0)) -> 103820 | M72: =IF(I72="","",IF(VLOOKUP(B72,Sortimente!D:L,9,0)=0,"",VLOOKUP(B72,Sortimente!D:L,9,0))) -> 
A73: 65 | B73: =$A$1&Musteranlage!A73 -> ABSOLUT1865 | H73: =IF(L73="","",IF(L73="Sonder","J",VLOOKUP(L73,sanschie!A:K,11,0))) -> J | I73: =IF(ISNA(VLOOKUP($B73,Sortimente!D:G,2,0))=TRUE,"",VLOOKUP($B73,Sortimente!D:G,2,0)) -> 0 | L73: =IF(I73="","",VLOOKUP($B73,Sortimente!D:G,4,0)) -> 103821 | M73: =IF(I73="","",IF(VLOOKUP(B73,Sortimente!D:L,9,0)=0,"",VLOOKUP(B73,Sortimente!D:L,9,0))) -> 
A74: 66 | B74: =$A$1&Musteranlage!A74 -> ABSOLUT1866 | H74: =IF(L74="","",IF(L74="Sonder","J",VLOOKUP(L74,sanschie!A:K,11,0))) -> J | I74: =IF(ISNA(VLOOKUP($B74,Sortimente!D:G,2,0))=TRUE,"",VLOOKUP($B74,Sortimente!D:G,2,0)) -> 0 | L74: =IF(I74="","",VLOOKUP($B74,Sortimente!D:G,4,0)) -> 103822 | M74: =IF(I74="","",IF(VLOOKUP(B74,Sortimente!D:L,9,0)=0,"",VLOOKUP(B74,Sortimente!D:L,9,0))) -> 
A75: 67 | B75: =$A$1&Musteranlage!A75 -> ABSOLUT1867 | H75: =IF(L75="","",IF(L75="Sonder","J",VLOOKUP(L75,sanschie!A:K,11,0))) -> J | I75: =IF(ISNA(VLOOKUP($B75,Sortimente!D:G,2,0))=TRUE,"",VLOOKUP($B75,Sortimente!D:G,2,0)) -> 0 | L75: =IF(I75="","",VLOOKUP($B75,Sortimente!D:G,4,0)) -> 103823 | M75: =IF(I75="","",IF(VLOOKUP(B75,Sortimente!D:L,9,0)=0,"",VLOOKUP(B75,Sortimente!D:L,9,0))) -> 
A76: 68 | B76: =$A$1&Musteranlage!A76 -> ABSOLUT1868 | H76: =IF(L76="","",IF(L76="Sonder","J",VLOOKUP(L76,sanschie!A:K,11,0))) -> J | I76: =IF(ISNA(VLOOKUP($B76,Sortimente!D:G,2,0))=TRUE,"",VLOOKUP($B76,Sortimente!D:G,2,0)) -> 0 | L76: =IF(I76="","",VLOOKUP($B76,Sortimente!D:G,4,0)) -> 103824 | M76: =IF(I76="","",IF(VLOOKUP(B76,Sortimente!D:L,9,0)=0,"",VLOOKUP(B76,Sortimente!D:L,9,0))) -> 
A77: 69 | B77: =$A$1&Musteranlage!A77 -> ABSOLUT1869 | H77: =IF(L77="","",IF(L77="Sonder","J",VLOOKUP(L77,sanschie!A:K,11,0))) -> J | I77: =IF(ISNA(VLOOKUP($B77,Sortimente!D:G,2,0))=TRUE,"",VLOOKUP($B77,Sortimente!D:G,2,0)) -> 0 | L77: =IF(I77="","",VLOOKUP($B77,Sortimente!D:G,4,0)) -> 103825 | M77: =IF(I77="","",IF(VLOOKUP(B77,Sortimente!D:L,9,0)=0,"",VLOOKUP(B77,Sortimente!D:L,9,0))) -> 
A78: 70 | B78: =$A$1&Musteranlage!A78 -> ABSOLUT1870 | H78: =IF(L78="","",IF(L78="Sonder","J",VLOOKUP(L78,sanschie!A:K,11,0))) -> J | I78: =IF(ISNA(VLOOKUP($B78,Sortimente!D:G,2,0))=TRUE,"",VLOOKUP($B78,Sortimente!D:G,2,0)) -> 0 | L78: =IF(I78="","",VLOOKUP($B78,Sortimente!D:G,4,0)) -> 103848 | M78: =IF(I78="","",IF(VLOOKUP(B78,Sortimente!D:L,9,0)=0,"",VLOOKUP(B78,Sortimente!D:L,9,0))) -> 
A79: 71 | B79: =$A$1&Musteranlage!A79 -> ABSOLUT1871 | H79: =IF(L79="","",IF(L79="Sonder","J",VLOOKUP(L79,sanschie!A:K,11,0))) -> N | I79: =IF(ISNA(VLOOKUP($B79,Sortimente!D:G,2,0))=TRUE,"",VLOOKUP($B79,Sortimente!D:G,2,0)) -> 0 | L79: =IF(I79="","",VLOOKUP($B79,Sortimente!D:G,4,0)) -> 103846 | M79: =IF(I79="","",IF(VLOOKUP(B79,Sortimente!D:L,9,0)=0,"",VLOOKUP(B79,Sortimente!D:L,9,0))) -> 
A80: 72 | B80: =$A$1&Musteranlage!A80 -> ABSOLUT1872 | H80: =IF(L80="","",IF(L80="Sonder","J",VLOOKUP(L80,sanschie!A:K,11,0))) -> N | I80: =IF(ISNA(VLOOKUP($B80,Sortimente!D:G,2,0))=TRUE,"",VLOOKUP($B80,Sortimente!D:G,2,0)) -> 0 | L80: =IF(I80="","",VLOOKUP($B80,Sortimente!D:G,4,0)) -> 103847 | M80: =IF(I80="","",IF(VLOOKUP(B80,Sortimente!D:L,9,0)=0,"",VLOOKUP(B80,Sortimente!D:L,9,0))) -> 
A81: 73 | B81: =$A$1&Musteranlage!A81 -> ABSOLUT1873 | H81: =IF(L81="","",IF(L81="Sonder","J",VLOOKUP(L81,sanschie!A:K,11,0))) -> N | I81: =IF(ISNA(VLOOKUP($B81,Sortimente!D:G,2,0))=TRUE,"",VLOOKUP($B81,Sortimente!D:G,2,0)) -> 0 | L81: =IF(I81="","",VLOOKUP($B81,Sortimente!D:G,4,0)) -> 104259 | M81: =IF(I81="","",IF(VLOOKUP(B81,Sortimente!D:L,9,0)=0,"",VLOOKUP(B81,Sortimente!D:L,9,0))) -> 
A82: 74 | B82: =$A$1&Musteranlage!A82 -> ABSOLUT1874 | H82: =IF(L82="","",IF(L82="Sonder","J",VLOOKUP(L82,sanschie!A:K,11,0))) -> N | I82: =IF(ISNA(VLOOKUP($B82,Sortimente!D:G,2,0))=TRUE,"",VLOOKUP($B82,Sortimente!D:G,2,0)) -> 0 | L82: =IF(I82="","",VLOOKUP($B82,Sortimente!D:G,4,0)) -> 104261 | M82: =IF(I82="","",IF(VLOOKUP(B82,Sortimente!D:L,9,0)=0,"",VLOOKUP(B82,Sortimente!D:L,9,0))) -> 2
A83: 75 | B83: =$A$1&Musteranlage!A83 -> ABSOLUT1875 | H83: =IF(L83="","",IF(L83="Sonder","J",VLOOKUP(L83,sanschie!A:K,11,0))) ->  | I83: =IF(ISNA(VLOOKUP($B83,Sortimente!D:G,2,0))=TRUE,"",VLOOKUP($B83,Sortimente!D:G,2,0)) ->  | L83: =IF(I83="","",VLOOKUP($B83,Sortimente!D:G,4,0)) ->  | M83: =IF(I83="","",IF(VLOOKUP(B83,Sortimente!D:L,9,0)=0,"",VLOOKUP(B83,Sortimente!D:L,9,0))) -> 
A84: 76 | B84: =$A$1&Musteranlage!A84 -> ABSOLUT1876 | H84: =IF(L84="","",IF(L84="Sonder","J",VLOOKUP(L84,sanschie!A:K,11,0))) ->  | I84: =IF(ISNA(VLOOKUP($B84,Sortimente!D:G,2,0))=TRUE,"",VLOOKUP($B84,Sortimente!D:G,2,0)) ->  | L84: =IF(I84="","",VLOOKUP($B84,Sortimente!D:G,4,0)) ->  | M84: =IF(I84="","",IF(VLOOKUP(B84,Sortimente!D:L,9,0)=0,"",VLOOKUP(B84,Sortimente!D:L,9,0))) -> 
A85: 77 | B85: =$A$1&Musteranlage!A85 -> ABSOLUT1877 | H85: =IF(L85="","",IF(L85="Sonder","J",VLOOKUP(L85,sanschie!A:K,11,0))) ->  | I85: =IF(ISNA(VLOOKUP($B85,Sortimente!D:G,2,0))=TRUE,"",VLOOKUP($B85,Sortimente!D:G,2,0)) ->  | L85: =IF(I85="","",VLOOKUP($B85,Sortimente!D:G,4,0)) ->  | M85: =IF(I85="","",IF(VLOOKUP(B85,Sortimente!D:L,9,0)=0,"",VLOOKUP(B85,Sortimente!D:L,9,0))) -> 
A86: 78 | B86: =$A$1&Musteranlage!A86 -> ABSOLUT1878 | H86: =IF(L86="","",IF(L86="Sonder","J",VLOOKUP(L86,sanschie!A:K,11,0))) ->  | I86: =IF(ISNA(VLOOKUP($B86,Sortimente!D:G,2,0))=TRUE,"",VLOOKUP($B86,Sortimente!D:G,2,0)) ->  | L86: =IF(I86="","",VLOOKUP($B86,Sortimente!D:G,4,0)) ->  | M86: =IF(I86="","",IF(VLOOKUP(B86,Sortimente!D:L,9,0)=0,"",VLOOKUP(B86,Sortimente!D:L,9,0))) -> 
A87: 79 | B87: =$A$1&Musteranlage!A87 -> ABSOLUT1879 | H87: =IF(L87="","",IF(L87="Sonder","J",VLOOKUP(L87,sanschie!A:K,11,0))) ->  | I87: =IF(ISNA(VLOOKUP($B87,Sortimente!D:G,2,0))=TRUE,"",VLOOKUP($B87,Sortimente!D:G,2,0)) ->  | L87: =IF(I87="","",VLOOKUP($B87,Sortimente!D:G,4,0)) ->  | M87: =IF(I87="","",IF(VLOOKUP(B87,Sortimente!D:L,9,0)=0,"",VLOOKUP(B87,Sortimente!D:L,9,0))) -> 
A88: 80 | B88: =$A$1&Musteranlage!A88 -> ABSOLUT1880 | H88: =IF(L88="","",IF(L88="Sonder","J",VLOOKUP(L88,sanschie!A:K,11,0))) ->  | I88: =IF(ISNA(VLOOKUP($B88,Sortimente!D:G,2,0))=TRUE,"",VLOOKUP($B88,Sortimente!D:G,2,0)) ->  | L88: =IF(I88="","",VLOOKUP($B88,Sortimente!D:G,4,0)) ->  | M88: =IF(I88="","",IF(VLOOKUP(B88,Sortimente!D:L,9,0)=0,"",VLOOKUP(B88,Sortimente!D:L,9,0))) -> 
A89: 81 | B89: =$A$1&Musteranlage!A89 -> ABSOLUT1881 | H89: =IF(L89="","",IF(L89="Sonder","J",VLOOKUP(L89,sanschie!A:K,11,0))) ->  | I89: =IF(ISNA(VLOOKUP($B89,Sortimente!D:G,2,0))=TRUE,"",VLOOKUP($B89,Sortimente!D:G,2,0)) ->  | L89: =IF(I89="","",VLOOKUP($B89,Sortimente!D:G,4,0)) ->  | M89: =IF(I89="","",IF(VLOOKUP(B89,Sortimente!D:L,9,0)=0,"",VLOOKUP(B89,Sortimente!D:L,9,0))) -> 
A90: 82 | B90: =$A$1&Musteranlage!A90 -> ABSOLUT1882 | H90: =IF(L90="","",IF(L90="Sonder","J",VLOOKUP(L90,sanschie!A:K,11,0))) ->  | I90: =IF(ISNA(VLOOKUP($B90,Sortimente!D:G,2,0))=TRUE,"",VLOOKUP($B90,Sortimente!D:G,2,0)) ->  | L90: =IF(I90="","",VLOOKUP($B90,Sortimente!D:G,4,0)) ->  | M90: =IF(I90="","",IF(VLOOKUP(B90,Sortimente!D:L,9,0)=0,"",VLOOKUP(B90,Sortimente!D:L,9,0))) -> 
A91: 83 | B91: =$A$1&Musteranlage!A91 -> ABSOLUT1883 | H91: =IF(L91="","",IF(L91="Sonder","J",VLOOKUP(L91,sanschie!A:K,11,0))) ->  | I91: =IF(ISNA(VLOOKUP($B91,Sortimente!D:G,2,0))=TRUE,"",VLOOKUP($B91,Sortimente!D:G,2,0)) ->  | L91: =IF(I91="","",VLOOKUP($B91,Sortimente!D:G,4,0)) ->  | M91: =IF(I91="","",IF(VLOOKUP(B91,Sortimente!D:L,9,0)=0,"",VLOOKUP(B91,Sortimente!D:L,9,0))) -> 
A92: 84 | B92: =$A$1&Musteranlage!A92 -> ABSOLUT1884 | H92: =IF(L92="","",IF(L92="Sonder","J",VLOOKUP(L92,sanschie!A:K,11,0))) ->  | I92: =IF(ISNA(VLOOKUP($B92,Sortimente!D:G,2,0))=TRUE,"",VLOOKUP($B92,Sortimente!D:G,2,0)) ->  | L92: =IF(I92="","",VLOOKUP($B92,Sortimente!D:G,4,0)) ->  | M92: =IF(I92="","",IF(VLOOKUP(B92,Sortimente!D:L,9,0)=0,"",VLOOKUP(B92,Sortimente!D:L,9,0))) -> 
A93: 85 | B93: =$A$1&Musteranlage!A93 -> ABSOLUT1885 | H93: =IF(L93="","",IF(L93="Sonder","J",VLOOKUP(L93,sanschie!A:K,11,0))) ->  | I93: =IF(ISNA(VLOOKUP($B93,Sortimente!D:G,2,0))=TRUE,"",VLOOKUP($B93,Sortimente!D:G,2,0)) ->  | L93: =IF(I93="","",VLOOKUP($B93,Sortimente!D:G,4,0)) ->  | M93: =IF(I93="","",IF(VLOOKUP(B93,Sortimente!D:L,9,0)=0,"",VLOOKUP(B93,Sortimente!D:L,9,0))) -> 
A94: 86 | B94: =$A$1&Musteranlage!A94 -> ABSOLUT1886 | H94: =IF(L94="","",IF(L94="Sonder","J",VLOOKUP(L94,sanschie!A:K,11,0))) ->  | I94: =IF(ISNA(VLOOKUP($B94,Sortimente!D:G,2,0))=TRUE,"",VLOOKUP($B94,Sortimente!D:G,2,0)) ->  | L94: =IF(I94="","",VLOOKUP($B94,Sortimente!D:G,4,0)) ->  | M94: =IF(I94="","",IF(VLOOKUP(B94,Sortimente!D:L,9,0)=0,"",VLOOKUP(B94,Sortimente!D:L,9,0))) -> 
A95: 87 | B95: =$A$1&Musteranlage!A95 -> ABSOLUT1887 | H95: =IF(L95="","",IF(L95="Sonder","J",VLOOKUP(L95,sanschie!A:K,11,0))) ->  | I95: =IF(ISNA(VLOOKUP($B95,Sortimente!D:G,2,0))=TRUE,"",VLOOKUP($B95,Sortimente!D:G,2,0)) ->  | L95: =IF(I95="","",VLOOKUP($B95,Sortimente!D:G,4,0)) ->  | M95: =IF(I95="","",IF(VLOOKUP(B95,Sortimente!D:L,9,0)=0,"",VLOOKUP(B95,Sortimente!D:L,9,0))) -> 
A96: 88 | B96: =$A$1&Musteranlage!A96 -> ABSOLUT1888 | H96: =IF(L96="","",IF(L96="Sonder","J",VLOOKUP(L96,sanschie!A:K,11,0))) ->  | I96: =IF(ISNA(VLOOKUP($B96,Sortimente!D:G,2,0))=TRUE,"",VLOOKUP($B96,Sortimente!D:G,2,0)) ->  | L96: =IF(I96="","",VLOOKUP($B96,Sortimente!D:G,4,0)) ->  | M96: =IF(I96="","",IF(VLOOKUP(B96,Sortimente!D:L,9,0)=0,"",VLOOKUP(B96,Sortimente!D:L,9,0))) -> 
A97: 89 | B97: =$A$1&Musteranlage!A97 -> ABSOLUT1889 | H97: =IF(L97="","",IF(L97="Sonder","J",VLOOKUP(L97,sanschie!A:K,11,0))) ->  | I97: =IF(ISNA(VLOOKUP($B97,Sortimente!D:G,2,0))=TRUE,"",VLOOKUP($B97,Sortimente!D:G,2,0)) ->  | L97: =IF(I97="","",VLOOKUP($B97,Sortimente!D:G,4,0)) ->  | M97: =IF(I97="","",IF(VLOOKUP(B97,Sortimente!D:L,9,0)=0,"",VLOOKUP(B97,Sortimente!D:L,9,0))) -> 
A98: 90 | B98: =$A$1&Musteranlage!A98 -> ABSOLUT1890 | H98: =IF(L98="","",IF(L98="Sonder","J",VLOOKUP(L98,sanschie!A:K,11,0))) ->  | I98: =IF(ISNA(VLOOKUP($B98,Sortimente!D:G,2,0))=TRUE,"",VLOOKUP($B98,Sortimente!D:G,2,0)) ->  | L98: =IF(I98="","",VLOOKUP($B98,Sortimente!D:G,4,0)) ->  | M98: =IF(I98="","",IF(VLOOKUP(B98,Sortimente!D:L,9,0)=0,"",VLOOKUP(B98,Sortimente!D:L,9,0))) -> 
A99: 91 | B99: =$A$1&Musteranlage!A99 -> ABSOLUT1891 | H99: =IF(L99="","",IF(L99="Sonder","J",VLOOKUP(L99,sanschie!A:K,11,0))) ->  | I99: =IF(ISNA(VLOOKUP($B99,Sortimente!D:G,2,0))=TRUE,"",VLOOKUP($B99,Sortimente!D:G,2,0)) ->  | L99: =IF(I99="","",VLOOKUP($B99,Sortimente!D:G,4,0)) ->  | M99: =IF(I99="","",IF(VLOOKUP(B99,Sortimente!D:L,9,0)=0,"",VLOOKUP(B99,Sortimente!D:L,9,0))) -> 
A100: 92 | B100: =$A$1&Musteranlage!A100 -> ABSOLUT1892 | H100: =IF(L100="","",IF(L100="Sonder","J",VLOOKUP(L100,sanschie!A:K,11,0))) ->  | I100: =IF(ISNA(VLOOKUP($B100,Sortimente!D:G,2,0))=TRUE,"",VLOOKUP($B100,Sortimente!D:G,2,0)) ->  | L100: =IF(I100="","",VLOOKUP($B100,Sortimente!D:G,4,0)) ->  | M100: =IF(I100="","",IF(VLOOKUP(B100,Sortimente!D:L,9,0)=0,"",VLOOKUP(B100,Sortimente!D:L,9,0))) -> 
A101: 93 | B101: =$A$1&Musteranlage!A101 -> ABSOLUT1893 | H101: =IF(L101="","",IF(L101="Sonder","J",VLOOKUP(L101,sanschie!A:K,11,0))) ->  | I101: =IF(ISNA(VLOOKUP($B101,Sortimente!D:G,2,0))=TRUE,"",VLOOKUP($B101,Sortimente!D:G,2,0)) ->  | L101: =IF(I101="","",VLOOKUP($B101,Sortimente!D:G,4,0)) ->  | M101: =IF(I101="","",IF(VLOOKUP(B101,Sortimente!D:L,9,0)=0,"",VLOOKUP(B101,Sortimente!D:L,9,0))) -> 
A102: 94 | B102: =$A$1&Musteranlage!A102 -> ABSOLUT1894 | H102: =IF(L102="","",IF(L102="Sonder","J",VLOOKUP(L102,sanschie!A:K,11,0))) ->  | I102: =IF(ISNA(VLOOKUP($B102,Sortimente!D:G,2,0))=TRUE,"",VLOOKUP($B102,Sortimente!D:G,2,0)) ->  | L102: =IF(I102="","",VLOOKUP($B102,Sortimente!D:G,4,0)) ->  | M102: =IF(I102="","",IF(VLOOKUP(B102,Sortimente!D:L,9,0)=0,"",VLOOKUP(B102,Sortimente!D:L,9,0))) -> 
A103: 95 | B103: =$A$1&Musteranlage!A103 -> ABSOLUT1895 | H103: =IF(L103="","",IF(L103="Sonder","J",VLOOKUP(L103,sanschie!A:K,11,0))) ->  | I103: =IF(ISNA(VLOOKUP($B103,Sortimente!D:G,2,0))=TRUE,"",VLOOKUP($B103,Sortimente!D:G,2,0)) ->  | L103: =IF(I103="","",VLOOKUP($B103,Sortimente!D:G,4,0)) ->  | M103: =IF(I103="","",IF(VLOOKUP(B103,Sortimente!D:L,9,0)=0,"",VLOOKUP(B103,Sortimente!D:L,9,0))) -> 
A104: 96 | B104: =$A$1&Musteranlage!A104 -> ABSOLUT1896 | H104: =IF(L104="","",IF(L104="Sonder","J",VLOOKUP(L104,sanschie!A:K,11,0))) ->  | I104: =IF(ISNA(VLOOKUP($B104,Sortimente!D:G,2,0))=TRUE,"",VLOOKUP($B104,Sortimente!D:G,2,0)) ->  | L104: =IF(I104="","",VLOOKUP($B104,Sortimente!D:G,4,0)) ->  | M104: =IF(I104="","",IF(VLOOKUP(B104,Sortimente!D:L,9,0)=0,"",VLOOKUP(B104,Sortimente!D:L,9,0))) -> 
A105: 97 | B105: =$A$1&Musteranlage!A105 -> ABSOLUT1897 | H105: =IF(L105="","",IF(L105="Sonder","J",VLOOKUP(L105,sanschie!A:K,11,0))) ->  | I105: =IF(ISNA(VLOOKUP($B105,Sortimente!D:G,2,0))=TRUE,"",VLOOKUP($B105,Sortimente!D:G,2,0)) ->  | L105: =IF(I105="","",VLOOKUP($B105,Sortimente!D:G,4,0)) ->  | M105: =IF(I105="","",IF(VLOOKUP(B105,Sortimente!D:L,9,0)=0,"",VLOOKUP(B105,Sortimente!D:L,9,0))) -> 
A106: 98 | B106: =$A$1&Musteranlage!A106 -> ABSOLUT1898 | H106: =IF(L106="","",IF(L106="Sonder","J",VLOOKUP(L106,sanschie!A:K,11,0))) ->  | I106: =IF(ISNA(VLOOKUP($B106,Sortimente!D:G,2,0))=TRUE,"",VLOOKUP($B106,Sortimente!D:G,2,0)) ->  | L106: =IF(I106="","",VLOOKUP($B106,Sortimente!D:G,4,0)) ->  | M106: =IF(I106="","",IF(VLOOKUP(B106,Sortimente!D:L,9,0)=0,"",VLOOKUP(B106,Sortimente!D:L,9,0))) -> 
A107: 99 | B107: =$A$1&Musteranlage!A107 -> ABSOLUT1899 | H107: =IF(L107="","",IF(L107="Sonder","J",VLOOKUP(L107,sanschie!A:K,11,0))) ->  | I107: =IF(ISNA(VLOOKUP($B107,Sortimente!D:G,2,0))=TRUE,"",VLOOKUP($B107,Sortimente!D:G,2,0)) ->  | L107: =IF(I107="","",VLOOKUP($B107,Sortimente!D:G,4,0)) ->  | M107: =IF(I107="","",IF(VLOOKUP(B107,Sortimente!D:L,9,0)=0,"",VLOOKUP(B107,Sortimente!D:L,9,0))) -> 
A108: 100 | B108: =$A$1&Musteranlage!A108 -> ABSOLUT18100 | H108: =IF(L108="","",IF(L108="Sonder","J",VLOOKUP(L108,sanschie!A:K,11,0))) ->  | I108: =IF(ISNA(VLOOKUP($B108,Sortimente!D:G,2,0))=TRUE,"",VLOOKUP($B108,Sortimente!D:G,2,0)) ->  | L108: =IF(I108="","",VLOOKUP($B108,Sortimente!D:G,4,0)) ->  | M108: =IF(I108="","",IF(VLOOKUP(B108,Sortimente!D:L,9,0)=0,"",VLOOKUP(B108,Sortimente!D:L,9,0))) -> 
A109: 101 | B109: =$A$1&Musteranlage!A109 -> ABSOLUT18101 | H109: =IF(L109="","",IF(L109="Sonder","J",VLOOKUP(L109,sanschie!A:K,11,0))) ->  | I109: =IF(ISNA(VLOOKUP($B109,Sortimente!D:G,2,0))=TRUE,"",VLOOKUP($B109,Sortimente!D:G,2,0)) ->  | L109: =IF(I109="","",VLOOKUP($B109,Sortimente!D:G,4,0)) ->  | M109: =IF(I109="","",IF(VLOOKUP(B109,Sortimente!D:L,9,0)=0,"",VLOOKUP(B109,Sortimente!D:L,9,0))) -> 
A110: 102 | B110: =$A$1&Musteranlage!A110 -> ABSOLUT18102 | H110: =IF(L110="","",IF(L110="Sonder","J",VLOOKUP(L110,sanschie!A:K,11,0))) ->  | I110: =IF(ISNA(VLOOKUP($B110,Sortimente!D:G,2,0))=TRUE,"",VLOOKUP($B110,Sortimente!D:G,2,0)) ->  | L110: =IF(I110="","",VLOOKUP($B110,Sortimente!D:G,4,0)) ->  | M110: =IF(I110="","",IF(VLOOKUP(B110,Sortimente!D:L,9,0)=0,"",VLOOKUP(B110,Sortimente!D:L,9,0))) -> 
A111: 103 | B111: =$A$1&Musteranlage!A111 -> ABSOLUT18103 | H111: =IF(L111="","",IF(L111="Sonder","J",VLOOKUP(L111,sanschie!A:K,11,0))) ->  | I111: =IF(ISNA(VLOOKUP($B111,Sortimente!D:G,2,0))=TRUE,"",VLOOKUP($B111,Sortimente!D:G,2,0)) ->  | L111: =IF(I111="","",VLOOKUP($B111,Sortimente!D:G,4,0)) ->  | M111: =IF(I111="","",IF(VLOOKUP(B111,Sortimente!D:L,9,0)=0,"",VLOOKUP(B111,Sortimente!D:L,9,0))) -> 
A112: 104 | B112: =$A$1&Musteranlage!A112 -> ABSOLUT18104 | H112: =IF(L112="","",IF(L112="Sonder","J",VLOOKUP(L112,sanschie!A:K,11,0))) ->  | I112: =IF(ISNA(VLOOKUP($B112,Sortimente!D:G,2,0))=TRUE,"",VLOOKUP($B112,Sortimente!D:G,2,0)) ->  | L112: =IF(I112="","",VLOOKUP($B112,Sortimente!D:G,4,0)) ->  | M112: =IF(I112="","",IF(VLOOKUP(B112,Sortimente!D:L,9,0)=0,"",VLOOKUP(B112,Sortimente!D:L,9,0))) -> 
A113: 105 | B113: =$A$1&Musteranlage!A113 -> ABSOLUT18105 | H113: =IF(L113="","",IF(L113="Sonder","J",VLOOKUP(L113,sanschie!A:K,11,0))) ->  | I113: =IF(ISNA(VLOOKUP($B113,Sortimente!D:G,2,0))=TRUE,"",VLOOKUP($B113,Sortimente!D:G,2,0)) ->  | L113: =IF(I113="","",VLOOKUP($B113,Sortimente!D:G,4,0)) ->  | M113: =IF(I113="","",IF(VLOOKUP(B113,Sortimente!D:L,9,0)=0,"",VLOOKUP(B113,Sortimente!D:L,9,0))) -> 
A114: 106 | B114: =$A$1&Musteranlage!A114 -> ABSOLUT18106 | H114: =IF(L114="","",IF(L114="Sonder","J",VLOOKUP(L114,sanschie!A:K,11,0))) ->  | I114: =IF(ISNA(VLOOKUP($B114,Sortimente!D:G,2,0))=TRUE,"",VLOOKUP($B114,Sortimente!D:G,2,0)) ->  | L114: =IF(I114="","",VLOOKUP($B114,Sortimente!D:G,4,0)) ->  | M114: =IF(I114="","",IF(VLOOKUP(B114,Sortimente!D:L,9,0)=0,"",VLOOKUP(B114,Sortimente!D:L,9,0))) -> 
A115: 107 | B115: =$A$1&Musteranlage!A115 -> ABSOLUT18107 | H115: =IF(L115="","",IF(L115="Sonder","J",VLOOKUP(L115,sanschie!A:K,11,0))) ->  | I115: =IF(ISNA(VLOOKUP($B115,Sortimente!D:G,2,0))=TRUE,"",VLOOKUP($B115,Sortimente!D:G,2,0)) ->  | L115: =IF(I115="","",VLOOKUP($B115,Sortimente!D:G,4,0)) ->  | M115: =IF(I115="","",IF(VLOOKUP(B115,Sortimente!D:L,9,0)=0,"",VLOOKUP(B115,Sortimente!D:L,9,0))) -> 
A116: 108 | B116: =$A$1&Musteranlage!A116 -> ABSOLUT18108 | H116: =IF(L116="","",IF(L116="Sonder","J",VLOOKUP(L116,sanschie!A:K,11,0))) ->  | I116: =IF(ISNA(VLOOKUP($B116,Sortimente!D:G,2,0))=TRUE,"",VLOOKUP($B116,Sortimente!D:G,2,0)) ->  | L116: =IF(I116="","",VLOOKUP($B116,Sortimente!D:G,4,0)) ->  | M116: =IF(I116="","",IF(VLOOKUP(B116,Sortimente!D:L,9,0)=0,"",VLOOKUP(B116,Sortimente!D:L,9,0))) -> 
A117: 109 | B117: =$A$1&Musteranlage!A117 -> ABSOLUT18109 | H117: =IF(L117="","",IF(L117="Sonder","J",VLOOKUP(L117,sanschie!A:K,11,0))) ->  | I117: =IF(ISNA(VLOOKUP($B117,Sortimente!D:G,2,0))=TRUE,"",VLOOKUP($B117,Sortimente!D:G,2,0)) ->  | L117: =IF(I117="","",VLOOKUP($B117,Sortimente!D:G,4,0)) ->  | M117: =IF(I117="","",IF(VLOOKUP(B117,Sortimente!D:L,9,0)=0,"",VLOOKUP(B117,Sortimente!D:L,9,0))) -> 
A118: 110 | B118: =$A$1&Musteranlage!A118 -> ABSOLUT18110 | H118: =IF(L118="","",IF(L118="Sonder","J",VLOOKUP(L118,sanschie!A:K,11,0))) ->  | I118: =IF(ISNA(VLOOKUP($B118,Sortimente!D:G,2,0))=TRUE,"",VLOOKUP($B118,Sortimente!D:G,2,0)) ->  | L118: =IF(I118="","",VLOOKUP($B118,Sortimente!D:G,4,0)) ->  | M118: =IF(I118="","",IF(VLOOKUP(B118,Sortimente!D:L,9,0)=0,"",VLOOKUP(B118,Sortimente!D:L,9,0))) -> 
A119: 111 | B119: =$A$1&Musteranlage!A119 -> ABSOLUT18111 | H119: =IF(L119="","",IF(L119="Sonder","J",VLOOKUP(L119,sanschie!A:K,11,0))) ->  | I119: =IF(ISNA(VLOOKUP($B119,Sortimente!D:G,2,0))=TRUE,"",VLOOKUP($B119,Sortimente!D:G,2,0)) ->  | L119: =IF(I119="","",VLOOKUP($B119,Sortimente!D:G,4,0)) ->  | M119: =IF(I119="","",IF(VLOOKUP(B119,Sortimente!D:L,9,0)=0,"",VLOOKUP(B119,Sortimente!D:L,9,0))) -> 
A120: 112 | B120: =$A$1&Musteranlage!A120 -> ABSOLUT18112 | H120: =IF(L120="","",IF(L120="Sonder","J",VLOOKUP(L120,sanschie!A:K,11,0))) ->  | I120: =IF(ISNA(VLOOKUP($B120,Sortimente!D:G,2,0))=TRUE,"",VLOOKUP($B120,Sortimente!D:G,2,0)) ->  | L120: =IF(I120="","",VLOOKUP($B120,Sortimente!D:G,4,0)) ->  | M120: =IF(I120="","",IF(VLOOKUP(B120,Sortimente!D:L,9,0)=0,"",VLOOKUP(B120,Sortimente!D:L,9,0))) -> 
A121: 113 | B121: =$A$1&Musteranlage!A121 -> ABSOLUT18113 | H121: =IF(L121="","",IF(L121="Sonder","J",VLOOKUP(L121,sanschie!A:K,11,0))) ->  | I121: =IF(ISNA(VLOOKUP($B121,Sortimente!D:G,2,0))=TRUE,"",VLOOKUP($B121,Sortimente!D:G,2,0)) ->  | L121: =IF(I121="","",VLOOKUP($B121,Sortimente!D:G,4,0)) ->  | M121: =IF(I121="","",IF(VLOOKUP(B121,Sortimente!D:L,9,0)=0,"",VLOOKUP(B121,Sortimente!D:L,9,0))) -> 
A122: 114 | B122: =$A$1&Musteranlage!A122 -> ABSOLUT18114 | H122: =IF(L122="","",IF(L122="Sonder","J",VLOOKUP(L122,sanschie!A:K,11,0))) ->  | I122: =IF(ISNA(VLOOKUP($B122,Sortimente!D:G,2,0))=TRUE,"",VLOOKUP($B122,Sortimente!D:G,2,0)) ->  | L122: =IF(I122="","",VLOOKUP($B122,Sortimente!D:G,4,0)) ->  | M122: =IF(I122="","",IF(VLOOKUP(B122,Sortimente!D:L,9,0)=0,"",VLOOKUP(B122,Sortimente!D:L,9,0))) -> 
A123: 115 | B123: =$A$1&Musteranlage!A123 -> ABSOLUT18115 | H123: =IF(L123="","",IF(L123="Sonder","J",VLOOKUP(L123,sanschie!A:K,11,0))) ->  | I123: =IF(ISNA(VLOOKUP($B123,Sortimente!D:G,2,0))=TRUE,"",VLOOKUP($B123,Sortimente!D:G,2,0)) ->  | L123: =IF(I123="","",VLOOKUP($B123,Sortimente!D:G,4,0)) ->  | M123: =IF(I123="","",IF(VLOOKUP(B123,Sortimente!D:L,9,0)=0,"",VLOOKUP(B123,Sortimente!D:L,9,0))) -> 
A124: 116 | B124: =$A$1&Musteranlage!A124 -> ABSOLUT18116 | H124: =IF(L124="","",IF(L124="Sonder","J",VLOOKUP(L124,sanschie!A:K,11,0))) ->  | I124: =IF(ISNA(VLOOKUP($B124,Sortimente!D:G,2,0))=TRUE,"",VLOOKUP($B124,Sortimente!D:G,2,0)) ->  | L124: =IF(I124="","",VLOOKUP($B124,Sortimente!D:G,4,0)) ->  | M124: =IF(I124="","",IF(VLOOKUP(B124,Sortimente!D:L,9,0)=0,"",VLOOKUP(B124,Sortimente!D:L,9,0))) -> 
A125: 117 | B125: =$A$1&Musteranlage!A125 -> ABSOLUT18117 | H125: =IF(L125="","",IF(L125="Sonder","J",VLOOKUP(L125,sanschie!A:K,11,0))) ->  | I125: =IF(ISNA(VLOOKUP($B125,Sortimente!D:G,2,0))=TRUE,"",VLOOKUP($B125,Sortimente!D:G,2,0)) ->  | L125: =IF(I125="","",VLOOKUP($B125,Sortimente!D:G,4,0)) ->  | M125: =IF(I125="","",IF(VLOOKUP(B125,Sortimente!D:L,9,0)=0,"",VLOOKUP(B125,Sortimente!D:L,9,0))) -> 
A126: 118 | B126: =$A$1&Musteranlage!A126 -> ABSOLUT18118 | H126: =IF(L126="","",IF(L126="Sonder","J",VLOOKUP(L126,sanschie!A:K,11,0))) ->  | I126: =IF(ISNA(VLOOKUP($B126,Sortimente!D:G,2,0))=TRUE,"",VLOOKUP($B126,Sortimente!D:G,2,0)) ->  | L126: =IF(I126="","",VLOOKUP($B126,Sortimente!D:G,4,0)) ->  | M126: =IF(I126="","",IF(VLOOKUP(B126,Sortimente!D:L,9,0)=0,"",VLOOKUP(B126,Sortimente!D:L,9,0))) -> 
A127: 119 | B127: =$A$1&Musteranlage!A127 -> ABSOLUT18119 | H127: =IF(L127="","",IF(L127="Sonder","J",VLOOKUP(L127,sanschie!A:K,11,0))) ->  | I127: =IF(ISNA(VLOOKUP($B127,Sortimente!D:G,2,0))=TRUE,"",VLOOKUP($B127,Sortimente!D:G,2,0)) ->  | L127: =IF(I127="","",VLOOKUP($B127,Sortimente!D:G,4,0)) ->  | M127: =IF(I127="","",IF(VLOOKUP(B127,Sortimente!D:L,9,0)=0,"",VLOOKUP(B127,Sortimente!D:L,9,0))) -> 
A128: 120 | B128: =$A$1&Musteranlage!A128 -> ABSOLUT18120 | H128: =IF(L128="","",IF(L128="Sonder","J",VLOOKUP(L128,sanschie!A:K,11,0))) ->  | I128: =IF(ISNA(VLOOKUP($B128,Sortimente!D:G,2,0))=TRUE,"",VLOOKUP($B128,Sortimente!D:G,2,0)) ->  | L128: =IF(I128="","",VLOOKUP($B128,Sortimente!D:G,4,0)) ->  | M128: =IF(I128="","",IF(VLOOKUP(B128,Sortimente!D:L,9,0)=0,"",VLOOKUP(B128,Sortimente!D:L,9,0))) -> 
A129: 121 | B129: =$A$1&Musteranlage!A129 -> ABSOLUT18121 | H129: =IF(L129="","",IF(L129="Sonder","J",VLOOKUP(L129,sanschie!A:K,11,0))) ->  | I129: =IF(ISNA(VLOOKUP($B129,Sortimente!D:G,2,0))=TRUE,"",VLOOKUP($B129,Sortimente!D:G,2,0)) ->  | L129: =IF(I129="","",VLOOKUP($B129,Sortimente!D:G,4,0)) ->  | M129: =IF(I129="","",IF(VLOOKUP(B129,Sortimente!D:L,9,0)=0,"",VLOOKUP(B129,Sortimente!D:L,9,0))) -> 
A130: 122 | B130: =$A$1&Musteranlage!A130 -> ABSOLUT18122 | H130: =IF(L130="","",IF(L130="Sonder","J",VLOOKUP(L130,sanschie!A:K,11,0))) ->  | I130: =IF(ISNA(VLOOKUP($B130,Sortimente!D:G,2,0))=TRUE,"",VLOOKUP($B130,Sortimente!D:G,2,0)) ->  | L130: =IF(I130="","",VLOOKUP($B130,Sortimente!D:G,4,0)) ->  | M130: =IF(I130="","",IF(VLOOKUP(B130,Sortimente!D:L,9,0)=0,"",VLOOKUP(B130,Sortimente!D:L,9,0))) -> 
A131: 123 | B131: =$A$1&Musteranlage!A131 -> ABSOLUT18123 | H131: =IF(L131="","",IF(L131="Sonder","J",VLOOKUP(L131,sanschie!A:K,11,0))) ->  | I131: =IF(ISNA(VLOOKUP($B131,Sortimente!D:G,2,0))=TRUE,"",VLOOKUP($B131,Sortimente!D:G,2,0)) ->  | L131: =IF(I131="","",VLOOKUP($B131,Sortimente!D:G,4,0)) ->  | M131: =IF(I131="","",IF(VLOOKUP(B131,Sortimente!D:L,9,0)=0,"",VLOOKUP(B131,Sortimente!D:L,9,0))) -> 
A132: 124 | B132: =$A$1&Musteranlage!A132 -> ABSOLUT18124 | H132: =IF(L132="","",IF(L132="Sonder","J",VLOOKUP(L132,sanschie!A:K,11,0))) ->  | I132: =IF(ISNA(VLOOKUP($B132,Sortimente!D:G,2,0))=TRUE,"",VLOOKUP($B132,Sortimente!D:G,2,0)) ->  | L132: =IF(I132="","",VLOOKUP($B132,Sortimente!D:G,4,0)) ->  | M132: =IF(I132="","",IF(VLOOKUP(B132,Sortimente!D:L,9,0)=0,"",VLOOKUP(B132,Sortimente!D:L,9,0))) -> 
A133: 125 | B133: =$A$1&Musteranlage!A133 -> ABSOLUT18125 | H133: =IF(L133="","",IF(L133="Sonder","J",VLOOKUP(L133,sanschie!A:K,11,0))) ->  | I133: =IF(ISNA(VLOOKUP($B133,Sortimente!D:G,2,0))=TRUE,"",VLOOKUP($B133,Sortimente!D:G,2,0)) ->  | L133: =IF(I133="","",VLOOKUP($B133,Sortimente!D:G,4,0)) ->  | M133: =IF(I133="","",IF(VLOOKUP(B133,Sortimente!D:L,9,0)=0,"",VLOOKUP(B133,Sortimente!D:L,9,0))) -> 
A134: 126 | B134: =$A$1&Musteranlage!A134 -> ABSOLUT18126 | H134: =IF(L134="","",IF(L134="Sonder","J",VLOOKUP(L134,sanschie!A:K,11,0))) ->  | I134: =IF(ISNA(VLOOKUP($B134,Sortimente!D:G,2,0))=TRUE,"",VLOOKUP($B134,Sortimente!D:G,2,0)) ->  | L134: =IF(I134="","",VLOOKUP($B134,Sortimente!D:G,4,0)) ->  | M134: =IF(I134="","",IF(VLOOKUP(B134,Sortimente!D:L,9,0)=0,"",VLOOKUP(B134,Sortimente!D:L,9,0))) -> 
A135: 127 | B135: =$A$1&Musteranlage!A135 -> ABSOLUT18127 | H135: =IF(L135="","",IF(L135="Sonder","J",VLOOKUP(L135,sanschie!A:K,11,0))) ->  | I135: =IF(ISNA(VLOOKUP($B135,Sortimente!D:G,2,0))=TRUE,"",VLOOKUP($B135,Sortimente!D:G,2,0)) ->  | L135: =IF(I135="","",VLOOKUP($B135,Sortimente!D:G,4,0)) ->  | M135: =IF(I135="","",IF(VLOOKUP(B135,Sortimente!D:L,9,0)=0,"",VLOOKUP(B135,Sortimente!D:L,9,0))) -> 
A136: 128 | B136: =$A$1&Musteranlage!A136 -> ABSOLUT18128 | H136: =IF(L136="","",IF(L136="Sonder","J",VLOOKUP(L136,sanschie!A:K,11,0))) ->  | I136: =IF(ISNA(VLOOKUP($B136,Sortimente!D:G,2,0))=TRUE,"",VLOOKUP($B136,Sortimente!D:G,2,0)) ->  | L136: =IF(I136="","",VLOOKUP($B136,Sortimente!D:G,4,0)) ->  | M136: =IF(I136="","",IF(VLOOKUP(B136,Sortimente!D:L,9,0)=0,"",VLOOKUP(B136,Sortimente!D:L,9,0))) -> 
A137: 129 | B137: =$A$1&Musteranlage!A137 -> ABSOLUT18129 | H137: =IF(L137="","",IF(L137="Sonder","J",VLOOKUP(L137,sanschie!A:K,11,0))) ->  | I137: =IF(ISNA(VLOOKUP($B137,Sortimente!D:G,2,0))=TRUE,"",VLOOKUP($B137,Sortimente!D:G,2,0)) ->  | L137: =IF(I137="","",VLOOKUP($B137,Sortimente!D:G,4,0)) ->  | M137: =IF(I137="","",IF(VLOOKUP(B137,Sortimente!D:L,9,0)=0,"",VLOOKUP(B137,Sortimente!D:L,9,0))) -> 
A138: 130 | B138: =$A$1&Musteranlage!A138 -> ABSOLUT18130 | H138: =IF(L138="","",IF(L138="Sonder","J",VLOOKUP(L138,sanschie!A:K,11,0))) ->  | I138: =IF(ISNA(VLOOKUP($B138,Sortimente!D:G,2,0))=TRUE,"",VLOOKUP($B138,Sortimente!D:G,2,0)) ->  | L138: =IF(I138="","",VLOOKUP($B138,Sortimente!D:G,4,0)) ->  | M138: =IF(I138="","",IF(VLOOKUP(B138,Sortimente!D:L,9,0)=0,"",VLOOKUP(B138,Sortimente!D:L,9,0))) -> 

Sheet Verbindungsleitung (hidden)
A1: =Daten!U170 -> Nein
C2: =VLOOKUP(A1,Daten!T:U,2,0) -> Nein | E2: =IF(E6="","",Vokabel!A265&" "&VLOOKUP(A1,Daten!T:AC,5,0)& " " &VLOOKUP(A1,Daten!T:AC,3,0)) -> 
C3: =IF(C2="Absolut",Daten!AE35,IF(C2="SIH",Daten!AF79,"")) ->  | D3: =IF(C2="Kerastar","für "&Daten!C401,IF(C2="ADW TecnoStar","für "&Daten!C401,IF(C2="ICS","für "&Daten!C401,""))) ->  | E3: =IF(VLOOKUP(A1,Daten!$T:$AA,8,0)=0,"",(VLOOKUP(A1,Daten!$T:$AA,8,0))) -> 
E4: =IF(VLOOKUP(A1,Daten!$T:$AB,9,0)=0,"",(VLOOKUP(A1,Daten!$T:$AB,9,0))) -> 
A5: Nr. | B5: Verkn. | C5: Rabatt- fähig | D5: Pos. | E5: =Vokabel!$A$270 -> Artikelnummer | F5: =Vokabel!$A$271 -> Artikelbezeichnung | G5: =Vokabel!$A$272&" mm" -> Baulänge mm | H5: =Vokabel!$A$273 -> Menge
A6: 0 | B6: =$A$1&Verbindungsleitung!A6 -> Nein0 | C6: =IF(E6="","",IF(E6="Sonder","J",VLOOKUP(E6,sanschie!A:K,11,0))) ->  | D6: =IF(ISNA(VLOOKUP($B6,Sortimente!D:G,2,0))=TRUE,"",VLOOKUP($B6,Sortimente!D:G,2,0)) ->  | E6: =IF(D6="","",VLOOKUP($B6,Sortimente!D:G,4,0)) ->  | F6: =IF(E6="","",VLOOKUP(E6,sanschie!B:E,4,0)) ->  | G6: =IF(E6="","",IF(VLOOKUP(E6,sanschie!B:J,9,0)="","",VLOOKUP(E6,sanschie!B:J,9,0))) ->  | H6: 1
A7: 1 | B7: =$A$1&Verbindungsleitung!A7 -> Nein1 | C7: =IF(E7="","",IF(E7="Sonder","J",VLOOKUP(E7,sanschie!A:K,11,0))) ->  | D7: =IF(ISNA(VLOOKUP($B7,Sortimente!D:G,2,0))=TRUE,"",VLOOKUP($B7,Sortimente!D:G,2,0)) ->  | E7: =IF(D7="","",VLOOKUP($B7,Sortimente!D:G,4,0)) ->  | F7: =IF(E7="","",VLOOKUP(E7,sanschie!A:E,5,0)) ->  | G7: =IF(E7="","",IF(VLOOKUP(E7,sanschie!A:J,10,0)=0,"",VLOOKUP(E7,sanschie!A:J,10,0))) ->  | K7: =Vokabel!$A$267 -> Achtung:
A8: 2 | B8: =$A$1&Verbindungsleitung!A8 -> Nein2 | C8: =IF(E8="","",IF(E8="Sonder","J",VLOOKUP(E8,sanschie!A:K,11,0))) ->  | D8: =IF(ISNA(VLOOKUP($B8,Sortimente!D:G,2,0))=TRUE,"",VLOOKUP($B8,Sortimente!D:G,2,0)) ->  | E8: =IF(D8="","",VLOOKUP($B8,Sortimente!D:G,4,0)) ->  | F8: =IF(E8="","",VLOOKUP(E8,sanschie!A:E,5,0)) ->  | G8: =IF(E8="","",IF(VLOOKUP(E8,sanschie!A:J,10,0)=0,"",VLOOKUP(E8,sanschie!A:J,10,0))) ->  | K8: =Vokabel!$A$268 -> Für die Verbindungsleitung werden
A9: 3 | B9: =$A$1&Verbindungsleitung!A9 -> Nein3 | C9: =IF(E9="","",IF(E9="Sonder","J",VLOOKUP(E9,sanschie!A:K,11,0))) ->  | D9: =IF(ISNA(VLOOKUP($B9,Sortimente!D:G,2,0))=TRUE,"",VLOOKUP($B9,Sortimente!D:G,2,0)) ->  | E9: =IF(D9="","",VLOOKUP($B9,Sortimente!D:G,4,0)) ->  | F9: =IF(E9="","",VLOOKUP(E9,sanschie!A:E,5,0)) ->  | G9: =IF(E9="","",IF(VLOOKUP(E9,sanschie!A:J,10,0)=0,"",VLOOKUP(E9,sanschie!A:J,10,0))) ->  | K9: =Vokabel!$A$269 -> höchstens 14 Artikel übernommen !
A10: 4 | B10: =$A$1&Verbindungsleitung!A10 -> Nein4 | C10: =IF(E10="","",IF(E10="Sonder","J",VLOOKUP(E10,sanschie!A:K,11,0))) ->  | D10: =IF(ISNA(VLOOKUP($B10,Sortimente!D:G,2,0))=TRUE,"",VLOOKUP($B10,Sortimente!D:G,2,0)) ->  | E10: =IF(D10="","",VLOOKUP($B10,Sortimente!D:G,4,0)) ->  | F10: =IF(E10="","",VLOOKUP(E10,sanschie!A:E,5,0)) ->  | G10: =IF(E10="","",IF(VLOOKUP(E10,sanschie!A:J,10,0)=0,"",VLOOKUP(E10,sanschie!A:J,10,0))) -> 
A11: 5 | B11: =$A$1&Verbindungsleitung!A11 -> Nein5 | C11: =IF(E11="","",IF(E11="Sonder","J",VLOOKUP(E11,sanschie!A:K,11,0))) ->  | D11: =IF(ISNA(VLOOKUP($B11,Sortimente!D:G,2,0))=TRUE,"",VLOOKUP($B11,Sortimente!D:G,2,0)) ->  | E11: =IF(D11="","",VLOOKUP($B11,Sortimente!D:G,4,0)) ->  | F11: =IF(E11="","",VLOOKUP(E11,sanschie!A:E,5,0)) ->  | G11: =IF(E11="","",IF(VLOOKUP(E11,sanschie!A:J,10,0)=0,"",VLOOKUP(E11,sanschie!A:J,10,0))) -> 
A12: 6 | B12: =$A$1&Verbindungsleitung!A12 -> Nein6 | C12: =IF(E12="","",IF(E12="Sonder","J",VLOOKUP(E12,sanschie!A:K,11,0))) ->  | D12: =IF(ISNA(VLOOKUP($B12,Sortimente!D:G,2,0))=TRUE,"",VLOOKUP($B12,Sortimente!D:G,2,0)) ->  | E12: =IF(D12="","",VLOOKUP($B12,Sortimente!D:G,4,0)) ->  | F12: =IF(E12="","",VLOOKUP(E12,sanschie!A:E,5,0)) ->  | G12: =IF(E12="","",IF(VLOOKUP(E12,sanschie!A:J,10,0)=0,"",VLOOKUP(E12,sanschie!A:J,10,0))) -> 
A13: 7 | B13: =$A$1&Verbindungsleitung!A13 -> Nein7 | C13: =IF(E13="","",IF(E13="Sonder","J",VLOOKUP(E13,sanschie!A:K,11,0))) ->  | D13: =IF(ISNA(VLOOKUP($B13,Sortimente!D:G,2,0))=TRUE,"",VLOOKUP($B13,Sortimente!D:G,2,0)) ->  | E13: =IF(D13="","",VLOOKUP($B13,Sortimente!D:G,4,0)) ->  | F13: =IF(E13="","",VLOOKUP(E13,sanschie!A:E,5,0)) ->  | G13: =IF(E13="","",IF(VLOOKUP(E13,sanschie!A:J,10,0)=0,"",VLOOKUP(E13,sanschie!A:J,10,0))) -> 
A14: 8 | B14: =$A$1&Verbindungsleitung!A14 -> Nein8 | C14: =IF(E14="","",IF(E14="Sonder","J",VLOOKUP(E14,sanschie!A:K,11,0))) ->  | D14: =IF(ISNA(VLOOKUP($B14,Sortimente!D:G,2,0))=TRUE,"",VLOOKUP($B14,Sortimente!D:G,2,0)) ->  | E14: =IF(D14="","",VLOOKUP($B14,Sortimente!D:G,4,0)) ->  | F14: =IF(E14="","",VLOOKUP(E14,sanschie!A:E,5,0)) ->  | G14: =IF(E14="","",IF(VLOOKUP(E14,sanschie!A:J,10,0)=0,"",VLOOKUP(E14,sanschie!A:J,10,0))) -> 
A15: 9 | B15: =$A$1&Verbindungsleitung!A15 -> Nein9 | C15: =IF(E15="","",IF(E15="Sonder","J",VLOOKUP(E15,sanschie!A:K,11,0))) ->  | D15: =IF(ISNA(VLOOKUP($B15,Sortimente!D:G,2,0))=TRUE,"",VLOOKUP($B15,Sortimente!D:G,2,0)) ->  | E15: =IF(D15="","",VLOOKUP($B15,Sortimente!D:G,4,0)) ->  | F15: =IF(E15="","",VLOOKUP(E15,sanschie!A:E,5,0)) ->  | G15: =IF(E15="","",IF(VLOOKUP(E15,sanschie!A:J,10,0)=0,"",VLOOKUP(E15,sanschie!A:J,10,0))) -> 
A16: 10 | B16: =$A$1&Verbindungsleitung!A16 -> Nein10 | C16: =IF(E16="","",IF(E16="Sonder","J",VLOOKUP(E16,sanschie!A:K,11,0))) ->  | D16: =IF(ISNA(VLOOKUP($B16,Sortimente!D:G,2,0))=TRUE,"",VLOOKUP($B16,Sortimente!D:G,2,0)) ->  | E16: =IF(D16="","",VLOOKUP($B16,Sortimente!D:G,4,0)) ->  | F16: =IF(E16="","",VLOOKUP(E16,sanschie!A:E,5,0)) ->  | G16: =IF(E16="","",IF(VLOOKUP(E16,sanschie!A:J,10,0)=0,"",VLOOKUP(E16,sanschie!A:J,10,0))) -> 
A17: 11 | B17: =$A$1&Verbindungsleitung!A17 -> Nein11 | C17: =IF(E17="","",IF(E17="Sonder","J",VLOOKUP(E17,sanschie!A:K,11,0))) ->  | D17: =IF(ISNA(VLOOKUP($B17,Sortimente!D:G,2,0))=TRUE,"",VLOOKUP($B17,Sortimente!D:G,2,0)) ->  | E17: =IF(D17="","",VLOOKUP($B17,Sortimente!D:G,4,0)) ->  | F17: =IF(E17="","",VLOOKUP(E17,sanschie!A:E,5,0)) ->  | G17: =IF(E17="","",IF(VLOOKUP(E17,sanschie!A:J,10,0)=0,"",VLOOKUP(E17,sanschie!A:J,10,0))) -> 
A18: 12 | B18: =$A$1&Verbindungsleitung!A18 -> Nein12 | C18: =IF(E18="","",IF(E18="Sonder","J",VLOOKUP(E18,sanschie!A:K,11,0))) ->  | D18: =IF(ISNA(VLOOKUP($B18,Sortimente!D:G,2,0))=TRUE,"",VLOOKUP($B18,Sortimente!D:G,2,0)) ->  | E18: =IF(D18="","",VLOOKUP($B18,Sortimente!D:G,4,0)) ->  | F18: =IF(E18="","",VLOOKUP(E18,sanschie!A:E,5,0)) ->  | G18: =IF(E18="","",IF(VLOOKUP(E18,sanschie!A:J,10,0)=0,"",VLOOKUP(E18,sanschie!A:J,10,0))) -> 
A19: 13 | B19: =$A$1&Verbindungsleitung!A19 -> Nein13 | C19: =IF(E19="","",IF(E19="Sonder","J",VLOOKUP(E19,sanschie!A:K,11,0))) ->  | D19: =IF(ISNA(VLOOKUP($B19,Sortimente!D:G,2,0))=TRUE,"",VLOOKUP($B19,Sortimente!D:G,2,0)) ->  | E19: =IF(D19="","",VLOOKUP($B19,Sortimente!D:G,4,0)) ->  | F19: =IF(E19="","",VLOOKUP(E19,sanschie!A:E,5,0)) ->  | G19: =IF(E19="","",IF(VLOOKUP(E19,sanschie!A:J,10,0)=0,"",VLOOKUP(E19,sanschie!A:J,10,0))) -> 
A20: 14 | B20: =$A$1&Verbindungsleitung!A20 -> Nein14 | C20: =IF(E20="","",IF(E20="Sonder","J",VLOOKUP(E20,sanschie!A:K,11,0))) ->  | D20: =IF(ISNA(VLOOKUP($B20,Sortimente!D:G,2,0))=TRUE,"",VLOOKUP($B20,Sortimente!D:G,2,0)) ->  | E20: =IF(D20="","",VLOOKUP($B20,Sortimente!D:G,4,0)) ->  | F20: =IF(E20="","",VLOOKUP(E20,sanschie!A:E,5,0)) ->  | G20: =IF(E20="","",IF(VLOOKUP(E20,sanschie!A:J,10,0)=0,"",VLOOKUP(E20,sanschie!A:J,10,0))) -> 
A21: 15 | B21: =$A$1&Verbindungsleitung!A21 -> Nein15 | C21: =IF(E21="","",IF(E21="Sonder","J",VLOOKUP(E21,sanschie!A:K,11,0))) ->  | D21: =IF(ISNA(VLOOKUP($B21,Sortimente!D:G,2,0))=TRUE,"",VLOOKUP($B21,Sortimente!D:G,2,0)) ->  | E21: =IF(D21="","",VLOOKUP($B21,Sortimente!D:G,4,0)) ->  | F21: =IF(E21="","",VLOOKUP(E21,sanschie!A:E,5,0)) ->  | G21: =IF(E21="","",IF(VLOOKUP(E21,sanschie!A:J,10,0)=0,"",VLOOKUP(E21,sanschie!A:J,10,0))) -> 
A22: 16 | B22: =$A$1&Verbindungsleitung!A22 -> Nein16 | C22: =IF(E22="","",IF(E22="Sonder","J",VLOOKUP(E22,sanschie!A:K,11,0))) ->  | D22: =IF(ISNA(VLOOKUP($B22,Sortimente!D:G,2,0))=TRUE,"",VLOOKUP($B22,Sortimente!D:G,2,0)) ->  | E22: =IF(D22="","",VLOOKUP($B22,Sortimente!D:G,4,0)) ->  | F22: =IF(E22="","",VLOOKUP(E22,sanschie!A:E,5,0)) ->  | G22: =IF(E22="","",IF(VLOOKUP(E22,sanschie!A:J,10,0)=0,"",VLOOKUP(E22,sanschie!A:J,10,0))) -> 
A23: 17 | B23: =$A$1&Verbindungsleitung!A23 -> Nein17 | C23: =IF(E23="","",IF(E23="Sonder","J",VLOOKUP(E23,sanschie!A:K,11,0))) ->  | D23: =IF(ISNA(VLOOKUP($B23,Sortimente!D:G,2,0))=TRUE,"",VLOOKUP($B23,Sortimente!D:G,2,0)) ->  | E23: =IF(D23="","",VLOOKUP($B23,Sortimente!D:G,4,0)) ->  | F23: =IF(E23="","",VLOOKUP(E23,sanschie!A:E,5,0)) ->  | G23: =IF(E23="","",IF(VLOOKUP(E23,sanschie!A:J,10,0)=0,"",VLOOKUP(E23,sanschie!A:J,10,0))) -> 
A24: 18 | B24: =$A$1&Verbindungsleitung!A24 -> Nein18 | C24: =IF(E24="","",IF(E24="Sonder","J",VLOOKUP(E24,sanschie!A:K,11,0))) ->  | D24: =IF(ISNA(VLOOKUP($B24,Sortimente!D:G,2,0))=TRUE,"",VLOOKUP($B24,Sortimente!D:G,2,0)) ->  | E24: =IF(D24="","",VLOOKUP($B24,Sortimente!D:G,4,0)) ->  | F24: =IF(E24="","",VLOOKUP(E24,sanschie!A:E,5,0)) ->  | G24: =IF(E24="","",IF(VLOOKUP(E24,sanschie!A:J,10,0)=0,"",VLOOKUP(E24,sanschie!A:J,10,0))) -> 
A25: 19 | B25: =$A$1&Verbindungsleitung!A25 -> Nein19 | C25: =IF(E25="","",IF(E25="Sonder","J",VLOOKUP(E25,sanschie!A:K,11,0))) ->  | D25: =IF(ISNA(VLOOKUP($B25,Sortimente!D:G,2,0))=TRUE,"",VLOOKUP($B25,Sortimente!D:G,2,0)) ->  | E25: =IF(D25="","",VLOOKUP($B25,Sortimente!D:G,4,0)) ->  | F25: =IF(E25="","",VLOOKUP(E25,sanschie!A:E,5,0)) ->  | G25: =IF(E25="","",IF(VLOOKUP(E25,sanschie!A:J,10,0)=0,"",VLOOKUP(E25,sanschie!A:J,10,0))) -> 
A26: 20 | B26: =$A$1&Verbindungsleitung!A26 -> Nein20 | C26: =IF(E26="","",IF(E26="Sonder","J",VLOOKUP(E26,sanschie!A:K,11,0))) ->  | D26: =IF(ISNA(VLOOKUP($B26,Sortimente!D:G,2,0))=TRUE,"",VLOOKUP($B26,Sortimente!D:G,2,0)) ->  | E26: =IF(D26="","",VLOOKUP($B26,Sortimente!D:G,4,0)) ->  | F26: =IF(E26="","",VLOOKUP(E26,sanschie!A:E,5,0)) ->  | G26: =IF(E26="","",IF(VLOOKUP(E26,sanschie!A:J,10,0)=0,"",VLOOKUP(E26,sanschie!A:J,10,0))) -> 
A27: 21 | B27: =$A$1&Verbindungsleitung!A27 -> Nein21 | C27: =IF(E27="","",IF(E27="Sonder","J",VLOOKUP(E27,sanschie!A:K,11,0))) ->  | D27: =IF(ISNA(VLOOKUP($B27,Sortimente!D:G,2,0))=TRUE,"",VLOOKUP($B27,Sortimente!D:G,2,0)) ->  | E27: =IF(D27="","",VLOOKUP($B27,Sortimente!D:G,4,0)) ->  | F27: =IF(E27="","",VLOOKUP(E27,sanschie!A:E,5,0)) ->  | G27: =IF(E27="","",IF(VLOOKUP(E27,sanschie!A:J,10,0)=0,"",VLOOKUP(E27,sanschie!A:J,10,0))) -> 
A28: 22 | B28: =$A$1&Verbindungsleitung!A28 -> Nein22 | C28: =IF(E28="","",IF(E28="Sonder","J",VLOOKUP(E28,sanschie!A:K,11,0))) ->  | D28: =IF(ISNA(VLOOKUP($B28,Sortimente!D:G,2,0))=TRUE,"",VLOOKUP($B28,Sortimente!D:G,2,0)) ->  | E28: =IF(D28="","",VLOOKUP($B28,Sortimente!D:G,4,0)) ->  | F28: =IF(E28="","",VLOOKUP(E28,sanschie!A:E,5,0)) ->  | G28: =IF(E28="","",IF(VLOOKUP(E28,sanschie!A:J,10,0)=0,"",VLOOKUP(E28,sanschie!A:J,10,0))) -> 
A29: 23 | B29: =$A$1&Verbindungsleitung!A29 -> Nein23 | C29: =IF(E29="","",IF(E29="Sonder","J",VLOOKUP(E29,sanschie!A:K,11,0))) ->  | D29: =IF(ISNA(VLOOKUP($B29,Sortimente!D:G,2,0))=TRUE,"",VLOOKUP($B29,Sortimente!D:G,2,0)) ->  | E29: =IF(D29="","",VLOOKUP($B29,Sortimente!D:G,4,0)) ->  | F29: =IF(E29="","",VLOOKUP(E29,sanschie!A:E,5,0)) ->  | G29: =IF(E29="","",IF(VLOOKUP(E29,sanschie!A:J,10,0)=0,"",VLOOKUP(E29,sanschie!A:J,10,0))) -> 
A30: 24 | B30: =$A$1&Verbindungsleitung!A30 -> Nein24 | C30: =IF(E30="","",IF(E30="Sonder","J",VLOOKUP(E30,sanschie!A:K,11,0))) ->  | D30: =IF(ISNA(VLOOKUP($B30,Sortimente!D:G,2,0))=TRUE,"",VLOOKUP($B30,Sortimente!D:G,2,0)) ->  | E30: =IF(D30="","",VLOOKUP($B30,Sortimente!D:G,4,0)) ->  | F30: =IF(E30="","",VLOOKUP(E30,sanschie!A:E,5,0)) ->  | G30: =IF(E30="","",IF(VLOOKUP(E30,sanschie!A:J,10,0)=0,"",VLOOKUP(E30,sanschie!A:J,10,0))) -> 
A31: 25 | B31: =$A$1&Verbindungsleitung!A31 -> Nein25 | C31: =IF(E31="","",IF(E31="Sonder","J",VLOOKUP(E31,sanschie!A:K,11,0))) ->  | D31: =IF(ISNA(VLOOKUP($B31,Sortimente!D:G,2,0))=TRUE,"",VLOOKUP($B31,Sortimente!D:G,2,0)) ->  | E31: =IF(D31="","",VLOOKUP($B31,Sortimente!D:G,4,0)) ->  | F31: =IF(E31="","",VLOOKUP(E31,sanschie!A:E,5,0)) ->  | G31: =IF(E31="","",IF(VLOOKUP(E31,sanschie!A:J,10,0)=0,"",VLOOKUP(E31,sanschie!A:J,10,0))) -> 
A32: 26 | B32: =$A$1&Verbindungsleitung!A32 -> Nein26 | C32: =IF(E32="","",IF(E32="Sonder","J",VLOOKUP(E32,sanschie!A:K,11,0))) ->  | D32: =IF(ISNA(VLOOKUP($B32,Sortimente!D:G,2,0))=TRUE,"",VLOOKUP($B32,Sortimente!D:G,2,0)) ->  | E32: =IF(D32="","",VLOOKUP($B32,Sortimente!D:G,4,0)) ->  | F32: =IF(E32="","",VLOOKUP(E32,sanschie!A:E,5,0)) ->  | G32: =IF(E32="","",IF(VLOOKUP(E32,sanschie!A:J,10,0)=0,"",VLOOKUP(E32,sanschie!A:J,10,0))) -> 
A33: 27 | B33: =$A$1&Verbindungsleitung!A33 -> Nein27 | C33: =IF(E33="","",IF(E33="Sonder","J",VLOOKUP(E33,sanschie!A:K,11,0))) ->  | D33: =IF(ISNA(VLOOKUP($B33,Sortimente!D:G,2,0))=TRUE,"",VLOOKUP($B33,Sortimente!D:G,2,0)) ->  | E33: =IF(D33="","",VLOOKUP($B33,Sortimente!D:G,4,0)) ->  | F33: =IF(E33="","",VLOOKUP(E33,sanschie!A:E,5,0)) ->  | G33: =IF(E33="","",IF(VLOOKUP(E33,sanschie!A:J,10,0)=0,"",VLOOKUP(E33,sanschie!A:J,10,0))) -> 
A34: 28 | B34: =$A$1&Verbindungsleitung!A34 -> Nein28 | C34: =IF(E34="","",IF(E34="Sonder","J",VLOOKUP(E34,sanschie!A:K,11,0))) ->  | D34: =IF(ISNA(VLOOKUP($B34,Sortimente!D:G,2,0))=TRUE,"",VLOOKUP($B34,Sortimente!D:G,2,0)) ->  | E34: =IF(D34="","",VLOOKUP($B34,Sortimente!D:G,4,0)) ->  | F34: =IF(E34="","",VLOOKUP(E34,sanschie!A:E,5,0)) ->  | G34: =IF(E34="","",IF(VLOOKUP(E34,sanschie!A:J,10,0)=0,"",VLOOKUP(E34,sanschie!A:J,10,0))) -> 
A35: 29 | B35: =$A$1&Verbindungsleitung!A35 -> Nein29 | C35: =IF(E35="","",IF(E35="Sonder","J",VLOOKUP(E35,sanschie!A:K,11,0))) ->  | D35: =IF(ISNA(VLOOKUP($B35,Sortimente!D:G,2,0))=TRUE,"",VLOOKUP($B35,Sortimente!D:G,2,0)) ->  | E35: =IF(D35="","",VLOOKUP($B35,Sortimente!D:G,4,0)) ->  | F35: =IF(E35="","",VLOOKUP(E35,sanschie!A:E,5,0)) ->  | G35: =IF(E35="","",IF(VLOOKUP(E35,sanschie!A:J,10,0)=0,"",VLOOKUP(E35,sanschie!A:J,10,0))) -> 
A36: 30 | B36: =$A$1&Verbindungsleitung!A36 -> Nein30 | C36: =IF(E36="","",IF(E36="Sonder","J",VLOOKUP(E36,sanschie!A:K,11,0))) ->  | D36: =IF(ISNA(VLOOKUP($B36,Sortimente!D:G,2,0))=TRUE,"",VLOOKUP($B36,Sortimente!D:G,2,0)) ->  | E36: =IF(D36="","",VLOOKUP($B36,Sortimente!D:G,4,0)) ->  | F36: =IF(E36="","",VLOOKUP(E36,sanschie!A:E,5,0)) ->  | G36: =IF(E36="","",IF(VLOOKUP(E36,sanschie!A:J,10,0)=0,"",VLOOKUP(E36,sanschie!A:J,10,0))) -> 
A37: 31 | B37: =$A$1&Verbindungsleitung!A37 -> Nein31 | C37: =IF(E37="","",IF(E37="Sonder","J",VLOOKUP(E37,sanschie!A:K,11,0))) ->  | D37: =IF(ISNA(VLOOKUP($B37,Sortimente!D:G,2,0))=TRUE,"",VLOOKUP($B37,Sortimente!D:G,2,0)) ->  | E37: =IF(D37="","",VLOOKUP($B37,Sortimente!D:G,4,0)) ->  | F37: =IF(E37="","",VLOOKUP(E37,sanschie!A:E,5,0)) ->  | G37: =IF(E37="","",IF(VLOOKUP(E37,sanschie!A:J,10,0)=0,"",VLOOKUP(E37,sanschie!A:J,10,0))) -> 
A38: 32 | B38: =$A$1&Verbindungsleitung!A38 -> Nein32 | C38: =IF(E38="","",IF(E38="Sonder","J",VLOOKUP(E38,sanschie!A:K,11,0))) ->  | D38: =IF(ISNA(VLOOKUP($B38,Sortimente!D:G,2,0))=TRUE,"",VLOOKUP($B38,Sortimente!D:G,2,0)) ->  | E38: =IF(D38="","",VLOOKUP($B38,Sortimente!D:G,4,0)) ->  | F38: =IF(E38="","",VLOOKUP(E38,sanschie!A:E,5,0)) ->  | G38: =IF(E38="","",IF(VLOOKUP(E38,sanschie!A:J,10,0)=0,"",VLOOKUP(E38,sanschie!A:J,10,0))) -> 
A39: 33 | B39: =$A$1&Verbindungsleitung!A39 -> Nein33 | C39: =IF(E39="","",IF(E39="Sonder","J",VLOOKUP(E39,sanschie!A:K,11,0))) ->  | D39: =IF(ISNA(VLOOKUP($B39,Sortimente!D:G,2,0))=TRUE,"",VLOOKUP($B39,Sortimente!D:G,2,0)) ->  | E39: =IF(D39="","",VLOOKUP($B39,Sortimente!D:G,4,0)) ->  | F39: =IF(E39="","",VLOOKUP(E39,sanschie!A:E,5,0)) ->  | G39: =IF(E39="","",IF(VLOOKUP(E39,sanschie!A:J,10,0)=0,"",VLOOKUP(E39,sanschie!A:J,10,0))) -> 
A40: 34 | B40: =$A$1&Verbindungsleitung!A40 -> Nein34 | C40: =IF(E40="","",IF(E40="Sonder","J",VLOOKUP(E40,sanschie!A:K,11,0))) ->  | D40: =IF(ISNA(VLOOKUP($B40,Sortimente!D:G,2,0))=TRUE,"",VLOOKUP($B40,Sortimente!D:G,2,0)) ->  | E40: =IF(D40="","",VLOOKUP($B40,Sortimente!D:G,4,0)) ->  | F40: =IF(E40="","",VLOOKUP(E40,sanschie!A:E,5,0)) ->  | G40: =IF(E40="","",IF(VLOOKUP(E40,sanschie!A:J,10,0)=0,"",VLOOKUP(E40,sanschie!A:J,10,0))) -> 
A41: 35 | B41: =$A$1&Verbindungsleitung!A41 -> Nein35 | C41: =IF(E41="","",IF(E41="Sonder","J",VLOOKUP(E41,sanschie!A:K,11,0))) ->  | D41: =IF(ISNA(VLOOKUP($B41,Sortimente!D:G,2,0))=TRUE,"",VLOOKUP($B41,Sortimente!D:G,2,0)) ->  | E41: =IF(D41="","",VLOOKUP($B41,Sortimente!D:G,4,0)) ->  | F41: =IF(E41="","",VLOOKUP(E41,sanschie!A:E,5,0)) ->  | G41: =IF(E41="","",IF(VLOOKUP(E41,sanschie!A:J,10,0)=0,"",VLOOKUP(E41,sanschie!A:J,10,0))) -> 
A42: 36 | B42: =$A$1&Verbindungsleitung!A42 -> Nein36 | C42: =IF(E42="","",IF(E42="Sonder","J",VLOOKUP(E42,sanschie!A:K,11,0))) ->  | D42: =IF(ISNA(VLOOKUP($B42,Sortimente!D:G,2,0))=TRUE,"",VLOOKUP($B42,Sortimente!D:G,2,0)) ->  | E42: =IF(D42="","",VLOOKUP($B42,Sortimente!D:G,4,0)) ->  | F42: =IF(E42="","",VLOOKUP(E42,sanschie!A:E,5,0)) ->  | G42: =IF(E42="","",IF(VLOOKUP(E42,sanschie!A:J,10,0)=0,"",VLOOKUP(E42,sanschie!A:J,10,0))) -> 
A43: 37 | B43: =$A$1&Verbindungsleitung!A43 -> Nein37 | C43: =IF(E43="","",IF(E43="Sonder","J",VLOOKUP(E43,sanschie!A:K,11,0))) ->  | D43: =IF(ISNA(VLOOKUP($B43,Sortimente!D:G,2,0))=TRUE,"",VLOOKUP($B43,Sortimente!D:G,2,0)) ->  | E43: =IF(D43="","",VLOOKUP($B43,Sortimente!D:G,4,0)) ->  | F43: =IF(E43="","",VLOOKUP(E43,sanschie!A:E,5,0)) ->  | G43: =IF(E43="","",IF(VLOOKUP(E43,sanschie!A:J,10,0)=0,"",VLOOKUP(E43,sanschie!A:J,10,0))) -> 
A44: 38 | B44: =$A$1&Verbindungsleitung!A44 -> Nein38 | C44: =IF(E44="","",IF(E44="Sonder","J",VLOOKUP(E44,sanschie!A:K,11,0))) ->  | D44: =IF(ISNA(VLOOKUP($B44,Sortimente!D:G,2,0))=TRUE,"",VLOOKUP($B44,Sortimente!D:G,2,0)) ->  | E44: =IF(D44="","",VLOOKUP($B44,Sortimente!D:G,4,0)) ->  | F44: =IF(E44="","",VLOOKUP(E44,sanschie!A:E,5,0)) ->  | G44: =IF(E44="","",IF(VLOOKUP(E44,sanschie!A:J,10,0)=0,"",VLOOKUP(E44,sanschie!A:J,10,0))) -> 
A45: 39 | B45: =$A$1&Verbindungsleitung!A45 -> Nein39 | C45: =IF(E45="","",IF(E45="Sonder","J",VLOOKUP(E45,sanschie!A:K,11,0))) ->  | D45: =IF(ISNA(VLOOKUP($B45,Sortimente!D:G,2,0))=TRUE,"",VLOOKUP($B45,Sortimente!D:G,2,0)) ->  | E45: =IF(D45="","",VLOOKUP($B45,Sortimente!D:G,4,0)) ->  | F45: =IF(E45="","",VLOOKUP(E45,sanschie!A:E,5,0)) ->  | G45: =IF(E45="","",IF(VLOOKUP(E45,sanschie!A:J,10,0)=0,"",VLOOKUP(E45,sanschie!A:J,10,0))) -> 
A46: 40 | B46: =$A$1&Verbindungsleitung!A46 -> Nein40 | C46: =IF(E46="","",IF(E46="Sonder","J",VLOOKUP(E46,sanschie!A:K,11,0))) ->  | D46: =IF(ISNA(VLOOKUP($B46,Sortimente!D:G,2,0))=TRUE,"",VLOOKUP($B46,Sortimente!D:G,2,0)) ->  | E46: =IF(D46="","",VLOOKUP($B46,Sortimente!D:G,4,0)) ->  | F46: =IF(E46="","",VLOOKUP(E46,sanschie!A:E,5,0)) ->  | G46: =IF(E46="","",IF(VLOOKUP(E46,sanschie!A:J,10,0)=0,"",VLOOKUP(E46,sanschie!A:J,10,0))) -> 
A47: 41 | B47: =$A$1&Verbindungsleitung!A47 -> Nein41 | C47: =IF(E47="","",IF(E47="Sonder","J",VLOOKUP(E47,sanschie!A:K,11,0))) ->  | D47: =IF(ISNA(VLOOKUP($B47,Sortimente!D:G,2,0))=TRUE,"",VLOOKUP($B47,Sortimente!D:G,2,0)) ->  | E47: =IF(D47="","",VLOOKUP($B47,Sortimente!D:G,4,0)) ->  | F47: =IF(E47="","",VLOOKUP(E47,sanschie!A:E,5,0)) ->  | G47: =IF(E47="","",IF(VLOOKUP(E47,sanschie!A:J,10,0)=0,"",VLOOKUP(E47,sanschie!A:J,10,0))) -> 
A48: 42 | B48: =$A$1&Verbindungsleitung!A48 -> Nein42 | C48: =IF(E48="","",IF(E48="Sonder","J",VLOOKUP(E48,sanschie!A:K,11,0))) ->  | D48: =IF(ISNA(VLOOKUP($B48,Sortimente!D:G,2,0))=TRUE,"",VLOOKUP($B48,Sortimente!D:G,2,0)) ->  | E48: =IF(D48="","",VLOOKUP($B48,Sortimente!D:G,4,0)) ->  | F48: =IF(E48="","",VLOOKUP(E48,sanschie!A:E,5,0)) ->  | G48: =IF(E48="","",IF(VLOOKUP(E48,sanschie!A:J,10,0)=0,"",VLOOKUP(E48,sanschie!A:J,10,0))) -> 
A49: 43 | B49: =$A$1&Verbindungsleitung!A49 -> Nein43 | C49: =IF(E49="","",IF(E49="Sonder","J",VLOOKUP(E49,sanschie!A:K,11,0))) ->  | D49: =IF(ISNA(VLOOKUP($B49,Sortimente!D:G,2,0))=TRUE,"",VLOOKUP($B49,Sortimente!D:G,2,0)) ->  | E49: =IF(D49="","",VLOOKUP($B49,Sortimente!D:G,4,0)) ->  | F49: =IF(E49="","",VLOOKUP(E49,sanschie!A:E,5,0)) ->  | G49: =IF(E49="","",IF(VLOOKUP(E49,sanschie!A:J,10,0)=0,"",VLOOKUP(E49,sanschie!A:J,10,0))) -> 
A50: 44 | B50: =$A$1&Verbindungsleitung!A50 -> Nein44 | C50: =IF(E50="","",IF(E50="Sonder","J",VLOOKUP(E50,sanschie!A:K,11,0))) ->  | D50: =IF(ISNA(VLOOKUP($B50,Sortimente!D:G,2,0))=TRUE,"",VLOOKUP($B50,Sortimente!D:G,2,0)) ->  | E50: =IF(D50="","",VLOOKUP($B50,Sortimente!D:G,4,0)) ->  | F50: =IF(E50="","",VLOOKUP(E50,sanschie!A:E,5,0)) ->  | G50: =IF(E50="","",IF(VLOOKUP(E50,sanschie!A:J,10,0)=0,"",VLOOKUP(E50,sanschie!A:J,10,0))) -> 
A51: 45 | B51: =$A$1&Verbindungsleitung!A51 -> Nein45 | C51: =IF(E51="","",IF(E51="Sonder","J",VLOOKUP(E51,sanschie!A:K,11,0))) ->  | D51: =IF(ISNA(VLOOKUP($B51,Sortimente!D:G,2,0))=TRUE,"",VLOOKUP($B51,Sortimente!D:G,2,0)) ->  | E51: =IF(D51="","",VLOOKUP($B51,Sortimente!D:G,4,0)) ->  | F51: =IF(E51="","",VLOOKUP(E51,sanschie!A:E,5,0)) ->  | G51: =IF(E51="","",IF(VLOOKUP(E51,sanschie!A:J,10,0)=0,"",VLOOKUP(E51,sanschie!A:J,10,0))) -> 
A52: 46 | B52: =$A$1&Verbindungsleitung!A52 -> Nein46 | C52: =IF(E52="","",IF(E52="Sonder","J",VLOOKUP(E52,sanschie!A:K,11,0))) ->  | D52: =IF(ISNA(VLOOKUP($B52,Sortimente!D:G,2,0))=TRUE,"",VLOOKUP($B52,Sortimente!D:G,2,0)) ->  | E52: =IF(D52="","",VLOOKUP($B52,Sortimente!D:G,4,0)) ->  | F52: =IF(E52="","",VLOOKUP(E52,sanschie!A:E,5,0)) ->  | G52: =IF(E52="","",IF(VLOOKUP(E52,sanschie!A:J,10,0)=0,"",VLOOKUP(E52,sanschie!A:J,10,0))) -> 
A53: 47 | B53: =$A$1&Verbindungsleitung!A53 -> Nein47 | C53: =IF(E53="","",IF(E53="Sonder","J",VLOOKUP(E53,sanschie!A:K,11,0))) ->  | D53: =IF(ISNA(VLOOKUP($B53,Sortimente!D:G,2,0))=TRUE,"",VLOOKUP($B53,Sortimente!D:G,2,0)) ->  | E53: =IF(D53="","",VLOOKUP($B53,Sortimente!D:G,4,0)) ->  | F53: =IF(E53="","",VLOOKUP(E53,sanschie!A:E,5,0)) ->  | G53: =IF(E53="","",IF(VLOOKUP(E53,sanschie!A:J,10,0)=0,"",VLOOKUP(E53,sanschie!A:J,10,0))) -> 
A54: 48 | B54: =$A$1&Verbindungsleitung!A54 -> Nein48 | C54: =IF(E54="","",IF(E54="Sonder","J",VLOOKUP(E54,sanschie!A:K,11,0))) ->  | D54: =IF(ISNA(VLOOKUP($B54,Sortimente!D:G,2,0))=TRUE,"",VLOOKUP($B54,Sortimente!D:G,2,0)) ->  | E54: =IF(D54="","",VLOOKUP($B54,Sortimente!D:G,4,0)) ->  | F54: =IF(E54="","",VLOOKUP(E54,sanschie!A:E,5,0)) ->  | G54: =IF(E54="","",IF(VLOOKUP(E54,sanschie!A:J,10,0)=0,"",VLOOKUP(E54,sanschie!A:J,10,0))) -> 
A55: 49 | B55: =$A$1&Verbindungsleitung!A55 -> Nein49 | C55: =IF(E55="","",IF(E55="Sonder","J",VLOOKUP(E55,sanschie!A:K,11,0))) ->  | D55: =IF(ISNA(VLOOKUP($B55,Sortimente!D:G,2,0))=TRUE,"",VLOOKUP($B55,Sortimente!D:G,2,0)) ->  | E55: =IF(D55="","",VLOOKUP($B55,Sortimente!D:G,4,0)) ->  | F55: =IF(E55="","",VLOOKUP(E55,sanschie!A:E,5,0)) ->  | G55: =IF(E55="","",IF(VLOOKUP(E55,sanschie!A:J,10,0)=0,"",VLOOKUP(E55,sanschie!A:J,10,0))) -> 
A56: 50 | B56: =$A$1&Verbindungsleitung!A56 -> Nein50 | C56: =IF(E56="","",IF(E56="Sonder","J",VLOOKUP(E56,sanschie!A:K,11,0))) ->  | D56: =IF(ISNA(VLOOKUP($B56,Sortimente!D:G,2,0))=TRUE,"",VLOOKUP($B56,Sortimente!D:G,2,0)) ->  | E56: =IF(D56="","",VLOOKUP($B56,Sortimente!D:G,4,0)) ->  | F56: =IF(E56="","",VLOOKUP(E56,sanschie!A:E,5,0)) ->  | G56: =IF(E56="","",IF(VLOOKUP(E56,sanschie!A:J,10,0)=0,"",VLOOKUP(E56,sanschie!A:J,10,0))) -> 
A57: 51 | B57: =$A$1&Verbindungsleitung!A57 -> Nein51 | C57: =IF(E57="","",IF(E57="Sonder","J",VLOOKUP(E57,sanschie!A:K,11,0))) ->  | D57: =IF(ISNA(VLOOKUP($B57,Sortimente!D:G,2,0))=TRUE,"",VLOOKUP($B57,Sortimente!D:G,2,0)) ->  | E57: =IF(D57="","",VLOOKUP($B57,Sortimente!D:G,4,0)) ->  | F57: =IF(E57="","",VLOOKUP(E57,sanschie!A:E,5,0)) ->  | G57: =IF(E57="","",IF(VLOOKUP(E57,sanschie!A:J,10,0)=0,"",VLOOKUP(E57,sanschie!A:J,10,0))) -> 
A58: 52 | B58: =$A$1&Verbindungsleitung!A58 -> Nein52 | C58: =IF(E58="","",IF(E58="Sonder","J",VLOOKUP(E58,sanschie!A:K,11,0))) ->  | D58: =IF(ISNA(VLOOKUP($B58,Sortimente!D:G,2,0))=TRUE,"",VLOOKUP($B58,Sortimente!D:G,2,0)) ->  | E58: =IF(D58="","",VLOOKUP($B58,Sortimente!D:G,4,0)) ->  | F58: =IF(E58="","",VLOOKUP(E58,sanschie!A:E,5,0)) ->  | G58: =IF(E58="","",IF(VLOOKUP(E58,sanschie!A:J,10,0)=0,"",VLOOKUP(E58,sanschie!A:J,10,0))) -> 
A59: 53 | B59: =$A$1&Verbindungsleitung!A59 -> Nein53 | C59: =IF(E59="","",IF(E59="Sonder","J",VLOOKUP(E59,sanschie!A:K,11,0))) ->  | D59: =IF(ISNA(VLOOKUP($B59,Sortimente!D:G,2,0))=TRUE,"",VLOOKUP($B59,Sortimente!D:G,2,0)) ->  | E59: =IF(D59="","",VLOOKUP($B59,Sortimente!D:G,4,0)) ->  | F59: =IF(E59="","",VLOOKUP(E59,sanschie!A:E,5,0)) ->  | G59: =IF(E59="","",IF(VLOOKUP(E59,sanschie!A:J,10,0)=0,"",VLOOKUP(E59,sanschie!A:J,10,0))) -> 
A60: 54 | B60: =$A$1&Verbindungsleitung!A60 -> Nein54 | C60: =IF(E60="","",IF(E60="Sonder","J",VLOOKUP(E60,sanschie!A:K,11,0))) ->  | D60: =IF(ISNA(VLOOKUP($B60,Sortimente!D:G,2,0))=TRUE,"",VLOOKUP($B60,Sortimente!D:G,2,0)) ->  | E60: =IF(D60="","",VLOOKUP($B60,Sortimente!D:G,4,0)) ->  | F60: =IF(E60="","",VLOOKUP(E60,sanschie!A:E,5,0)) ->  | G60: =IF(E60="","",IF(VLOOKUP(E60,sanschie!A:J,10,0)=0,"",VLOOKUP(E60,sanschie!A:J,10,0))) -> 
A61: 55 | B61: =$A$1&Verbindungsleitung!A61 -> Nein55 | C61: =IF(E61="","",IF(E61="Sonder","J",VLOOKUP(E61,sanschie!A:K,11,0))) ->  | D61: =IF(ISNA(VLOOKUP($B61,Sortimente!D:G,2,0))=TRUE,"",VLOOKUP($B61,Sortimente!D:G,2,0)) ->  | E61: =IF(D61="","",VLOOKUP($B61,Sortimente!D:G,4,0)) ->  | F61: =IF(E61="","",VLOOKUP(E61,sanschie!A:E,5,0)) ->  | G61: =IF(E61="","",IF(VLOOKUP(E61,sanschie!A:J,10,0)=0,"",VLOOKUP(E61,sanschie!A:J,10,0))) -> 
A62: 56 | B62: =$A$1&Verbindungsleitung!A62 -> Nein56 | C62: =IF(E62="","",IF(E62="Sonder","J",VLOOKUP(E62,sanschie!A:K,11,0))) ->  | D62: =IF(ISNA(VLOOKUP($B62,Sortimente!D:G,2,0))=TRUE,"",VLOOKUP($B62,Sortimente!D:G,2,0)) ->  | E62: =IF(D62="","",VLOOKUP($B62,Sortimente!D:G,4,0)) ->  | F62: =IF(E62="","",VLOOKUP(E62,sanschie!A:E,5,0)) ->  | G62: =IF(E62="","",IF(VLOOKUP(E62,sanschie!A:J,10,0)=0,"",VLOOKUP(E62,sanschie!A:J,10,0))) -> 
A63: 57 | B63: =$A$1&Verbindungsleitung!A63 -> Nein57 | C63: =IF(E63="","",IF(E63="Sonder","J",VLOOKUP(E63,sanschie!A:K,11,0))) ->  | D63: =IF(ISNA(VLOOKUP($B63,Sortimente!D:G,2,0))=TRUE,"",VLOOKUP($B63,Sortimente!D:G,2,0)) ->  | E63: =IF(D63="","",VLOOKUP($B63,Sortimente!D:G,4,0)) ->  | F63: =IF(E63="","",VLOOKUP(E63,sanschie!A:E,5,0)) ->  | G63: =IF(E63="","",IF(VLOOKUP(E63,sanschie!A:J,10,0)=0,"",VLOOKUP(E63,sanschie!A:J,10,0))) -> 
A64: 58 | B64: =$A$1&Verbindungsleitung!A64 -> Nein58 | C64: =IF(E64="","",IF(E64="Sonder","J",VLOOKUP(E64,sanschie!A:K,11,0))) ->  | D64: =IF(ISNA(VLOOKUP($B64,Sortimente!D:G,2,0))=TRUE,"",VLOOKUP($B64,Sortimente!D:G,2,0)) ->  | E64: =IF(D64="","",VLOOKUP($B64,Sortimente!D:G,4,0)) ->  | F64: =IF(E64="","",VLOOKUP(E64,sanschie!A:E,5,0)) ->  | G64: =IF(E64="","",IF(VLOOKUP(E64,sanschie!A:J,10,0)=0,"",VLOOKUP(E64,sanschie!A:J,10,0))) -> 
A65: 59 | B65: =$A$1&Verbindungsleitung!A65 -> Nein59 | C65: =IF(E65="","",IF(E65="Sonder","J",VLOOKUP(E65,sanschie!A:K,11,0))) ->  | D65: =IF(ISNA(VLOOKUP($B65,Sortimente!D:G,2,0))=TRUE,"",VLOOKUP($B65,Sortimente!D:G,2,0)) ->  | E65: =IF(D65="","",VLOOKUP($B65,Sortimente!D:G,4,0)) ->  | F65: =IF(E65="","",VLOOKUP(E65,sanschie!A:E,5,0)) ->  | G65: =IF(E65="","",IF(VLOOKUP(E65,sanschie!A:J,10,0)=0,"",VLOOKUP(E65,sanschie!A:J,10,0))) -> 
A66: 60 | B66: =$A$1&Verbindungsleitung!A66 -> Nein60 | C66: =IF(E66="","",IF(E66="Sonder","J",VLOOKUP(E66,sanschie!A:K,11,0))) ->  | D66: =IF(ISNA(VLOOKUP($B66,Sortimente!D:G,2,0))=TRUE,"",VLOOKUP($B66,Sortimente!D:G,2,0)) ->  | E66: =IF(D66="","",VLOOKUP($B66,Sortimente!D:G,4,0)) ->  | F66: =IF(E66="","",VLOOKUP(E66,sanschie!A:E,5,0)) ->  | G66: =IF(E66="","",IF(VLOOKUP(E66,sanschie!A:J,10,0)=0,"",VLOOKUP(E66,sanschie!A:J,10,0))) -> 
A67: 61 | B67: =$A$1&Verbindungsleitung!A67 -> Nein61 | C67: =IF(E67="","",IF(E67="Sonder","J",VLOOKUP(E67,sanschie!A:K,11,0))) ->  | D67: =IF(ISNA(VLOOKUP($B67,Sortimente!D:G,2,0))=TRUE,"",VLOOKUP($B67,Sortimente!D:G,2,0)) ->  | E67: =IF(D67="","",VLOOKUP($B67,Sortimente!D:G,4,0)) ->  | F67: =IF(E67="","",VLOOKUP(E67,sanschie!A:E,5,0)) ->  | G67: =IF(E67="","",IF(VLOOKUP(E67,sanschie!A:J,10,0)=0,"",VLOOKUP(E67,sanschie!A:J,10,0))) -> 
A68: 62 | B68: =$A$1&Verbindungsleitung!A68 -> Nein62 | C68: =IF(E68="","",IF(E68="Sonder","J",VLOOKUP(E68,sanschie!A:K,11,0))) ->  | D68: =IF(ISNA(VLOOKUP($B68,Sortimente!D:G,2,0))=TRUE,"",VLOOKUP($B68,Sortimente!D:G,2,0)) ->  | E68: =IF(D68="","",VLOOKUP($B68,Sortimente!D:G,4,0)) ->  | F68: =IF(E68="","",VLOOKUP(E68,sanschie!A:E,5,0)) ->  | G68: =IF(E68="","",IF(VLOOKUP(E68,sanschie!A:J,10,0)=0,"",VLOOKUP(E68,sanschie!A:J,10,0))) -> 
A69: 63 | B69: =$A$1&Verbindungsleitung!A69 -> Nein63 | C69: =IF(E69="","",IF(E69="Sonder","J",VLOOKUP(E69,sanschie!A:K,11,0))) ->  | D69: =IF(ISNA(VLOOKUP($B69,Sortimente!D:G,2,0))=TRUE,"",VLOOKUP($B69,Sortimente!D:G,2,0)) ->  | E69: =IF(D69="","",VLOOKUP($B69,Sortimente!D:G,4,0)) ->  | F69: =IF(E69="","",VLOOKUP(E69,sanschie!A:E,5,0)) ->  | G69: =IF(E69="","",IF(VLOOKUP(E69,sanschie!A:J,10,0)=0,"",VLOOKUP(E69,sanschie!A:J,10,0))) -> 
A70: 64 | B70: =$A$1&Verbindungsleitung!A70 -> Nein64 | C70: =IF(E70="","",IF(E70="Sonder","J",VLOOKUP(E70,sanschie!A:K,11,0))) ->  | D70: =IF(ISNA(VLOOKUP($B70,Sortimente!D:G,2,0))=TRUE,"",VLOOKUP($B70,Sortimente!D:G,2,0)) ->  | E70: =IF(D70="","",VLOOKUP($B70,Sortimente!D:G,4,0)) ->  | F70: =IF(E70="","",VLOOKUP(E70,sanschie!A:E,5,0)) ->  | G70: =IF(E70="","",IF(VLOOKUP(E70,sanschie!A:J,10,0)=0,"",VLOOKUP(E70,sanschie!A:J,10,0))) -> 
A71: 65 | B71: =$A$1&Verbindungsleitung!A71 -> Nein65 | C71: =IF(E71="","",IF(E71="Sonder","J",VLOOKUP(E71,sanschie!A:K,11,0))) ->  | D71: =IF(ISNA(VLOOKUP($B71,Sortimente!D:G,2,0))=TRUE,"",VLOOKUP($B71,Sortimente!D:G,2,0)) ->  | E71: =IF(D71="","",VLOOKUP($B71,Sortimente!D:G,4,0)) ->  | F71: =IF(E71="","",VLOOKUP(E71,sanschie!A:E,5,0)) ->  | G71: =IF(E71="","",IF(VLOOKUP(E71,sanschie!A:J,10,0)=0,"",VLOOKUP(E71,sanschie!A:J,10,0))) -> 
A72: 66 | B72: =$A$1&Verbindungsleitung!A72 -> Nein66 | C72: =IF(E72="","",IF(E72="Sonder","J",VLOOKUP(E72,sanschie!A:K,11,0))) ->  | D72: =IF(ISNA(VLOOKUP($B72,Sortimente!D:G,2,0))=TRUE,"",VLOOKUP($B72,Sortimente!D:G,2,0)) ->  | E72: =IF(D72="","",VLOOKUP($B72,Sortimente!D:G,4,0)) ->  | F72: =IF(E72="","",VLOOKUP(E72,sanschie!A:E,5,0)) ->  | G72: =IF(E72="","",IF(VLOOKUP(E72,sanschie!A:J,10,0)=0,"",VLOOKUP(E72,sanschie!A:J,10,0))) -> 
A73: 67 | B73: =$A$1&Verbindungsleitung!A73 -> Nein67 | C73: =IF(E73="","",IF(E73="Sonder","J",VLOOKUP(E73,sanschie!A:K,11,0))) ->  | D73: =IF(ISNA(VLOOKUP($B73,Sortimente!D:G,2,0))=TRUE,"",VLOOKUP($B73,Sortimente!D:G,2,0)) ->  | E73: =IF(D73="","",VLOOKUP($B73,Sortimente!D:G,4,0)) ->  | F73: =IF(E73="","",VLOOKUP(E73,sanschie!A:E,5,0)) ->  | G73: =IF(E73="","",IF(VLOOKUP(E73,sanschie!A:J,10,0)=0,"",VLOOKUP(E73,sanschie!A:J,10,0))) -> 
A74: 68 | B74: =$A$1&Verbindungsleitung!A74 -> Nein68 | C74: =IF(E74="","",IF(E74="Sonder","J",VLOOKUP(E74,sanschie!A:K,11,0))) ->  | D74: =IF(ISNA(VLOOKUP($B74,Sortimente!D:G,2,0))=TRUE,"",VLOOKUP($B74,Sortimente!D:G,2,0)) ->  | E74: =IF(D74="","",VLOOKUP($B74,Sortimente!D:G,4,0)) ->  | F74: =IF(E74="","",VLOOKUP(E74,sanschie!A:E,5,0)) ->  | G74: =IF(E74="","",IF(VLOOKUP(E74,sanschie!A:J,10,0)=0,"",VLOOKUP(E74,sanschie!A:J,10,0))) -> 
A75: 69 | B75: =$A$1&Verbindungsleitung!A75 -> Nein69 | C75: =IF(E75="","",IF(E75="Sonder","J",VLOOKUP(E75,sanschie!A:K,11,0))) ->  | D75: =IF(ISNA(VLOOKUP($B75,Sortimente!D:G,2,0))=TRUE,"",VLOOKUP($B75,Sortimente!D:G,2,0)) ->  | E75: =IF(D75="","",VLOOKUP($B75,Sortimente!D:G,4,0)) ->  | F75: =IF(E75="","",VLOOKUP(E75,sanschie!A:E,5,0)) ->  | G75: =IF(E75="","",IF(VLOOKUP(E75,sanschie!A:J,10,0)=0,"",VLOOKUP(E75,sanschie!A:J,10,0))) -> 
A76: 70 | B76: =$A$1&Verbindungsleitung!A76 -> Nein70 | C76: =IF(E76="","",IF(E76="Sonder","J",VLOOKUP(E76,sanschie!A:K,11,0))) ->  | D76: =IF(ISNA(VLOOKUP($B76,Sortimente!D:G,2,0))=TRUE,"",VLOOKUP($B76,Sortimente!D:G,2,0)) ->  | E76: =IF(D76="","",VLOOKUP($B76,Sortimente!D:G,4,0)) ->  | F76: =IF(E76="","",VLOOKUP(E76,sanschie!A:E,5,0)) ->  | G76: =IF(E76="","",IF(VLOOKUP(E76,sanschie!A:J,10,0)=0,"",VLOOKUP(E76,sanschie!A:J,10,0))) -> 
A77: 71 | B77: =$A$1&Verbindungsleitung!A77 -> Nein71 | C77: =IF(E77="","",IF(E77="Sonder","J",VLOOKUP(E77,sanschie!A:K,11,0))) ->  | D77: =IF(ISNA(VLOOKUP($B77,Sortimente!D:G,2,0))=TRUE,"",VLOOKUP($B77,Sortimente!D:G,2,0)) ->  | E77: =IF(D77="","",VLOOKUP($B77,Sortimente!D:G,4,0)) ->  | F77: =IF(E77="","",VLOOKUP(E77,sanschie!A:E,5,0)) ->  | G77: =IF(E77="","",IF(VLOOKUP(E77,sanschie!A:J,10,0)=0,"",VLOOKUP(E77,sanschie!A:J,10,0))) -> 
A78: 72 | B78: =$A$1&Verbindungsleitung!A78 -> Nein72 | C78: =IF(E78="","",IF(E78="Sonder","J",VLOOKUP(E78,sanschie!A:K,11,0))) ->  | D78: =IF(ISNA(VLOOKUP($B78,Sortimente!D:G,2,0))=TRUE,"",VLOOKUP($B78,Sortimente!D:G,2,0)) ->  | E78: =IF(D78="","",VLOOKUP($B78,Sortimente!D:G,4,0)) ->  | F78: =IF(E78="","",VLOOKUP(E78,sanschie!A:E,5,0)) ->  | G78: =IF(E78="","",IF(VLOOKUP(E78,sanschie!A:J,10,0)=0,"",VLOOKUP(E78,sanschie!A:J,10,0))) -> 
A79: 73 | B79: =$A$1&Verbindungsleitung!A79 -> Nein73 | C79: =IF(E79="","",IF(E79="Sonder","J",VLOOKUP(E79,sanschie!A:K,11,0))) ->  | D79: =IF(ISNA(VLOOKUP($B79,Sortimente!D:G,2,0))=TRUE,"",VLOOKUP($B79,Sortimente!D:G,2,0)) ->  | E79: =IF(D79="","",VLOOKUP($B79,Sortimente!D:G,4,0)) ->  | F79: =IF(E79="","",VLOOKUP(E79,sanschie!A:E,5,0)) ->  | G79: =IF(E79="","",IF(VLOOKUP(E79,sanschie!A:J,10,0)=0,"",VLOOKUP(E79,sanschie!A:J,10,0))) -> 
A80: 74 | B80: =$A$1&Verbindungsleitung!A80 -> Nein74 | C80: =IF(E80="","",IF(E80="Sonder","J",VLOOKUP(E80,sanschie!A:K,11,0))) ->  | D80: =IF(ISNA(VLOOKUP($B80,Sortimente!D:G,2,0))=TRUE,"",VLOOKUP($B80,Sortimente!D:G,2,0)) ->  | E80: =IF(D80="","",VLOOKUP($B80,Sortimente!D:G,4,0)) ->  | F80: =IF(E80="","",VLOOKUP(E80,sanschie!A:E,5,0)) ->  | G80: =IF(E80="","",IF(VLOOKUP(E80,sanschie!A:J,10,0)=0,"",VLOOKUP(E80,sanschie!A:J,10,0))) -> 
A81: 75 | B81: =$A$1&Verbindungsleitung!A81 -> Nein75 | C81: =IF(E81="","",IF(E81="Sonder","J",VLOOKUP(E81,sanschie!A:K,11,0))) ->  | D81: =IF(ISNA(VLOOKUP($B81,Sortimente!D:G,2,0))=TRUE,"",VLOOKUP($B81,Sortimente!D:G,2,0)) ->  | E81: =IF(D81="","",VLOOKUP($B81,Sortimente!D:G,4,0)) ->  | F81: =IF(E81="","",VLOOKUP(E81,sanschie!A:E,5,0)) ->  | G81: =IF(E81="","",IF(VLOOKUP(E81,sanschie!A:J,10,0)=0,"",VLOOKUP(E81,sanschie!A:J,10,0))) -> 
A82: 76 | B82: =$A$1&Verbindungsleitung!A82 -> Nein76 | C82: =IF(E82="","",IF(E82="Sonder","J",VLOOKUP(E82,sanschie!A:K,11,0))) ->  | D82: =IF(ISNA(VLOOKUP($B82,Sortimente!D:G,2,0))=TRUE,"",VLOOKUP($B82,Sortimente!D:G,2,0)) ->  | E82: =IF(D82="","",VLOOKUP($B82,Sortimente!D:G,4,0)) ->  | F82: =IF(E82="","",VLOOKUP(E82,sanschie!A:E,5,0)) ->  | G82: =IF(E82="","",IF(VLOOKUP(E82,sanschie!A:J,10,0)=0,"",VLOOKUP(E82,sanschie!A:J,10,0))) -> 
A83: 77 | B83: =$A$1&Verbindungsleitung!A83 -> Nein77 | C83: =IF(E83="","",IF(E83="Sonder","J",VLOOKUP(E83,sanschie!A:K,11,0))) ->  | D83: =IF(ISNA(VLOOKUP($B83,Sortimente!D:G,2,0))=TRUE,"",VLOOKUP($B83,Sortimente!D:G,2,0)) ->  | E83: =IF(D83="","",VLOOKUP($B83,Sortimente!D:G,4,0)) ->  | F83: =IF(E83="","",VLOOKUP(E83,sanschie!A:E,5,0)) ->  | G83: =IF(E83="","",IF(VLOOKUP(E83,sanschie!A:J,10,0)=0,"",VLOOKUP(E83,sanschie!A:J,10,0))) -> 
A84: 78 | B84: =$A$1&Verbindungsleitung!A84 -> Nein78 | C84: =IF(E84="","",IF(E84="Sonder","J",VLOOKUP(E84,sanschie!A:K,11,0))) ->  | D84: =IF(ISNA(VLOOKUP($B84,Sortimente!D:G,2,0))=TRUE,"",VLOOKUP($B84,Sortimente!D:G,2,0)) ->  | E84: =IF(D84="","",VLOOKUP($B84,Sortimente!D:G,4,0)) ->  | F84: =IF(E84="","",VLOOKUP(E84,sanschie!A:E,5,0)) ->  | G84: =IF(E84="","",IF(VLOOKUP(E84,sanschie!A:J,10,0)=0,"",VLOOKUP(E84,sanschie!A:J,10,0))) -> 
A85: 79 | B85: =$A$1&Verbindungsleitung!A85 -> Nein79 | C85: =IF(E85="","",IF(E85="Sonder","J",VLOOKUP(E85,sanschie!A:K,11,0))) ->  | D85: =IF(ISNA(VLOOKUP($B85,Sortimente!D:G,2,0))=TRUE,"",VLOOKUP($B85,Sortimente!D:G,2,0)) ->  | E85: =IF(D85="","",VLOOKUP($B85,Sortimente!D:G,4,0)) ->  | F85: =IF(E85="","",VLOOKUP(E85,sanschie!A:E,5,0)) ->  | G85: =IF(E85="","",IF(VLOOKUP(E85,sanschie!A:J,10,0)=0,"",VLOOKUP(E85,sanschie!A:J,10,0))) -> 
A86: 80 | B86: =$A$1&Verbindungsleitung!A86 -> Nein80 | C86: =IF(E86="","",IF(E86="Sonder","J",VLOOKUP(E86,sanschie!A:K,11,0))) ->  | D86: =IF(ISNA(VLOOKUP($B86,Sortimente!D:G,2,0))=TRUE,"",VLOOKUP($B86,Sortimente!D:G,2,0)) ->  | E86: =IF(D86="","",VLOOKUP($B86,Sortimente!D:G,4,0)) ->  | F86: =IF(E86="","",VLOOKUP(E86,sanschie!A:E,5,0)) ->  | G86: =IF(E86="","",IF(VLOOKUP(E86,sanschie!A:J,10,0)=0,"",VLOOKUP(E86,sanschie!A:J,10,0))) -> 
A87: 81 | B87: =$A$1&Verbindungsleitung!A87 -> Nein81 | C87: =IF(E87="","",IF(E87="Sonder","J",VLOOKUP(E87,sanschie!A:K,11,0))) ->  | D87: =IF(ISNA(VLOOKUP($B87,Sortimente!D:G,2,0))=TRUE,"",VLOOKUP($B87,Sortimente!D:G,2,0)) ->  | E87: =IF(D87="","",VLOOKUP($B87,Sortimente!D:G,4,0)) ->  | F87: =IF(E87="","",VLOOKUP(E87,sanschie!A:E,5,0)) ->  | G87: =IF(E87="","",IF(VLOOKUP(E87,sanschie!A:J,10,0)=0,"",VLOOKUP(E87,sanschie!A:J,10,0))) -> 
A88: 82 | B88: =$A$1&Verbindungsleitung!A88 -> Nein82 | C88: =IF(E88="","",IF(E88="Sonder","J",VLOOKUP(E88,sanschie!A:K,11,0))) ->  | D88: =IF(ISNA(VLOOKUP($B88,Sortimente!D:G,2,0))=TRUE,"",VLOOKUP($B88,Sortimente!D:G,2,0)) ->  | E88: =IF(D88="","",VLOOKUP($B88,Sortimente!D:G,4,0)) ->  | F88: =IF(E88="","",VLOOKUP(E88,sanschie!A:E,5,0)) ->  | G88: =IF(E88="","",IF(VLOOKUP(E88,sanschie!A:J,10,0)=0,"",VLOOKUP(E88,sanschie!A:J,10,0))) -> 
A89: 83 | B89: =$A$1&Verbindungsleitung!A89 -> Nein83 | C89: =IF(E89="","",IF(E89="Sonder","J",VLOOKUP(E89,sanschie!A:K,11,0))) ->  | D89: =IF(ISNA(VLOOKUP($B89,Sortimente!D:G,2,0))=TRUE,"",VLOOKUP($B89,Sortimente!D:G,2,0)) ->  | E89: =IF(D89="","",VLOOKUP($B89,Sortimente!D:G,4,0)) ->  | F89: =IF(E89="","",VLOOKUP(E89,sanschie!A:E,5,0)) ->  | G89: =IF(E89="","",IF(VLOOKUP(E89,sanschie!A:J,10,0)=0,"",VLOOKUP(E89,sanschie!A:J,10,0))) -> 
A90: 84 | B90: =$A$1&Verbindungsleitung!A90 -> Nein84 | C90: =IF(E90="","",IF(E90="Sonder","J",VLOOKUP(E90,sanschie!A:K,11,0))) ->  | D90: =IF(ISNA(VLOOKUP($B90,Sortimente!D:G,2,0))=TRUE,"",VLOOKUP($B90,Sortimente!D:G,2,0)) ->  | E90: =IF(D90="","",VLOOKUP($B90,Sortimente!D:G,4,0)) ->  | F90: =IF(E90="","",VLOOKUP(E90,sanschie!A:E,5,0)) ->  | G90: =IF(E90="","",IF(VLOOKUP(E90,sanschie!A:J,10,0)=0,"",VLOOKUP(E90,sanschie!A:J,10,0))) -> 
A91: 85 | B91: =$A$1&Verbindungsleitung!A91 -> Nein85 | C91: =IF(E91="","",IF(E91="Sonder","J",VLOOKUP(E91,sanschie!A:K,11,0))) ->  | D91: =IF(ISNA(VLOOKUP($B91,Sortimente!D:G,2,0))=TRUE,"",VLOOKUP($B91,Sortimente!D:G,2,0)) ->  | E91: =IF(D91="","",VLOOKUP($B91,Sortimente!D:G,4,0)) ->  | F91: =IF(E91="","",VLOOKUP(E91,sanschie!A:E,5,0)) ->  | G91: =IF(E91="","",IF(VLOOKUP(E91,sanschie!A:J,10,0)=0,"",VLOOKUP(E91,sanschie!A:J,10,0))) -> 
A92: 86 | B92: =$A$1&Verbindungsleitung!A92 -> Nein86 | C92: =IF(E92="","",IF(E92="Sonder","J",VLOOKUP(E92,sanschie!A:K,11,0))) ->  | D92: =IF(ISNA(VLOOKUP($B92,Sortimente!D:G,2,0))=TRUE,"",VLOOKUP($B92,Sortimente!D:G,2,0)) ->  | E92: =IF(D92="","",VLOOKUP($B92,Sortimente!D:G,4,0)) ->  | F92: =IF(E92="","",VLOOKUP(E92,sanschie!A:E,5,0)) ->  | G92: =IF(E92="","",IF(VLOOKUP(E92,sanschie!A:J,10,0)=0,"",VLOOKUP(E92,sanschie!A:J,10,0))) -> 
A93: 87 | B93: =$A$1&Verbindungsleitung!A93 -> Nein87 | C93: =IF(E93="","",IF(E93="Sonder","J",VLOOKUP(E93,sanschie!A:K,11,0))) ->  | D93: =IF(ISNA(VLOOKUP($B93,Sortimente!D:G,2,0))=TRUE,"",VLOOKUP($B93,Sortimente!D:G,2,0)) ->  | E93: =IF(D93="","",VLOOKUP($B93,Sortimente!D:G,4,0)) ->  | F93: =IF(E93="","",VLOOKUP(E93,sanschie!A:E,5,0)) ->  | G93: =IF(E93="","",IF(VLOOKUP(E93,sanschie!A:J,10,0)=0,"",VLOOKUP(E93,sanschie!A:J,10,0))) -> 
A94: 88 | B94: =$A$1&Verbindungsleitung!A94 -> Nein88 | C94: =IF(E94="","",IF(E94="Sonder","J",VLOOKUP(E94,sanschie!A:K,11,0))) ->  | D94: =IF(ISNA(VLOOKUP($B94,Sortimente!D:G,2,0))=TRUE,"",VLOOKUP($B94,Sortimente!D:G,2,0)) ->  | E94: =IF(D94="","",VLOOKUP($B94,Sortimente!D:G,4,0)) ->  | F94: =IF(E94="","",VLOOKUP(E94,sanschie!A:E,5,0)) ->  | G94: =IF(E94="","",IF(VLOOKUP(E94,sanschie!A:J,10,0)=0,"",VLOOKUP(E94,sanschie!A:J,10,0))) -> 
A95: 89 | B95: =$A$1&Verbindungsleitung!A95 -> Nein89 | C95: =IF(E95="","",IF(E95="Sonder","J",VLOOKUP(E95,sanschie!A:K,11,0))) ->  | D95: =IF(ISNA(VLOOKUP($B95,Sortimente!D:G,2,0))=TRUE,"",VLOOKUP($B95,Sortimente!D:G,2,0)) ->  | E95: =IF(D95="","",VLOOKUP($B95,Sortimente!D:G,4,0)) ->  | F95: =IF(E95="","",VLOOKUP(E95,sanschie!A:E,5,0)) ->  | G95: =IF(E95="","",IF(VLOOKUP(E95,sanschie!A:J,10,0)=0,"",VLOOKUP(E95,sanschie!A:J,10,0))) -> 
A96: 90 | B96: =$A$1&Verbindungsleitung!A96 -> Nein90 | C96: =IF(E96="","",IF(E96="Sonder","J",VLOOKUP(E96,sanschie!A:K,11,0))) ->  | D96: =IF(ISNA(VLOOKUP($B96,Sortimente!D:G,2,0))=TRUE,"",VLOOKUP($B96,Sortimente!D:G,2,0)) ->  | E96: =IF(D96="","",VLOOKUP($B96,Sortimente!D:G,4,0)) ->  | F96: =IF(E96="","",VLOOKUP(E96,sanschie!A:E,5,0)) ->  | G96: =IF(E96="","",IF(VLOOKUP(E96,sanschie!A:J,10,0)=0,"",VLOOKUP(E96,sanschie!A:J,10,0))) -> 

Sheet PRIMA PLUS (hidden)
P2: =VLOOKUP(Daten!$U$139,Daten!$T:$U,2,0)&" "&VLOOKUP(Daten!$U$139,Daten!$T:$V,3,0) -> PRIMA PLUS 180
F3: =VLOOKUP(Daten!$U$139,Daten!$T:$AL,19,0) -> Typ PPL 180 / 0,6
F5: =Vokabel!$A$311 -> Lichter Ø mm
F7: =Vokabel!$A$96 -> Betriebsweise
F9: =Vokabel!$A$75 -> Brennstoff | M9: =Vokabel!$A$89 -> Anpassung der Anlagenhöhe
F11: =Vokabel!$A$40 -> Anlagenhöhe in m | J11: 10 | M11: =Vokabel!$A$90 -> tatsächliche Anlagenhöhe | P11: =VLOOKUP(P2,Sortimente!G:P,10,0) -> 10.17
M12: =Vokabel!$A$97 -> Differenz +/- | P12: =P11-J11 -> 0.17
F13: =Vokabel!$A$78 -> Rauchrohranschluss RA | M13: =Vokabel!$A$366 -> (10 cm für Mündung vorsehen!)
M14: =Vokabel!$A$101 -> Anpassung durch Eingabe kürzerer Rohrelemente:
F15: =Vokabel!$A$66 -> Putzanschluss
F17: =Vokabel!$A$100 -> Putztür | N17: =Vokabel!$A$335 -> Rohr 450 mm
N18: =Vokabel!$A$334 -> Rohr 200 mm
F19: =Vokabel!$A$83 -> Regenhaube
F21: =Vokabel!$A$84 -> Mündungslösung
F25: =Vokabel!$A$88 -> Verbindungsleitung
A62: 1

Sheet Absolut (hidden)
F3: =VLOOKUP(Daten!$U$35,Daten!$T:$AL,19,0) -> Typ - ABSOLUT Ø 18
F5: =Vokabel!$A$39 -> Lichter Ø cm
F7: =Vokabel!$A$40 -> Anlagenhöhe in m
F9: =Vokabel!$A$41 -> Fussausführung | J9: =Vokabel!$A$62 -> Sockel
F11: =Vokabel!$A$42 -> Rauchrohranschluss | G11: =Vokabel!$A$56 -> (bei kombiniert kleiner Ø)
F13: =Vokabel!$A$43 -> Handy-Abdeckplatte
F16: =Vokabel!$A$44 -> Zubehör
F18: =Vokabel!$A$45 -> Anschlussvariante | I18: =Vokabel!$A$431 -> 2.kl.Zug | K18: =Vokabel!$A$430 -> 1.Zug
F20: =Vokabel!$A$46 -> Zugregler | I20: =Vokabel!$A$431 -> 2.kl.Zug | K20: =Vokabel!$A$430 -> 1.Zug
F21: =Vokabel!$A$55 -> (mit Expl. Kl.)
F22: =Vokabel!$A$47 -> zusätzlicher Rauchrohranschluss
F23: =Vokabel!$A$61 -> (bei kombiniert grosser Ø)
F24: =Vokabel!$A$48 -> LAS Zuluft-Adapter | H24: =Vokabel!$A$57 -> (für Festbrennstoffzug)
F26: =Vokabel!$A$49 -> Revisionstür | H26: =Vokabel!$A$58 -> (für Thermo-Luftzug)
F28: =Vokabel!$A$50 -> obere Putztür | H28: =Vokabel!$A$59 -> (bei zweizügigen, für beide Züge)
F30: =Vokabel!$A$51 -> Absolut Thermo-Trennstein
F32: =Vokabel!$A$410 -> Thermo-Dichtset
F34: =Vokabel!$A$52 -> Bewehrungs-Set
F36: =Vokabel!$A$53 -> Kaminhalter
F38: =Vokabel!$A$54 -> Kaminaufsätze
F39: =Vokabel!$A$63 -> (ab Ø 16) | K39: =Vokabel!$A$431 -> 2.kl.Zug | M39: =Vokabel!$A$430 -> 1.Zug

Sheet Absolut Thermoset_F (hidden)

Sheet Cheminee (hidden)
F3: =VLOOKUP(Daten!$U$79,Daten!$T:$AL,19,0) -> Typ CHEMINEE 20
F5: =Vokabel!$A$39 -> Lichter Ø cm
F7: =Vokabel!$A$40 -> Anlagenhöhe in m
F9: =Vokabel!$A$41 -> Fussausführung
F11: =Vokabel!$A$64 -> Fundamentsockel
F12: =Vokabel!$A$65 -> (zweizügig - für beide Züge)
F13: =Vokabel!$A$66 -> Putzanschluss
F14: =Vokabel!$A$65 -> (zweizügig - für beide Züge)
F15: =Vokabel!$A$42 -> Rauchrohranschluss
F16: =Vokabel!$A$56 -> (bei kombiniert kleiner Ø)
F17: =Vokabel!A68 -> Abdeckplatte (KWD)
F20: =Vokabel!$A$44 -> Zubehör
F22: =Vokabel!$A$47 -> zusätzlicher Rauchrohranschluss
F24: =Vokabel!$A$50 -> obere Putztür
F25: =Vokabel!$A$59 -> (bei zweizügigen, für beide Züge)
F26: =Vokabel!$A$53 -> Kaminhalter
F28: =Vokabel!$A$54 -> Kaminaufsätze
F29: =Vokabel!$A$63 -> (ab Ø 16) | K29: =Vokabel!$A$431 -> 2.kl.Zug | L29: =Vokabel!$A$430 -> 1.Zug

Sheet ISOLIT (hidden)
F3: =VLOOKUP(Daten!$U$1,Daten!$T:$AL,19,0) -> Typ Schiedel ISOLIT 20/20
F5: =Vokabel!$A$39 -> Lichter Ø cm
F7: =Vokabel!$A$40 -> Anlagenhöhe in m
F9: =Vokabel!$A$423 -> Cheminée-Anfänger
F11: =Vokabel!$A$424 -> Gasdichte Russtüre
F12: =Vokabel!$A$425 -> Elementhöhe 25 cm
F14: =Vokabel!$A$427 -> Rauchrohranschlusselement
F15: =Vokabel!$A$426 -> Bauhöhe 50 cm
F17: =Vokabel!A68 -> Abdeckplatte (KWD)
F23: =Vokabel!$A$44 -> Zubehör
F25: =Vokabel!$A$428 -> Kaminschleifung
F26: =Vokabel!$A$429 -> Schleifungen bis max. 30°
F28: =Vokabel!$A$54 -> Kaminaufsätze
D772: 1

Sheet Technostar120 (hidden)
P2: =VLOOKUP(Daten!$U$10,Daten!$T:$U,2,0)&VLOOKUP(Daten!$U$10,Daten!$T:$V,3,0) -> Technostar12080
F3: =VLOOKUP(Daten!$U$10,Daten!$T:$AL,19,0) -> Typ TECHNOSTAR120 Ø 80
F6: =Vokabel!A311 -> Lichter Ø mm
F8: =Vokabel!A75 -> Brennstoff
J11: 9.99
P12: =VLOOKUP(P2,Sortimente!G:P,10,0) -> 0
P13: =P12-J11 -> -9.99
N18: Rohr 2000 mm
N19: Rohr 500 mm
N20: Rohr 250 mm

Sheet Verrechnungspartner (hidden)
B1: Verrechnungspartner / partenaire de facturation | S1: 10001 | T1: =VLOOKUP(S1,T2:U300,2,0) -> 1 | U1: -1 | W1: =IF(INDEX(Verrechnungspartner!$A$3:$J$300,Verrechnungspartner!$T$2,2)="A-Händler","",IF(INDEX(Verrechnungspartner!$A$3:$J$300,Verrechnungspartner!$T$2,2)="","",INDEX(Verrechnungspartner!$A$3:$J$300,Verrechnungspartner!$T$2,2))) -> 
A2: Nr. | B2: Adresse 1 | C2: Adresse 2 | D2: Straße/Rue | E2: PLZ/NP | F2: Ort/Lieu | S2: Kunden-Matchcode | T2: 1 | U2: =U1+1 -> 0 | W2: =IF(INDEX(Verrechnungspartner!$A$3:$J$300,Verrechnungspartner!$T$2,2)="A-Händler","",IF(INDEX(Verrechnungspartner!$A$3:$J$300,Verrechnungspartner!$T$2,3)="","",INDEX(Verrechnungspartner!$A$3:$J$300,Verrechnungspartner!$T$2,3))) -> 
A3: 10001 | B3: A-Händler | S3: =IF(B3="","",B3&", "&F3) -> A-Händler, | T3: =IF(A3="","",A3) -> 10001 | U3: 1
S4: =IF(B4="","",B4&", "&F4) ->  | T4: =IF(A4="","",A4) ->  | U4: 2 | W4: =IF(INDEX(Verrechnungspartner!$A$3:$J$300,Verrechnungspartner!$T$2,2)="A-Händler","",IF(INDEX(Verrechnungspartner!$A$3:$J$300,Verrechnungspartner!$T$2,4)="","",INDEX(Verrechnungspartner!$A$3:$J$300,Verrechnungspartner!$T$2,4))) -> 
S5: =IF(B5="","",B5&", "&F5) ->  | U5: 3 | W5: =IF(INDEX(Verrechnungspartner!$A$3:$J$300,Verrechnungspartner!$T$2,2)="A-Händler","",IF(INDEX(Verrechnungspartner!$A$3:$J$300,Verrechnungspartner!$T$2,5)="","",INDEX(Verrechnungspartner!$A$3:$J$300,Verrechnungspartner!$T$2,5))) ->  | X5: =IF(INDEX(Verrechnungspartner!$A$3:$J$300,Verrechnungspartner!$T$2,2)="A-Händler","",IF(INDEX(Verrechnungspartner!$A$3:$J$300,Verrechnungspartner!$T$2,6)="","",INDEX(Verrechnungspartner!$A$3:$J$300,Verrechnungspartner!$T$2,6))) -> 
S6: =IF(B6="","",B6&", "&F6) ->  | U6: 4
U7: 5
U8: 6
U9: 7
U10: 8
U11: 9
U12: 10
U13: 11
U14: 12
U15: 13
U16: 14
U17: 15
U18: 16
U19: 17
U20: 18
U21: 19
U22: 20
U23: 21
U24: 22
U25: 23
U26: 24
U27: 25
U28: 26
U29: 27
U30: 28
U31: 29
U32: 30
U33: 31
U34: 32
U35: 33
U36: 34
U37: 35
U38: 36
U39: 37
U40: 38
U41: 39
U42: 40
U43: 41
U44: 42
U45: 43
U46: 44
U47: 45
U48: 46
U49: 47
U50: 48
U51: 49
U52: 50
U53: 51
U54: 52
U55: 53
U56: 54
U57: 55
U58: 56
U59: 57
U60: 58
U61: 59
U62: 60
U63: 61
U64: 62
U65: 63
U66: 64
U67: =U66+1 -> 65
T68: =IF(A68="","",A68) ->  | U68: 66
U69: 67
S70: =IF(B70="","",B70&", "&F70) ->  | U70: 68
U71: 69
U72: 70
U73: 71
U74: 72
U75: 73
U76: 74
U77: 75
U78: 76
U79: 77
U80: 78
U81: 79
U82: 80
U83: 81
U84: 82
U85: 83
U86: 84
U87: 85
U88: 86
U89: 87
U90: 88
U91: 89
U92: 90
U93: 91
U94: 92
U95: 93
U96: 94
U97: 95
U98: 96
U99: 97
U100: 98
U101: 99
U102: 100
U103: 101
U104: 102
U105: 103
U106: 104
U107: 105
U108: 106
U109: 107
U110: 108
U111: 109
U112: 110
U113: 111
U114: 112
U115: 113
U116: 114
U117: 115
U118: 116
U119: 117
U120: 118
U121: 119
U122: 120
U123: 121
U124: 122
U125: 123
U126: 124
U127: 125
U128: 126
U129: 127
U130: 128
U131: =U130+1 -> 129
T132: =IF(A132="","",A132) ->  | U132: 130
U133: 131
S134: =IF(B134="","",B134&", "&F134) ->  | U134: 132
U135: 133
U136: 134
U137: 135
U138: 136
U139: 137
U140: 138
U141: 139
U142: 140
U143: 141
U144: 142
U145: 143
U146: 144
U147: 145
U148: 146
U149: 147
U150: 148
U151: 149
U152: 150
U153: 151
U154: 152
U155: 153
U156: 154
U157: 155
U158: 156
U159: 157
U160: 158
U161: 159
U162: 160
U163: 161
U164: 162
U165: 163
U166: 164
U167: 165
U168: 166
U169: 167
U170: 168
U171: 169
U172: 170
U173: 171
U174: 172
U175: 173
U176: 174
U177: 175
U178: 176
U179: 177
U180: 178
U181: 179
U182: 180
U183: 181
U184: 182
U185: 183
U186: 184
U187: 185
U188: 186
U189: 187
U190: 188
U191: 189
U192: 190
U193: 191
U194: 192
U195: =U194+1 -> 193
T196: =IF(A196="","",A196) ->  | U196: 194
U197: 195
S198: =IF(B198="","",B198&", "&F198) ->  | U198: 196
U199: 197
U200: 198
... 100 more rows

Sheet Verbindungsleitung TS (hidden)
A1: =Daten!U203 -> Nein
C2: =VLOOKUP(A1,Daten!T:U,2,0) -> Nein | E2: =IF(E6="","",Vokabel!$A$392&" "&VLOOKUP(A1,Daten!T:AC,5,0)& " " &VLOOKUP(A1,Daten!T:AC,3,0)) -> 
C3: =IF(C2="Absolut",Daten!AE35,IF(C2="SIH",Daten!AF79,"")) ->  | D3: =IF(C2="Kerastar","für "&Daten!C401,IF(C2="ADW TecnoStar","für "&Daten!C401,IF(C2="ICS","für "&Daten!C401,""))) ->  | E3: =IF(VLOOKUP(A1,Daten!$T:$AA,8,0)=0,"",(VLOOKUP(A1,Daten!$T:$AA,8,0))) -> 
E4: =IF(VLOOKUP(A1,Daten!$T:$AB,9,0)=0,"",(VLOOKUP(A1,Daten!$T:$AB,9,0))) -> 
A5: Nr. | B5: Verkn. | C5: Rabatt- fähig | D5: Pos. | E5: Artikelnummer | F5: Artikelbezeichnung | G5: Baulänge | H5: Menge
A6: 0 | B6: =$A$1&'Verbindungsleitung TS'!A6 -> Nein0 | C6: =IF(E6="","",IF(E6="Sonder","J",VLOOKUP(E6,sanschie!B:K,10,0))) ->  | D6: =IF(ISNA(VLOOKUP($B6,Sortimente!D:G,2,0))=TRUE,"",VLOOKUP($B6,Sortimente!D:G,2,0)) ->  | E6: =IF(D6="","",VLOOKUP($B6,Sortimente!D:G,4,0)) ->  | F6: =IF(E6="","",VLOOKUP(E6,sanschie!B:E,4,0)) ->  | G6: =IF(E6="","",IF(VLOOKUP(E6,sanschie!B:J,9,0)="","",VLOOKUP(E6,sanschie!B:J,9,0))) ->  | H6: 1
A7: 1 | B7: =$A$1&'Verbindungsleitung TS'!A7 -> Nein1 | C7: =IF(E7="","",IF(E7="Sonder","J",VLOOKUP(E7,sanschie!B:K,10,0))) ->  | D7: =IF(ISNA(VLOOKUP($B7,Sortimente!D:G,2,0))=TRUE,"",VLOOKUP($B7,Sortimente!D:G,2,0)) ->  | E7: =IF(D7="","",VLOOKUP($B7,Sortimente!D:G,4,0)) ->  | F7: =IF(E7="","",VLOOKUP(E7,sanschie!B:E,4,0)) ->  | G7: =IF(E7="","",IF(VLOOKUP(E7,sanschie!B:J,9,0)="","",VLOOKUP(E7,sanschie!B:J,9,0))) -> 
A8: 2 | B8: =$A$1&'Verbindungsleitung TS'!A8 -> Nein2 | C8: =IF(E8="","",IF(E8="Sonder","J",VLOOKUP(E8,sanschie!B:K,10,0))) ->  | D8: =IF(ISNA(VLOOKUP($B8,Sortimente!D:G,2,0))=TRUE,"",VLOOKUP($B8,Sortimente!D:G,2,0)) ->  | E8: =IF(D8="","",VLOOKUP($B8,Sortimente!D:G,4,0)) ->  | F8: =IF(E8="","",VLOOKUP(E8,sanschie!B:E,4,0)) ->  | G8: =IF(E8="","",IF(VLOOKUP(E8,sanschie!B:J,9,0)="","",VLOOKUP(E8,sanschie!B:J,9,0))) -> 
A9: 3 | B9: =$A$1&'Verbindungsleitung TS'!A9 -> Nein3 | C9: =IF(E9="","",IF(E9="Sonder","J",VLOOKUP(E9,sanschie!B:K,10,0))) ->  | D9: =IF(ISNA(VLOOKUP($B9,Sortimente!D:G,2,0))=TRUE,"",VLOOKUP($B9,Sortimente!D:G,2,0)) ->  | E9: =IF(D9="","",VLOOKUP($B9,Sortimente!D:G,4,0)) ->  | F9: =IF(E9="","",VLOOKUP(E9,sanschie!B:E,4,0)) ->  | G9: =IF(E9="","",IF(VLOOKUP(E9,sanschie!B:J,9,0)="","",VLOOKUP(E9,sanschie!B:J,9,0))) -> 
A10: 4 | B10: =$A$1&'Verbindungsleitung TS'!A10 -> Nein4 | C10: =IF(E10="","",IF(E10="Sonder","J",VLOOKUP(E10,sanschie!B:K,10,0))) ->  | D10: =IF(ISNA(VLOOKUP($B10,Sortimente!D:G,2,0))=TRUE,"",VLOOKUP($B10,Sortimente!D:G,2,0)) ->  | E10: =IF(D10="","",VLOOKUP($B10,Sortimente!D:G,4,0)) ->  | F10: =IF(E10="","",VLOOKUP(E10,sanschie!B:E,4,0)) ->  | G10: =IF(E10="","",IF(VLOOKUP(E10,sanschie!B:J,9,0)="","",VLOOKUP(E10,sanschie!B:J,9,0))) -> 
A11: 5 | B11: =$A$1&'Verbindungsleitung TS'!A11 -> Nein5 | C11: =IF(E11="","",IF(E11="Sonder","J",VLOOKUP(E11,sanschie!B:K,10,0))) ->  | D11: =IF(ISNA(VLOOKUP($B11,Sortimente!D:G,2,0))=TRUE,"",VLOOKUP($B11,Sortimente!D:G,2,0)) ->  | E11: =IF(D11="","",VLOOKUP($B11,Sortimente!D:G,4,0)) ->  | F11: =IF(E11="","",VLOOKUP(E11,sanschie!B:E,4,0)) ->  | G11: =IF(E11="","",IF(VLOOKUP(E11,sanschie!B:J,9,0)="","",VLOOKUP(E11,sanschie!B:J,9,0))) -> 
A12: 6 | B12: =$A$1&'Verbindungsleitung TS'!A12 -> Nein6 | C12: =IF(E12="","",IF(E12="Sonder","J",VLOOKUP(E12,sanschie!B:K,10,0))) ->  | D12: =IF(ISNA(VLOOKUP($B12,Sortimente!D:G,2,0))=TRUE,"",VLOOKUP($B12,Sortimente!D:G,2,0)) ->  | E12: =IF(D12="","",VLOOKUP($B12,Sortimente!D:G,4,0)) ->  | F12: =IF(E12="","",VLOOKUP(E12,sanschie!B:E,4,0)) ->  | G12: =IF(E12="","",IF(VLOOKUP(E12,sanschie!B:J,9,0)="","",VLOOKUP(E12,sanschie!B:J,9,0))) -> 
A13: 7 | B13: =$A$1&'Verbindungsleitung TS'!A13 -> Nein7 | C13: =IF(E13="","",IF(E13="Sonder","J",VLOOKUP(E13,sanschie!B:K,10,0))) ->  | D13: =IF(ISNA(VLOOKUP($B13,Sortimente!D:G,2,0))=TRUE,"",VLOOKUP($B13,Sortimente!D:G,2,0)) ->  | E13: =IF(D13="","",VLOOKUP($B13,Sortimente!D:G,4,0)) ->  | F13: =IF(E13="","",VLOOKUP(E13,sanschie!B:E,4,0)) ->  | G13: =IF(E13="","",IF(VLOOKUP(E13,sanschie!B:J,9,0)="","",VLOOKUP(E13,sanschie!B:J,9,0))) -> 
A14: 8 | B14: =$A$1&'Verbindungsleitung TS'!A14 -> Nein8 | C14: =IF(E14="","",IF(E14="Sonder","J",VLOOKUP(E14,sanschie!B:K,10,0))) ->  | D14: =IF(ISNA(VLOOKUP($B14,Sortimente!D:G,2,0))=TRUE,"",VLOOKUP($B14,Sortimente!D:G,2,0)) ->  | E14: =IF(D14="","",VLOOKUP($B14,Sortimente!D:G,4,0)) ->  | F14: =IF(E14="","",VLOOKUP(E14,sanschie!B:E,4,0)) ->  | G14: =IF(E14="","",IF(VLOOKUP(E14,sanschie!B:J,9,0)="","",VLOOKUP(E14,sanschie!B:J,9,0))) -> 
A15: 9 | B15: =$A$1&'Verbindungsleitung TS'!A15 -> Nein9 | C15: =IF(E15="","",IF(E15="Sonder","J",VLOOKUP(E15,sanschie!B:K,10,0))) ->  | D15: =IF(ISNA(VLOOKUP($B15,Sortimente!D:G,2,0))=TRUE,"",VLOOKUP($B15,Sortimente!D:G,2,0)) ->  | E15: =IF(D15="","",VLOOKUP($B15,Sortimente!D:G,4,0)) ->  | F15: =IF(E15="","",VLOOKUP(E15,sanschie!B:E,4,0)) ->  | G15: =IF(E15="","",IF(VLOOKUP(E15,sanschie!B:J,9,0)="","",VLOOKUP(E15,sanschie!B:J,9,0))) -> 
A16: 10 | B16: =$A$1&'Verbindungsleitung TS'!A16 -> Nein10 | C16: =IF(E16="","",IF(E16="Sonder","J",VLOOKUP(E16,sanschie!B:K,10,0))) ->  | D16: =IF(ISNA(VLOOKUP($B16,Sortimente!D:G,2,0))=TRUE,"",VLOOKUP($B16,Sortimente!D:G,2,0)) ->  | E16: =IF(D16="","",VLOOKUP($B16,Sortimente!D:G,4,0)) ->  | F16: =IF(E16="","",VLOOKUP(E16,sanschie!B:E,4,0)) ->  | G16: =IF(E16="","",IF(VLOOKUP(E16,sanschie!B:J,9,0)="","",VLOOKUP(E16,sanschie!B:J,9,0))) -> 
A17: 11 | B17: =$A$1&'Verbindungsleitung TS'!A17 -> Nein11 | C17: =IF(E17="","",IF(E17="Sonder","J",VLOOKUP(E17,sanschie!B:K,10,0))) ->  | D17: =IF(ISNA(VLOOKUP($B17,Sortimente!D:G,2,0))=TRUE,"",VLOOKUP($B17,Sortimente!D:G,2,0)) ->  | E17: =IF(D17="","",VLOOKUP($B17,Sortimente!D:G,4,0)) ->  | F17: =IF(E17="","",VLOOKUP(E17,sanschie!B:E,4,0)) ->  | G17: =IF(E17="","",IF(VLOOKUP(E17,sanschie!B:J,9,0)="","",VLOOKUP(E17,sanschie!B:J,9,0))) -> 
A18: 12 | B18: =$A$1&'Verbindungsleitung TS'!A18 -> Nein12 | C18: =IF(E18="","",IF(E18="Sonder","J",VLOOKUP(E18,sanschie!B:K,10,0))) ->  | D18: =IF(ISNA(VLOOKUP($B18,Sortimente!D:G,2,0))=TRUE,"",VLOOKUP($B18,Sortimente!D:G,2,0)) ->  | E18: =IF(D18="","",VLOOKUP($B18,Sortimente!D:G,4,0)) ->  | F18: =IF(E18="","",VLOOKUP(E18,sanschie!B:E,4,0)) ->  | G18: =IF(E18="","",IF(VLOOKUP(E18,sanschie!B:J,9,0)="","",VLOOKUP(E18,sanschie!B:J,9,0))) -> 
A19: 13 | B19: =$A$1&'Verbindungsleitung TS'!A19 -> Nein13 | C19: =IF(E19="","",IF(E19="Sonder","J",VLOOKUP(E19,sanschie!B:K,10,0))) ->  | D19: =IF(ISNA(VLOOKUP($B19,Sortimente!D:G,2,0))=TRUE,"",VLOOKUP($B19,Sortimente!D:G,2,0)) ->  | E19: =IF(D19="","",VLOOKUP($B19,Sortimente!D:G,4,0)) ->  | F19: =IF(E19="","",VLOOKUP(E19,sanschie!B:E,4,0)) ->  | G19: =IF(E19="","",IF(VLOOKUP(E19,sanschie!B:J,9,0)="","",VLOOKUP(E19,sanschie!B:J,9,0))) -> 
A20: 14 | B20: =$A$1&'Verbindungsleitung TS'!A20 -> Nein14 | C20: =IF(E20="","",IF(E20="Sonder","J",VLOOKUP(E20,sanschie!B:K,10,0))) ->  | D20: =IF(ISNA(VLOOKUP($B20,Sortimente!D:G,2,0))=TRUE,"",VLOOKUP($B20,Sortimente!D:G,2,0)) ->  | E20: =IF(D20="","",VLOOKUP($B20,Sortimente!D:G,4,0)) ->  | F20: =IF(E20="","",VLOOKUP(E20,sanschie!B:E,4,0)) ->  | G20: =IF(E20="","",IF(VLOOKUP(E20,sanschie!B:J,9,0)="","",VLOOKUP(E20,sanschie!B:J,9,0))) -> 
A21: 15 | B21: =$A$1&'Verbindungsleitung TS'!A21 -> Nein15 | C21: =IF(E21="","",IF(E21="Sonder","J",VLOOKUP(E21,sanschie!B:K,10,0))) ->  | D21: =IF(ISNA(VLOOKUP($B21,Sortimente!D:G,2,0))=TRUE,"",VLOOKUP($B21,Sortimente!D:G,2,0)) ->  | E21: =IF(D21="","",VLOOKUP($B21,Sortimente!D:G,4,0)) ->  | F21: =IF(E21="","",VLOOKUP(E21,sanschie!B:E,4,0)) ->  | G21: =IF(E21="","",IF(VLOOKUP(E21,sanschie!B:J,9,0)="","",VLOOKUP(E21,sanschie!B:J,9,0))) -> 
A22: 16 | B22: =$A$1&'Verbindungsleitung TS'!A22 -> Nein16 | C22: =IF(E22="","",IF(E22="Sonder","J",VLOOKUP(E22,sanschie!B:K,10,0))) ->  | D22: =IF(ISNA(VLOOKUP($B22,Sortimente!D:G,2,0))=TRUE,"",VLOOKUP($B22,Sortimente!D:G,2,0)) ->  | E22: =IF(D22="","",VLOOKUP($B22,Sortimente!D:G,4,0)) ->  | F22: =IF(E22="","",VLOOKUP(E22,sanschie!B:E,4,0)) ->  | G22: =IF(E22="","",IF(VLOOKUP(E22,sanschie!B:J,9,0)="","",VLOOKUP(E22,sanschie!B:J,9,0))) -> 
A23: 17 | B23: =$A$1&'Verbindungsleitung TS'!A23 -> Nein17 | C23: =IF(E23="","",IF(E23="Sonder","J",VLOOKUP(E23,sanschie!B:K,10,0))) ->  | D23: =IF(ISNA(VLOOKUP($B23,Sortimente!D:G,2,0))=TRUE,"",VLOOKUP($B23,Sortimente!D:G,2,0)) ->  | E23: =IF(D23="","",VLOOKUP($B23,Sortimente!D:G,4,0)) ->  | F23: =IF(E23="","",VLOOKUP(E23,sanschie!B:E,4,0)) ->  | G23: =IF(E23="","",IF(VLOOKUP(E23,sanschie!B:J,9,0)="","",VLOOKUP(E23,sanschie!B:J,9,0))) -> 
A24: 18 | B24: =$A$1&'Verbindungsleitung TS'!A24 -> Nein18 | C24: =IF(E24="","",IF(E24="Sonder","J",VLOOKUP(E24,sanschie!B:K,10,0))) ->  | D24: =IF(ISNA(VLOOKUP($B24,Sortimente!D:G,2,0))=TRUE,"",VLOOKUP($B24,Sortimente!D:G,2,0)) ->  | E24: =IF(D24="","",VLOOKUP($B24,Sortimente!D:G,4,0)) ->  | F24: =IF(E24="","",VLOOKUP(E24,sanschie!B:E,4,0)) ->  | G24: =IF(E24="","",IF(VLOOKUP(E24,sanschie!B:J,9,0)="","",VLOOKUP(E24,sanschie!B:J,9,0))) -> 
A25: 19 | B25: =$A$1&'Verbindungsleitung TS'!A25 -> Nein19 | C25: =IF(E25="","",IF(E25="Sonder","J",VLOOKUP(E25,sanschie!B:K,10,0))) ->  | D25: =IF(ISNA(VLOOKUP($B25,Sortimente!D:G,2,0))=TRUE,"",VLOOKUP($B25,Sortimente!D:G,2,0)) ->  | E25: =IF(D25="","",VLOOKUP($B25,Sortimente!D:G,4,0)) ->  | F25: =IF(E25="","",VLOOKUP(E25,sanschie!B:E,4,0)) ->  | G25: =IF(E25="","",IF(VLOOKUP(E25,sanschie!B:J,9,0)="","",VLOOKUP(E25,sanschie!B:J,9,0))) -> 
A26: 20 | B26: =$A$1&'Verbindungsleitung TS'!A26 -> Nein20 | C26: =IF(E26="","",IF(E26="Sonder","J",VLOOKUP(E26,sanschie!B:K,10,0))) ->  | D26: =IF(ISNA(VLOOKUP($B26,Sortimente!D:G,2,0))=TRUE,"",VLOOKUP($B26,Sortimente!D:G,2,0)) ->  | E26: =IF(D26="","",VLOOKUP($B26,Sortimente!D:G,4,0)) ->  | F26: =IF(E26="","",VLOOKUP(E26,sanschie!B:E,4,0)) ->  | G26: =IF(E26="","",IF(VLOOKUP(E26,sanschie!B:J,9,0)="","",VLOOKUP(E26,sanschie!B:J,9,0))) -> 
A27: 21 | B27: =$A$1&'Verbindungsleitung TS'!A27 -> Nein21 | C27: =IF(E27="","",IF(E27="Sonder","J",VLOOKUP(E27,sanschie!B:K,10,0))) ->  | D27: =IF(ISNA(VLOOKUP($B27,Sortimente!D:G,2,0))=TRUE,"",VLOOKUP($B27,Sortimente!D:G,2,0)) ->  | E27: =IF(D27="","",VLOOKUP($B27,Sortimente!D:G,4,0)) ->  | F27: =IF(E27="","",VLOOKUP(E27,sanschie!B:E,4,0)) ->  | G27: =IF(E27="","",IF(VLOOKUP(E27,sanschie!B:J,9,0)="","",VLOOKUP(E27,sanschie!B:J,9,0))) -> 
A28: 22 | B28: =$A$1&'Verbindungsleitung TS'!A28 -> Nein22 | C28: =IF(E28="","",IF(E28="Sonder","J",VLOOKUP(E28,sanschie!B:K,10,0))) ->  | D28: =IF(ISNA(VLOOKUP($B28,Sortimente!D:G,2,0))=TRUE,"",VLOOKUP($B28,Sortimente!D:G,2,0)) ->  | E28: =IF(D28="","",VLOOKUP($B28,Sortimente!D:G,4,0)) ->  | F28: =IF(E28="","",VLOOKUP(E28,sanschie!B:E,4,0)) ->  | G28: =IF(E28="","",IF(VLOOKUP(E28,sanschie!B:J,9,0)="","",VLOOKUP(E28,sanschie!B:J,9,0))) -> 
A29: 23 | B29: =$A$1&'Verbindungsleitung TS'!A29 -> Nein23 | C29: =IF(E29="","",IF(E29="Sonder","J",VLOOKUP(E29,sanschie!B:K,10,0))) ->  | D29: =IF(ISNA(VLOOKUP($B29,Sortimente!D:G,2,0))=TRUE,"",VLOOKUP($B29,Sortimente!D:G,2,0)) ->  | E29: =IF(D29="","",VLOOKUP($B29,Sortimente!D:G,4,0)) ->  | F29: =IF(E29="","",VLOOKUP(E29,sanschie!B:E,4,0)) ->  | G29: =IF(E29="","",IF(VLOOKUP(E29,sanschie!B:J,9,0)="","",VLOOKUP(E29,sanschie!B:J,9,0))) -> 
A30: 24 | B30: =$A$1&'Verbindungsleitung TS'!A30 -> Nein24 | C30: =IF(E30="","",IF(E30="Sonder","J",VLOOKUP(E30,sanschie!B:K,10,0))) ->  | D30: =IF(ISNA(VLOOKUP($B30,Sortimente!D:G,2,0))=TRUE,"",VLOOKUP($B30,Sortimente!D:G,2,0)) ->  | E30: =IF(D30="","",VLOOKUP($B30,Sortimente!D:G,4,0)) ->  | F30: =IF(E30="","",VLOOKUP(E30,sanschie!B:E,4,0)) ->  | G30: =IF(E30="","",IF(VLOOKUP(E30,sanschie!B:J,9,0)="","",VLOOKUP(E30,sanschie!B:J,9,0))) -> 
A31: 25 | B31: =$A$1&'Verbindungsleitung TS'!A31 -> Nein25 | C31: =IF(E31="","",IF(E31="Sonder","J",VLOOKUP(E31,sanschie!B:K,10,0))) ->  | D31: =IF(ISNA(VLOOKUP($B31,Sortimente!D:G,2,0))=TRUE,"",VLOOKUP($B31,Sortimente!D:G,2,0)) ->  | E31: =IF(D31="","",VLOOKUP($B31,Sortimente!D:G,4,0)) ->  | F31: =IF(E31="","",VLOOKUP(E31,sanschie!B:E,4,0)) ->  | G31: =IF(E31="","",IF(VLOOKUP(E31,sanschie!B:J,9,0)="","",VLOOKUP(E31,sanschie!B:J,9,0))) -> 
A32: 26 | B32: =$A$1&'Verbindungsleitung TS'!A32 -> Nein26 | C32: =IF(E32="","",IF(E32="Sonder","J",VLOOKUP(E32,sanschie!B:K,10,0))) ->  | D32: =IF(ISNA(VLOOKUP($B32,Sortimente!D:G,2,0))=TRUE,"",VLOOKUP($B32,Sortimente!D:G,2,0)) ->  | E32: =IF(D32="","",VLOOKUP($B32,Sortimente!D:G,4,0)) ->  | F32: =IF(E32="","",VLOOKUP(E32,sanschie!B:E,4,0)) ->  | G32: =IF(E32="","",IF(VLOOKUP(E32,sanschie!B:J,9,0)="","",VLOOKUP(E32,sanschie!B:J,9,0))) -> 
A33: 27 | B33: =$A$1&'Verbindungsleitung TS'!A33 -> Nein27 | C33: =IF(E33="","",IF(E33="Sonder","J",VLOOKUP(E33,sanschie!B:K,10,0))) ->  | D33: =IF(ISNA(VLOOKUP($B33,Sortimente!D:G,2,0))=TRUE,"",VLOOKUP($B33,Sortimente!D:G,2,0)) ->  | E33: =IF(D33="","",VLOOKUP($B33,Sortimente!D:G,4,0)) ->  | F33: =IF(E33="","",VLOOKUP(E33,sanschie!B:E,4,0)) ->  | G33: =IF(E33="","",IF(VLOOKUP(E33,sanschie!B:J,9,0)="","",VLOOKUP(E33,sanschie!B:J,9,0))) -> 
A34: 28 | B34: =$A$1&'Verbindungsleitung TS'!A34 -> Nein28 | C34: =IF(E34="","",IF(E34="Sonder","J",VLOOKUP(E34,sanschie!B:K,10,0))) ->  | D34: =IF(ISNA(VLOOKUP($B34,Sortimente!D:G,2,0))=TRUE,"",VLOOKUP($B34,Sortimente!D:G,2,0)) ->  | E34: =IF(D34="","",VLOOKUP($B34,Sortimente!D:G,4,0)) ->  | F34: =IF(E34="","",VLOOKUP(E34,sanschie!B:E,4,0)) ->  | G34: =IF(E34="","",IF(VLOOKUP(E34,sanschie!B:J,9,0)="","",VLOOKUP(E34,sanschie!B:J,9,0))) -> 
A35: 29 | B35: =$A$1&'Verbindungsleitung TS'!A35 -> Nein29 | C35: =IF(E35="","",IF(E35="Sonder","J",VLOOKUP(E35,sanschie!B:K,10,0))) ->  | D35: =IF(ISNA(VLOOKUP($B35,Sortimente!D:G,2,0))=TRUE,"",VLOOKUP($B35,Sortimente!D:G,2,0)) ->  | E35: =IF(D35="","",VLOOKUP($B35,Sortimente!D:G,4,0)) ->  | F35: =IF(E35="","",VLOOKUP(E35,sanschie!B:E,4,0)) ->  | G35: =IF(E35="","",IF(VLOOKUP(E35,sanschie!B:J,9,0)="","",VLOOKUP(E35,sanschie!B:J,9,0))) -> 
A36: 30 | B36: =$A$1&'Verbindungsleitung TS'!A36 -> Nein30 | C36: =IF(E36="","",IF(E36="Sonder","J",VLOOKUP(E36,sanschie!B:K,10,0))) ->  | D36: =IF(ISNA(VLOOKUP($B36,Sortimente!D:G,2,0))=TRUE,"",VLOOKUP($B36,Sortimente!D:G,2,0)) ->  | E36: =IF(D36="","",VLOOKUP($B36,Sortimente!D:G,4,0)) ->  | F36: =IF(E36="","",VLOOKUP(E36,sanschie!B:E,4,0)) ->  | G36: =IF(E36="","",IF(VLOOKUP(E36,sanschie!B:J,9,0)="","",VLOOKUP(E36,sanschie!B:J,9,0))) -> 
A37: 31 | B37: =$A$1&'Verbindungsleitung TS'!A37 -> Nein31 | C37: =IF(E37="","",IF(E37="Sonder","J",VLOOKUP(E37,sanschie!B:K,10,0))) ->  | D37: =IF(ISNA(VLOOKUP($B37,Sortimente!D:G,2,0))=TRUE,"",VLOOKUP($B37,Sortimente!D:G,2,0)) ->  | E37: =IF(D37="","",VLOOKUP($B37,Sortimente!D:G,4,0)) ->  | F37: =IF(E37="","",VLOOKUP(E37,sanschie!B:E,4,0)) ->  | G37: =IF(E37="","",IF(VLOOKUP(E37,sanschie!B:J,9,0)="","",VLOOKUP(E37,sanschie!B:J,9,0))) -> 
A38: 32 | B38: =$A$1&'Verbindungsleitung TS'!A38 -> Nein32 | C38: =IF(E38="","",IF(E38="Sonder","J",VLOOKUP(E38,sanschie!B:K,10,0))) ->  | D38: =IF(ISNA(VLOOKUP($B38,Sortimente!D:G,2,0))=TRUE,"",VLOOKUP($B38,Sortimente!D:G,2,0)) ->  | E38: =IF(D38="","",VLOOKUP($B38,Sortimente!D:G,4,0)) ->  | F38: =IF(E38="","",VLOOKUP(E38,sanschie!B:E,4,0)) ->  | G38: =IF(E38="","",IF(VLOOKUP(E38,sanschie!B:J,9,0)="","",VLOOKUP(E38,sanschie!B:J,9,0))) -> 
A39: 33 | B39: =$A$1&'Verbindungsleitung TS'!A39 -> Nein33 | C39: =IF(E39="","",IF(E39="Sonder","J",VLOOKUP(E39,sanschie!B:K,10,0))) ->  | D39: =IF(ISNA(VLOOKUP($B39,Sortimente!D:G,2,0))=TRUE,"",VLOOKUP($B39,Sortimente!D:G,2,0)) ->  | E39: =IF(D39="","",VLOOKUP($B39,Sortimente!D:G,4,0)) ->  | F39: =IF(E39="","",VLOOKUP(E39,sanschie!B:E,4,0)) ->  | G39: =IF(E39="","",IF(VLOOKUP(E39,sanschie!B:J,9,0)="","",VLOOKUP(E39,sanschie!B:J,9,0))) -> 
A40: 34 | B40: =$A$1&'Verbindungsleitung TS'!A40 -> Nein34 | C40: =IF(E40="","",IF(E40="Sonder","J",VLOOKUP(E40,sanschie!B:K,10,0))) ->  | D40: =IF(ISNA(VLOOKUP($B40,Sortimente!D:G,2,0))=TRUE,"",VLOOKUP($B40,Sortimente!D:G,2,0)) ->  | E40: =IF(D40="","",VLOOKUP($B40,Sortimente!D:G,4,0)) ->  | F40: =IF(E40="","",VLOOKUP(E40,sanschie!B:E,4,0)) ->  | G40: =IF(E40="","",IF(VLOOKUP(E40,sanschie!B:J,9,0)="","",VLOOKUP(E40,sanschie!B:J,9,0))) -> 
A41: 35 | B41: =$A$1&'Verbindungsleitung TS'!A41 -> Nein35 | C41: =IF(E41="","",IF(E41="Sonder","J",VLOOKUP(E41,sanschie!B:K,10,0))) ->  | D41: =IF(ISNA(VLOOKUP($B41,Sortimente!D:G,2,0))=TRUE,"",VLOOKUP($B41,Sortimente!D:G,2,0)) ->  | E41: =IF(D41="","",VLOOKUP($B41,Sortimente!D:G,4,0)) ->  | F41: =IF(E41="","",VLOOKUP(E41,sanschie!B:E,4,0)) ->  | G41: =IF(E41="","",IF(VLOOKUP(E41,sanschie!B:J,9,0)="","",VLOOKUP(E41,sanschie!B:J,9,0))) -> 
A42: 36 | B42: =$A$1&'Verbindungsleitung TS'!A42 -> Nein36 | C42: =IF(E42="","",IF(E42="Sonder","J",VLOOKUP(E42,sanschie!B:K,10,0))) ->  | D42: =IF(ISNA(VLOOKUP($B42,Sortimente!D:G,2,0))=TRUE,"",VLOOKUP($B42,Sortimente!D:G,2,0)) ->  | E42: =IF(D42="","",VLOOKUP($B42,Sortimente!D:G,4,0)) ->  | F42: =IF(E42="","",VLOOKUP(E42,sanschie!B:E,4,0)) ->  | G42: =IF(E42="","",IF(VLOOKUP(E42,sanschie!B:J,9,0)="","",VLOOKUP(E42,sanschie!B:J,9,0))) -> 
A43: 37 | B43: =$A$1&'Verbindungsleitung TS'!A43 -> Nein37 | C43: =IF(E43="","",IF(E43="Sonder","J",VLOOKUP(E43,sanschie!B:K,10,0))) ->  | D43: =IF(ISNA(VLOOKUP($B43,Sortimente!D:G,2,0))=TRUE,"",VLOOKUP($B43,Sortimente!D:G,2,0)) ->  | E43: =IF(D43="","",VLOOKUP($B43,Sortimente!D:G,4,0)) ->  | F43: =IF(E43="","",VLOOKUP(E43,sanschie!B:E,4,0)) ->  | G43: =IF(E43="","",IF(VLOOKUP(E43,sanschie!B:J,9,0)="","",VLOOKUP(E43,sanschie!B:J,9,0))) -> 
A44: 38 | B44: =$A$1&'Verbindungsleitung TS'!A44 -> Nein38 | C44: =IF(E44="","",IF(E44="Sonder","J",VLOOKUP(E44,sanschie!B:K,10,0))) ->  | D44: =IF(ISNA(VLOOKUP($B44,Sortimente!D:G,2,0))=TRUE,"",VLOOKUP($B44,Sortimente!D:G,2,0)) ->  | E44: =IF(D44="","",VLOOKUP($B44,Sortimente!D:G,4,0)) ->  | F44: =IF(E44="","",VLOOKUP(E44,sanschie!B:E,4,0)) ->  | G44: =IF(E44="","",IF(VLOOKUP(E44,sanschie!B:J,9,0)="","",VLOOKUP(E44,sanschie!B:J,9,0))) -> 
A45: 39 | B45: =$A$1&'Verbindungsleitung TS'!A45 -> Nein39 | C45: =IF(E45="","",IF(E45="Sonder","J",VLOOKUP(E45,sanschie!B:K,10,0))) ->  | D45: =IF(ISNA(VLOOKUP($B45,Sortimente!D:G,2,0))=TRUE,"",VLOOKUP($B45,Sortimente!D:G,2,0)) ->  | E45: =IF(D45="","",VLOOKUP($B45,Sortimente!D:G,4,0)) ->  | F45: =IF(E45="","",VLOOKUP(E45,sanschie!B:E,4,0)) ->  | G45: =IF(E45="","",IF(VLOOKUP(E45,sanschie!B:J,9,0)="","",VLOOKUP(E45,sanschie!B:J,9,0))) -> 
A46: 40 | B46: =$A$1&'Verbindungsleitung TS'!A46 -> Nein40 | C46: =IF(E46="","",IF(E46="Sonder","J",VLOOKUP(E46,sanschie!B:K,10,0))) ->  | D46: =IF(ISNA(VLOOKUP($B46,Sortimente!D:G,2,0))=TRUE,"",VLOOKUP($B46,Sortimente!D:G,2,0)) ->  | E46: =IF(D46="","",VLOOKUP($B46,Sortimente!D:G,4,0)) ->  | F46: =IF(E46="","",VLOOKUP(E46,sanschie!B:E,4,0)) ->  | G46: =IF(E46="","",IF(VLOOKUP(E46,sanschie!B:J,9,0)="","",VLOOKUP(E46,sanschie!B:J,9,0))) -> 
A47: 41 | B47: =$A$1&'Verbindungsleitung TS'!A47 -> Nein41 | C47: =IF(E47="","",IF(E47="Sonder","J",VLOOKUP(E47,sanschie!B:K,10,0))) ->  | D47: =IF(ISNA(VLOOKUP($B47,Sortimente!D:G,2,0))=TRUE,"",VLOOKUP($B47,Sortimente!D:G,2,0)) ->  | E47: =IF(D47="","",VLOOKUP($B47,Sortimente!D:G,4,0)) ->  | F47: =IF(E47="","",VLOOKUP(E47,sanschie!B:E,4,0)) ->  | G47: =IF(E47="","",IF(VLOOKUP(E47,sanschie!B:J,9,0)="","",VLOOKUP(E47,sanschie!B:J,9,0))) -> 
A48: 42 | B48: =$A$1&'Verbindungsleitung TS'!A48 -> Nein42 | C48: =IF(E48="","",IF(E48="Sonder","J",VLOOKUP(E48,sanschie!B:K,10,0))) ->  | D48: =IF(ISNA(VLOOKUP($B48,Sortimente!D:G,2,0))=TRUE,"",VLOOKUP($B48,Sortimente!D:G,2,0)) ->  | E48: =IF(D48="","",VLOOKUP($B48,Sortimente!D:G,4,0)) ->  | F48: =IF(E48="","",VLOOKUP(E48,sanschie!B:E,4,0)) ->  | G48: =IF(E48="","",IF(VLOOKUP(E48,sanschie!B:J,9,0)="","",VLOOKUP(E48,sanschie!B:J,9,0))) -> 
A49: 43 | B49: =$A$1&'Verbindungsleitung TS'!A49 -> Nein43 | C49: =IF(E49="","",IF(E49="Sonder","J",VLOOKUP(E49,sanschie!B:K,10,0))) ->  | D49: =IF(ISNA(VLOOKUP($B49,Sortimente!D:G,2,0))=TRUE,"",VLOOKUP($B49,Sortimente!D:G,2,0)) ->  | E49: =IF(D49="","",VLOOKUP($B49,Sortimente!D:G,4,0)) ->  | F49: =IF(E49="","",VLOOKUP(E49,sanschie!B:E,4,0)) ->  | G49: =IF(E49="","",IF(VLOOKUP(E49,sanschie!B:J,9,0)="","",VLOOKUP(E49,sanschie!B:J,9,0))) -> 
A50: 44 | B50: =$A$1&'Verbindungsleitung TS'!A50 -> Nein44 | C50: =IF(E50="","",IF(E50="Sonder","J",VLOOKUP(E50,sanschie!B:K,10,0))) ->  | D50: =IF(ISNA(VLOOKUP($B50,Sortimente!D:G,2,0))=TRUE,"",VLOOKUP($B50,Sortimente!D:G,2,0)) ->  | E50: =IF(D50="","",VLOOKUP($B50,Sortimente!D:G,4,0)) ->  | F50: =IF(E50="","",VLOOKUP(E50,sanschie!B:E,4,0)) ->  | G50: =IF(E50="","",IF(VLOOKUP(E50,sanschie!B:J,9,0)="","",VLOOKUP(E50,sanschie!B:J,9,0))) -> 
A51: 45 | B51: =$A$1&'Verbindungsleitung TS'!A51 -> Nein45 | C51: =IF(E51="","",IF(E51="Sonder","J",VLOOKUP(E51,sanschie!B:K,10,0))) ->  | D51: =IF(ISNA(VLOOKUP($B51,Sortimente!D:G,2,0))=TRUE,"",VLOOKUP($B51,Sortimente!D:G,2,0)) ->  | E51: =IF(D51="","",VLOOKUP($B51,Sortimente!D:G,4,0)) ->  | F51: =IF(E51="","",VLOOKUP(E51,sanschie!B:E,4,0)) ->  | G51: =IF(E51="","",IF(VLOOKUP(E51,sanschie!B:J,9,0)="","",VLOOKUP(E51,sanschie!B:J,9,0))) -> 
A52: 46 | B52: =$A$1&'Verbindungsleitung TS'!A52 -> Nein46 | C52: =IF(E52="","",IF(E52="Sonder","J",VLOOKUP(E52,sanschie!B:K,10,0))) ->  | D52: =IF(ISNA(VLOOKUP($B52,Sortimente!D:G,2,0))=TRUE,"",VLOOKUP($B52,Sortimente!D:G,2,0)) ->  | E52: =IF(D52="","",VLOOKUP($B52,Sortimente!D:G,4,0)) ->  | F52: =IF(E52="","",VLOOKUP(E52,sanschie!B:E,4,0)) ->  | G52: =IF(E52="","",IF(VLOOKUP(E52,sanschie!B:J,9,0)="","",VLOOKUP(E52,sanschie!B:J,9,0))) -> 
A53: 47 | B53: =$A$1&'Verbindungsleitung TS'!A53 -> Nein47 | C53: =IF(E53="","",IF(E53="Sonder","J",VLOOKUP(E53,sanschie!B:K,10,0))) ->  | D53: =IF(ISNA(VLOOKUP($B53,Sortimente!D:G,2,0))=TRUE,"",VLOOKUP($B53,Sortimente!D:G,2,0)) ->  | E53: =IF(D53="","",VLOOKUP($B53,Sortimente!D:G,4,0)) ->  | F53: =IF(E53="","",VLOOKUP(E53,sanschie!B:E,4,0)) ->  | G53: =IF(E53="","",IF(VLOOKUP(E53,sanschie!B:J,9,0)="","",VLOOKUP(E53,sanschie!B:J,9,0))) -> 
A54: 48 | B54: =$A$1&'Verbindungsleitung TS'!A54 -> Nein48 | C54: =IF(E54="","",IF(E54="Sonder","J",VLOOKUP(E54,sanschie!B:K,10,0))) ->  | D54: =IF(ISNA(VLOOKUP($B54,Sortimente!D:G,2,0))=TRUE,"",VLOOKUP($B54,Sortimente!D:G,2,0)) ->  | E54: =IF(D54="","",VLOOKUP($B54,Sortimente!D:G,4,0)) ->  | F54: =IF(E54="","",VLOOKUP(E54,sanschie!B:E,4,0)) ->  | G54: =IF(E54="","",IF(VLOOKUP(E54,sanschie!B:J,9,0)="","",VLOOKUP(E54,sanschie!B:J,9,0))) -> 
A55: 49 | B55: =$A$1&'Verbindungsleitung TS'!A55 -> Nein49 | C55: =IF(E55="","",IF(E55="Sonder","J",VLOOKUP(E55,sanschie!B:K,10,0))) ->  | D55: =IF(ISNA(VLOOKUP($B55,Sortimente!D:G,2,0))=TRUE,"",VLOOKUP($B55,Sortimente!D:G,2,0)) ->  | E55: =IF(D55="","",VLOOKUP($B55,Sortimente!D:G,4,0)) ->  | F55: =IF(E55="","",VLOOKUP(E55,sanschie!B:E,4,0)) ->  | G55: =IF(E55="","",IF(VLOOKUP(E55,sanschie!B:J,9,0)="","",VLOOKUP(E55,sanschie!B:J,9,0))) -> 
A56: 50 | B56: =$A$1&'Verbindungsleitung TS'!A56 -> Nein50 | C56: =IF(E56="","",IF(E56="Sonder","J",VLOOKUP(E56,sanschie!B:K,10,0))) ->  | D56: =IF(ISNA(VLOOKUP($B56,Sortimente!D:G,2,0))=TRUE,"",VLOOKUP($B56,Sortimente!D:G,2,0)) ->  | E56: =IF(D56="","",VLOOKUP($B56,Sortimente!D:G,4,0)) ->  | F56: =IF(E56="","",VLOOKUP(E56,sanschie!B:E,4,0)) ->  | G56: =IF(E56="","",IF(VLOOKUP(E56,sanschie!B:J,9,0)="","",VLOOKUP(E56,sanschie!B:J,9,0))) -> 
A57: 51 | B57: =$A$1&'Verbindungsleitung TS'!A57 -> Nein51 | C57: =IF(E57="","",IF(E57="Sonder","J",VLOOKUP(E57,sanschie!B:K,10,0))) ->  | D57: =IF(ISNA(VLOOKUP($B57,Sortimente!D:G,2,0))=TRUE,"",VLOOKUP($B57,Sortimente!D:G,2,0)) ->  | E57: =IF(D57="","",VLOOKUP($B57,Sortimente!D:G,4,0)) ->  | F57: =IF(E57="","",VLOOKUP(E57,sanschie!B:E,4,0)) ->  | G57: =IF(E57="","",IF(VLOOKUP(E57,sanschie!B:J,9,0)="","",VLOOKUP(E57,sanschie!B:J,9,0))) -> 
A58: 52 | B58: =$A$1&'Verbindungsleitung TS'!A58 -> Nein52 | C58: =IF(E58="","",IF(E58="Sonder","J",VLOOKUP(E58,sanschie!B:K,10,0))) ->  | D58: =IF(ISNA(VLOOKUP($B58,Sortimente!D:G,2,0))=TRUE,"",VLOOKUP($B58,Sortimente!D:G,2,0)) ->  | E58: =IF(D58="","",VLOOKUP($B58,Sortimente!D:G,4,0)) ->  | F58: =IF(E58="","",VLOOKUP(E58,sanschie!B:E,4,0)) ->  | G58: =IF(E58="","",IF(VLOOKUP(E58,sanschie!B:J,9,0)="","",VLOOKUP(E58,sanschie!B:J,9,0))) -> 
A59: 53 | B59: =$A$1&'Verbindungsleitung TS'!A59 -> Nein53 | C59: =IF(E59="","",IF(E59="Sonder","J",VLOOKUP(E59,sanschie!B:K,10,0))) ->  | D59: =IF(ISNA(VLOOKUP($B59,Sortimente!D:G,2,0))=TRUE,"",VLOOKUP($B59,Sortimente!D:G,2,0)) ->  | E59: =IF(D59="","",VLOOKUP($B59,Sortimente!D:G,4,0)) ->  | F59: =IF(E59="","",VLOOKUP(E59,sanschie!B:E,4,0)) ->  | G59: =IF(E59="","",IF(VLOOKUP(E59,sanschie!B:J,9,0)="","",VLOOKUP(E59,sanschie!B:J,9,0))) -> 
A60: 54 | B60: =$A$1&'Verbindungsleitung TS'!A60 -> Nein54 | C60: =IF(E60="","",IF(E60="Sonder","J",VLOOKUP(E60,sanschie!B:K,10,0))) ->  | D60: =IF(ISNA(VLOOKUP($B60,Sortimente!D:G,2,0))=TRUE,"",VLOOKUP($B60,Sortimente!D:G,2,0)) ->  | E60: =IF(D60="","",VLOOKUP($B60,Sortimente!D:G,4,0)) ->  | F60: =IF(E60="","",VLOOKUP(E60,sanschie!B:E,4,0)) ->  | G60: =IF(E60="","",IF(VLOOKUP(E60,sanschie!B:J,9,0)="","",VLOOKUP(E60,sanschie!B:J,9,0))) -> 
A61: 55 | B61: =$A$1&'Verbindungsleitung TS'!A61 -> Nein55 | C61: =IF(E61="","",IF(E61="Sonder","J",VLOOKUP(E61,sanschie!B:K,10,0))) ->  | D61: =IF(ISNA(VLOOKUP($B61,Sortimente!D:G,2,0))=TRUE,"",VLOOKUP($B61,Sortimente!D:G,2,0)) ->  | E61: =IF(D61="","",VLOOKUP($B61,Sortimente!D:G,4,0)) ->  | F61: =IF(E61="","",VLOOKUP(E61,sanschie!B:E,4,0)) ->  | G61: =IF(E61="","",IF(VLOOKUP(E61,sanschie!B:J,9,0)="","",VLOOKUP(E61,sanschie!B:J,9,0))) -> 
A62: 56 | B62: =$A$1&'Verbindungsleitung TS'!A62 -> Nein56 | C62: =IF(E62="","",IF(E62="Sonder","J",VLOOKUP(E62,sanschie!B:K,10,0))) ->  | D62: =IF(ISNA(VLOOKUP($B62,Sortimente!D:G,2,0))=TRUE,"",VLOOKUP($B62,Sortimente!D:G,2,0)) ->  | E62: =IF(D62="","",VLOOKUP($B62,Sortimente!D:G,4,0)) ->  | F62: =IF(E62="","",VLOOKUP(E62,sanschie!B:E,4,0)) ->  | G62: =IF(E62="","",IF(VLOOKUP(E62,sanschie!B:J,9,0)="","",VLOOKUP(E62,sanschie!B:J,9,0))) -> 
A63: 57 | B63: =$A$1&'Verbindungsleitung TS'!A63 -> Nein57 | C63: =IF(E63="","",IF(E63="Sonder","J",VLOOKUP(E63,sanschie!B:K,10,0))) ->  | D63: =IF(ISNA(VLOOKUP($B63,Sortimente!D:G,2,0))=TRUE,"",VLOOKUP($B63,Sortimente!D:G,2,0)) ->  | E63: =IF(D63="","",VLOOKUP($B63,Sortimente!D:G,4,0)) ->  | F63: =IF(E63="","",VLOOKUP(E63,sanschie!B:E,4,0)) ->  | G63: =IF(E63="","",IF(VLOOKUP(E63,sanschie!B:J,9,0)="","",VLOOKUP(E63,sanschie!B:J,9,0))) -> 
A64: 58 | B64: =$A$1&'Verbindungsleitung TS'!A64 -> Nein58 | C64: =IF(E64="","",IF(E64="Sonder","J",VLOOKUP(E64,sanschie!B:K,10,0))) ->  | D64: =IF(ISNA(VLOOKUP($B64,Sortimente!D:G,2,0))=TRUE,"",VLOOKUP($B64,Sortimente!D:G,2,0)) ->  | E64: =IF(D64="","",VLOOKUP($B64,Sortimente!D:G,4,0)) ->  | F64: =IF(E64="","",VLOOKUP(E64,sanschie!B:E,4,0)) ->  | G64: =IF(E64="","",IF(VLOOKUP(E64,sanschie!B:J,9,0)="","",VLOOKUP(E64,sanschie!B:J,9,0))) -> 
A65: 59 | B65: =$A$1&'Verbindungsleitung TS'!A65 -> Nein59 | C65: =IF(E65="","",IF(E65="Sonder","J",VLOOKUP(E65,sanschie!B:K,10,0))) ->  | D65: =IF(ISNA(VLOOKUP($B65,Sortimente!D:G,2,0))=TRUE,"",VLOOKUP($B65,Sortimente!D:G,2,0)) ->  | E65: =IF(D65="","",VLOOKUP($B65,Sortimente!D:G,4,0)) ->  | F65: =IF(E65="","",VLOOKUP(E65,sanschie!B:E,4,0)) ->  | G65: =IF(E65="","",IF(VLOOKUP(E65,sanschie!B:J,9,0)="","",VLOOKUP(E65,sanschie!B:J,9,0))) -> 
A66: 60 | B66: =$A$1&'Verbindungsleitung TS'!A66 -> Nein60 | C66: =IF(E66="","",IF(E66="Sonder","J",VLOOKUP(E66,sanschie!B:K,10,0))) ->  | D66: =IF(ISNA(VLOOKUP($B66,Sortimente!D:G,2,0))=TRUE,"",VLOOKUP($B66,Sortimente!D:G,2,0)) ->  | E66: =IF(D66="","",VLOOKUP($B66,Sortimente!D:G,4,0)) ->  | F66: =IF(E66="","",VLOOKUP(E66,sanschie!B:E,4,0)) ->  | G66: =IF(E66="","",IF(VLOOKUP(E66,sanschie!B:J,9,0)="","",VLOOKUP(E66,sanschie!B:J,9,0))) -> 
A67: 61 | B67: =$A$1&'Verbindungsleitung TS'!A67 -> Nein61 | C67: =IF(E67="","",IF(E67="Sonder","J",VLOOKUP(E67,sanschie!B:K,10,0))) ->  | D67: =IF(ISNA(VLOOKUP($B67,Sortimente!D:G,2,0))=TRUE,"",VLOOKUP($B67,Sortimente!D:G,2,0)) ->  | E67: =IF(D67="","",VLOOKUP($B67,Sortimente!D:G,4,0)) ->  | F67: =IF(E67="","",VLOOKUP(E67,sanschie!B:E,4,0)) ->  | G67: =IF(E67="","",IF(VLOOKUP(E67,sanschie!B:J,9,0)="","",VLOOKUP(E67,sanschie!B:J,9,0))) -> 
A68: 62 | B68: =$A$1&'Verbindungsleitung TS'!A68 -> Nein62 | C68: =IF(E68="","",IF(E68="Sonder","J",VLOOKUP(E68,sanschie!B:K,10,0))) ->  | D68: =IF(ISNA(VLOOKUP($B68,Sortimente!D:G,2,0))=TRUE,"",VLOOKUP($B68,Sortimente!D:G,2,0)) ->  | E68: =IF(D68="","",VLOOKUP($B68,Sortimente!D:G,4,0)) ->  | F68: =IF(E68="","",VLOOKUP(E68,sanschie!B:E,4,0)) ->  | G68: =IF(E68="","",IF(VLOOKUP(E68,sanschie!B:J,9,0)="","",VLOOKUP(E68,sanschie!B:J,9,0))) -> 
A69: 63 | B69: =$A$1&'Verbindungsleitung TS'!A69 -> Nein63 | C69: =IF(E69="","",IF(E69="Sonder","J",VLOOKUP(E69,sanschie!B:K,10,0))) ->  | D69: =IF(ISNA(VLOOKUP($B69,Sortimente!D:G,2,0))=TRUE,"",VLOOKUP($B69,Sortimente!D:G,2,0)) ->  | E69: =IF(D69="","",VLOOKUP($B69,Sortimente!D:G,4,0)) ->  | F69: =IF(E69="","",VLOOKUP(E69,sanschie!B:E,4,0)) ->  | G69: =IF(E69="","",IF(VLOOKUP(E69,sanschie!B:J,9,0)="","",VLOOKUP(E69,sanschie!B:J,9,0))) -> 
A70: 64 | B70: =$A$1&'Verbindungsleitung TS'!A70 -> Nein64 | C70: =IF(E70="","",IF(E70="Sonder","J",VLOOKUP(E70,sanschie!B:K,10,0))) ->  | D70: =IF(ISNA(VLOOKUP($B70,Sortimente!D:G,2,0))=TRUE,"",VLOOKUP($B70,Sortimente!D:G,2,0)) ->  | E70: =IF(D70="","",VLOOKUP($B70,Sortimente!D:G,4,0)) ->  | F70: =IF(E70="","",VLOOKUP(E70,sanschie!B:E,4,0)) ->  | G70: =IF(E70="","",IF(VLOOKUP(E70,sanschie!B:J,9,0)="","",VLOOKUP(E70,sanschie!B:J,9,0))) -> 
A71: 65 | B71: =$A$1&'Verbindungsleitung TS'!A71 -> Nein65 | C71: =IF(E71="","",IF(E71="Sonder","J",VLOOKUP(E71,sanschie!B:K,10,0))) ->  | D71: =IF(ISNA(VLOOKUP($B71,Sortimente!D:G,2,0))=TRUE,"",VLOOKUP($B71,Sortimente!D:G,2,0)) ->  | E71: =IF(D71="","",VLOOKUP($B71,Sortimente!D:G,4,0)) ->  | F71: =IF(E71="","",VLOOKUP(E71,sanschie!B:E,4,0)) ->  | G71: =IF(E71="","",IF(VLOOKUP(E71,sanschie!B:J,9,0)="","",VLOOKUP(E71,sanschie!B:J,9,0))) -> 
A72: 66 | B72: =$A$1&'Verbindungsleitung TS'!A72 -> Nein66 | C72: =IF(E72="","",IF(E72="Sonder","J",VLOOKUP(E72,sanschie!B:K,10,0))) ->  | D72: =IF(ISNA(VLOOKUP($B72,Sortimente!D:G,2,0))=TRUE,"",VLOOKUP($B72,Sortimente!D:G,2,0)) ->  | E72: =IF(D72="","",VLOOKUP($B72,Sortimente!D:G,4,0)) ->  | F72: =IF(E72="","",VLOOKUP(E72,sanschie!B:E,4,0)) ->  | G72: =IF(E72="","",IF(VLOOKUP(E72,sanschie!B:J,9,0)="","",VLOOKUP(E72,sanschie!B:J,9,0))) -> 
A73: 67 | B73: =$A$1&'Verbindungsleitung TS'!A73 -> Nein67 | C73: =IF(E73="","",IF(E73="Sonder","J",VLOOKUP(E73,sanschie!B:K,10,0))) ->  | D73: =IF(ISNA(VLOOKUP($B73,Sortimente!D:G,2,0))=TRUE,"",VLOOKUP($B73,Sortimente!D:G,2,0)) ->  | E73: =IF(D73="","",VLOOKUP($B73,Sortimente!D:G,4,0)) ->  | F73: =IF(E73="","",VLOOKUP(E73,sanschie!B:E,4,0)) ->  | G73: =IF(E73="","",IF(VLOOKUP(E73,sanschie!B:J,9,0)="","",VLOOKUP(E73,sanschie!B:J,9,0))) -> 
A74: 68 | B74: =$A$1&'Verbindungsleitung TS'!A74 -> Nein68 | C74: =IF(E74="","",IF(E74="Sonder","J",VLOOKUP(E74,sanschie!B:K,10,0))) ->  | D74: =IF(ISNA(VLOOKUP($B74,Sortimente!D:G,2,0))=TRUE,"",VLOOKUP($B74,Sortimente!D:G,2,0)) ->  | E74: =IF(D74="","",VLOOKUP($B74,Sortimente!D:G,4,0)) ->  | F74: =IF(E74="","",VLOOKUP(E74,sanschie!B:E,4,0)) ->  | G74: =IF(E74="","",IF(VLOOKUP(E74,sanschie!B:J,9,0)="","",VLOOKUP(E74,sanschie!B:J,9,0))) -> 
A75: 69 | B75: =$A$1&'Verbindungsleitung TS'!A75 -> Nein69 | C75: =IF(E75="","",IF(E75="Sonder","J",VLOOKUP(E75,sanschie!B:K,10,0))) ->  | D75: =IF(ISNA(VLOOKUP($B75,Sortimente!D:G,2,0))=TRUE,"",VLOOKUP($B75,Sortimente!D:G,2,0)) ->  | E75: =IF(D75="","",VLOOKUP($B75,Sortimente!D:G,4,0)) ->  | F75: =IF(E75="","",VLOOKUP(E75,sanschie!B:E,4,0)) ->  | G75: =IF(E75="","",IF(VLOOKUP(E75,sanschie!B:J,9,0)="","",VLOOKUP(E75,sanschie!B:J,9,0))) -> 
A76: 70 | B76: =$A$1&'Verbindungsleitung TS'!A76 -> Nein70 | C76: =IF(E76="","",IF(E76="Sonder","J",VLOOKUP(E76,sanschie!B:K,10,0))) ->  | D76: =IF(ISNA(VLOOKUP($B76,Sortimente!D:G,2,0))=TRUE,"",VLOOKUP($B76,Sortimente!D:G,2,0)) ->  | E76: =IF(D76="","",VLOOKUP($B76,Sortimente!D:G,4,0)) ->  | F76: =IF(E76="","",VLOOKUP(E76,sanschie!B:E,4,0)) ->  | G76: =IF(E76="","",IF(VLOOKUP(E76,sanschie!B:J,9,0)="","",VLOOKUP(E76,sanschie!B:J,9,0))) -> 
A77: 71 | B77: =$A$1&'Verbindungsleitung TS'!A77 -> Nein71 | C77: =IF(E77="","",IF(E77="Sonder","J",VLOOKUP(E77,sanschie!B:K,10,0))) ->  | D77: =IF(ISNA(VLOOKUP($B77,Sortimente!D:G,2,0))=TRUE,"",VLOOKUP($B77,Sortimente!D:G,2,0)) ->  | E77: =IF(D77="","",VLOOKUP($B77,Sortimente!D:G,4,0)) ->  | F77: =IF(E77="","",VLOOKUP(E77,sanschie!B:E,4,0)) ->  | G77: =IF(E77="","",IF(VLOOKUP(E77,sanschie!B:J,9,0)="","",VLOOKUP(E77,sanschie!B:J,9,0))) -> 
A78: 72 | B78: =$A$1&'Verbindungsleitung TS'!A78 -> Nein72 | C78: =IF(E78="","",IF(E78="Sonder","J",VLOOKUP(E78,sanschie!B:K,10,0))) ->  | D78: =IF(ISNA(VLOOKUP($B78,Sortimente!D:G,2,0))=TRUE,"",VLOOKUP($B78,Sortimente!D:G,2,0)) ->  | E78: =IF(D78="","",VLOOKUP($B78,Sortimente!D:G,4,0)) ->  | F78: =IF(E78="","",VLOOKUP(E78,sanschie!B:E,4,0)) ->  | G78: =IF(E78="","",IF(VLOOKUP(E78,sanschie!B:J,9,0)="","",VLOOKUP(E78,sanschie!B:J,9,0))) -> 
A79: 73 | B79: =$A$1&'Verbindungsleitung TS'!A79 -> Nein73 | C79: =IF(E79="","",IF(E79="Sonder","J",VLOOKUP(E79,sanschie!B:K,10,0))) ->  | D79: =IF(ISNA(VLOOKUP($B79,Sortimente!D:G,2,0))=TRUE,"",VLOOKUP($B79,Sortimente!D:G,2,0)) ->  | E79: =IF(D79="","",VLOOKUP($B79,Sortimente!D:G,4,0)) ->  | F79: =IF(E79="","",VLOOKUP(E79,sanschie!B:E,4,0)) ->  | G79: =IF(E79="","",IF(VLOOKUP(E79,sanschie!B:J,9,0)="","",VLOOKUP(E79,sanschie!B:J,9,0))) -> 
A80: 74 | B80: =$A$1&'Verbindungsleitung TS'!A80 -> Nein74 | C80: =IF(E80="","",IF(E80="Sonder","J",VLOOKUP(E80,sanschie!B:K,10,0))) ->  | D80: =IF(ISNA(VLOOKUP($B80,Sortimente!D:G,2,0))=TRUE,"",VLOOKUP($B80,Sortimente!D:G,2,0)) ->  | E80: =IF(D80="","",VLOOKUP($B80,Sortimente!D:G,4,0)) ->  | F80: =IF(E80="","",VLOOKUP(E80,sanschie!B:E,4,0)) ->  | G80: =IF(E80="","",IF(VLOOKUP(E80,sanschie!B:J,9,0)="","",VLOOKUP(E80,sanschie!B:J,9,0))) -> 
A81: 75 | B81: =$A$1&'Verbindungsleitung TS'!A81 -> Nein75 | C81: =IF(E81="","",IF(E81="Sonder","J",VLOOKUP(E81,sanschie!B:K,10,0))) ->  | D81: =IF(ISNA(VLOOKUP($B81,Sortimente!D:G,2,0))=TRUE,"",VLOOKUP($B81,Sortimente!D:G,2,0)) ->  | E81: =IF(D81="","",VLOOKUP($B81,Sortimente!D:G,4,0)) ->  | F81: =IF(E81="","",VLOOKUP(E81,sanschie!B:E,4,0)) ->  | G81: =IF(E81="","",IF(VLOOKUP(E81,sanschie!B:J,9,0)="","",VLOOKUP(E81,sanschie!B:J,9,0))) -> 
A82: 76 | B82: =$A$1&'Verbindungsleitung TS'!A82 -> Nein76 | C82: =IF(E82="","",IF(E82="Sonder","J",VLOOKUP(E82,sanschie!B:K,10,0))) ->  | D82: =IF(ISNA(VLOOKUP($B82,Sortimente!D:G,2,0))=TRUE,"",VLOOKUP($B82,Sortimente!D:G,2,0)) ->  | E82: =IF(D82="","",VLOOKUP($B82,Sortimente!D:G,4,0)) ->  | F82: =IF(E82="","",VLOOKUP(E82,sanschie!B:E,4,0)) ->  | G82: =IF(E82="","",IF(VLOOKUP(E82,sanschie!B:J,9,0)="","",VLOOKUP(E82,sanschie!B:J,9,0))) -> 
A83: 77 | B83: =$A$1&'Verbindungsleitung TS'!A83 -> Nein77 | C83: =IF(E83="","",IF(E83="Sonder","J",VLOOKUP(E83,sanschie!B:K,10,0))) ->  | D83: =IF(ISNA(VLOOKUP($B83,Sortimente!D:G,2,0))=TRUE,"",VLOOKUP($B83,Sortimente!D:G,2,0)) ->  | E83: =IF(D83="","",VLOOKUP($B83,Sortimente!D:G,4,0)) ->  | F83: =IF(E83="","",VLOOKUP(E83,sanschie!B:E,4,0)) ->  | G83: =IF(E83="","",IF(VLOOKUP(E83,sanschie!B:J,9,0)="","",VLOOKUP(E83,sanschie!B:J,9,0))) -> 
A84: 78 | B84: =$A$1&'Verbindungsleitung TS'!A84 -> Nein78 | C84: =IF(E84="","",IF(E84="Sonder","J",VLOOKUP(E84,sanschie!B:K,10,0))) ->  | D84: =IF(ISNA(VLOOKUP($B84,Sortimente!D:G,2,0))=TRUE,"",VLOOKUP($B84,Sortimente!D:G,2,0)) ->  | E84: =IF(D84="","",VLOOKUP($B84,Sortimente!D:G,4,0)) ->  | F84: =IF(E84="","",VLOOKUP(E84,sanschie!B:E,4,0)) ->  | G84: =IF(E84="","",IF(VLOOKUP(E84,sanschie!B:J,9,0)="","",VLOOKUP(E84,sanschie!B:J,9,0))) -> 
A85: 79 | B85: =$A$1&'Verbindungsleitung TS'!A85 -> Nein79 | C85: =IF(E85="","",IF(E85="Sonder","J",VLOOKUP(E85,sanschie!B:K,10,0))) ->  | D85: =IF(ISNA(VLOOKUP($B85,Sortimente!D:G,2,0))=TRUE,"",VLOOKUP($B85,Sortimente!D:G,2,0)) ->  | E85: =IF(D85="","",VLOOKUP($B85,Sortimente!D:G,4,0)) ->  | F85: =IF(E85="","",VLOOKUP(E85,sanschie!B:E,4,0)) ->  | G85: =IF(E85="","",IF(VLOOKUP(E85,sanschie!B:J,9,0)="","",VLOOKUP(E85,sanschie!B:J,9,0))) -> 
A86: 80 | B86: =$A$1&'Verbindungsleitung TS'!A86 -> Nein80 | C86: =IF(E86="","",IF(E86="Sonder","J",VLOOKUP(E86,sanschie!B:K,10,0))) ->  | D86: =IF(ISNA(VLOOKUP($B86,Sortimente!D:G,2,0))=TRUE,"",VLOOKUP($B86,Sortimente!D:G,2,0)) ->  | E86: =IF(D86="","",VLOOKUP($B86,Sortimente!D:G,4,0)) ->  | F86: =IF(E86="","",VLOOKUP(E86,sanschie!B:E,4,0)) ->  | G86: =IF(E86="","",IF(VLOOKUP(E86,sanschie!B:J,9,0)="","",VLOOKUP(E86,sanschie!B:J,9,0))) -> 
A87: 81 | B87: =$A$1&'Verbindungsleitung TS'!A87 -> Nein81 | C87: =IF(E87="","",IF(E87="Sonder","J",VLOOKUP(E87,sanschie!B:K,10,0))) ->  | D87: =IF(ISNA(VLOOKUP($B87,Sortimente!D:G,2,0))=TRUE,"",VLOOKUP($B87,Sortimente!D:G,2,0)) ->  | E87: =IF(D87="","",VLOOKUP($B87,Sortimente!D:G,4,0)) ->  | F87: =IF(E87="","",VLOOKUP(E87,sanschie!B:E,4,0)) ->  | G87: =IF(E87="","",IF(VLOOKUP(E87,sanschie!B:J,9,0)="","",VLOOKUP(E87,sanschie!B:J,9,0))) -> 
A88: 82 | B88: =$A$1&'Verbindungsleitung TS'!A88 -> Nein82 | C88: =IF(E88="","",IF(E88="Sonder","J",VLOOKUP(E88,sanschie!B:K,10,0))) ->  | D88: =IF(ISNA(VLOOKUP($B88,Sortimente!D:G,2,0))=TRUE,"",VLOOKUP($B88,Sortimente!D:G,2,0)) ->  | E88: =IF(D88="","",VLOOKUP($B88,Sortimente!D:G,4,0)) ->  | F88: =IF(E88="","",VLOOKUP(E88,sanschie!B:E,4,0)) ->  | G88: =IF(E88="","",IF(VLOOKUP(E88,sanschie!B:J,9,0)="","",VLOOKUP(E88,sanschie!B:J,9,0))) -> 
A89: 83 | B89: =$A$1&'Verbindungsleitung TS'!A89 -> Nein83 | C89: =IF(E89="","",IF(E89="Sonder","J",VLOOKUP(E89,sanschie!B:K,10,0))) ->  | D89: =IF(ISNA(VLOOKUP($B89,Sortimente!D:G,2,0))=TRUE,"",VLOOKUP($B89,Sortimente!D:G,2,0)) ->  | E89: =IF(D89="","",VLOOKUP($B89,Sortimente!D:G,4,0)) ->  | F89: =IF(E89="","",VLOOKUP(E89,sanschie!B:E,4,0)) ->  | G89: =IF(E89="","",IF(VLOOKUP(E89,sanschie!B:J,9,0)="","",VLOOKUP(E89,sanschie!B:J,9,0))) -> 
A90: 84 | B90: =$A$1&'Verbindungsleitung TS'!A90 -> Nein84 | C90: =IF(E90="","",IF(E90="Sonder","J",VLOOKUP(E90,sanschie!B:K,10,0))) ->  | D90: =IF(ISNA(VLOOKUP($B90,Sortimente!D:G,2,0))=TRUE,"",VLOOKUP($B90,Sortimente!D:G,2,0)) ->  | E90: =IF(D90="","",VLOOKUP($B90,Sortimente!D:G,4,0)) ->  | F90: =IF(E90="","",VLOOKUP(E90,sanschie!B:E,4,0)) ->  | G90: =IF(E90="","",IF(VLOOKUP(E90,sanschie!B:J,9,0)="","",VLOOKUP(E90,sanschie!B:J,9,0))) -> 

Sheet Commerciante (hidden)
B1: =Vokabel!$A$241 -> INFO:
B2: =Vokabel!$A$240 -> In den Zeilen 5-10 tragen Sie bitte Ihre Firma, und den Zeilen 14-15 den Sachbearbeiter u. Tel.Nr., ein.
B4: =Vokabel!$A$242 -> Firmendaten:
A5: =Vokabel!$A$226 -> 1.Zeile | B5: Ganztec AG
A6: =Vokabel!$A$227 -> 2.Zeile | B6: Badstrasse 38
A7: =Vokabel!$A$228 -> 3.Zeile | B7: 5312 Döttingen
A8: =Vokabel!$A$229 -> 4.Zeile | B8: Tel. 0562680000 Fax. 0562680001 | F8: =B44 -> nichts
A9: =Vokabel!$A$230 -> 5.Zeile | B9: Mail: info@ganztec.ch
A10: Ganztec N° client
B13: =Vokabel!$A$247 -> Sachbearbeiter: | C13: =Vokabel!$A$248 -> Pers.-Nr. | E13: =Vokabel!$A$249 -> Frachteinstellungen:
A14: =Vokabel!$A$250 -> Vorname/Name | B14: Herr Mustermann | E14: 63 | F14: =Vokabel!$A$256 -> CHF per Tonne
A15: =Vokabel!$A$251 -> Telefon | B15: Tel. 000000 | C15: =Eingabe!$K$4&" "&Eingabe!$K$16&" "&Eingabe!$L$18 -> Ganztec AG
A16: =Vokabel!$A$252 -> Fax | B16: Fax. 0000000
A44: 3 | B44: =INDEX(Commerciante!B46:B48,A44,1) -> nichts
A45: Mailprogramm
A46: Outlook (Express) | B46: Outlook
A47: Lotus Notes | B47: Lotus
A48: keines von Beiden | B48: nichts

Sheet Firma (hidden)
B1: =Vokabel!$A$241 -> INFO:
B2: =Vokabel!$A$240 -> In den Zeilen 5-10 tragen Sie bitte Ihre Firma, und den Zeilen 14-15 den Sachbearbeiter u. Tel.Nr., ein.
B4: =Vokabel!$A$242 -> Firmendaten:
A5: =Vokabel!$A$226 -> 1.Zeile | B5: Ganztec AG
A6: =Vokabel!$A$227 -> 2.Zeile | B6: Badstrasse 38
A7: =Vokabel!$A$228 -> 3.Zeile | B7: 5312 Döttingen
A8: =Vokabel!$A$229 -> 4.Zeile | B8: Tel. 0562680000 Fax. 0562680001 | F8: =B44 -> nichts
A9: =Vokabel!$A$230 -> 5.Zeile | B9: Mail: info@ganztec.ch
A10: =Vokabel!$A$466 -> Schiedel Ku.Nr.
B13: =Vokabel!$A$247 -> Sachbearbeiter: | C13: =Vokabel!$A$248 -> Pers.-Nr. | E13: =Vokabel!$A$249 -> Frachteinstellungen:
A14: =Vokabel!$A$250 -> Vorname/Name | B14: Herr Mustermann | E14: 63 | F14: =Vokabel!$A$256 -> CHF per Tonne
A15: =Vokabel!$A$251 -> Telefon | B15: Tel. 000000 | C15: =Eingabe!$K$4&" "&Eingabe!$K$16&" "&Eingabe!$L$18 -> Ganztec AG
A16: =Vokabel!$A$252 -> Fax | B16: Fax. 0000000
A44: 3 | B44: =INDEX(Firma!B46:B48,A44,1) -> nichts
A45: Mailprogramm
A46: Outlook (Express) | B46: Outlook
A47: Lotus Notes | B47: Lotus
A48: keines von Beiden | B48: nichts

Sheet Belegart (hidden)
A1: 2 | B1: =INDEX(A4:A8,A1,1) -> Angebot
A3: Belegart:
A4: =Vokabel!$A$182 -> Kalkulation
A5: =Vokabel!$A$183 -> Angebot
A6: =Vokabel!$A$184 -> Auftragsbestätigung

Sheet Kalkulation (hidden)
B1: =IF(Firma!$B$5="","",Firma!$B$5) -> Ganztec AG | D1: 0 | K1: =Firma!$B$10 -> 0
B2: =IF(Firma!$B$6="","",Firma!$B$6) -> Badstrasse 38 | K2: =Commercant!$B$10 -> 0
B3: =IF(Firma!$B$7="","",Firma!$B$7) -> 5312 Döttingen | K3: =Commerciante!$B$10 -> 0
B4: =IF(Firma!$B$8="","",Firma!$B$8) -> Tel. 0562680000 Fax. 0562680001 | K4: =IF(Eingabe!$J$1=1,Kalkulation!$K$1,IF(Eingabe!$J$1=2,Kalkulation!$K$2,IF(Eingabe!$J$1=3,Kalkulation!$K$3,""))) -> 0
B5: =IF(Firma!B9="","",Firma!B9) -> Mail: info@ganztec.ch
J6: =Belegart!B1 -> Angebot
B7: =Eingabe!$K$4 -> Ganztec AG | G7: =IF(J7="","","Beleg Nr.:") ->  | J7: =IF(Eingabe!M27="","",Eingabe!M27) -> 
B8: =Eingabe!$K$5 ->  | G8: =Vokabel!$A$185 -> Datum : | J8: =TODAY() -> 2023-01-09
B9: =Eingabe!$K$6 -> Badstrasse 38 | G9: =IF(Firma!$B$14="","",Vokabel!$A$186) -> Sachbearbeiter: | J9: =IF(Firma!$B$14="","",Firma!$B$14) -> Herr Mustermann
B10: =Eingabe!$K$7&" "&Eingabe!$L$7 -> 5312 Döttingen | G10: =IF(Firma!$B$15="","",Vokabel!$A$187) -> Tel.Nr.: | J10: =IF(Firma!$B$15="","",Firma!$B$15) -> Tel. 000000 | K10: =IF(Firma!$C$14="",Firma!$C$15,Firma!C$14&" "&Firma!$C$15) -> Ganztec AG
G11: =IF(Firma!$B$16="","",Vokabel!$A$188) -> Fax.Nr.: | J11: =IF(Firma!$B$16="","",Firma!$B$16) -> Fax. 0000000
B12: =IF(Eingabe!$N$11="","",Vokabel!$A$223&":") ->  | C12: =Eingabe!$N$11 -> 0
B13: =IF(Eingabe!K9="","",Vokabel!$A$180&" "&Eingabe!K9&" ") ->  | G13: =IF(Eingabe!$K$16="","",Vokabel!$A$189) ->  | J13: =IF(Eingabe!$K$16="","",Eingabe!$K$16) -> 
B14: =IF(Eingabe!$K$11="","","Tel. "&Eingabe!$K$11)&IF(Eingabe!$K$13="",""," - Fax. "&Eingabe!$K$13 )&IF(Eingabe!$N$13="",""," - "&Vokabel!$A$222&" "&Eingabe!$N$13 ) ->  | J14: =IF(Eingabe!$K$17="","",Eingabe!$K$17) -> 
B15: =IF(Belegart!$B$1="Auftragsbestätigung","",IF(Belegart!$B$1="Kalkulation","",Texte!$D$12)) ->  | J15: =IF(Eingabe!$K$18="","",Eingabe!$K$18&" "&Eingabe!$L$18) -> 
B16: =IF(Belegart!$B$1="Auftragsbestätigung","",IF(Belegart!$B$1="Kalkulation","",IF($B$15="",Texte!$D$15,Texte!$D$13))) -> Wir bedanken uns für Ihre Anfrage und bieten Ihnen folgendes an:
A17: ABSOLUT | B17: Schiedel ABSOLUT, ABS 18 | D17: Mehrschaliges feuchteunempfindliches Kaminsystem
B18: Aussenmass: 36/36 cm | D18: mit integrierter Wärmedämmung
D19: und keramischem Profil-Innenrohr
B21: =IF($A$17="ABSOLUT","",IF($A$17="Cheminee","",IF($A$17="ISOLIT","",IF($A$17="Kerastar","",Vokabel!$A$96)))) ->  | C21: =IF($B$21="","",IF($A$17="Prima Plus",Daten!$C$644,IF($A$17="Technostar120",Daten!$C$721,IF($A$17="ICS5000",Daten!$C$721,Daten!$C$564)))) ->  | D21: =Vokabel!$A$190 -> Anlagenhöhe: | F21: =IF($A$17="Absolut",Daten!$B$61,IF($A$17="Cheminee",Daten!$B$61,SUBTOTAL(9,E25:E154)/1000))&" m" -> 9 m | K21: =IF(A17="Absolut",F21,IF(A17="SIH",F21,IF(A17="Absolut Komplett",F21,""))) -> 9 m
B22: =IF($C$22="","",Vokabel!$A$75) ->  | C22: =IF(A17="ABSOLUT","",IF(A17="Cheminee","",IF(A17="Keranova",Daten!$C$582,IF(A17="Technostar120",Daten!$G$705,IF(A17="Kerastar",Daten!$C$390,IF(A17="Prima Plus",Daten!$F$644,IF(A17="ICS",Daten!$F$490,""))))))) ->  | D22: =Vokabel!$A$191 -> Gesamtgewicht: | F22: =SUBTOTAL(9,D25:D170)&" kg" -> 749,11 kg
A24: Nr | B24: =Vokabel!$A$192 -> Artikel-Nr. | C24: =Vokabel!$A$194 -> Bezeichung | D24: =Vokabel!$A$195 -> Gewicht kg | E24: =Vokabel!$A$196 -> Bauhöhe mm | F24: =Vokabel!$A$197 -> Menge | G24: EH | H24: RK | I24: =Vokabel!$A$199 -> Einzelpreis CHF | J24: =Vokabel!$A$200 -> Gesamtpreis CHF
A25: 0 | B25: 103912 | C25: =IF(B25="","",VLOOKUP(B25,sanschie!A:E,5,0)) -> ABS Mantelstein EZ 360 x 360mm L330mm | D25: =IF(F25="","",K25*F25) -> 494.73 | E25: =IF(F25="","",IF(N25="","",N25*F25)) -> 0 | F25: 23 | G25: =IF(B25="","",VLOOKUP(B25,sanschie!A:D,4,0)) -> STK | H25: =IF(B25="","",VLOOKUP(B25,sanschie!A:P,16,0)) -> 1 | I25: =IF(B25="","",IF(H25="N",VLOOKUP(B25,sanschie!$A:$K,7,0),VLOOKUP(B25,sanschie!$A:$K,7,0)*(1-Eingabe!$O$20))) -> 30 | J25: =IF(F25="","",(F25*I25)) -> 690 | K25: =IF(B25="","",VLOOKUP(B25,sanschie!$A:$I,9,0)) -> 21.51 | L25: =IF(H25=1,J25,0) -> 690 | M25: =IF(H25=2,J25,0) -> 0 | N25: =IF(B25="","0",IF(VLOOKUP(B25,sanschie!$A:$K,10,0)=0,"0",IF(VLOOKUP(B25,sanschie!$A:$K,10,0)="","0",(VLOOKUP(B25,sanschie!$A:$K,10,0))))) -> 0 | Q25: =IF(H25=3,J25,0) -> 0 | R25: =IF(B25="","",IF(H25="N",VLOOKUP(B25,sanschie!$A:$K,7,0),VLOOKUP(B25,sanschie!$A:$K,7,0))) -> 30
A26: 0 | B26: 103931 | C26: =IF(B26="","",VLOOKUP(B26,sanschie!A:E,5,0)) -> ABS Thermo-Trennstein EZ 360 x 360mm L330mm | G26: =IF(B26="","",VLOOKUP(B26,sanschie!A:D,4,0)) -> STK | H26: =IF(B26="","",VLOOKUP(B26,sanschie!A:P,16,0)) -> 1 | I26: =IF(B26="","",IF(H26="N",VLOOKUP(B26,sanschie!$A:$K,7,0),VLOOKUP(B26,sanschie!$A:$K,7,0)*(1-Eingabe!$O$20))) -> 210 | K26: =IF(B26="","",VLOOKUP(B26,sanschie!$A:$I,9,0)) -> 20.7 | M26: 0 | N26: =IF(B26="","0",IF(VLOOKUP(B26,sanschie!$A:$K,10,0)=0,"0",IF(VLOOKUP(B26,sanschie!$A:$K,10,0)="","0",(VLOOKUP(B26,sanschie!$A:$K,10,0))))) -> 0 | Q26: =IF(H26=3,J26,0) -> 0 | R26: =IF(B26="","",IF(H26="N",VLOOKUP(B26,sanschie!$A:$K,7,0),VLOOKUP(B26,sanschie!$A:$K,7,0))) -> 210
A27: 0 | B27: 103849 | C27: =IF(B27="","",VLOOKUP(B27,sanschie!A:E,5,0)) -> ABS Thermo-Fussplatte EZ 360 x 360mm | G27: =IF(B27="","",VLOOKUP(B27,sanschie!A:D,4,0)) -> STK | H27: =IF(B27="","",VLOOKUP(B27,sanschie!A:P,16,0)) -> 1 | I27: =IF(B27="","",IF(H27="N",VLOOKUP(B27,sanschie!$A:$K,7,0),VLOOKUP(B27,sanschie!$A:$K,7,0)*(1-Eingabe!$O$20))) -> 124 | K27: =IF(B27="","",VLOOKUP(B27,sanschie!$A:$I,9,0)) -> 2.16 | M27: 0 | N27: =IF(B27="","0",IF(VLOOKUP(B27,sanschie!$A:$K,10,0)=0,"0",IF(VLOOKUP(B27,sanschie!$A:$K,10,0)="","0",(VLOOKUP(B27,sanschie!$A:$K,10,0))))) -> 0 | Q27: 0 | R27: =IF(B27="","",IF(H27="N",VLOOKUP(B27,sanschie!$A:$K,7,0),VLOOKUP(B27,sanschie!$A:$K,7,0))) -> 124
A28: 0 | B28: 103948 | C28: =IF(B28="","",VLOOKUP(B28,sanschie!A:E,5,0)) -> ABS 180 Profilkeramik-Rohr mit Muffe L1330mm | D28: 61.5 | E28: 6650 | F28: 5 | G28: =IF(B28="","",VLOOKUP(B28,sanschie!A:D,4,0)) -> STK | H28: =IF(B28="","",VLOOKUP(B28,sanschie!A:P,16,0)) -> 1 | I28: =IF(B28="","",IF(H28="N",VLOOKUP(B28,sanschie!$A:$K,7,0),VLOOKUP(B28,sanschie!$A:$K,7,0)*(1-Eingabe!$O$20))) -> 122 | J28: 610 | K28: =IF(B28="","",VLOOKUP(B28,sanschie!$A:$I,9,0)) -> 12.3 | L28: 610 | M28: 0 | N28: =IF(B28="","0",IF(VLOOKUP(B28,sanschie!$A:$K,10,0)=0,"0",IF(VLOOKUP(B28,sanschie!$A:$K,10,0)="","0",(VLOOKUP(B28,sanschie!$A:$K,10,0))))) -> 1330 | Q28: 0 | R28: =IF(B28="","",IF(H28="N",VLOOKUP(B28,sanschie!$A:$K,7,0),VLOOKUP(B28,sanschie!$A:$K,7,0))) -> 122
A29: 0 | B29: 103859 | C29: =IF(B29="","",VLOOKUP(B29,sanschie!A:E,5,0)) -> ABS 180 Fertigfuss EZ Ø140- 180 mm L1070mm | D29: 93 | E29: 1070 | F29: 1 | G29: =IF(B29="","",VLOOKUP(B29,sanschie!A:D,4,0)) -> STK | H29: =IF(B29="","",VLOOKUP(B29,sanschie!A:P,16,0)) -> 1 | I29: =IF(B29="","",IF(H29="N",VLOOKUP(B29,sanschie!$A:$K,7,0),VLOOKUP(B29,sanschie!$A:$K,7,0)*(1-Eingabe!$O$20))) -> 611 | J29: 611 | K29: =IF(B29="","",VLOOKUP(B29,sanschie!$A:$I,9,0)) -> 93 | L29: 611 | M29: 0 | N29: =IF(B29="","0",IF(VLOOKUP(B29,sanschie!$A:$K,10,0)=0,"0",IF(VLOOKUP(B29,sanschie!$A:$K,10,0)="","0",(VLOOKUP(B29,sanschie!$A:$K,10,0))))) -> 1070 | Q29: 0 | R29: =IF(B29="","",IF(H29="N",VLOOKUP(B29,sanschie!$A:$K,7,0),VLOOKUP(B29,sanschie!$A:$K,7,0))) -> 611
A30: 0 | B30: 103953 | C30: =IF(B30="","",VLOOKUP(B30,sanschie!A:E,5,0)) -> ABS 180 Profilkeramik-Rohr mit Muffe L660mm | G30: =IF(B30="","",VLOOKUP(B30,sanschie!A:D,4,0)) -> STK | H30: =IF(B30="","",VLOOKUP(B30,sanschie!A:P,16,0)) -> 1 | I30: =IF(B30="","",IF(H30="N",VLOOKUP(B30,sanschie!$A:$K,7,0),VLOOKUP(B30,sanschie!$A:$K,7,0)*(1-Eingabe!$O$20))) -> 69 | K30: =IF(B30="","",VLOOKUP(B30,sanschie!$A:$I,9,0)) -> 5.9 | M30: 0 | N30: =IF(B30="","0",IF(VLOOKUP(B30,sanschie!$A:$K,10,0)=0,"0",IF(VLOOKUP(B30,sanschie!$A:$K,10,0)="","0",(VLOOKUP(B30,sanschie!$A:$K,10,0))))) -> 0 | Q30: 0 | R30: =IF(B30="","",IF(H30="N",VLOOKUP(B30,sanschie!$A:$K,7,0),VLOOKUP(B30,sanschie!$A:$K,7,0))) -> 69
A31: 0 | B31: 103891 | C31: =IF(B31="","",VLOOKUP(B31,sanschie!A:E,5,0)) -> ABS 180 Fertigfusspaket | D31: 6.9 | E31: 0 | F31: 1 | G31: =IF(B31="","",VLOOKUP(B31,sanschie!A:D,4,0)) -> STK | H31: =IF(B31="","",VLOOKUP(B31,sanschie!A:P,16,0)) -> 1 | I31: =IF(B31="","",IF(H31="N",VLOOKUP(B31,sanschie!$A:$K,7,0),VLOOKUP(B31,sanschie!$A:$K,7,0)*(1-Eingabe!$O$20))) -> 311 | J31: 311 | K31: =IF(B31="","",VLOOKUP(B31,sanschie!$A:$I,9,0)) -> 6.9 | L31: 311 | M31: 0 | N31: =IF(B31="","0",IF(VLOOKUP(B31,sanschie!$A:$K,10,0)=0,"0",IF(VLOOKUP(B31,sanschie!$A:$K,10,0)="","0",(VLOOKUP(B31,sanschie!$A:$K,10,0))))) -> 0 | Q31: 0 | R31: =IF(B31="","",IF(H31="N",VLOOKUP(B31,sanschie!$A:$K,7,0),VLOOKUP(B31,sanschie!$A:$K,7,0))) -> 311
A32: 0 | B32: 103709 | C32: =IF(B32="","",VLOOKUP(B32,sanschie!A:E,5,0)) -> CHZ 120-160 Füllstein zu Schnellbaufund. L330mm | G32: =IF(B32="","",VLOOKUP(B32,sanschie!A:D,4,0)) -> STK | H32: =IF(B32="","",VLOOKUP(B32,sanschie!A:P,16,0)) -> 1 | I32: =IF(B32="","",IF(H32="N",VLOOKUP(B32,sanschie!$A:$K,7,0),VLOOKUP(B32,sanschie!$A:$K,7,0)*(1-Eingabe!$O$20))) -> 18 | K32: =IF(B32="","",VLOOKUP(B32,sanschie!$A:$I,9,0)) -> 4 | M32: 0 | N32: =IF(B32="","0",IF(VLOOKUP(B32,sanschie!$A:$K,10,0)=0,"0",IF(VLOOKUP(B32,sanschie!$A:$K,10,0)="","0",(VLOOKUP(B32,sanschie!$A:$K,10,0))))) -> 0 | Q32: 0 | R32: =IF(B32="","",IF(H32="N",VLOOKUP(B32,sanschie!$A:$K,7,0),VLOOKUP(B32,sanschie!$A:$K,7,0))) -> 18
A33: 0 | B33: 103700 | C33: =IF(B33="","",VLOOKUP(B33,sanschie!A:E,5,0)) -> CHZ 180 Keramik Fuss-Scheibe geschlossen | G33: =IF(B33="","",VLOOKUP(B33,sanschie!A:D,4,0)) -> STK | H33: =IF(B33="","",VLOOKUP(B33,sanschie!A:P,16,0)) -> 1 | I33: =IF(B33="","",IF(H33="N",VLOOKUP(B33,sanschie!$A:$K,7,0),VLOOKUP(B33,sanschie!$A:$K,7,0)*(1-Eingabe!$O$20))) -> 35 | K33: =IF(B33="","",VLOOKUP(B33,sanschie!$A:$I,9,0)) -> 2 | M33: 0 | N33: =IF(B33="","0",IF(VLOOKUP(B33,sanschie!$A:$K,10,0)=0,"0",IF(VLOOKUP(B33,sanschie!$A:$K,10,0)="","0",(VLOOKUP(B33,sanschie!$A:$K,10,0))))) -> 0 | Q33: 0 | R33: =IF(B33="","",IF(H33="N",VLOOKUP(B33,sanschie!$A:$K,7,0),VLOOKUP(B33,sanschie!$A:$K,7,0))) -> 35
A34: 0 | B34: 103871 | C34: =IF(B34="","",VLOOKUP(B34,sanschie!A:E,5,0)) -> ABS Sockelplatte aus Beton EZ 360 x 360mm | G34: =IF(B34="","",VLOOKUP(B34,sanschie!A:D,4,0)) -> STK | H34: =IF(B34="","",VLOOKUP(B34,sanschie!A:P,16,0)) -> 1 | I34: =IF(B34="","",IF(H34="N",VLOOKUP(B34,sanschie!$A:$K,7,0),VLOOKUP(B34,sanschie!$A:$K,7,0)*(1-Eingabe!$O$20))) -> 155 | K34: =IF(B34="","",VLOOKUP(B34,sanschie!$A:$I,9,0)) -> 25 | M34: 0 | N34: =IF(B34="","0",IF(VLOOKUP(B34,sanschie!$A:$K,10,0)=0,"0",IF(VLOOKUP(B34,sanschie!$A:$K,10,0)="","0",(VLOOKUP(B34,sanschie!$A:$K,10,0))))) -> 0 | Q34: 0 | R34: =IF(B34="","",IF(H34="N",VLOOKUP(B34,sanschie!$A:$K,7,0),VLOOKUP(B34,sanschie!$A:$K,7,0))) -> 155
A35: 0 | B35: 103983 | C35: =IF(B35="","",VLOOKUP(B35,sanschie!A:E,5,0)) -> ABS 180 Rauchrohr-Anschlusspaket 90° RA | D35: 16.1 | E35: 1330 | F35: 1 | G35: =IF(B35="","",VLOOKUP(B35,sanschie!A:D,4,0)) -> STK | H35: =IF(B35="","",VLOOKUP(B35,sanschie!A:P,16,0)) -> 1 | I35: =IF(B35="","",IF(H35="N",VLOOKUP(B35,sanschie!$A:$K,7,0),VLOOKUP(B35,sanschie!$A:$K,7,0)*(1-Eingabe!$O$20))) -> 386 | J35: 386 | K35: =IF(B35="","",VLOOKUP(B35,sanschie!$A:$I,9,0)) -> 16.1 | L35: 386 | M35: 0 | N35: =IF(B35="","0",IF(VLOOKUP(B35,sanschie!$A:$K,10,0)=0,"0",IF(VLOOKUP(B35,sanschie!$A:$K,10,0)="","0",(VLOOKUP(B35,sanschie!$A:$K,10,0))))) -> 1330 | Q35: 0 | R35: =IF(B35="","",IF(H35="N",VLOOKUP(B35,sanschie!$A:$K,7,0),VLOOKUP(B35,sanschie!$A:$K,7,0))) -> 386
A36: 0 | B36: 103995 | C36: =IF(B36="","",VLOOKUP(B36,sanschie!A:E,5,0)) -> ABS 180 Rauchrohr-Anschlusspaket 45° RA | G36: =IF(B36="","",VLOOKUP(B36,sanschie!A:D,4,0)) -> STK | H36: =IF(B36="","",VLOOKUP(B36,sanschie!A:P,16,0)) -> 1 | I36: =IF(B36="","",IF(H36="N",VLOOKUP(B36,sanschie!$A:$K,7,0),VLOOKUP(B36,sanschie!$A:$K,7,0)*(1-Eingabe!$O$20))) -> 404 | K36: =IF(B36="","",VLOOKUP(B36,sanschie!$A:$I,9,0)) -> 17.2 | M36: 0 | N36: =IF(B36="","0",IF(VLOOKUP(B36,sanschie!$A:$K,10,0)=0,"0",IF(VLOOKUP(B36,sanschie!$A:$K,10,0)="","0",(VLOOKUP(B36,sanschie!$A:$K,10,0))))) -> 1330 | Q36: 0 | R36: =IF(B36="","",IF(H36="N",VLOOKUP(B36,sanschie!$A:$K,7,0),VLOOKUP(B36,sanschie!$A:$K,7,0))) -> 404
A37: 0 | B37: 104001 | C37: =IF(B37="","",VLOOKUP(B37,sanschie!A:E,5,0)) -> ABS 180 Rauchrohranschluss Stutzen-Set 90° Ø180mm | G37: =IF(B37="","",VLOOKUP(B37,sanschie!A:D,4,0)) -> STK | H37: =IF(B37="","",VLOOKUP(B37,sanschie!A:P,16,0)) -> 1 | I37: =IF(B37="","",IF(H37="N",VLOOKUP(B37,sanschie!$A:$K,7,0),VLOOKUP(B37,sanschie!$A:$K,7,0)*(1-Eingabe!$O$20))) -> 204 | K37: =IF(B37="","",VLOOKUP(B37,sanschie!$A:$I,9,0)) -> 4.1 | M37: 0 | N37: =IF(B37="","0",IF(VLOOKUP(B37,sanschie!$A:$K,10,0)=0,"0",IF(VLOOKUP(B37,sanschie!$A:$K,10,0)="","0",(VLOOKUP(B37,sanschie!$A:$K,10,0))))) -> 0 | Q37: 0 | R37: =IF(B37="","",IF(H37="N",VLOOKUP(B37,sanschie!$A:$K,7,0),VLOOKUP(B37,sanschie!$A:$K,7,0))) -> 204
A38: 0 | B38: 104007 | C38: =IF(B38="","",VLOOKUP(B38,sanschie!A:E,5,0)) -> ABS 180 Rauchrohranschluss Stutzen-Set 45° | G38: =IF(B38="","",VLOOKUP(B38,sanschie!A:D,4,0)) -> STK | H38: =IF(B38="","",VLOOKUP(B38,sanschie!A:P,16,0)) -> 1 | I38: =IF(B38="","",IF(H38="N",VLOOKUP(B38,sanschie!$A:$K,7,0),VLOOKUP(B38,sanschie!$A:$K,7,0)*(1-Eingabe!$O$20))) -> 204 | K38: =IF(B38="","",VLOOKUP(B38,sanschie!$A:$I,9,0)) -> 5.17 | M38: 0 | N38: =IF(B38="","0",IF(VLOOKUP(B38,sanschie!$A:$K,10,0)=0,"0",IF(VLOOKUP(B38,sanschie!$A:$K,10,0)="","0",(VLOOKUP(B38,sanschie!$A:$K,10,0))))) -> 0 | Q38: 0 | R38: =IF(B38="","",IF(H38="N",VLOOKUP(B38,sanschie!$A:$K,7,0),VLOOKUP(B38,sanschie!$A:$K,7,0))) -> 204
A39: 0 | B39: 104268 | C39: =IF(B39="","",VLOOKUP(B39,sanschie!A:E,5,0)) -> ABS 180 Steckadapter | G39: =IF(B39="","",VLOOKUP(B39,sanschie!A:D,4,0)) -> STK | H39: =IF(B39="","",VLOOKUP(B39,sanschie!A:P,16,0)) -> 1 | I39: =IF(B39="","",IF(H39="N",VLOOKUP(B39,sanschie!$A:$K,7,0),VLOOKUP(B39,sanschie!$A:$K,7,0)*(1-Eingabe!$O$20))) -> 173 | K39: =IF(B39="","",VLOOKUP(B39,sanschie!$A:$I,9,0)) -> 0.338 | M39: 0 | N39: =IF(B39="","0",IF(VLOOKUP(B39,sanschie!$A:$K,10,0)=0,"0",IF(VLOOKUP(B39,sanschie!$A:$K,10,0)="","0",(VLOOKUP(B39,sanschie!$A:$K,10,0))))) -> 0 | Q39: 0 | R39: =IF(B39="","",IF(H39="N",VLOOKUP(B39,sanschie!$A:$K,7,0),VLOOKUP(B39,sanschie!$A:$K,7,0))) -> 173
A40: 0 | B40: 103966 | C40: =IF(B40="","",VLOOKUP(B40,sanschie!A:E,5,0)) -> ABS 180 Putztür-Anschlusspaket | G40: =IF(B40="","",VLOOKUP(B40,sanschie!A:D,4,0)) -> STK | H40: =IF(B40="","",VLOOKUP(B40,sanschie!A:P,16,0)) -> 1 | I40: =IF(B40="","",IF(H40="N",VLOOKUP(B40,sanschie!$A:$K,7,0),VLOOKUP(B40,sanschie!$A:$K,7,0)*(1-Eingabe!$O$20))) -> 448 | K40: =IF(B40="","",VLOOKUP(B40,sanschie!$A:$I,9,0)) -> 19.31 | M40: 0 | N40: =IF(B40="","0",IF(VLOOKUP(B40,sanschie!$A:$K,10,0)=0,"0",IF(VLOOKUP(B40,sanschie!$A:$K,10,0)="","0",(VLOOKUP(B40,sanschie!$A:$K,10,0))))) -> 1330 | Q40: 0 | R40: =IF(B40="","",IF(H40="N",VLOOKUP(B40,sanschie!$A:$K,7,0),VLOOKUP(B40,sanschie!$A:$K,7,0))) -> 448
A41: 0 | B41: 104274 | C41: =IF(B41="","",VLOOKUP(B41,sanschie!A:E,5,0)) -> ABS 180 Putztüranschluss Stutzen Set | G41: =IF(B41="","",VLOOKUP(B41,sanschie!A:D,4,0)) -> STK | H41: =IF(B41="","",VLOOKUP(B41,sanschie!A:P,16,0)) -> 1 | I41: =IF(B41="","",IF(H41="N",VLOOKUP(B41,sanschie!$A:$K,7,0),VLOOKUP(B41,sanschie!$A:$K,7,0)*(1-Eingabe!$O$20))) -> 336 | K41: =IF(B41="","",VLOOKUP(B41,sanschie!$A:$I,9,0)) -> 5.1 | M41: 0 | N41: =IF(B41="","0",IF(VLOOKUP(B41,sanschie!$A:$K,10,0)=0,"0",IF(VLOOKUP(B41,sanschie!$A:$K,10,0)="","0",(VLOOKUP(B41,sanschie!$A:$K,10,0))))) -> 0 | Q41: 0 | R41: =IF(B41="","",IF(H41="N",VLOOKUP(B41,sanschie!$A:$K,7,0),VLOOKUP(B41,sanschie!$A:$K,7,0))) -> 336
A42: 0 | B42: 104243 | C42: =IF(B42="","",VLOOKUP(B42,sanschie!A:E,5,0)) -> ABS Dichtset zu Putztüre Typ 3 | G42: =IF(B42="","",VLOOKUP(B42,sanschie!A:D,4,0)) -> STK | H42: =IF(B42="","",VLOOKUP(B42,sanschie!A:P,16,0)) -> 1 | I42: =IF(B42="","",IF(H42="N",VLOOKUP(B42,sanschie!$A:$K,7,0),VLOOKUP(B42,sanschie!$A:$K,7,0)*(1-Eingabe!$O$20))) -> 27 | K42: =IF(B42="","",VLOOKUP(B42,sanschie!$A:$I,9,0)) -> 0.2 | M42: 0 | N42: =IF(B42="","0",IF(VLOOKUP(B42,sanschie!$A:$K,10,0)=0,"0",IF(VLOOKUP(B42,sanschie!$A:$K,10,0)="","0",(VLOOKUP(B42,sanschie!$A:$K,10,0))))) -> 0 | Q42: 0 | R42: =IF(B42="","",IF(H42="N",VLOOKUP(B42,sanschie!$A:$K,7,0),VLOOKUP(B42,sanschie!$A:$K,7,0))) -> 27
A43: 0 | B43: 104190 | C43: =IF(B43="","",VLOOKUP(B43,sanschie!A:E,5,0)) -> ABS Thermodichtset EZ 360x360mm und 380x380mm | G43: =IF(B43="","",VLOOKUP(B43,sanschie!A:D,4,0)) -> STK | H43: =IF(B43="","",VLOOKUP(B43,sanschie!A:P,16,0)) -> 1 | I43: =IF(B43="","",IF(H43="N",VLOOKUP(B43,sanschie!$A:$K,7,0),VLOOKUP(B43,sanschie!$A:$K,7,0)*(1-Eingabe!$O$20))) -> 309 | K43: =IF(B43="","",VLOOKUP(B43,sanschie!$A:$I,9,0)) -> 2 | M43: 0 | N43: =IF(B43="","0",IF(VLOOKUP(B43,sanschie!$A:$K,10,0)=0,"0",IF(VLOOKUP(B43,sanschie!$A:$K,10,0)="","0",(VLOOKUP(B43,sanschie!$A:$K,10,0))))) -> 0 | Q43: 0 | R43: =IF(B43="","",IF(H43="N",VLOOKUP(B43,sanschie!$A:$K,7,0),VLOOKUP(B43,sanschie!$A:$K,7,0))) -> 309
A44: 0 | B44: 104144 | C44: =IF(B44="","",VLOOKUP(B44,sanschie!A:E,5,0)) -> ABS Handyplatte EZ Faserzement 360 x 360mm | D44: 14.4 | E44: 0 | F44: 1 | G44: =IF(B44="","",VLOOKUP(B44,sanschie!A:D,4,0)) -> STK | H44: =IF(B44="","",VLOOKUP(B44,sanschie!A:P,16,0)) -> 1 | I44: =IF(B44="","",IF(H44="N",VLOOKUP(B44,sanschie!$A:$K,7,0),VLOOKUP(B44,sanschie!$A:$K,7,0)*(1-Eingabe!$O$20))) -> 106 | J44: 106 | K44: =IF(B44="","",VLOOKUP(B44,sanschie!$A:$I,9,0)) -> 14.4 | L44: 106 | M44: 0 | N44: =IF(B44="","0",IF(VLOOKUP(B44,sanschie!$A:$K,10,0)=0,"0",IF(VLOOKUP(B44,sanschie!$A:$K,10,0)="","0",(VLOOKUP(B44,sanschie!$A:$K,10,0))))) -> 0 | Q44: 0 | R44: =IF(B44="","",IF(H44="N",VLOOKUP(B44,sanschie!$A:$K,7,0),VLOOKUP(B44,sanschie!$A:$K,7,0))) -> 106
A45: 0 | B45: 104170 | C45: =IF(B45="","",VLOOKUP(B45,sanschie!A:E,5,0)) -> ABS Handyplatte EZ Inox 360 x 360mm | G45: =IF(B45="","",VLOOKUP(B45,sanschie!A:D,4,0)) -> STK | H45: =IF(B45="","",VLOOKUP(B45,sanschie!A:P,16,0)) -> 1 | I45: =IF(B45="","",IF(H45="N",VLOOKUP(B45,sanschie!$A:$K,7,0),VLOOKUP(B45,sanschie!$A:$K,7,0)*(1-Eingabe!$O$20))) -> 155 | K45: =IF(B45="","",VLOOKUP(B45,sanschie!$A:$I,9,0)) -> 3.4 | M45: 0 | N45: =IF(B45="","0",IF(VLOOKUP(B45,sanschie!$A:$K,10,0)=0,"0",IF(VLOOKUP(B45,sanschie!$A:$K,10,0)="","0",(VLOOKUP(B45,sanschie!$A:$K,10,0))))) -> 0 | Q45: 0 | R45: =IF(B45="","",IF(H45="N",VLOOKUP(B45,sanschie!$A:$K,7,0),VLOOKUP(B45,sanschie!$A:$K,7,0))) -> 155
A46: 0 | B46: 104162 | C46: =IF(B46="","",VLOOKUP(B46,sanschie!A:E,5,0)) -> ABS HEB-Set zu Handyplatte aus Faserzement | D46: 0.77 | E46: 0 | F46: 1 | G46: =IF(B46="","",VLOOKUP(B46,sanschie!A:D,4,0)) -> STK | H46: =IF(B46="","",VLOOKUP(B46,sanschie!A:P,16,0)) -> 1 | I46: =IF(B46="","",IF(H46="N",VLOOKUP(B46,sanschie!$A:$K,7,0),VLOOKUP(B46,sanschie!$A:$K,7,0)*(1-Eingabe!$O$20))) -> 34 | J46: 34 | K46: =IF(B46="","",VLOOKUP(B46,sanschie!$A:$I,9,0)) -> 0.77 | L46: 34 | M46: 0 | N46: =IF(B46="","0",IF(VLOOKUP(B46,sanschie!$A:$K,10,0)=0,"0",IF(VLOOKUP(B46,sanschie!$A:$K,10,0)="","0",(VLOOKUP(B46,sanschie!$A:$K,10,0))))) -> 0 | Q46: 0 | R46: =IF(B46="","",IF(H46="N",VLOOKUP(B46,sanschie!$A:$K,7,0),VLOOKUP(B46,sanschie!$A:$K,7,0))) -> 34
A47: 0 | B47: 104175 | C47: =IF(B47="","",VLOOKUP(B47,sanschie!A:E,5,0)) -> ABS HEB-Set zu Handyplatte EZ Inox | G47: =IF(B47="","",VLOOKUP(B47,sanschie!A:D,4,0)) -> STK | H47: =IF(B47="","",VLOOKUP(B47,sanschie!A:P,16,0)) -> 1 | I47: =IF(B47="","",IF(H47="N",VLOOKUP(B47,sanschie!$A:$K,7,0),VLOOKUP(B47,sanschie!$A:$K,7,0)*(1-Eingabe!$O$20))) -> 34 | K47: =IF(B47="","",VLOOKUP(B47,sanschie!$A:$I,9,0)) -> 0.77 | M47: 0 | N47: =IF(B47="","0",IF(VLOOKUP(B47,sanschie!$A:$K,10,0)=0,"0",IF(VLOOKUP(B47,sanschie!$A:$K,10,0)="","0",(VLOOKUP(B47,sanschie!$A:$K,10,0))))) -> 0 | Q47: 0 | R47: =IF(B47="","",IF(H47="N",VLOOKUP(B47,sanschie!$A:$K,7,0),VLOOKUP(B47,sanschie!$A:$K,7,0))) -> 34
A48: 0 | B48: 140787 | C48: =IF(B48="","",VLOOKUP(B48,sanschie!A:E,5,0)) -> ABS Handyplatte EZ Kupfer 360 x 360mm | G48: =IF(B48="","",VLOOKUP(B48,sanschie!A:D,4,0)) -> Stk | H48: =IF(B48="","",VLOOKUP(B48,sanschie!A:P,16,0)) -> 0 | I48: =IF(B48="","",IF(H48="N",VLOOKUP(B48,sanschie!$A:$K,7,0),VLOOKUP(B48,sanschie!$A:$K,7,0)*(1-Eingabe!$O$20))) -> 229 | K48: =IF(B48="","",VLOOKUP(B48,sanschie!$A:$I,9,0)) -> 3.4 | L48: 0 | M48: 0 | N48: =IF(B48="","0",IF(VLOOKUP(B48,sanschie!$A:$K,10,0)=0,"0",IF(VLOOKUP(B48,sanschie!$A:$K,10,0)="","0",(VLOOKUP(B48,sanschie!$A:$K,10,0))))) -> 0 | Q48: 0 | R48: =IF(B48="","",IF(H48="N",VLOOKUP(B48,sanschie!$A:$K,7,0),VLOOKUP(B48,sanschie!$A:$K,7,0))) -> 229
A49: 0 | B49: 140932 | C49: =IF(B49="","",VLOOKUP(B49,sanschie!A:E,5,0)) -> ABS HEB-Set zu Handyplatte EZ CU kurze Schrauben | G49: =IF(B49="","",VLOOKUP(B49,sanschie!A:D,4,0)) -> Stk | H49: =IF(B49="","",VLOOKUP(B49,sanschie!A:P,16,0)) -> 0 | I49: =IF(B49="","",IF(H49="N",VLOOKUP(B49,sanschie!$A:$K,7,0),VLOOKUP(B49,sanschie!$A:$K,7,0)*(1-Eingabe!$O$20))) -> 75 | K49: =IF(B49="","",VLOOKUP(B49,sanschie!$A:$I,9,0)) -> 0.07 | L49: 0 | M49: 0 | N49: =IF(B49="","0",IF(VLOOKUP(B49,sanschie!$A:$K,10,0)=0,"0",IF(VLOOKUP(B49,sanschie!$A:$K,10,0)="","0",(VLOOKUP(B49,sanschie!$A:$K,10,0))))) -> 0 | Q49: 0 | R49: =IF(B49="","",IF(H49="N",VLOOKUP(B49,sanschie!$A:$K,7,0),VLOOKUP(B49,sanschie!$A:$K,7,0))) -> 75
A50: 0 | B50: 104206 | C50: =IF(B50="","",VLOOKUP(B50,sanschie!A:E,5,0)) -> ABS 180 Abströmkonus verkupfert | G50: =IF(B50="","",VLOOKUP(B50,sanschie!A:D,4,0)) -> STK | H50: =IF(B50="","",VLOOKUP(B50,sanschie!A:P,16,0)) -> 1 | I50: =IF(B50="","",IF(H50="N",VLOOKUP(B50,sanschie!$A:$K,7,0),VLOOKUP(B50,sanschie!$A:$K,7,0)*(1-Eingabe!$O$20))) -> 174 | K50: =IF(B50="","",VLOOKUP(B50,sanschie!$A:$I,9,0)) -> 1 | M50: 0 | N50: =IF(B50="","0",IF(VLOOKUP(B50,sanschie!$A:$K,10,0)=0,"0",IF(VLOOKUP(B50,sanschie!$A:$K,10,0)="","0",(VLOOKUP(B50,sanschie!$A:$K,10,0))))) -> 0 | Q50: 0 | R50: =IF(B50="","",IF(H50="N",VLOOKUP(B50,sanschie!$A:$K,7,0),VLOOKUP(B50,sanschie!$A:$K,7,0))) -> 174
A51: 0 | B51: 103917 | C51: =IF(B51="","",VLOOKUP(B51,sanschie!A:E,5,0)) -> ABS Anschlussmantelstein EZ 360 x 360mm L330 | D51: 21.51 | E51: 0 | F51: 1 | G51: =IF(B51="","",VLOOKUP(B51,sanschie!A:D,4,0)) -> STK | H51: =IF(B51="","",VLOOKUP(B51,sanschie!A:P,16,0)) -> 1 | I51: =IF(B51="","",IF(H51="N",VLOOKUP(B51,sanschie!$A:$K,7,0),VLOOKUP(B51,sanschie!$A:$K,7,0)*(1-Eingabe!$O$20))) -> 80 | J51: 80 | K51: =IF(B51="","",VLOOKUP(B51,sanschie!$A:$I,9,0)) -> 21.51 | L51: 80 | M51: 0 | N51: =IF(B51="","0",IF(VLOOKUP(B51,sanschie!$A:$K,10,0)=0,"0",IF(VLOOKUP(B51,sanschie!$A:$K,10,0)="","0",(VLOOKUP(B51,sanschie!$A:$K,10,0))))) -> 0 | Q51: 0 | R51: =IF(B51="","",IF(H51="N",VLOOKUP(B51,sanschie!$A:$K,7,0),VLOOKUP(B51,sanschie!$A:$K,7,0))) -> 80
A52: 0 | B52: 104059 | C52: =IF(B52="","",VLOOKUP(B52,sanschie!A:E,5,0)) -> ABS 180 Schleifung EZ 5° auf Bestellung | G52: =IF(B52="","",VLOOKUP(B52,sanschie!A:D,4,0)) -> STK | H52: =IF(B52="","",VLOOKUP(B52,sanschie!A:P,16,0)) -> 1 | I52: =IF(B52="","",IF(H52="N",VLOOKUP(B52,sanschie!$A:$K,7,0),VLOOKUP(B52,sanschie!$A:$K,7,0)*(1-Eingabe!$O$20))) -> 1010 | K52: =IF(B52="","",VLOOKUP(B52,sanschie!$A:$I,9,0)) -> 25 | M52: 0 | N52: =IF(B52="","0",IF(VLOOKUP(B52,sanschie!$A:$K,10,0)=0,"0",IF(VLOOKUP(B52,sanschie!$A:$K,10,0)="","0",(VLOOKUP(B52,sanschie!$A:$K,10,0))))) -> 0 | Q52: 0 | R52: =IF(B52="","",IF(H52="N",VLOOKUP(B52,sanschie!$A:$K,7,0),VLOOKUP(B52,sanschie!$A:$K,7,0))) -> 1010
A53: 0 | B53: 104083 | C53: =IF(B53="","",VLOOKUP(B53,sanschie!A:E,5,0)) -> ABS 180 Abstandhalter offen zu Schleifung | G53: =IF(B53="","",VLOOKUP(B53,sanschie!A:D,4,0)) -> STK | H53: =IF(B53="","",VLOOKUP(B53,sanschie!A:P,16,0)) -> 1 | I53: =IF(B53="","",IF(H53="N",VLOOKUP(B53,sanschie!$A:$K,7,0),VLOOKUP(B53,sanschie!$A:$K,7,0)*(1-Eingabe!$O$20))) -> 27 | K53: =IF(B53="","",VLOOKUP(B53,sanschie!$A:$I,9,0)) -> 0.1 | M53: 0 | N53: =IF(B53="","0",IF(VLOOKUP(B53,sanschie!$A:$K,10,0)=0,"0",IF(VLOOKUP(B53,sanschie!$A:$K,10,0)="","0",(VLOOKUP(B53,sanschie!$A:$K,10,0))))) -> 0 | Q53: 0 | R53: =IF(B53="","",IF(H53="N",VLOOKUP(B53,sanschie!$A:$K,7,0),VLOOKUP(B53,sanschie!$A:$K,7,0))) -> 27
A54: 0 | B54: 103899 | C54: =IF(B54="","",VLOOKUP(B54,sanschie!A:E,5,0)) -> ABS 180 Anschlusskonus EZ mit Doppelfutter DN180mm | G54: =IF(B54="","",VLOOKUP(B54,sanschie!A:D,4,0)) -> STK | H54: =IF(B54="","",VLOOKUP(B54,sanschie!A:P,16,0)) -> 1 | I54: =IF(B54="","",IF(H54="N",VLOOKUP(B54,sanschie!$A:$K,7,0),VLOOKUP(B54,sanschie!$A:$K,7,0)*(1-Eingabe!$O$20))) -> 266 | K54: =IF(B54="","",VLOOKUP(B54,sanschie!$A:$I,9,0)) -> 25 | M54: 0 | N54: =IF(B54="","0",IF(VLOOKUP(B54,sanschie!$A:$K,10,0)=0,"0",IF(VLOOKUP(B54,sanschie!$A:$K,10,0)="","0",(VLOOKUP(B54,sanschie!$A:$K,10,0))))) -> 0 | Q54: 0 | R54: =IF(B54="","",IF(H54="N",VLOOKUP(B54,sanschie!$A:$K,7,0),VLOOKUP(B54,sanschie!$A:$K,7,0))) -> 266
A55: 0 | B55: 103907 | C55: =IF(B55="","",VLOOKUP(B55,sanschie!A:E,5,0)) -> ABS 180 Adapterring von 180mm auf 180mm L90mm | G55: =IF(B55="","",VLOOKUP(B55,sanschie!A:D,4,0)) -> STK | H55: =IF(B55="","",VLOOKUP(B55,sanschie!A:P,16,0)) -> 1 | I55: =IF(B55="","",IF(H55="N",VLOOKUP(B55,sanschie!$A:$K,7,0),VLOOKUP(B55,sanschie!$A:$K,7,0)*(1-Eingabe!$O$20))) -> 46 | K55: =IF(B55="","",VLOOKUP(B55,sanschie!$A:$I,9,0)) -> 2.5 | M55: 0 | N55: =IF(B55="","0",IF(VLOOKUP(B55,sanschie!$A:$K,10,0)=0,"0",IF(VLOOKUP(B55,sanschie!$A:$K,10,0)="","0",(VLOOKUP(B55,sanschie!$A:$K,10,0))))) -> 0 | Q55: 0 | R55: =IF(B55="","",IF(H55="N",VLOOKUP(B55,sanschie!$A:$K,7,0),VLOOKUP(B55,sanschie!$A:$K,7,0))) -> 46
A56: 0 | B56: 103474 | C56: =IF(B56="","",VLOOKUP(B56,sanschie!A:E,5,0)) -> KER 180 Keranova-Fugenglätter | G56: =IF(B56="","",VLOOKUP(B56,sanschie!A:D,4,0)) -> STK | H56: =IF(B56="","",VLOOKUP(B56,sanschie!A:P,16,0)) -> 1 | I56: =IF(B56="","",IF(H56="N",VLOOKUP(B56,sanschie!$A:$K,7,0),VLOOKUP(B56,sanschie!$A:$K,7,0)*(1-Eingabe!$O$20))) -> 61 | K56: =IF(B56="","",VLOOKUP(B56,sanschie!$A:$I,9,0)) -> 0.452 | M56: 0 | N56: =IF(B56="","0",IF(VLOOKUP(B56,sanschie!$A:$K,10,0)=0,"0",IF(VLOOKUP(B56,sanschie!$A:$K,10,0)="","0",(VLOOKUP(B56,sanschie!$A:$K,10,0))))) -> 0 | Q56: 0 | R56: =IF(B56="","",IF(H56="N",VLOOKUP(B56,sanschie!$A:$K,7,0),VLOOKUP(B56,sanschie!$A:$K,7,0))) -> 61
A57: 0 | B57: 104014 | C57: =IF(B57="","",VLOOKUP(B57,sanschie!A:E,5,0)) -> ABS 180 Doppelfutter zu Rauchrohranschluss Ø100mm | G57: =IF(B57="","",VLOOKUP(B57,sanschie!A:D,4,0)) -> STK | H57: =IF(B57="","",VLOOKUP(B57,sanschie!A:P,16,0)) -> 1 | I57: =IF(B57="","",IF(H57="N",VLOOKUP(B57,sanschie!$A:$K,7,0),VLOOKUP(B57,sanschie!$A:$K,7,0)*(1-Eingabe!$O$20))) -> 149 | K57: =IF(B57="","",VLOOKUP(B57,sanschie!$A:$I,9,0)) -> 1 | L57: =IF(H57=1,J57,0) ->  | M57: =IF(H57=2,J57,0) -> 0 | N57: =IF(B57="","0",IF(VLOOKUP(B57,sanschie!$A:$K,10,0)=0,"0",IF(VLOOKUP(B57,sanschie!$A:$K,10,0)="","0",(VLOOKUP(B57,sanschie!$A:$K,10,0))))) -> 0 | Q57: 0 | R57: =IF(B57="","",IF(H57="N",VLOOKUP(B57,sanschie!$A:$K,7,0),VLOOKUP(B57,sanschie!$A:$K,7,0))) -> 149
A58: 0 | B58: 104015 | C58: =IF(B58="","",VLOOKUP(B58,sanschie!A:E,5,0)) -> ABS 180 Doppelfutter zu Rauchrohranschluss Ø120mm | G58: =IF(B58="","",VLOOKUP(B58,sanschie!A:D,4,0)) -> STK | H58: =IF(B58="","",VLOOKUP(B58,sanschie!A:P,16,0)) -> 1 | I58: =IF(B58="","",IF(H58="N",VLOOKUP(B58,sanschie!$A:$K,7,0),VLOOKUP(B58,sanschie!$A:$K,7,0)*(1-Eingabe!$O$20))) -> 160 | K58: =IF(B58="","",VLOOKUP(B58,sanschie!$A:$I,9,0)) -> 1 | M58: 0 | N58: =IF(B58="","0",IF(VLOOKUP(B58,sanschie!$A:$K,10,0)=0,"0",IF(VLOOKUP(B58,sanschie!$A:$K,10,0)="","0",(VLOOKUP(B58,sanschie!$A:$K,10,0))))) -> 0 | Q58: 0 | R58: =IF(B58="","",IF(H58="N",VLOOKUP(B58,sanschie!$A:$K,7,0),VLOOKUP(B58,sanschie!$A:$K,7,0))) -> 160
A59: 0 | B59: 104016 | C59: =IF(B59="","",VLOOKUP(B59,sanschie!A:E,5,0)) -> ABS 180 Doppelfutter zu Rauchrohranschluss Ø130mm | G59: =IF(B59="","",VLOOKUP(B59,sanschie!A:D,4,0)) -> STK | H59: =IF(B59="","",VLOOKUP(B59,sanschie!A:P,16,0)) -> 1 | I59: =IF(B59="","",IF(H59="N",VLOOKUP(B59,sanschie!$A:$K,7,0),VLOOKUP(B59,sanschie!$A:$K,7,0)*(1-Eingabe!$O$20))) -> 173 | K59: =IF(B59="","",VLOOKUP(B59,sanschie!$A:$I,9,0)) -> 1 | M59: 0 | N59: =IF(B59="","0",IF(VLOOKUP(B59,sanschie!$A:$K,10,0)=0,"0",IF(VLOOKUP(B59,sanschie!$A:$K,10,0)="","0",(VLOOKUP(B59,sanschie!$A:$K,10,0))))) -> 0 | Q59: 0 | R59: =IF(B59="","",IF(H59="N",VLOOKUP(B59,sanschie!$A:$K,7,0),VLOOKUP(B59,sanschie!$A:$K,7,0))) -> 173
A60: 0 | B60: 104017 | C60: =IF(B60="","",VLOOKUP(B60,sanschie!A:E,5,0)) -> ABS 180 Doppelfutter zu Rauchrohranschluss Ø150mm | G60: =IF(B60="","",VLOOKUP(B60,sanschie!A:D,4,0)) -> STK | H60: =IF(B60="","",VLOOKUP(B60,sanschie!A:P,16,0)) -> 1 | I60: =IF(B60="","",IF(H60="N",VLOOKUP(B60,sanschie!$A:$K,7,0),VLOOKUP(B60,sanschie!$A:$K,7,0)*(1-Eingabe!$O$20))) -> 184 | K60: =IF(B60="","",VLOOKUP(B60,sanschie!$A:$I,9,0)) -> 1 | M60: 0 | N60: =IF(B60="","0",IF(VLOOKUP(B60,sanschie!$A:$K,10,0)=0,"0",IF(VLOOKUP(B60,sanschie!$A:$K,10,0)="","0",(VLOOKUP(B60,sanschie!$A:$K,10,0))))) -> 0 | Q60: 0 | R60: =IF(B60="","",IF(H60="N",VLOOKUP(B60,sanschie!$A:$K,7,0),VLOOKUP(B60,sanschie!$A:$K,7,0))) -> 184
A61: 0 | B61: 104018 | C61: =IF(B61="","",VLOOKUP(B61,sanschie!A:E,5,0)) -> ABS 180 Doppelfutter zu Rauchrohranschluss Ø180mm | G61: =IF(B61="","",VLOOKUP(B61,sanschie!A:D,4,0)) -> STK | H61: =IF(B61="","",VLOOKUP(B61,sanschie!A:P,16,0)) -> 1 | I61: =IF(B61="","",IF(H61="N",VLOOKUP(B61,sanschie!$A:$K,7,0),VLOOKUP(B61,sanschie!$A:$K,7,0)*(1-Eingabe!$O$20))) -> 198 | K61: =IF(B61="","",VLOOKUP(B61,sanschie!$A:$I,9,0)) -> 1 | M61: 0 | N61: =IF(B61="","0",IF(VLOOKUP(B61,sanschie!$A:$K,10,0)=0,"0",IF(VLOOKUP(B61,sanschie!$A:$K,10,0)="","0",(VLOOKUP(B61,sanschie!$A:$K,10,0))))) -> 0 | Q61: 0 | R61: =IF(B61="","",IF(H61="N",VLOOKUP(B61,sanschie!$A:$K,7,0),VLOOKUP(B61,sanschie!$A:$K,7,0))) -> 198
A62: 0 | B62: 104032 | C62: =IF(B62="","",VLOOKUP(B62,sanschie!A:E,5,0)) -> ABS 180 Kondensatfalle zu RA 45° Ø130mm | G62: =IF(B62="","",VLOOKUP(B62,sanschie!A:D,4,0)) -> STK | H62: =IF(B62="","",VLOOKUP(B62,sanschie!A:P,16,0)) -> 1 | I62: =IF(B62="","",IF(H62="N",VLOOKUP(B62,sanschie!$A:$K,7,0),VLOOKUP(B62,sanschie!$A:$K,7,0)*(1-Eingabe!$O$20))) -> 347 | K62: =IF(B62="","",VLOOKUP(B62,sanschie!$A:$I,9,0)) -> 2.2 | M62: 0 | N62: =IF(B62="","0",IF(VLOOKUP(B62,sanschie!$A:$K,10,0)=0,"0",IF(VLOOKUP(B62,sanschie!$A:$K,10,0)="","0",(VLOOKUP(B62,sanschie!$A:$K,10,0))))) -> 0 | Q62: 0 | R62: =IF(B62="","",IF(H62="N",VLOOKUP(B62,sanschie!$A:$K,7,0),VLOOKUP(B62,sanschie!$A:$K,7,0))) -> 347
A63: 0 | B63: 104033 | C63: =IF(B63="","",VLOOKUP(B63,sanschie!A:E,5,0)) -> ABS 180 Kondensatfalle zu RA 45° Ø150mm | G63: =IF(B63="","",VLOOKUP(B63,sanschie!A:D,4,0)) -> STK | H63: =IF(B63="","",VLOOKUP(B63,sanschie!A:P,16,0)) -> 1 | I63: =IF(B63="","",IF(H63="N",VLOOKUP(B63,sanschie!$A:$K,7,0),VLOOKUP(B63,sanschie!$A:$K,7,0)*(1-Eingabe!$O$20))) -> 347 | K63: =IF(B63="","",VLOOKUP(B63,sanschie!$A:$I,9,0)) -> 2.2 | M63: 0 | N63: =IF(B63="","0",IF(VLOOKUP(B63,sanschie!$A:$K,10,0)=0,"0",IF(VLOOKUP(B63,sanschie!$A:$K,10,0)="","0",(VLOOKUP(B63,sanschie!$A:$K,10,0))))) -> 0 | Q63: 0 | R63: =IF(B63="","",IF(H63="N",VLOOKUP(B63,sanschie!$A:$K,7,0),VLOOKUP(B63,sanschie!$A:$K,7,0))) -> 347
A64: 0 | B64: 104034 | C64: =IF(B64="","",VLOOKUP(B64,sanschie!A:E,5,0)) -> ABS 180 Kondensatfalle zu RA 45° Ø160mm | G64: =IF(B64="","",VLOOKUP(B64,sanschie!A:D,4,0)) -> STK | H64: =IF(B64="","",VLOOKUP(B64,sanschie!A:P,16,0)) -> 1 | I64: =IF(B64="","",IF(H64="N",VLOOKUP(B64,sanschie!$A:$K,7,0),VLOOKUP(B64,sanschie!$A:$K,7,0)*(1-Eingabe!$O$20))) -> 347 | K64: =IF(B64="","",VLOOKUP(B64,sanschie!$A:$I,9,0)) -> 2.2 | M64: 0 | N64: =IF(B64="","0",IF(VLOOKUP(B64,sanschie!$A:$K,10,0)=0,"0",IF(VLOOKUP(B64,sanschie!$A:$K,10,0)="","0",(VLOOKUP(B64,sanschie!$A:$K,10,0))))) -> 0 | Q64: 0 | R64: =IF(B64="","",IF(H64="N",VLOOKUP(B64,sanschie!$A:$K,7,0),VLOOKUP(B64,sanschie!$A:$K,7,0))) -> 347
A65: 0 | B65: 104035 | C65: =IF(B65="","",VLOOKUP(B65,sanschie!A:E,5,0)) -> ABS 180 Kondensatfalle zu RA 45° Ø180mm | G65: =IF(B65="","",VLOOKUP(B65,sanschie!A:D,4,0)) -> STK | H65: =IF(B65="","",VLOOKUP(B65,sanschie!A:P,16,0)) -> 1 | I65: =IF(B65="","",IF(H65="N",VLOOKUP(B65,sanschie!$A:$K,7,0),VLOOKUP(B65,sanschie!$A:$K,7,0)*(1-Eingabe!$O$20))) -> 347 | K65: =IF(B65="","",VLOOKUP(B65,sanschie!$A:$I,9,0)) -> 2.2 | M65: 0 | N65: =IF(B65="","0",IF(VLOOKUP(B65,sanschie!$A:$K,10,0)=0,"0",IF(VLOOKUP(B65,sanschie!$A:$K,10,0)="","0",(VLOOKUP(B65,sanschie!$A:$K,10,0))))) -> 0 | Q65: 0 | R65: =IF(B65="","",IF(H65="N",VLOOKUP(B65,sanschie!$A:$K,7,0),VLOOKUP(B65,sanschie!$A:$K,7,0))) -> 347
A66: 0 | B66: 104251 | C66: =IF(B66="","",VLOOKUP(B66,sanschie!A:E,5,0)) -> ABS Armierungs-Set 2 x 4000mm für Mantelsteine | G66: =IF(B66="","",VLOOKUP(B66,sanschie!A:D,4,0)) -> STK | H66: =IF(B66="","",VLOOKUP(B66,sanschie!A:P,16,0)) -> 1 | I66: =IF(B66="","",IF(H66="N",VLOOKUP(B66,sanschie!$A:$K,7,0),VLOOKUP(B66,sanschie!$A:$K,7,0)*(1-Eingabe!$O$20))) -> 209 | K66: =IF(B66="","",VLOOKUP(B66,sanschie!$A:$I,9,0)) -> 5 | M66: 0 | N66: =IF(B66="","0",IF(VLOOKUP(B66,sanschie!$A:$K,10,0)=0,"0",IF(VLOOKUP(B66,sanschie!$A:$K,10,0)="","0",(VLOOKUP(B66,sanschie!$A:$K,10,0))))) -> 0 | Q66: 0 | R66: =IF(B66="","",IF(H66="N",VLOOKUP(B66,sanschie!$A:$K,7,0),VLOOKUP(B66,sanschie!$A:$K,7,0))) -> 209
A67: 0 | B67: 104252 | C67: =IF(B67="","",VLOOKUP(B67,sanschie!A:E,5,0)) -> ABS Armierungs-Set 4 x 4000mm für Mantelsteine | G67: =IF(B67="","",VLOOKUP(B67,sanschie!A:D,4,0)) -> STK | H67: =IF(B67="","",VLOOKUP(B67,sanschie!A:P,16,0)) -> 1 | I67: =IF(B67="","",IF(H67="N",VLOOKUP(B67,sanschie!$A:$K,7,0),VLOOKUP(B67,sanschie!$A:$K,7,0)*(1-Eingabe!$O$20))) -> 387 | K67: =IF(B67="","",VLOOKUP(B67,sanschie!$A:$I,9,0)) -> 10 | M67: 0 | N67: =IF(B67="","0",IF(VLOOKUP(B67,sanschie!$A:$K,10,0)=0,"0",IF(VLOOKUP(B67,sanschie!$A:$K,10,0)="","0",(VLOOKUP(B67,sanschie!$A:$K,10,0))))) -> 0 | Q67: 0 | R67: =IF(B67="","",IF(H67="N",VLOOKUP(B67,sanschie!$A:$K,7,0),VLOOKUP(B67,sanschie!$A:$K,7,0))) -> 387
A68: 0 | B68: 104253 | C68: =IF(B68="","",VLOOKUP(B68,sanschie!A:E,5,0)) -> ABS Armierungs-Set 4 x 6000mm für Mantelsteine | G68: =IF(B68="","",VLOOKUP(B68,sanschie!A:D,4,0)) -> STK | H68: =IF(B68="","",VLOOKUP(B68,sanschie!A:P,16,0)) -> 1 | I68: =IF(B68="","",IF(H68="N",VLOOKUP(B68,sanschie!$A:$K,7,0),VLOOKUP(B68,sanschie!$A:$K,7,0)*(1-Eingabe!$O$20))) -> 566 | K68: =IF(B68="","",VLOOKUP(B68,sanschie!$A:$I,9,0)) -> 15 | M68: 0 | N68: =IF(B68="","0",IF(VLOOKUP(B68,sanschie!$A:$K,10,0)=0,"0",IF(VLOOKUP(B68,sanschie!$A:$K,10,0)="","0",(VLOOKUP(B68,sanschie!$A:$K,10,0))))) -> 0 | Q68: 0 | R68: =IF(B68="","",IF(H68="N",VLOOKUP(B68,sanschie!$A:$K,7,0),VLOOKUP(B68,sanschie!$A:$K,7,0))) -> 566
A69: 0 | B69: 103870 | C69: =IF(B69="","",VLOOKUP(B69,sanschie!A:E,5,0)) -> ABS Kondensatablauf DN40 zu Fertigfuss | D69: 0.2 | E69: 0 | F69: 1 | G69: =IF(B69="","",VLOOKUP(B69,sanschie!A:D,4,0)) -> STK | H69: =IF(B69="","",VLOOKUP(B69,sanschie!A:P,16,0)) -> 1 | I69: =IF(B69="","",IF(H69="N",VLOOKUP(B69,sanschie!$A:$K,7,0),VLOOKUP(B69,sanschie!$A:$K,7,0)*(1-Eingabe!$O$20))) -> 23 | J69: 23 | K69: =IF(B69="","",VLOOKUP(B69,sanschie!$A:$I,9,0)) -> 0.2 | L69: 23 | M69: 0 | N69: =IF(B69="","0",IF(VLOOKUP(B69,sanschie!$A:$K,10,0)=0,"0",IF(VLOOKUP(B69,sanschie!$A:$K,10,0)="","0",(VLOOKUP(B69,sanschie!$A:$K,10,0))))) -> 0 | Q69: 0 | R69: =IF(B69="","",IF(H69="N",VLOOKUP(B69,sanschie!$A:$K,7,0),VLOOKUP(B69,sanschie!$A:$K,7,0))) -> 23
A70: 0 | B70: 104246 | C70: =IF(B70="","",VLOOKUP(B70,sanschie!A:E,5,0)) -> ABS Zugregler 13ZUK180/CH zu Fertigfuss | G70: =IF(B70="","",VLOOKUP(B70,sanschie!A:D,4,0)) -> STK | H70: =IF(B70="","",VLOOKUP(B70,sanschie!A:P,16,0)) -> 1 | I70: =IF(B70="","",IF(H70="N",VLOOKUP(B70,sanschie!$A:$K,7,0),VLOOKUP(B70,sanschie!$A:$K,7,0)*(1-Eingabe!$O$20))) -> 489 | K70: =IF(B70="","",VLOOKUP(B70,sanschie!$A:$I,9,0)) -> 2.5 | M70: 0 | N70: =IF(B70="","0",IF(VLOOKUP(B70,sanschie!$A:$K,10,0)=0,"0",IF(VLOOKUP(B70,sanschie!$A:$K,10,0)="","0",(VLOOKUP(B70,sanschie!$A:$K,10,0))))) -> 0 | Q70: 0 | R70: =IF(B70="","",IF(H70="N",VLOOKUP(B70,sanschie!$A:$K,7,0),VLOOKUP(B70,sanschie!$A:$K,7,0))) -> 489
A71: 0 | B71: 104245 | C71: =IF(B71="","",VLOOKUP(B71,sanschie!A:E,5,0)) -> ABS Türblatt gelocht Putztüre Typ3 für Zugregler | G71: =IF(B71="","",VLOOKUP(B71,sanschie!A:D,4,0)) -> STK | H71: =IF(B71="","",VLOOKUP(B71,sanschie!A:P,16,0)) -> 1 | I71: =IF(B71="","",IF(H71="N",VLOOKUP(B71,sanschie!$A:$K,7,0),VLOOKUP(B71,sanschie!$A:$K,7,0)*(1-Eingabe!$O$20))) -> 82 | K71: =IF(B71="","",VLOOKUP(B71,sanschie!$A:$I,9,0)) -> 1.5 | M71: 0 | N71: =IF(B71="","0",IF(VLOOKUP(B71,sanschie!$A:$K,10,0)=0,"0",IF(VLOOKUP(B71,sanschie!$A:$K,10,0)="","0",(VLOOKUP(B71,sanschie!$A:$K,10,0))))) -> 0 | Q71: 0 | R71: =IF(B71="","",IF(H71="N",VLOOKUP(B71,sanschie!$A:$K,7,0),VLOOKUP(B71,sanschie!$A:$K,7,0))) -> 82
A72: 0 | B72: 104244 | C72: =IF(B72="","",VLOOKUP(B72,sanschie!A:E,5,0)) -> ABS Türblatt zu Putztüre Typ 3 | G72: =IF(B72="","",VLOOKUP(B72,sanschie!A:D,4,0)) -> STK | H72: =IF(B72="","",VLOOKUP(B72,sanschie!A:P,16,0)) -> 1 | I72: =IF(B72="","",IF(H72="N",VLOOKUP(B72,sanschie!$A:$K,7,0),VLOOKUP(B72,sanschie!$A:$K,7,0)*(1-Eingabe!$O$20))) -> 58 | K72: =IF(B72="","",VLOOKUP(B72,sanschie!$A:$I,9,0)) -> 1.5 | M72: 0 | N72: =IF(B72="","0",IF(VLOOKUP(B72,sanschie!$A:$K,10,0)=0,"0",IF(VLOOKUP(B72,sanschie!$A:$K,10,0)="","0",(VLOOKUP(B72,sanschie!$A:$K,10,0))))) -> 0 | Q72: 0 | R72: =IF(B72="","",IF(H72="N",VLOOKUP(B72,sanschie!$A:$K,7,0),VLOOKUP(B72,sanschie!$A:$K,7,0))) -> 58
A73: 0 | B73: 103944 | C73: =IF(B73="","",VLOOKUP(B73,sanschie!A:E,5,0)) -> ABS Abstandhalter - Set für 2 Keramik-Rohre Ø180, | G73: =IF(B73="","",VLOOKUP(B73,sanschie!A:D,4,0)) -> STK | H73: =IF(B73="","",VLOOKUP(B73,sanschie!A:P,16,0)) -> 1 | I73: =IF(B73="","",IF(H73="N",VLOOKUP(B73,sanschie!$A:$K,7,0),VLOOKUP(B73,sanschie!$A:$K,7,0)*(1-Eingabe!$O$20))) -> 14 | K73: =IF(B73="","",VLOOKUP(B73,sanschie!$A:$I,9,0)) -> 0 | M73: 0 | N73: =IF(B73="","0",IF(VLOOKUP(B73,sanschie!$A:$K,10,0)=0,"0",IF(VLOOKUP(B73,sanschie!$A:$K,10,0)="","0",(VLOOKUP(B73,sanschie!$A:$K,10,0))))) -> 0 | Q73: 0 | R73: =IF(B73="","",IF(H73="N",VLOOKUP(B73,sanschie!$A:$K,7,0),VLOOKUP(B73,sanschie!$A:$K,7,0))) -> 14
A74: 0 | B74: 104256 | C74: =IF(B74="","",VLOOKUP(B74,sanschie!A:E,5,0)) -> ABS Kaminhalterung Standard | G74: =IF(B74="","",VLOOKUP(B74,sanschie!A:D,4,0)) -> STK | H74: =IF(B74="","",VLOOKUP(B74,sanschie!A:P,16,0)) -> 1 | I74: =IF(B74="","",IF(H74="N",VLOOKUP(B74,sanschie!$A:$K,7,0),VLOOKUP(B74,sanschie!$A:$K,7,0)*(1-Eingabe!$O$20))) -> 303 | K74: =IF(B74="","",VLOOKUP(B74,sanschie!$A:$I,9,0)) -> 16.5 | M74: 0 | N74: =IF(B74="","0",IF(VLOOKUP(B74,sanschie!$A:$K,10,0)=0,"0",IF(VLOOKUP(B74,sanschie!$A:$K,10,0)="","0",(VLOOKUP(B74,sanschie!$A:$K,10,0))))) -> 0 | Q74: 0 | R74: =IF(B74="","",IF(H74="N",VLOOKUP(B74,sanschie!$A:$K,7,0),VLOOKUP(B74,sanschie!$A:$K,7,0))) -> 303
A75: 0 | B75: 104257 | C75: =IF(B75="","",VLOOKUP(B75,sanschie!A:E,5,0)) -> ABS Verstärkung zu Kaminhalterung | G75: =IF(B75="","",VLOOKUP(B75,sanschie!A:D,4,0)) -> STK | H75: =IF(B75="","",VLOOKUP(B75,sanschie!A:P,16,0)) -> 1 | I75: =IF(B75="","",IF(H75="N",VLOOKUP(B75,sanschie!$A:$K,7,0),VLOOKUP(B75,sanschie!$A:$K,7,0)*(1-Eingabe!$O$20))) -> 94 | K75: =IF(B75="","",VLOOKUP(B75,sanschie!$A:$I,9,0)) -> 2 | M75: 0 | N75: =IF(B75="","0",IF(VLOOKUP(B75,sanschie!$A:$K,10,0)=0,"0",IF(VLOOKUP(B75,sanschie!$A:$K,10,0)="","0",(VLOOKUP(B75,sanschie!$A:$K,10,0))))) -> 0 | Q75: 0 | R75: =IF(B75="","",IF(H75="N",VLOOKUP(B75,sanschie!$A:$K,7,0),VLOOKUP(B75,sanschie!$A:$K,7,0))) -> 94
A76: 0 | B76: 103963 | C76: =IF(B76="","",VLOOKUP(B76,sanschie!A:E,5,0)) -> ABS Rapid-Kartusche zum Kleben der Keramikrohre | G76: =IF(B76="","",VLOOKUP(B76,sanschie!A:D,4,0)) -> STK | H76: =IF(B76="","",VLOOKUP(B76,sanschie!A:P,16,0)) -> 1 | I76: =IF(B76="","",IF(H76="N",VLOOKUP(B76,sanschie!$A:$K,7,0),VLOOKUP(B76,sanschie!$A:$K,7,0)*(1-Eingabe!$O$20))) -> 19 | K76: =IF(B76="","",VLOOKUP(B76,sanschie!$A:$I,9,0)) -> 0.68 | M76: 0 | N76: =IF(B76="","0",IF(VLOOKUP(B76,sanschie!$A:$K,10,0)=0,"0",IF(VLOOKUP(B76,sanschie!$A:$K,10,0)="","0",(VLOOKUP(B76,sanschie!$A:$K,10,0))))) -> 0 | Q76: 0 | R76: =IF(B76="","",IF(H76="N",VLOOKUP(B76,sanschie!$A:$K,7,0),VLOOKUP(B76,sanschie!$A:$K,7,0))) -> 19
A77: 0 | B77: 103941 | C77: =IF(B77="","",VLOOKUP(B77,sanschie!A:E,5,0)) -> ABS Dünnbettmörtel zum kleben der Steine Geb.10kg | D77: 10 | E77: 0 | F77: 1 | G77: =IF(B77="","",VLOOKUP(B77,sanschie!A:D,4,0)) -> STK | H77: =IF(B77="","",VLOOKUP(B77,sanschie!A:P,16,0)) -> 1 | I77: =IF(B77="","",IF(H77="N",VLOOKUP(B77,sanschie!$A:$K,7,0),VLOOKUP(B77,sanschie!$A:$K,7,0)*(1-Eingabe!$O$20))) -> 35 | J77: 35 | K77: =IF(B77="","",VLOOKUP(B77,sanschie!$A:$I,9,0)) -> 10 | L77: 35 | M77: 0 | N77: =IF(B77="","0",IF(VLOOKUP(B77,sanschie!$A:$K,10,0)=0,"0",IF(VLOOKUP(B77,sanschie!$A:$K,10,0)="","0",(VLOOKUP(B77,sanschie!$A:$K,10,0))))) -> 0 | Q77: 0 | R77: =IF(B77="","",IF(H77="N",VLOOKUP(B77,sanschie!$A:$K,7,0),VLOOKUP(B77,sanschie!$A:$K,7,0))) -> 35
A78: 0 | B78: 104212 | C78: =IF(B78="","",VLOOKUP(B78,sanschie!A:E,5,0)) -> ABS 180 Basten Standard Inox | G78: =IF(B78="","",VLOOKUP(B78,sanschie!A:D,4,0)) -> STK | H78: =IF(B78="","",VLOOKUP(B78,sanschie!A:P,16,0)) -> 1 | I78: =IF(B78="","",IF(H78="N",VLOOKUP(B78,sanschie!$A:$K,7,0),VLOOKUP(B78,sanschie!$A:$K,7,0)*(1-Eingabe!$O$20))) -> 345 | K78: =IF(B78="","",VLOOKUP(B78,sanschie!$A:$I,9,0)) -> 3.4 | M78: 0 | N78: =IF(B78="","0",IF(VLOOKUP(B78,sanschie!$A:$K,10,0)=0,"0",IF(VLOOKUP(B78,sanschie!$A:$K,10,0)="","0",(VLOOKUP(B78,sanschie!$A:$K,10,0))))) -> 0 | Q78: 0 | R78: =IF(B78="","",IF(H78="N",VLOOKUP(B78,sanschie!$A:$K,7,0),VLOOKUP(B78,sanschie!$A:$K,7,0))) -> 345
A79: 0 | B79: 104218 | C79: =IF(B79="","",VLOOKUP(B79,sanschie!A:E,5,0)) -> ABS 180 Basten Standard Kupfer | G79: =IF(B79="","",VLOOKUP(B79,sanschie!A:D,4,0)) -> STK | H79: =IF(B79="","",VLOOKUP(B79,sanschie!A:P,16,0)) -> 1 | I79: =IF(B79="","",IF(H79="N",VLOOKUP(B79,sanschie!$A:$K,7,0),VLOOKUP(B79,sanschie!$A:$K,7,0)*(1-Eingabe!$O$20))) -> 362 | K79: =IF(B79="","",VLOOKUP(B79,sanschie!$A:$I,9,0)) -> 4.3 | M79: 0 | N79: =IF(B79="","0",IF(VLOOKUP(B79,sanschie!$A:$K,10,0)=0,"0",IF(VLOOKUP(B79,sanschie!$A:$K,10,0)="","0",(VLOOKUP(B79,sanschie!$A:$K,10,0))))) -> 0 | Q79: 0 | R79: =IF(B79="","",IF(H79="N",VLOOKUP(B79,sanschie!$A:$K,7,0),VLOOKUP(B79,sanschie!$A:$K,7,0))) -> 362
A80: 0 | B80: 104224 | C80: =IF(B80="","",VLOOKUP(B80,sanschie!A:E,5,0)) -> ABS 180 Sairlift Inox | G80: =IF(B80="","",VLOOKUP(B80,sanschie!A:D,4,0)) -> STK | H80: =IF(B80="","",VLOOKUP(B80,sanschie!A:P,16,0)) -> 1 | I80: =IF(B80="","",IF(H80="N",VLOOKUP(B80,sanschie!$A:$K,7,0),VLOOKUP(B80,sanschie!$A:$K,7,0)*(1-Eingabe!$O$20))) -> 400 | K80: =IF(B80="","",VLOOKUP(B80,sanschie!$A:$I,9,0)) -> 3.9 | M80: 0 | N80: =IF(B80="","0",IF(VLOOKUP(B80,sanschie!$A:$K,10,0)=0,"0",IF(VLOOKUP(B80,sanschie!$A:$K,10,0)="","0",(VLOOKUP(B80,sanschie!$A:$K,10,0))))) -> 0 | Q80: 0 | R80: =IF(B80="","",IF(H80="N",VLOOKUP(B80,sanschie!$A:$K,7,0),VLOOKUP(B80,sanschie!$A:$K,7,0))) -> 400
A81: 0 | B81: 104229 | C81: =IF(B81="","",VLOOKUP(B81,sanschie!A:E,5,0)) -> ABS 180 Sairlift Kupfer | G81: =IF(B81="","",VLOOKUP(B81,sanschie!A:D,4,0)) -> STK | H81: =IF(B81="","",VLOOKUP(B81,sanschie!A:P,16,0)) -> 1 | I81: =IF(B81="","",IF(H81="N",VLOOKUP(B81,sanschie!$A:$K,7,0),VLOOKUP(B81,sanschie!$A:$K,7,0)*(1-Eingabe!$O$20))) -> 419 | K81: =IF(B81="","",VLOOKUP(B81,sanschie!$A:$I,9,0)) -> 3.9 | M81: 0 | N81: =IF(B81="","0",IF(VLOOKUP(B81,sanschie!$A:$K,10,0)=0,"0",IF(VLOOKUP(B81,sanschie!$A:$K,10,0)="","0",(VLOOKUP(B81,sanschie!$A:$K,10,0))))) -> 0 | Q81: 0 | R81: =IF(B81="","",IF(H81="N",VLOOKUP(B81,sanschie!$A:$K,7,0),VLOOKUP(B81,sanschie!$A:$K,7,0))) -> 419
A82: 0 | B82: 103838 | C82: =IF(B82="","",VLOOKUP(B82,sanschie!A:E,5,0)) -> ZBH 180 Verschlussbüchse weiss ØA 275mm | G82: =IF(B82="","",VLOOKUP(B82,sanschie!A:D,4,0)) -> STK | H82: =IF(B82="","",VLOOKUP(B82,sanschie!A:P,16,0)) -> 1 | I82: =IF(B82="","",IF(H82="N",VLOOKUP(B82,sanschie!$A:$K,7,0),VLOOKUP(B82,sanschie!$A:$K,7,0)*(1-Eingabe!$O$20))) -> 123.1 | K82: =IF(B82="","",VLOOKUP(B82,sanschie!$A:$I,9,0)) -> 1 | M82: 0 | N82: =IF(B82="","0",IF(VLOOKUP(B82,sanschie!$A:$K,10,0)=0,"0",IF(VLOOKUP(B82,sanschie!$A:$K,10,0)="","0",(VLOOKUP(B82,sanschie!$A:$K,10,0))))) -> 0 | Q82: 0 | R82: =IF(B82="","",IF(H82="N",VLOOKUP(B82,sanschie!$A:$K,7,0),VLOOKUP(B82,sanschie!$A:$K,7,0))) -> 123.1
A83: 0 | B83: 100265 | C83: =IF(B83="","",VLOOKUP(B83,sanschie!A:E,5,0)) -> Neutralisationsbox komplett | G83: =IF(B83="","",VLOOKUP(B83,sanschie!A:D,4,0)) -> STK | H83: =IF(B83="","",VLOOKUP(B83,sanschie!A:P,16,0)) -> 1 | I83: =IF(B83="","",IF(H83="N",VLOOKUP(B83,sanschie!$A:$K,7,0),VLOOKUP(B83,sanschie!$A:$K,7,0)*(1-Eingabe!$O$20))) -> 258.8 | K83: =IF(B83="","",VLOOKUP(B83,sanschie!$A:$I,9,0)) -> 11.27 | M83: 0 | N83: =IF(B83="","0",IF(VLOOKUP(B83,sanschie!$A:$K,10,0)=0,"0",IF(VLOOKUP(B83,sanschie!$A:$K,10,0)="","0",(VLOOKUP(B83,sanschie!$A:$K,10,0))))) -> 0 | Q83: 0 | R83: =IF(B83="","",IF(H83="N",VLOOKUP(B83,sanschie!$A:$K,7,0),VLOOKUP(B83,sanschie!$A:$K,7,0))) -> 258.8
A84: 0 | B84: 100266 | C84: =IF(B84="","",VLOOKUP(B84,sanschie!A:E,5,0)) -> Nachfüllset zu Neutralisationsbox | G84: =IF(B84="","",VLOOKUP(B84,sanschie!A:D,4,0)) -> STK | H84: =IF(B84="","",VLOOKUP(B84,sanschie!A:P,16,0)) -> 1 | I84: =IF(B84="","",IF(H84="N",VLOOKUP(B84,sanschie!$A:$K,7,0),VLOOKUP(B84,sanschie!$A:$K,7,0)*(1-Eingabe!$O$20))) -> 67.9 | K84: =IF(B84="","",VLOOKUP(B84,sanschie!$A:$I,9,0)) -> 3.1 | M84: 0 | N84: =IF(B84="","0",IF(VLOOKUP(B84,sanschie!$A:$K,10,0)=0,"0",IF(VLOOKUP(B84,sanschie!$A:$K,10,0)="","0",(VLOOKUP(B84,sanschie!$A:$K,10,0))))) -> 0 | Q84: 0 | R84: =IF(B84="","",IF(H84="N",VLOOKUP(B84,sanschie!$A:$K,7,0),VLOOKUP(B84,sanschie!$A:$K,7,0))) -> 67.9
A85: 0 | B85: 103841 | C85: =IF(B85="","",VLOOKUP(B85,sanschie!A:E,5,0)) -> ZBH Kondensatkanister 20Liter | G85: =IF(B85="","",VLOOKUP(B85,sanschie!A:D,4,0)) -> STK | H85: =IF(B85="","",VLOOKUP(B85,sanschie!A:P,16,0)) -> 1 | I85: =IF(B85="","",IF(H85="N",VLOOKUP(B85,sanschie!$A:$K,7,0),VLOOKUP(B85,sanschie!$A:$K,7,0)*(1-Eingabe!$O$20))) -> 44.9 | K85: =IF(B85="","",VLOOKUP(B85,sanschie!$A:$I,9,0)) -> 1.25 | M85: 0 | N85: =IF(B85="","0",IF(VLOOKUP(B85,sanschie!$A:$K,10,0)=0,"0",IF(VLOOKUP(B85,sanschie!$A:$K,10,0)="","0",(VLOOKUP(B85,sanschie!$A:$K,10,0))))) -> 0 | Q85: 0 | R85: =IF(B85="","",IF(H85="N",VLOOKUP(B85,sanschie!$A:$K,7,0),VLOOKUP(B85,sanschie!$A:$K,7,0))) -> 44.9
A86: 0 | B86: 100264 | C86: =IF(B86="","",VLOOKUP(B86,sanschie!A:E,5,0)) -> Kondesatschlauch 36mm L1000mm | G86: =IF(B86="","",VLOOKUP(B86,sanschie!A:D,4,0)) -> STK | H86: =IF(B86="","",VLOOKUP(B86,sanschie!A:P,16,0)) -> 1 | I86: =IF(B86="","",IF(H86="N",VLOOKUP(B86,sanschie!$A:$K,7,0),VLOOKUP(B86,sanschie!$A:$K,7,0)*(1-Eingabe!$O$20))) -> 7.5 | K86: =IF(B86="","",VLOOKUP(B86,sanschie!$A:$I,9,0)) -> 0.36 | M86: 0 | N86: =IF(B86="","0",IF(VLOOKUP(B86,sanschie!$A:$K,10,0)=0,"0",IF(VLOOKUP(B86,sanschie!$A:$K,10,0)="","0",(VLOOKUP(B86,sanschie!$A:$K,10,0))))) -> 0 | Q86: 0 | R86: =IF(B86="","",IF(H86="N",VLOOKUP(B86,sanschie!$A:$K,7,0),VLOOKUP(B86,sanschie!$A:$K,7,0))) -> 7.5
A87: 0 | B87: 103833 | C87: =IF(B87="","",VLOOKUP(B87,sanschie!A:E,5,0)) -> ZBH 190 Verschlusszapfen 2Stk. aus Schaumstoff | G87: =IF(B87="","",VLOOKUP(B87,sanschie!A:D,4,0)) -> STK | H87: =IF(B87="","",VLOOKUP(B87,sanschie!A:P,16,0)) -> 1 | I87: =IF(B87="","",IF(H87="N",VLOOKUP(B87,sanschie!$A:$K,7,0),VLOOKUP(B87,sanschie!$A:$K,7,0)*(1-Eingabe!$O$20))) -> 26.5 | K87: =IF(B87="","",VLOOKUP(B87,sanschie!$A:$I,9,0)) -> 0.1 | M87: 0 | N87: =IF(B87="","0",IF(VLOOKUP(B87,sanschie!$A:$K,10,0)=0,"0",IF(VLOOKUP(B87,sanschie!$A:$K,10,0)="","0",(VLOOKUP(B87,sanschie!$A:$K,10,0))))) -> 0 | Q87: 0 | R87: =IF(B87="","",IF(H87="N",VLOOKUP(B87,sanschie!$A:$K,7,0),VLOOKUP(B87,sanschie!$A:$K,7,0))) -> 26.5
A88: 0 | B88: 103820 | C88: =IF(B88="","",VLOOKUP(B88,sanschie!A:E,5,0)) -> LBS 150 Ignis Protect 565 x 700 mm | G88: =IF(B88="","",VLOOKUP(B88,sanschie!A:D,4,0)) -> STK | H88: =IF(B88="","",VLOOKUP(B88,sanschie!A:P,16,0)) -> 1 | I88: =IF(B88="","",IF(H88="N",VLOOKUP(B88,sanschie!$A:$K,7,0),VLOOKUP(B88,sanschie!$A:$K,7,0)*(1-Eingabe!$O$20))) -> 452 | K88: =IF(B88="","",VLOOKUP(B88,sanschie!$A:$I,9,0)) -> 6 | M88: 0 | N88: =IF(B88="","0",IF(VLOOKUP(B88,sanschie!$A:$K,10,0)=0,"0",IF(VLOOKUP(B88,sanschie!$A:$K,10,0)="","0",(VLOOKUP(B88,sanschie!$A:$K,10,0))))) -> 0 | Q88: 0 | R88: =IF(B88="","",IF(H88="N",VLOOKUP(B88,sanschie!$A:$K,7,0),VLOOKUP(B88,sanschie!$A:$K,7,0))) -> 452
A89: 0 | B89: 103821 | C89: =IF(B89="","",VLOOKUP(B89,sanschie!A:E,5,0)) -> LBS 200 Ignis Protect 565 x 700 mm | D89: =IF(F89="","",K89*F89) ->  | E89: =IF(F89="","",IF(N89="","",N89*F89)) ->  | G89: =IF(B89="","",VLOOKUP(B89,sanschie!A:D,4,0)) -> STK | H89: =IF(B89="","",VLOOKUP(B89,sanschie!A:P,16,0)) -> 1 | I89: =IF(B89="","",IF(H89="N",VLOOKUP(B89,sanschie!$A:$K,7,0),VLOOKUP(B89,sanschie!$A:$K,7,0)*(1-Eingabe!$O$20))) -> 538 | J89: =IF(F89="","",(F89*I89)) ->  | K89: =IF(B89="","",VLOOKUP(B89,sanschie!$A:$I,9,0)) -> 8.4 | L89: =IF(H89=1,J89,0) ->  | M89: =IF(H89=2,J89,0) -> 0 | N89: =IF(B89="","0",IF(VLOOKUP(B89,sanschie!$A:$K,10,0)=0,"0",IF(VLOOKUP(B89,sanschie!$A:$K,10,0)="","0",(VLOOKUP(B89,sanschie!$A:$K,10,0))))) -> 0 | Q89: 0 | R89: =IF(B89="","",IF(H89="N",VLOOKUP(B89,sanschie!$A:$K,7,0),VLOOKUP(B89,sanschie!$A:$K,7,0))) -> 538
A90: 0 | B90: 103822 | C90: =IF(B90="","",VLOOKUP(B90,sanschie!A:E,5,0)) -> LBS 250 Ignis Protect 565 x 700 mm | G90: =IF(B90="","",VLOOKUP(B90,sanschie!A:D,4,0)) -> STK | H90: =IF(B90="","",VLOOKUP(B90,sanschie!A:P,16,0)) -> 1 | I90: =IF(B90="","",IF(H90="N",VLOOKUP(B90,sanschie!$A:$K,7,0),VLOOKUP(B90,sanschie!$A:$K,7,0)*(1-Eingabe!$O$20))) -> 634 | J90: =IF(F90="","",(F90*I90)) ->  | K90: =IF(B90="","",VLOOKUP(B90,sanschie!$A:$I,9,0)) -> 10.5 | M90: 0 | N90: =IF(B90="","0",IF(VLOOKUP(B90,sanschie!$A:$K,10,0)=0,"0",IF(VLOOKUP(B90,sanschie!$A:$K,10,0)="","0",(VLOOKUP(B90,sanschie!$A:$K,10,0))))) -> 0 | Q90: =IF(H90=3,J90,0) -> 0 | R90: =IF(B90="","",IF(H90="N",VLOOKUP(B90,sanschie!$A:$K,7,0),VLOOKUP(B90,sanschie!$A:$K,7,0))) -> 634
A91: 0 | B91: 103823 | C91: =IF(B91="","",VLOOKUP(B91,sanschie!A:E,5,0)) -> LBS 300 Ignis Protect 565 x 700 mm | G91: =IF(B91="","",VLOOKUP(B91,sanschie!A:D,4,0)) -> STK | H91: =IF(B91="","",VLOOKUP(B91,sanschie!A:P,16,0)) -> 1 | I91: =IF(B91="","",IF(H91="N",VLOOKUP(B91,sanschie!$A:$K,7,0),VLOOKUP(B91,sanschie!$A:$K,7,0)*(1-Eingabe!$O$20))) -> 695 | J91: =IF(F91="","",(F91*I91)) ->  | K91: =IF(B91="","",VLOOKUP(B91,sanschie!$A:$I,9,0)) -> 12.5 | M91: 0 | N91: =IF(B91="","0",IF(VLOOKUP(B91,sanschie!$A:$K,10,0)=0,"0",IF(VLOOKUP(B91,sanschie!$A:$K,10,0)="","0",(VLOOKUP(B91,sanschie!$A:$K,10,0))))) -> 0 | Q91: 0 | R91: =IF(B91="","",IF(H91="N",VLOOKUP(B91,sanschie!$A:$K,7,0),VLOOKUP(B91,sanschie!$A:$K,7,0))) -> 695
A92: 0 | B92: 103824 | C92: =IF(B92="","",VLOOKUP(B92,sanschie!A:E,5,0)) -> LBS 350 Ignis Protect 565 x 700 mm | G92: =IF(B92="","",VLOOKUP(B92,sanschie!A:D,4,0)) -> STK | H92: =IF(B92="","",VLOOKUP(B92,sanschie!A:P,16,0)) -> 1 | I92: =IF(B92="","",IF(H92="N",VLOOKUP(B92,sanschie!$A:$K,7,0),VLOOKUP(B92,sanschie!$A:$K,7,0)*(1-Eingabe!$O$20))) -> 797 | J92: =IF(F92="","",(F92*I92)) ->  | K92: =IF(B92="","",VLOOKUP(B92,sanschie!$A:$I,9,0)) -> 13.5 | M92: 0 | N92: =IF(B92="","0",IF(VLOOKUP(B92,sanschie!$A:$K,10,0)=0,"0",IF(VLOOKUP(B92,sanschie!$A:$K,10,0)="","0",(VLOOKUP(B92,sanschie!$A:$K,10,0))))) -> 0 | Q92: 0 | R92: =IF(B92="","",IF(H92="N",VLOOKUP(B92,sanschie!$A:$K,7,0),VLOOKUP(B92,sanschie!$A:$K,7,0))) -> 797
A93: 0 | B93: 103825 | C93: =IF(B93="","",VLOOKUP(B93,sanschie!A:E,5,0)) -> LBS 400 Ignis Protect 565 x 700 mm | G93: =IF(B93="","",VLOOKUP(B93,sanschie!A:D,4,0)) -> STK | H93: =IF(B93="","",VLOOKUP(B93,sanschie!A:P,16,0)) -> 1 | I93: =IF(B93="","",IF(H93="N",VLOOKUP(B93,sanschie!$A:$K,7,0),VLOOKUP(B93,sanschie!$A:$K,7,0)*(1-Eingabe!$O$20))) -> 873 | K93: =IF(B93="","",VLOOKUP(B93,sanschie!$A:$I,9,0)) -> 16.7 | M93: 0 | N93: =IF(B93="","0",IF(VLOOKUP(B93,sanschie!$A:$K,10,0)=0,"0",IF(VLOOKUP(B93,sanschie!$A:$K,10,0)="","0",(VLOOKUP(B93,sanschie!$A:$K,10,0))))) -> 0 | Q93: 0 | R93: =IF(B93="","",IF(H93="N",VLOOKUP(B93,sanschie!$A:$K,7,0),VLOOKUP(B93,sanschie!$A:$K,7,0))) -> 873
A94: 0 | B94: 103848 | C94: =IF(B94="","",VLOOKUP(B94,sanschie!A:E,5,0)) -> ZBH Kittpistole für Kartuschen | G94: =IF(B94="","",VLOOKUP(B94,sanschie!A:D,4,0)) -> STK | H94: =IF(B94="","",VLOOKUP(B94,sanschie!A:P,16,0)) -> 1 | I94: =IF(B94="","",IF(H94="N",VLOOKUP(B94,sanschie!$A:$K,7,0),VLOOKUP(B94,sanschie!$A:$K,7,0)*(1-Eingabe!$O$20))) -> 13.8 | K94: =IF(B94="","",VLOOKUP(B94,sanschie!$A:$I,9,0)) -> 2.5 | M94: 0 | N94: =IF(B94="","0",IF(VLOOKUP(B94,sanschie!$A:$K,10,0)=0,"0",IF(VLOOKUP(B94,sanschie!$A:$K,10,0)="","0",(VLOOKUP(B94,sanschie!$A:$K,10,0))))) -> 0 | Q94: 0 | R94: =IF(B94="","",IF(H94="N",VLOOKUP(B94,sanschie!$A:$K,7,0),VLOOKUP(B94,sanschie!$A:$K,7,0))) -> 13.8
A95: 0 | B95: 103846 | C95: =IF(B95="","",VLOOKUP(B95,sanschie!A:E,5,0)) -> ZBH Diamantblatt für Trennscheibe Ø115mm | G95: =IF(B95="","",VLOOKUP(B95,sanschie!A:D,4,0)) -> STK | H95: =IF(B95="","",VLOOKUP(B95,sanschie!A:P,16,0)) -> 1 | I95: =IF(B95="","",IF(H95="N",VLOOKUP(B95,sanschie!$A:$K,7,0),VLOOKUP(B95,sanschie!$A:$K,7,0)*(1-Eingabe!$O$20))) -> 162.2 | K95: =IF(B95="","",VLOOKUP(B95,sanschie!$A:$I,9,0)) -> 0.11 | M95: 0 | N95: =IF(B95="","0",IF(VLOOKUP(B95,sanschie!$A:$K,10,0)=0,"0",IF(VLOOKUP(B95,sanschie!$A:$K,10,0)="","0",(VLOOKUP(B95,sanschie!$A:$K,10,0))))) -> 0 | Q95: 0 | R95: =IF(B95="","",IF(H95="N",VLOOKUP(B95,sanschie!$A:$K,7,0),VLOOKUP(B95,sanschie!$A:$K,7,0))) -> 162.2
A96: 0 | B96: 103847 | C96: =IF(B96="","",VLOOKUP(B96,sanschie!A:E,5,0)) -> ZBH Diamantblatt für Trennscheibe Ø230mm | G96: =IF(B96="","",VLOOKUP(B96,sanschie!A:D,4,0)) -> STK | H96: =IF(B96="","",VLOOKUP(B96,sanschie!A:P,16,0)) -> 1 | I96: =IF(B96="","",IF(H96="N",VLOOKUP(B96,sanschie!$A:$K,7,0),VLOOKUP(B96,sanschie!$A:$K,7,0)*(1-Eingabe!$O$20))) -> 322 | K96: =IF(B96="","",VLOOKUP(B96,sanschie!$A:$I,9,0)) -> 0.6 | M96: 0 | N96: =IF(B96="","0",IF(VLOOKUP(B96,sanschie!$A:$K,10,0)=0,"0",IF(VLOOKUP(B96,sanschie!$A:$K,10,0)="","0",(VLOOKUP(B96,sanschie!$A:$K,10,0))))) -> 0 | Q96: 0 | R96: =IF(B96="","",IF(H96="N",VLOOKUP(B96,sanschie!$A:$K,7,0),VLOOKUP(B96,sanschie!$A:$K,7,0))) -> 322
A97: 0 | B97: 104259 | C97: =IF(B97="","",VLOOKUP(B97,sanschie!A:E,5,0)) -> Euro Paletten | G97: =IF(B97="","",VLOOKUP(B97,sanschie!A:D,4,0)) -> STK | H97: =IF(B97="","",VLOOKUP(B97,sanschie!A:P,16,0)) -> 0 | I97: =IF(B97="","",IF(H97="N",VLOOKUP(B97,sanschie!$A:$K,7,0),VLOOKUP(B97,sanschie!$A:$K,7,0)*(1-Eingabe!$O$20))) -> 26 | K97: =IF(B97="","",VLOOKUP(B97,sanschie!$A:$I,9,0)) -> 15 | L97: 0 | M97: 0 | N97: =IF(B97="","0",IF(VLOOKUP(B97,sanschie!$A:$K,10,0)=0,"0",IF(VLOOKUP(B97,sanschie!$A:$K,10,0)="","0",(VLOOKUP(B97,sanschie!$A:$K,10,0))))) -> 0 | Q97: 0 | R97: =IF(B97="","",IF(H97="N",VLOOKUP(B97,sanschie!$A:$K,7,0),VLOOKUP(B97,sanschie!$A:$K,7,0))) -> 26
A98: 0 | B98: 104261 | C98: =IF(B98="","",VLOOKUP(B98,sanschie!A:E,5,0)) -> Euro Paletten im Austausch | D98: 30 | E98: 0 | F98: 2 | G98: =IF(B98="","",VLOOKUP(B98,sanschie!A:D,4,0)) -> STK | H98: =IF(B98="","",VLOOKUP(B98,sanschie!A:P,16,0)) -> 0 | I98: =IF(B98="","",IF(H98="N",VLOOKUP(B98,sanschie!$A:$K,7,0),VLOOKUP(B98,sanschie!$A:$K,7,0)*(1-Eingabe!$O$20))) -> 0 | J98: 0 | K98: =IF(B98="","",VLOOKUP(B98,sanschie!$A:$I,9,0)) -> 15 | L98: 0 | M98: 0 | N98: =IF(B98="","0",IF(VLOOKUP(B98,sanschie!$A:$K,10,0)=0,"0",IF(VLOOKUP(B98,sanschie!$A:$K,10,0)="","0",(VLOOKUP(B98,sanschie!$A:$K,10,0))))) -> 0 | Q98: 0 | R98: =IF(B98="","",IF(H98="N",VLOOKUP(B98,sanschie!$A:$K,7,0),VLOOKUP(B98,sanschie!$A:$K,7,0))) -> 0
C99: =IF(B99="","",VLOOKUP(B99,sanschie!A:E,5,0)) ->  | G99: =IF(B99="","",VLOOKUP(B99,sanschie!A:D,4,0)) ->  | H99: =IF(B99="","",VLOOKUP(B99,sanschie!A:P,16,0)) ->  | I99: =IF(B99="","",IF(H99="N",VLOOKUP(B99,sanschie!$A:$K,7,0),VLOOKUP(B99,sanschie!$A:$K,7,0)*(1-Eingabe!$O$20))) ->  | K99: =IF(B99="","",VLOOKUP(B99,sanschie!$A:$I,9,0)) ->  | L99: 0 | M99: 0 | N99: =IF(B99="","0",IF(VLOOKUP(B99,sanschie!$A:$K,10,0)=0,"0",IF(VLOOKUP(B99,sanschie!$A:$K,10,0)="","0",(VLOOKUP(B99,sanschie!$A:$K,10,0))))) -> 0 | Q99: 0 | R99: =IF(B99="","",IF(H99="N",VLOOKUP(B99,sanschie!$A:$K,7,0),VLOOKUP(B99,sanschie!$A:$K,7,0))) -> 
C100: =IF(B100="","",VLOOKUP(B100,sanschie!A:E,5,0)) ->  | G100: =IF(B100="","",VLOOKUP(B100,sanschie!A:D,4,0)) ->  | H100: =IF(B100="","",VLOOKUP(B100,sanschie!A:P,16,0)) ->  | I100: =IF(B100="","",IF(H100="N",VLOOKUP(B100,sanschie!$A:$K,7,0),VLOOKUP(B100,sanschie!$A:$K,7,0)*(1-Eingabe!$O$20))) ->  | K100: =IF(B100="","",VLOOKUP(B100,sanschie!$A:$I,9,0)) ->  | L100: 0 | M100: 0 | N100: =IF(B100="","0",IF(VLOOKUP(B100,sanschie!$A:$K,10,0)=0,"0",IF(VLOOKUP(B100,sanschie!$A:$K,10,0)="","0",(VLOOKUP(B100,sanschie!$A:$K,10,0))))) -> 0 | Q100: 0 | R100: =IF(B100="","",IF(H100="N",VLOOKUP(B100,sanschie!$A:$K,7,0),VLOOKUP(B100,sanschie!$A:$K,7,0))) -> 
C101: =IF(B101="","",VLOOKUP(B101,sanschie!A:E,5,0)) ->  | G101: =IF(B101="","",VLOOKUP(B101,sanschie!A:D,4,0)) ->  | H101: =IF(B101="","",VLOOKUP(B101,sanschie!A:P,16,0)) ->  | I101: =IF(B101="","",IF(H101="N",VLOOKUP(B101,sanschie!$A:$K,7,0),VLOOKUP(B101,sanschie!$A:$K,7,0)*(1-Eingabe!$O$20))) ->  | J101: =IF(F101="","",(F101*I101)) ->  | K101: =IF(B101="","",VLOOKUP(B101,sanschie!$A:$I,9,0)) ->  | L101: 0 | M101: 0 | N101: =IF(B101="","0",IF(VLOOKUP(B101,sanschie!$A:$K,10,0)=0,"0",IF(VLOOKUP(B101,sanschie!$A:$K,10,0)="","0",(VLOOKUP(B101,sanschie!$A:$K,10,0))))) -> 0 | Q101: 0 | R101: =IF(B101="","",IF(H101="N",VLOOKUP(B101,sanschie!$A:$K,7,0),VLOOKUP(B101,sanschie!$A:$K,7,0))) -> 
C102: =IF(B102="","",VLOOKUP(B102,sanschie!A:E,5,0)) ->  | G102: =IF(B102="","",VLOOKUP(B102,sanschie!A:D,4,0)) ->  | H102: =IF(B102="","",VLOOKUP(B102,sanschie!A:P,16,0)) ->  | I102: =IF(B102="","",IF(H102="N",VLOOKUP(B102,sanschie!$A:$K,7,0),VLOOKUP(B102,sanschie!$A:$K,7,0)*(1-Eingabe!$O$20))) ->  | K102: =IF(B102="","",VLOOKUP(B102,sanschie!$A:$I,9,0)) ->  | L102: 0 | M102: 0 | N102: =IF(B102="","0",IF(VLOOKUP(B102,sanschie!$A:$K,10,0)=0,"0",IF(VLOOKUP(B102,sanschie!$A:$K,10,0)="","0",(VLOOKUP(B102,sanschie!$A:$K,10,0))))) -> 0 | Q102: 0 | R102: =IF(B102="","",IF(H102="N",VLOOKUP(B102,sanschie!$A:$K,7,0),VLOOKUP(B102,sanschie!$A:$K,7,0))) -> 
C103: =IF(B103="","",VLOOKUP(B103,sanschie!A:E,5,0)) ->  | G103: =IF(B103="","",VLOOKUP(B103,sanschie!A:D,4,0)) ->  | H103: =IF(B103="","",VLOOKUP(B103,sanschie!A:P,16,0)) ->  | I103: =IF(B103="","",IF(H103="N",VLOOKUP(B103,sanschie!$A:$K,7,0),VLOOKUP(B103,sanschie!$A:$K,7,0)*(1-Eingabe!$O$20))) ->  | K103: =IF(B103="","",VLOOKUP(B103,sanschie!$A:$I,9,0)) ->  | L103: 0 | M103: 0 | N103: =IF(B103="","0",IF(VLOOKUP(B103,sanschie!$A:$K,10,0)=0,"0",IF(VLOOKUP(B103,sanschie!$A:$K,10,0)="","0",(VLOOKUP(B103,sanschie!$A:$K,10,0))))) -> 0 | Q103: 0 | R103: =IF(B103="","",IF(H103="N",VLOOKUP(B103,sanschie!$A:$K,7,0),VLOOKUP(B103,sanschie!$A:$K,7,0))) -> 
C104: =IF(B104="","",VLOOKUP(B104,sanschie!A:E,5,0)) ->  | G104: =IF(B104="","",VLOOKUP(B104,sanschie!A:D,4,0)) ->  | H104: =IF(B104="","",VLOOKUP(B104,sanschie!A:P,16,0)) ->  | I104: =IF(B104="","",IF(H104="N",VLOOKUP(B104,sanschie!$A:$K,7,0),VLOOKUP(B104,sanschie!$A:$K,7,0)*(1-Eingabe!$O$20))) ->  | K104: =IF(B104="","",VLOOKUP(B104,sanschie!$A:$I,9,0)) ->  | L104: 0 | M104: 0 | N104: =IF(B104="","0",IF(VLOOKUP(B104,sanschie!$A:$K,10,0)=0,"0",IF(VLOOKUP(B104,sanschie!$A:$K,10,0)="","0",(VLOOKUP(B104,sanschie!$A:$K,10,0))))) -> 0 | Q104: 0 | R104: =IF(B104="","",IF(H104="N",VLOOKUP(B104,sanschie!$A:$K,7,0),VLOOKUP(B104,sanschie!$A:$K,7,0))) -> 
C105: =IF(B105="","",VLOOKUP(B105,sanschie!A:E,5,0)) ->  | G105: =IF(B105="","",VLOOKUP(B105,sanschie!A:D,4,0)) ->  | H105: =IF(B105="","",VLOOKUP(B105,sanschie!A:P,16,0)) ->  | I105: =IF(B105="","",IF(H105="N",VLOOKUP(B105,sanschie!$A:$K,7,0),VLOOKUP(B105,sanschie!$A:$K,7,0)*(1-Eingabe!$O$20))) ->  | K105: =IF(B105="","",VLOOKUP(B105,sanschie!$A:$I,9,0)) ->  | L105: 0 | M105: 0 | N105: =IF(B105="","0",IF(VLOOKUP(B105,sanschie!$A:$K,10,0)=0,"0",IF(VLOOKUP(B105,sanschie!$A:$K,10,0)="","0",(VLOOKUP(B105,sanschie!$A:$K,10,0))))) -> 0 | Q105: 0 | R105: =IF(B105="","",IF(H105="N",VLOOKUP(B105,sanschie!$A:$K,7,0),VLOOKUP(B105,sanschie!$A:$K,7,0))) -> 
C106: =IF(B106="","",VLOOKUP(B106,sanschie!A:E,5,0)) ->  | G106: =IF(B106="","",VLOOKUP(B106,sanschie!A:D,4,0)) ->  | H106: =IF(B106="","",VLOOKUP(B106,sanschie!A:P,16,0)) ->  | I106: =IF(B106="","",IF(H106="N",VLOOKUP(B106,sanschie!$A:$K,7,0),VLOOKUP(B106,sanschie!$A:$K,7,0)*(1-Eingabe!$O$20))) ->  | K106: =IF(B106="","",VLOOKUP(B106,sanschie!$A:$I,9,0)) ->  | L106: 0 | M106: 0 | N106: =IF(B106="","0",IF(VLOOKUP(B106,sanschie!$A:$K,10,0)=0,"0",IF(VLOOKUP(B106,sanschie!$A:$K,10,0)="","0",(VLOOKUP(B106,sanschie!$A:$K,10,0))))) -> 0 | Q106: 0 | R106: =IF(B106="","",IF(H106="N",VLOOKUP(B106,sanschie!$A:$K,7,0),VLOOKUP(B106,sanschie!$A:$K,7,0))) -> 
C107: =IF(B107="","",VLOOKUP(B107,sanschie!A:E,5,0)) ->  | G107: =IF(B107="","",VLOOKUP(B107,sanschie!A:D,4,0)) ->  | H107: =IF(B107="","",VLOOKUP(B107,sanschie!A:P,16,0)) ->  | I107: =IF(B107="","",IF(H107="N",VLOOKUP(B107,sanschie!$A:$K,7,0),VLOOKUP(B107,sanschie!$A:$K,7,0)*(1-Eingabe!$O$20))) ->  | K107: =IF(B107="","",VLOOKUP(B107,sanschie!$A:$I,9,0)) ->  | L107: 0 | M107: 0 | N107: =IF(B107="","0",IF(VLOOKUP(B107,sanschie!$A:$K,10,0)=0,"0",IF(VLOOKUP(B107,sanschie!$A:$K,10,0)="","0",(VLOOKUP(B107,sanschie!$A:$K,10,0))))) -> 0 | Q107: 0 | R107: =IF(B107="","",IF(H107="N",VLOOKUP(B107,sanschie!$A:$K,7,0),VLOOKUP(B107,sanschie!$A:$K,7,0))) -> 
C108: =IF(B108="","",VLOOKUP(B108,sanschie!A:E,5,0)) ->  | G108: =IF(B108="","",VLOOKUP(B108,sanschie!A:D,4,0)) ->  | H108: =IF(B108="","",VLOOKUP(B108,sanschie!A:P,16,0)) ->  | I108: =IF(B108="","",IF(H108="N",VLOOKUP(B108,sanschie!$A:$K,7,0),VLOOKUP(B108,sanschie!$A:$K,7,0)*(1-Eingabe!$O$20))) ->  | K108: =IF(B108="","",VLOOKUP(B108,sanschie!$A:$I,9,0)) ->  | L108: 0 | M108: 0 | N108: =IF(B108="","0",IF(VLOOKUP(B108,sanschie!$A:$K,10,0)=0,"0",IF(VLOOKUP(B108,sanschie!$A:$K,10,0)="","0",(VLOOKUP(B108,sanschie!$A:$K,10,0))))) -> 0 | Q108: 0 | R108: =IF(B108="","",IF(H108="N",VLOOKUP(B108,sanschie!$A:$K,7,0),VLOOKUP(B108,sanschie!$A:$K,7,0))) -> 
C109: =IF(B109="","",VLOOKUP(B109,sanschie!A:E,5,0)) ->  | G109: =IF(B109="","",VLOOKUP(B109,sanschie!A:D,4,0)) ->  | H109: =IF(B109="","",VLOOKUP(B109,sanschie!A:P,16,0)) ->  | I109: =IF(B109="","",IF(H109="N",VLOOKUP(B109,sanschie!$A:$K,7,0),VLOOKUP(B109,sanschie!$A:$K,7,0)*(1-Eingabe!$O$20))) ->  | K109: =IF(B109="","",VLOOKUP(B109,sanschie!$A:$I,9,0)) ->  | L109: 0 | M109: 0 | N109: =IF(B109="","0",IF(VLOOKUP(B109,sanschie!$A:$K,10,0)=0,"0",IF(VLOOKUP(B109,sanschie!$A:$K,10,0)="","0",(VLOOKUP(B109,sanschie!$A:$K,10,0))))) -> 0 | Q109: 0 | R109: =IF(B109="","",IF(H109="N",VLOOKUP(B109,sanschie!$A:$K,7,0),VLOOKUP(B109,sanschie!$A:$K,7,0))) -> 
C110: =IF(B110="","",VLOOKUP(B110,sanschie!A:E,5,0)) ->  | G110: =IF(B110="","",VLOOKUP(B110,sanschie!A:D,4,0)) ->  | H110: =IF(B110="","",VLOOKUP(B110,sanschie!A:P,16,0)) ->  | I110: =IF(B110="","",IF(H110="N",VLOOKUP(B110,sanschie!$A:$K,7,0),VLOOKUP(B110,sanschie!$A:$K,7,0)*(1-Eingabe!$O$20))) ->  | K110: =IF(B110="","",VLOOKUP(B110,sanschie!$A:$I,9,0)) ->  | L110: 0 | M110: 0 | N110: =IF(B110="","0",IF(VLOOKUP(B110,sanschie!$A:$K,10,0)=0,"0",IF(VLOOKUP(B110,sanschie!$A:$K,10,0)="","0",(VLOOKUP(B110,sanschie!$A:$K,10,0))))) -> 0 | Q110: 0 | R110: =IF(B110="","",IF(H110="N",VLOOKUP(B110,sanschie!$A:$K,7,0),VLOOKUP(B110,sanschie!$A:$K,7,0))) -> 
C111: =IF(B111="","",VLOOKUP(B111,sanschie!A:E,5,0)) ->  | G111: =IF(B111="","",VLOOKUP(B111,sanschie!A:D,4,0)) ->  | H111: =IF(B111="","",VLOOKUP(B111,sanschie!A:P,16,0)) ->  | I111: =IF(B111="","",IF(H111="N",VLOOKUP(B111,sanschie!$A:$K,7,0),VLOOKUP(B111,sanschie!$A:$K,7,0)*(1-Eingabe!$O$20))) ->  | K111: =IF(B111="","",VLOOKUP(B111,sanschie!$A:$I,9,0)) ->  | L111: 0 | M111: 0 | N111: =IF(B111="","0",IF(VLOOKUP(B111,sanschie!$A:$K,10,0)=0,"0",IF(VLOOKUP(B111,sanschie!$A:$K,10,0)="","0",(VLOOKUP(B111,sanschie!$A:$K,10,0))))) -> 0 | Q111: 0 | R111: =IF(B111="","",IF(H111="N",VLOOKUP(B111,sanschie!$A:$K,7,0),VLOOKUP(B111,sanschie!$A:$K,7,0))) -> 
C112: =IF(B112="","",VLOOKUP(B112,sanschie!A:E,5,0)) ->  | G112: =IF(B112="","",VLOOKUP(B112,sanschie!A:D,4,0)) ->  | H112: =IF(B112="","",VLOOKUP(B112,sanschie!A:P,16,0)) ->  | I112: =IF(B112="","",IF(H112="N",VLOOKUP(B112,sanschie!$A:$K,7,0),VLOOKUP(B112,sanschie!$A:$K,7,0)*(1-Eingabe!$O$20))) ->  | K112: =IF(B112="","",VLOOKUP(B112,sanschie!$A:$I,9,0)) ->  | L112: 0 | M112: 0 | N112: =IF(B112="","0",IF(VLOOKUP(B112,sanschie!$A:$K,10,0)=0,"0",IF(VLOOKUP(B112,sanschie!$A:$K,10,0)="","0",(VLOOKUP(B112,sanschie!$A:$K,10,0))))) -> 0 | Q112: 0 | R112: =IF(B112="","",IF(H112="N",VLOOKUP(B112,sanschie!$A:$K,7,0),VLOOKUP(B112,sanschie!$A:$K,7,0))) -> 
C113: =IF(B113="","",VLOOKUP(B113,sanschie!A:E,5,0)) ->  | G113: =IF(B113="","",VLOOKUP(B113,sanschie!A:D,4,0)) ->  | H113: =IF(B113="","",VLOOKUP(B113,sanschie!A:P,16,0)) ->  | I113: =IF(B113="","",IF(H113="N",VLOOKUP(B113,sanschie!$A:$K,7,0),VLOOKUP(B113,sanschie!$A:$K,7,0)*(1-Eingabe!$O$20))) ->  | K113: =IF(B113="","",VLOOKUP(B113,sanschie!$A:$I,9,0)) ->  | L113: 0 | M113: 0 | N113: =IF(B113="","0",IF(VLOOKUP(B113,sanschie!$A:$K,10,0)=0,"0",IF(VLOOKUP(B113,sanschie!$A:$K,10,0)="","0",(VLOOKUP(B113,sanschie!$A:$K,10,0))))) -> 0 | Q113: 0 | R113: =IF(B113="","",IF(H113="N",VLOOKUP(B113,sanschie!$A:$K,7,0),VLOOKUP(B113,sanschie!$A:$K,7,0))) -> 
C114: =IF(B114="","",VLOOKUP(B114,sanschie!A:E,5,0)) ->  | G114: =IF(B114="","",VLOOKUP(B114,sanschie!A:D,4,0)) ->  | H114: =IF(B114="","",VLOOKUP(B114,sanschie!A:P,16,0)) ->  | I114: =IF(B114="","",IF(H114="N",VLOOKUP(B114,sanschie!$A:$K,7,0),VLOOKUP(B114,sanschie!$A:$K,7,0)*(1-Eingabe!$O$20))) ->  | K114: =IF(B114="","",VLOOKUP(B114,sanschie!$A:$I,9,0)) ->  | L114: 0 | M114: 0 | N114: =IF(B114="","0",IF(VLOOKUP(B114,sanschie!$A:$K,10,0)=0,"0",IF(VLOOKUP(B114,sanschie!$A:$K,10,0)="","0",(VLOOKUP(B114,sanschie!$A:$K,10,0))))) -> 0 | Q114: 0 | R114: =IF(B114="","",IF(H114="N",VLOOKUP(B114,sanschie!$A:$K,7,0),VLOOKUP(B114,sanschie!$A:$K,7,0))) -> 
C115: =IF(B115="","",VLOOKUP(B115,sanschie!A:E,5,0)) ->  | G115: =IF(B115="","",VLOOKUP(B115,sanschie!A:D,4,0)) ->  | H115: =IF(B115="","",VLOOKUP(B115,sanschie!A:P,16,0)) ->  | I115: =IF(B115="","",IF(H115="N",VLOOKUP(B115,sanschie!$A:$K,7,0),VLOOKUP(B115,sanschie!$A:$K,7,0)*(1-Eingabe!$O$20))) ->  | K115: =IF(B115="","",VLOOKUP(B115,sanschie!$A:$I,9,0)) ->  | L115: 0 | M115: 0 | N115: =IF(B115="","0",IF(VLOOKUP(B115,sanschie!$A:$K,10,0)=0,"0",IF(VLOOKUP(B115,sanschie!$A:$K,10,0)="","0",(VLOOKUP(B115,sanschie!$A:$K,10,0))))) -> 0 | Q115: 0 | R115: =IF(B115="","",IF(H115="N",VLOOKUP(B115,sanschie!$A:$K,7,0),VLOOKUP(B115,sanschie!$A:$K,7,0))) -> 
C116: =IF(B116="","",VLOOKUP(B116,sanschie!A:E,5,0)) ->  | G116: =IF(B116="","",VLOOKUP(B116,sanschie!A:D,4,0)) ->  | H116: =IF(B116="","",VLOOKUP(B116,sanschie!A:P,16,0)) ->  | I116: =IF(B116="","",IF(H116="N",VLOOKUP(B116,sanschie!$A:$K,7,0),VLOOKUP(B116,sanschie!$A:$K,7,0)*(1-Eingabe!$O$20))) ->  | K116: =IF(B116="","",VLOOKUP(B116,sanschie!$A:$I,9,0)) ->  | L116: 0 | M116: 0 | N116: =IF(B116="","0",IF(VLOOKUP(B116,sanschie!$A:$K,10,0)=0,"0",IF(VLOOKUP(B116,sanschie!$A:$K,10,0)="","0",(VLOOKUP(B116,sanschie!$A:$K,10,0))))) -> 0 | Q116: 0 | R116: =IF(B116="","",IF(H116="N",VLOOKUP(B116,sanschie!$A:$K,7,0),VLOOKUP(B116,sanschie!$A:$K,7,0))) -> 
C117: =IF(B117="","",VLOOKUP(B117,sanschie!A:E,5,0)) ->  | G117: =IF(B117="","",VLOOKUP(B117,sanschie!A:D,4,0)) ->  | H117: =IF(B117="","",VLOOKUP(B117,sanschie!A:P,16,0)) ->  | I117: =IF(B117="","",IF(H117="N",VLOOKUP(B117,sanschie!$A:$K,7,0),VLOOKUP(B117,sanschie!$A:$K,7,0)*(1-Eingabe!$O$20))) ->  | K117: =IF(B117="","",VLOOKUP(B117,sanschie!$A:$I,9,0)) ->  | L117: 0 | M117: 0 | N117: =IF(B117="","0",IF(VLOOKUP(B117,sanschie!$A:$K,10,0)=0,"0",IF(VLOOKUP(B117,sanschie!$A:$K,10,0)="","0",(VLOOKUP(B117,sanschie!$A:$K,10,0))))) -> 0 | Q117: 0 | R117: =IF(B117="","",IF(H117="N",VLOOKUP(B117,sanschie!$A:$K,7,0),VLOOKUP(B117,sanschie!$A:$K,7,0))) -> 
C118: =IF(B118="","",VLOOKUP(B118,sanschie!A:E,5,0)) ->  | G118: =IF(B118="","",VLOOKUP(B118,sanschie!A:D,4,0)) ->  | H118: =IF(B118="","",VLOOKUP(B118,sanschie!A:P,16,0)) ->  | I118: =IF(B118="","",IF(H118="N",VLOOKUP(B118,sanschie!$A:$K,7,0),VLOOKUP(B118,sanschie!$A:$K,7,0)*(1-Eingabe!$O$20))) ->  | K118: =IF(B118="","",VLOOKUP(B118,sanschie!$A:$I,9,0)) ->  | L118: 0 | M118: 0 | N118: =IF(B118="","0",IF(VLOOKUP(B118,sanschie!$A:$K,10,0)=0,"0",IF(VLOOKUP(B118,sanschie!$A:$K,10,0)="","0",(VLOOKUP(B118,sanschie!$A:$K,10,0))))) -> 0 | Q118: 0 | R118: =IF(B118="","",IF(H118="N",VLOOKUP(B118,sanschie!$A:$K,7,0),VLOOKUP(B118,sanschie!$A:$K,7,0))) -> 
C119: =IF(B119="","",VLOOKUP(B119,sanschie!A:E,5,0)) ->  | G119: =IF(B119="","",VLOOKUP(B119,sanschie!A:D,4,0)) ->  | H119: =IF(B119="","",VLOOKUP(B119,sanschie!A:P,16,0)) ->  | I119: =IF(B119="","",IF(H119="N",VLOOKUP(B119,sanschie!$A:$K,7,0),VLOOKUP(B119,sanschie!$A:$K,7,0)*(1-Eingabe!$O$20))) ->  | K119: =IF(B119="","",VLOOKUP(B119,sanschie!$A:$I,9,0)) ->  | L119: 0 | M119: 0 | N119: =IF(B119="","0",IF(VLOOKUP(B119,sanschie!$A:$K,10,0)=0,"0",IF(VLOOKUP(B119,sanschie!$A:$K,10,0)="","0",(VLOOKUP(B119,sanschie!$A:$K,10,0))))) -> 0 | Q119: 0 | R119: =IF(B119="","",IF(H119="N",VLOOKUP(B119,sanschie!$A:$K,7,0),VLOOKUP(B119,sanschie!$A:$K,7,0))) -> 
C120: =IF(B120="","",VLOOKUP(B120,sanschie!A:E,5,0)) ->  | G120: =IF(B120="","",VLOOKUP(B120,sanschie!A:D,4,0)) ->  | H120: =IF(B120="","",VLOOKUP(B120,sanschie!A:P,16,0)) ->  | I120: =IF(B120="","",IF(H120="N",VLOOKUP(B120,sanschie!$A:$K,7,0),VLOOKUP(B120,sanschie!$A:$K,7,0)*(1-Eingabe!$O$20))) ->  | K120: =IF(B120="","",VLOOKUP(B120,sanschie!$A:$I,9,0)) ->  | L120: 0 | M120: 0 | N120: =IF(B120="","0",IF(VLOOKUP(B120,sanschie!$A:$K,10,0)=0,"0",IF(VLOOKUP(B120,sanschie!$A:$K,10,0)="","0",(VLOOKUP(B120,sanschie!$A:$K,10,0))))) -> 0 | Q120: 0 | R120: =IF(B120="","",IF(H120="N",VLOOKUP(B120,sanschie!$A:$K,7,0),VLOOKUP(B120,sanschie!$A:$K,7,0))) -> 
C121: =IF(B121="","",VLOOKUP(B121,sanschie!A:E,5,0)) ->  | G121: =IF(B121="","",VLOOKUP(B121,sanschie!A:D,4,0)) ->  | H121: =IF(B121="","",VLOOKUP(B121,sanschie!A:P,16,0)) ->  | I121: =IF(B121="","",IF(H121="N",VLOOKUP(B121,sanschie!$A:$K,7,0),VLOOKUP(B121,sanschie!$A:$K,7,0)*(1-Eingabe!$O$20))) ->  | K121: =IF(B121="","",VLOOKUP(B121,sanschie!$A:$I,9,0)) ->  | L121: =IF(H121=1,J121,0) -> 0 | M121: =IF(H121=2,J121,0) -> 0 | N121: =IF(B121="","0",IF(VLOOKUP(B121,sanschie!$A:$K,10,0)=0,"0",IF(VLOOKUP(B121,sanschie!$A:$K,10,0)="","0",(VLOOKUP(B121,sanschie!$A:$K,10,0))))) -> 0 | Q121: 0 | R121: =IF(B121="","",IF(H121="N",VLOOKUP(B121,sanschie!$A:$K,7,0),VLOOKUP(B121,sanschie!$A:$K,7,0))) -> 
C122: =IF(B122="","",VLOOKUP(B122,sanschie!A:E,5,0)) ->  | G122: =IF(B122="","",VLOOKUP(B122,sanschie!A:D,4,0)) ->  | H122: =IF(B122="","",VLOOKUP(B122,sanschie!A:P,16,0)) ->  | I122: =IF(B122="","",IF(H122="N",VLOOKUP(B122,sanschie!$A:$K,7,0),VLOOKUP(B122,sanschie!$A:$K,7,0)*(1-Eingabe!$O$20))) ->  | K122: =IF(B122="","",VLOOKUP(B122,sanschie!$A:$I,9,0)) ->  | L122: 0 | M122: 0 | N122: =IF(B122="","0",IF(VLOOKUP(B122,sanschie!$A:$K,10,0)=0,"0",IF(VLOOKUP(B122,sanschie!$A:$K,10,0)="","0",(VLOOKUP(B122,sanschie!$A:$K,10,0))))) -> 0 | Q122: 0 | R122: =IF(B122="","",IF(H122="N",VLOOKUP(B122,sanschie!$A:$K,7,0),VLOOKUP(B122,sanschie!$A:$K,7,0))) -> 
C123: =IF(B123="","",VLOOKUP(B123,sanschie!A:E,5,0)) ->  | G123: =IF(B123="","",VLOOKUP(B123,sanschie!A:D,4,0)) ->  | H123: =IF(B123="","",VLOOKUP(B123,sanschie!A:P,16,0)) ->  | I123: =IF(B123="","",IF(H123="N",VLOOKUP(B123,sanschie!$A:$K,7,0),VLOOKUP(B123,sanschie!$A:$K,7,0)*(1-Eingabe!$O$20))) ->  | J123: =IF(F123="","",(F123*I123)) ->  | K123: =IF(B123="","",VLOOKUP(B123,sanschie!$A:$I,9,0)) ->  | L123: 0 | M123: 0 | N123: =IF(B123="","0",IF(VLOOKUP(B123,sanschie!$A:$K,10,0)=0,"0",IF(VLOOKUP(B123,sanschie!$A:$K,10,0)="","0",(VLOOKUP(B123,sanschie!$A:$K,10,0))))) -> 0 | Q123: 0 | R123: =IF(B123="","",IF(H123="N",VLOOKUP(B123,sanschie!$A:$K,7,0),VLOOKUP(B123,sanschie!$A:$K,7,0))) -> 
C124: =IF(B124="","",VLOOKUP(B124,sanschie!A:E,5,0)) ->  | G124: =IF(B124="","",VLOOKUP(B124,sanschie!A:D,4,0)) ->  | H124: =IF(B124="","",VLOOKUP(B124,sanschie!A:P,16,0)) ->  | I124: =IF(B124="","",IF(H124="N",VLOOKUP(B124,sanschie!$A:$K,7,0),VLOOKUP(B124,sanschie!$A:$K,7,0)*(1-Eingabe!$O$20))) ->  | K124: =IF(B124="","",VLOOKUP(B124,sanschie!$A:$I,9,0)) ->  | L124: 0 | M124: 0 | N124: =IF(B124="","0",IF(VLOOKUP(B124,sanschie!$A:$K,10,0)=0,"0",IF(VLOOKUP(B124,sanschie!$A:$K,10,0)="","0",(VLOOKUP(B124,sanschie!$A:$K,10,0))))) -> 0 | Q124: 0 | R124: =IF(B124="","",IF(H124="N",VLOOKUP(B124,sanschie!$A:$K,7,0),VLOOKUP(B124,sanschie!$A:$K,7,0))) -> 
C125: =IF(B125="","",VLOOKUP(B125,sanschie!A:E,5,0)) ->  | G125: =IF(B125="","",VLOOKUP(B125,sanschie!A:D,4,0)) ->  | H125: =IF(B125="","",VLOOKUP(B125,sanschie!A:P,16,0)) ->  | I125: =IF(B125="","",IF(H125="N",VLOOKUP(B125,sanschie!$A:$K,7,0),VLOOKUP(B125,sanschie!$A:$K,7,0)*(1-Eingabe!$O$20))) ->  | K125: =IF(B125="","",VLOOKUP(B125,sanschie!$A:$I,9,0)) ->  | L125: 0 | M125: 0 | N125: =IF(B125="","0",IF(VLOOKUP(B125,sanschie!$A:$K,10,0)=0,"0",IF(VLOOKUP(B125,sanschie!$A:$K,10,0)="","0",(VLOOKUP(B125,sanschie!$A:$K,10,0))))) -> 0 | Q125: 0 | R125: =IF(B125="","",IF(H125="N",VLOOKUP(B125,sanschie!$A:$K,7,0),VLOOKUP(B125,sanschie!$A:$K,7,0))) -> 
C126: =IF(B126="","",VLOOKUP(B126,sanschie!A:E,5,0)) ->  | G126: =IF(B126="","",VLOOKUP(B126,sanschie!A:D,4,0)) ->  | H126: =IF(B126="","",VLOOKUP(B126,sanschie!A:P,16,0)) ->  | I126: =IF(B126="","",IF(H126="N",VLOOKUP(B126,sanschie!$A:$K,7,0),VLOOKUP(B126,sanschie!$A:$K,7,0)*(1-Eingabe!$O$20))) ->  | K126: =IF(B126="","",VLOOKUP(B126,sanschie!$A:$I,9,0)) ->  | L126: 0 | M126: 0 | N126: =IF(B126="","0",IF(VLOOKUP(B126,sanschie!$A:$K,10,0)=0,"0",IF(VLOOKUP(B126,sanschie!$A:$K,10,0)="","0",(VLOOKUP(B126,sanschie!$A:$K,10,0))))) -> 0 | Q126: 0 | R126: =IF(B126="","",IF(H126="N",VLOOKUP(B126,sanschie!$A:$K,7,0),VLOOKUP(B126,sanschie!$A:$K,7,0))) -> 
C127: =IF(B127="","",VLOOKUP(B127,sanschie!A:E,5,0)) ->  | G127: =IF(B127="","",VLOOKUP(B127,sanschie!A:D,4,0)) ->  | H127: =IF(B127="","",VLOOKUP(B127,sanschie!A:P,16,0)) ->  | I127: =IF(B127="","",IF(H127="N",VLOOKUP(B127,sanschie!$A:$K,7,0),VLOOKUP(B127,sanschie!$A:$K,7,0)*(1-Eingabe!$O$20))) ->  | K127: =IF(B127="","",VLOOKUP(B127,sanschie!$A:$I,9,0)) ->  | L127: 0 | M127: 0 | N127: =IF(B127="","0",IF(VLOOKUP(B127,sanschie!$A:$K,10,0)=0,"0",IF(VLOOKUP(B127,sanschie!$A:$K,10,0)="","0",(VLOOKUP(B127,sanschie!$A:$K,10,0))))) -> 0 | Q127: 0 | R127: =IF(B127="","",IF(H127="N",VLOOKUP(B127,sanschie!$A:$K,7,0),VLOOKUP(B127,sanschie!$A:$K,7,0))) -> 
C128: =IF(B128="","",VLOOKUP(B128,sanschie!A:E,5,0)) ->  | G128: =IF(B128="","",VLOOKUP(B128,sanschie!A:D,4,0)) ->  | H128: =IF(B128="","",VLOOKUP(B128,sanschie!A:P,16,0)) ->  | I128: =IF(B128="","",IF(H128="N",VLOOKUP(B128,sanschie!$A:$K,7,0),VLOOKUP(B128,sanschie!$A:$K,7,0)*(1-Eingabe!$O$20))) ->  | K128: =IF(B128="","",VLOOKUP(B128,sanschie!$A:$I,9,0)) ->  | L128: 0 | M128: 0 | N128: =IF(B128="","0",IF(VLOOKUP(B128,sanschie!$A:$K,10,0)=0,"0",IF(VLOOKUP(B128,sanschie!$A:$K,10,0)="","0",(VLOOKUP(B128,sanschie!$A:$K,10,0))))) -> 0 | Q128: 0 | R128: =IF(B128="","",IF(H128="N",VLOOKUP(B128,sanschie!$A:$K,7,0),VLOOKUP(B128,sanschie!$A:$K,7,0))) -> 
C129: =IF(B129="","",VLOOKUP(B129,sanschie!A:E,5,0)) ->  | G129: =IF(B129="","",VLOOKUP(B129,sanschie!A:D,4,0)) ->  | H129: =IF(B129="","",VLOOKUP(B129,sanschie!A:P,16,0)) ->  | I129: =IF(B129="","",IF(H129="N",VLOOKUP(B129,sanschie!$A:$K,7,0),VLOOKUP(B129,sanschie!$A:$K,7,0)*(1-Eingabe!$O$20))) ->  | K129: =IF(B129="","",VLOOKUP(B129,sanschie!$A:$I,9,0)) ->  | L129: 0 | M129: 0 | N129: =IF(B129="","0",IF(VLOOKUP(B129,sanschie!$A:$K,10,0)=0,"0",IF(VLOOKUP(B129,sanschie!$A:$K,10,0)="","0",(VLOOKUP(B129,sanschie!$A:$K,10,0))))) -> 0 | Q129: 0 | R129: =IF(B129="","",IF(H129="N",VLOOKUP(B129,sanschie!$A:$K,7,0),VLOOKUP(B129,sanschie!$A:$K,7,0))) -> 
C130: =IF(B130="","",VLOOKUP(B130,sanschie!A:E,5,0)) ->  | G130: =IF(B130="","",VLOOKUP(B130,sanschie!A:D,4,0)) ->  | H130: =IF(B130="","",VLOOKUP(B130,sanschie!A:P,16,0)) ->  | I130: =IF(B130="","",IF(H130="N",VLOOKUP(B130,sanschie!$A:$K,7,0),VLOOKUP(B130,sanschie!$A:$K,7,0)*(1-Eingabe!$O$20))) ->  | K130: =IF(B130="","",VLOOKUP(B130,sanschie!$A:$I,9,0)) ->  | L130: 0 | M130: 0 | N130: =IF(B130="","0",IF(VLOOKUP(B130,sanschie!$A:$K,10,0)=0,"0",IF(VLOOKUP(B130,sanschie!$A:$K,10,0)="","0",(VLOOKUP(B130,sanschie!$A:$K,10,0))))) -> 0 | Q130: 0 | R130: =IF(B130="","",IF(H130="N",VLOOKUP(B130,sanschie!$A:$K,7,0),VLOOKUP(B130,sanschie!$A:$K,7,0))) -> 
C131: =IF(B131="","",VLOOKUP(B131,sanschie!A:E,5,0)) ->  | G131: =IF(B131="","",VLOOKUP(B131,sanschie!A:D,4,0)) ->  | H131: =IF(B131="","",VLOOKUP(B131,sanschie!A:P,16,0)) ->  | I131: =IF(B131="","",IF(H131="N",VLOOKUP(B131,sanschie!$A:$K,7,0),VLOOKUP(B131,sanschie!$A:$K,7,0)*(1-Eingabe!$O$20))) ->  | K131: =IF(B131="","",VLOOKUP(B131,sanschie!$A:$I,9,0)) ->  | L131: 0 | M131: 0 | N131: =IF(B131="","0",IF(VLOOKUP(B131,sanschie!$A:$K,10,0)=0,"0",IF(VLOOKUP(B131,sanschie!$A:$K,10,0)="","0",(VLOOKUP(B131,sanschie!$A:$K,10,0))))) -> 0 | Q131: 0 | R131: =IF(B131="","",IF(H131="N",VLOOKUP(B131,sanschie!$A:$K,7,0),VLOOKUP(B131,sanschie!$A:$K,7,0))) -> 
C132: =IF(B132="","",VLOOKUP(B132,sanschie!A:E,5,0)) ->  | G132: =IF(B132="","",VLOOKUP(B132,sanschie!A:D,4,0)) ->  | H132: =IF(B132="","",VLOOKUP(B132,sanschie!A:P,16,0)) ->  | I132: =IF(B132="","",IF(H132="N",VLOOKUP(B132,sanschie!$A:$K,7,0),VLOOKUP(B132,sanschie!$A:$K,7,0)*(1-Eingabe!$O$20))) ->  | K132: =IF(B132="","",VLOOKUP(B132,sanschie!$A:$I,9,0)) ->  | L132: 0 | M132: 0 | N132: =IF(B132="","0",IF(VLOOKUP(B132,sanschie!$A:$K,10,0)=0,"0",IF(VLOOKUP(B132,sanschie!$A:$K,10,0)="","0",(VLOOKUP(B132,sanschie!$A:$K,10,0))))) -> 0 | Q132: 0 | R132: =IF(B132="","",IF(H132="N",VLOOKUP(B132,sanschie!$A:$K,7,0),VLOOKUP(B132,sanschie!$A:$K,7,0))) -> 
C133: =IF(B133="","",VLOOKUP(B133,sanschie!A:E,5,0)) ->  | G133: =IF(B133="","",VLOOKUP(B133,sanschie!A:D,4,0)) ->  | H133: =IF(B133="","",VLOOKUP(B133,sanschie!A:P,16,0)) ->  | I133: =IF(B133="","",IF(H133="N",VLOOKUP(B133,sanschie!$A:$K,7,0),VLOOKUP(B133,sanschie!$A:$K,7,0)*(1-Eingabe!$O$20))) ->  | K133: =IF(B133="","",VLOOKUP(B133,sanschie!$A:$I,9,0)) ->  | L133: 0 | M133: 0 | N133: =IF(B133="","0",IF(VLOOKUP(B133,sanschie!$A:$K,10,0)=0,"0",IF(VLOOKUP(B133,sanschie!$A:$K,10,0)="","0",(VLOOKUP(B133,sanschie!$A:$K,10,0))))) -> 0 | Q133: 0 | R133: =IF(B133="","",IF(H133="N",VLOOKUP(B133,sanschie!$A:$K,7,0),VLOOKUP(B133,sanschie!$A:$K,7,0))) -> 
C134: =IF(B134="","",VLOOKUP(B134,sanschie!A:E,5,0)) ->  | G134: =IF(B134="","",VLOOKUP(B134,sanschie!A:D,4,0)) ->  | H134: =IF(B134="","",VLOOKUP(B134,sanschie!A:P,16,0)) ->  | I134: =IF(B134="","",IF(H134="N",VLOOKUP(B134,sanschie!$A:$K,7,0),VLOOKUP(B134,sanschie!$A:$K,7,0)*(1-Eingabe!$O$20))) ->  | K134: =IF(B134="","",VLOOKUP(B134,sanschie!$A:$I,9,0)) ->  | L134: 0 | M134: 0 | N134: =IF(B134="","0",IF(VLOOKUP(B134,sanschie!$A:$K,10,0)=0,"0",IF(VLOOKUP(B134,sanschie!$A:$K,10,0)="","0",(VLOOKUP(B134,sanschie!$A:$K,10,0))))) -> 0 | Q134: 0 | R134: =IF(B134="","",IF(H134="N",VLOOKUP(B134,sanschie!$A:$K,7,0),VLOOKUP(B134,sanschie!$A:$K,7,0))) -> 
C135: =IF(B135="","",VLOOKUP(B135,sanschie!A:E,5,0)) ->  | G135: =IF(B135="","",VLOOKUP(B135,sanschie!A:D,4,0)) ->  | H135: =IF(B135="","",VLOOKUP(B135,sanschie!A:P,16,0)) ->  | I135: =IF(B135="","",IF(H135="N",VLOOKUP(B135,sanschie!$A:$K,7,0),VLOOKUP(B135,sanschie!$A:$K,7,0)*(1-Eingabe!$O$20))) ->  | K135: =IF(B135="","",VLOOKUP(B135,sanschie!$A:$I,9,0)) ->  | L135: 0 | M135: 0 | N135: =IF(B135="","0",IF(VLOOKUP(B135,sanschie!$A:$K,10,0)=0,"0",IF(VLOOKUP(B135,sanschie!$A:$K,10,0)="","0",(VLOOKUP(B135,sanschie!$A:$K,10,0))))) -> 0 | Q135: 0 | R135: =IF(B135="","",IF(H135="N",VLOOKUP(B135,sanschie!$A:$K,7,0),VLOOKUP(B135,sanschie!$A:$K,7,0))) -> 
C136: =IF(B136="","",VLOOKUP(B136,sanschie!A:E,5,0)) ->  | G136: =IF(B136="","",VLOOKUP(B136,sanschie!A:D,4,0)) ->  | H136: =IF(B136="","",VLOOKUP(B136,sanschie!A:P,16,0)) ->  | I136: =IF(B136="","",IF(H136="N",VLOOKUP(B136,sanschie!$A:$K,7,0),VLOOKUP(B136,sanschie!$A:$K,7,0)*(1-Eingabe!$O$20))) ->  | K136: =IF(B136="","",VLOOKUP(B136,sanschie!$A:$I,9,0)) ->  | L136: 0 | M136: 0 | N136: =IF(B136="","0",IF(VLOOKUP(B136,sanschie!$A:$K,10,0)=0,"0",IF(VLOOKUP(B136,sanschie!$A:$K,10,0)="","0",(VLOOKUP(B136,sanschie!$A:$K,10,0))))) -> 0 | Q136: 0 | R136: =IF(B136="","",IF(H136="N",VLOOKUP(B136,sanschie!$A:$K,7,0),VLOOKUP(B136,sanschie!$A:$K,7,0))) -> 
C137: =IF(B137="","",VLOOKUP(B137,sanschie!A:E,5,0)) ->  | G137: =IF(B137="","",VLOOKUP(B137,sanschie!A:D,4,0)) ->  | H137: =IF(B137="","",VLOOKUP(B137,sanschie!A:P,16,0)) ->  | I137: =IF(B137="","",IF(H137="N",VLOOKUP(B137,sanschie!$A:$K,7,0),VLOOKUP(B137,sanschie!$A:$K,7,0)*(1-Eingabe!$O$20))) ->  | K137: =IF(B137="","",VLOOKUP(B137,sanschie!$A:$I,9,0)) ->  | L137: 0 | M137: 0 | N137: =IF(B137="","0",IF(VLOOKUP(B137,sanschie!$A:$K,10,0)=0,"0",IF(VLOOKUP(B137,sanschie!$A:$K,10,0)="","0",(VLOOKUP(B137,sanschie!$A:$K,10,0))))) -> 0 | Q137: 0 | R137: =IF(B137="","",IF(H137="N",VLOOKUP(B137,sanschie!$A:$K,7,0),VLOOKUP(B137,sanschie!$A:$K,7,0))) -> 
C138: =IF(B138="","",VLOOKUP(B138,sanschie!A:E,5,0)) ->  | G138: =IF(B138="","",VLOOKUP(B138,sanschie!A:D,4,0)) ->  | H138: =IF(B138="","",VLOOKUP(B138,sanschie!A:P,16,0)) ->  | I138: =IF(B138="","",IF(H138="N",VLOOKUP(B138,sanschie!$A:$K,7,0),VLOOKUP(B138,sanschie!$A:$K,7,0)*(1-Eingabe!$O$20))) ->  | K138: =IF(B138="","",VLOOKUP(B138,sanschie!$A:$I,9,0)) ->  | L138: 0 | M138: 0 | N138: =IF(B138="","0",IF(VLOOKUP(B138,sanschie!$A:$K,10,0)=0,"0",IF(VLOOKUP(B138,sanschie!$A:$K,10,0)="","0",(VLOOKUP(B138,sanschie!$A:$K,10,0))))) -> 0 | Q138: 0 | R138: =IF(B138="","",IF(H138="N",VLOOKUP(B138,sanschie!$A:$K,7,0),VLOOKUP(B138,sanschie!$A:$K,7,0))) -> 
C139: =IF(B139="","",VLOOKUP(B139,sanschie!A:E,5,0)) ->  | G139: =IF(B139="","",VLOOKUP(B139,sanschie!A:D,4,0)) ->  | H139: =IF(B139="","",VLOOKUP(B139,sanschie!A:P,16,0)) ->  | I139: =IF(B139="","",IF(H139="N",VLOOKUP(B139,sanschie!$A:$K,7,0),VLOOKUP(B139,sanschie!$A:$K,7,0)*(1-Eingabe!$O$20))) ->  | K139: =IF(B139="","",VLOOKUP(B139,sanschie!$A:$I,9,0)) ->  | L139: 0 | M139: 0 | N139: =IF(B139="","0",IF(VLOOKUP(B139,sanschie!$A:$K,10,0)=0,"0",IF(VLOOKUP(B139,sanschie!$A:$K,10,0)="","0",(VLOOKUP(B139,sanschie!$A:$K,10,0))))) -> 0 | Q139: 0 | R139: =IF(B139="","",IF(H139="N",VLOOKUP(B139,sanschie!$A:$K,7,0),VLOOKUP(B139,sanschie!$A:$K,7,0))) -> 
C140: =IF(B140="","",VLOOKUP(B140,sanschie!A:E,5,0)) ->  | G140: =IF(B140="","",VLOOKUP(B140,sanschie!A:D,4,0)) ->  | H140: =IF(B140="","",VLOOKUP(B140,sanschie!A:P,16,0)) ->  | I140: =IF(B140="","",IF(H140="N",VLOOKUP(B140,sanschie!$A:$K,7,0),VLOOKUP(B140,sanschie!$A:$K,7,0)*(1-Eingabe!$O$20))) ->  | K140: =IF(B140="","",VLOOKUP(B140,sanschie!$A:$I,9,0)) ->  | L140: 0 | M140: 0 | N140: =IF(B140="","0",IF(VLOOKUP(B140,sanschie!$A:$K,10,0)=0,"0",IF(VLOOKUP(B140,sanschie!$A:$K,10,0)="","0",(VLOOKUP(B140,sanschie!$A:$K,10,0))))) -> 0 | Q140: 0 | R140: =IF(B140="","",IF(H140="N",VLOOKUP(B140,sanschie!$A:$K,7,0),VLOOKUP(B140,sanschie!$A:$K,7,0))) -> 
C141: =IF(B141="","",VLOOKUP(B141,sanschie!A:E,5,0)) ->  | G141: =IF(B141="","",VLOOKUP(B141,sanschie!A:D,4,0)) ->  | H141: =IF(B141="","",VLOOKUP(B141,sanschie!A:P,16,0)) ->  | I141: =IF(B141="","",IF(H141="N",VLOOKUP(B141,sanschie!$A:$K,7,0),VLOOKUP(B141,sanschie!$A:$K,7,0)*(1-Eingabe!$O$20))) ->  | K141: =IF(B141="","",VLOOKUP(B141,sanschie!$A:$I,9,0)) ->  | L141: 0 | M141: 0 | N141: =IF(B141="","0",IF(VLOOKUP(B141,sanschie!$A:$K,10,0)=0,"0",IF(VLOOKUP(B141,sanschie!$A:$K,10,0)="","0",(VLOOKUP(B141,sanschie!$A:$K,10,0))))) -> 0 | Q141: 0 | R141: =IF(B141="","",IF(H141="N",VLOOKUP(B141,sanschie!$A:$K,7,0),VLOOKUP(B141,sanschie!$A:$K,7,0))) -> 
C142: =IF(B142="","",VLOOKUP(B142,sanschie!A:E,5,0)) ->  | G142: =IF(B142="","",VLOOKUP(B142,sanschie!A:D,4,0)) ->  | H142: =IF(B142="","",VLOOKUP(B142,sanschie!A:P,16,0)) ->  | I142: =IF(B142="","",IF(H142="N",VLOOKUP(B142,sanschie!$A:$K,7,0),VLOOKUP(B142,sanschie!$A:$K,7,0)*(1-Eingabe!$O$20))) ->  | K142: =IF(B142="","",VLOOKUP(B142,sanschie!$A:$I,9,0)) ->  | L142: 0 | M142: 0 | N142: =IF(B142="","0",IF(VLOOKUP(B142,sanschie!$A:$K,10,0)=0,"0",IF(VLOOKUP(B142,sanschie!$A:$K,10,0)="","0",(VLOOKUP(B142,sanschie!$A:$K,10,0))))) -> 0 | Q142: 0 | R142: =IF(B142="","",IF(H142="N",VLOOKUP(B142,sanschie!$A:$K,7,0),VLOOKUP(B142,sanschie!$A:$K,7,0))) -> 
C143: =IF(B143="","",VLOOKUP(B143,sanschie!A:E,5,0)) ->  | G143: =IF(B143="","",VLOOKUP(B143,sanschie!A:D,4,0)) ->  | H143: =IF(B143="","",VLOOKUP(B143,sanschie!A:P,16,0)) ->  | I143: =IF(B143="","",IF(H143="N",VLOOKUP(B143,sanschie!$A:$K,7,0),VLOOKUP(B143,sanschie!$A:$K,7,0)*(1-Eingabe!$O$20))) ->  | K143: =IF(B143="","",VLOOKUP(B143,sanschie!$A:$I,9,0)) ->  | L143: 0 | M143: 0 | N143: =IF(B143="","0",IF(VLOOKUP(B143,sanschie!$A:$K,10,0)=0,"0",IF(VLOOKUP(B143,sanschie!$A:$K,10,0)="","0",(VLOOKUP(B143,sanschie!$A:$K,10,0))))) -> 0 | Q143: 0 | R143: =IF(B143="","",IF(H143="N",VLOOKUP(B143,sanschie!$A:$K,7,0),VLOOKUP(B143,sanschie!$A:$K,7,0))) -> 
C144: =IF(B144="","",VLOOKUP(B144,sanschie!A:E,5,0)) ->  | G144: =IF(B144="","",VLOOKUP(B144,sanschie!A:D,4,0)) ->  | H144: =IF(B144="","",VLOOKUP(B144,sanschie!A:P,16,0)) ->  | I144: =IF(B144="","",IF(H144="N",VLOOKUP(B144,sanschie!$A:$K,7,0),VLOOKUP(B144,sanschie!$A:$K,7,0)*(1-Eingabe!$O$20))) ->  | K144: =IF(B144="","",VLOOKUP(B144,sanschie!$A:$I,9,0)) ->  | L144: 0 | M144: 0 | N144: =IF(B144="","0",IF(VLOOKUP(B144,sanschie!$A:$K,10,0)=0,"0",IF(VLOOKUP(B144,sanschie!$A:$K,10,0)="","0",(VLOOKUP(B144,sanschie!$A:$K,10,0))))) -> 0 | Q144: 0 | R144: =IF(B144="","",IF(H144="N",VLOOKUP(B144,sanschie!$A:$K,7,0),VLOOKUP(B144,sanschie!$A:$K,7,0))) -> 
C145: =IF(B145="","",VLOOKUP(B145,sanschie!A:E,5,0)) ->  | G145: =IF(B145="","",VLOOKUP(B145,sanschie!A:D,4,0)) ->  | H145: =IF(B145="","",VLOOKUP(B145,sanschie!A:P,16,0)) ->  | I145: =IF(B145="","",IF(H145="N",VLOOKUP(B145,sanschie!$A:$K,7,0),VLOOKUP(B145,sanschie!$A:$K,7,0)*(1-Eingabe!$O$20))) ->  | K145: =IF(B145="","",VLOOKUP(B145,sanschie!$A:$I,9,0)) ->  | L145: 0 | M145: 0 | N145: =IF(B145="","0",IF(VLOOKUP(B145,sanschie!$A:$K,10,0)=0,"0",IF(VLOOKUP(B145,sanschie!$A:$K,10,0)="","0",(VLOOKUP(B145,sanschie!$A:$K,10,0))))) -> 0 | Q145: 0 | R145: =IF(B145="","",IF(H145="N",VLOOKUP(B145,sanschie!$A:$K,7,0),VLOOKUP(B145,sanschie!$A:$K,7,0))) -> 
C146: =IF(B146="","",VLOOKUP(B146,sanschie!A:E,5,0)) ->  | G146: =IF(B146="","",VLOOKUP(B146,sanschie!A:D,4,0)) ->  | H146: =IF(B146="","",VLOOKUP(B146,sanschie!A:P,16,0)) ->  | I146: =IF(B146="","",IF(H146="N",VLOOKUP(B146,sanschie!$A:$K,7,0),VLOOKUP(B146,sanschie!$A:$K,7,0)*(1-Eingabe!$O$20))) ->  | K146: =IF(B146="","",VLOOKUP(B146,sanschie!$A:$I,9,0)) ->  | L146: 0 | M146: 0 | N146: =IF(B146="","0",IF(VLOOKUP(B146,sanschie!$A:$K,10,0)=0,"0",IF(VLOOKUP(B146,sanschie!$A:$K,10,0)="","0",(VLOOKUP(B146,sanschie!$A:$K,10,0))))) -> 0 | Q146: 0 | R146: =IF(B146="","",IF(H146="N",VLOOKUP(B146,sanschie!$A:$K,7,0),VLOOKUP(B146,sanschie!$A:$K,7,0))) -> 
C147: =IF(B147="","",VLOOKUP(B147,sanschie!A:E,5,0)) ->  | G147: =IF(B147="","",VLOOKUP(B147,sanschie!A:D,4,0)) ->  | H147: =IF(B147="","",VLOOKUP(B147,sanschie!A:P,16,0)) ->  | I147: =IF(B147="","",IF(H147="N",VLOOKUP(B147,sanschie!$A:$K,7,0),VLOOKUP(B147,sanschie!$A:$K,7,0)*(1-Eingabe!$O$20))) ->  | K147: =IF(B147="","",VLOOKUP(B147,sanschie!$A:$I,9,0)) ->  | L147: 0 | M147: 0 | N147: =IF(B147="","0",IF(VLOOKUP(B147,sanschie!$A:$K,10,0)=0,"0",IF(VLOOKUP(B147,sanschie!$A:$K,10,0)="","0",(VLOOKUP(B147,sanschie!$A:$K,10,0))))) -> 0 | Q147: 0 | R147: =IF(B147="","",IF(H147="N",VLOOKUP(B147,sanschie!$A:$K,7,0),VLOOKUP(B147,sanschie!$A:$K,7,0))) -> 
C148: =IF(B148="","",VLOOKUP(B148,sanschie!A:E,5,0)) ->  | G148: =IF(B148="","",VLOOKUP(B148,sanschie!A:D,4,0)) ->  | H148: =IF(B148="","",VLOOKUP(B148,sanschie!A:P,16,0)) ->  | I148: =IF(B148="","",IF(H148="N",VLOOKUP(B148,sanschie!$A:$K,7,0),VLOOKUP(B148,sanschie!$A:$K,7,0)*(1-Eingabe!$O$20))) ->  | K148: =IF(B148="","",VLOOKUP(B148,sanschie!$A:$I,9,0)) ->  | L148: 0 | M148: 0 | N148: =IF(B148="","0",IF(VLOOKUP(B148,sanschie!$A:$K,10,0)=0,"0",IF(VLOOKUP(B148,sanschie!$A:$K,10,0)="","0",(VLOOKUP(B148,sanschie!$A:$K,10,0))))) -> 0 | Q148: 0 | R148: =IF(B148="","",IF(H148="N",VLOOKUP(B148,sanschie!$A:$K,7,0),VLOOKUP(B148,sanschie!$A:$K,7,0))) -> 
C149: =IF(B149="","",VLOOKUP(B149,sanschie!A:E,5,0)) ->  | G149: =IF(B149="","",VLOOKUP(B149,sanschie!A:D,4,0)) ->  | H149: =IF(B149="","",VLOOKUP(B149,sanschie!A:P,16,0)) ->  | I149: =IF(B149="","",IF(H149="N",VLOOKUP(B149,sanschie!$A:$K,7,0),VLOOKUP(B149,sanschie!$A:$K,7,0)*(1-Eingabe!$O$20))) ->  | K149: =IF(B149="","",VLOOKUP(B149,sanschie!$A:$I,9,0)) ->  | L149: 0 | M149: 0 | N149: =IF(B149="","0",IF(VLOOKUP(B149,sanschie!$A:$K,10,0)=0,"0",IF(VLOOKUP(B149,sanschie!$A:$K,10,0)="","0",(VLOOKUP(B149,sanschie!$A:$K,10,0))))) -> 0 | Q149: 0 | R149: =IF(B149="","",IF(H149="N",VLOOKUP(B149,sanschie!$A:$K,7,0),VLOOKUP(B149,sanschie!$A:$K,7,0))) -> 
C150: =IF(B150="","",VLOOKUP(B150,sanschie!A:E,5,0)) ->  | G150: =IF(B150="","",VLOOKUP(B150,sanschie!A:D,4,0)) ->  | H150: =IF(B150="","",VLOOKUP(B150,sanschie!A:P,16,0)) ->  | I150: =IF(B150="","",IF(H150="N",VLOOKUP(B150,sanschie!$A:$K,7,0),VLOOKUP(B150,sanschie!$A:$K,7,0)*(1-Eingabe!$O$20))) ->  | K150: =IF(B150="","",VLOOKUP(B150,sanschie!$A:$I,9,0)) ->  | L150: 0 | M150: 0 | N150: =IF(B150="","0",IF(VLOOKUP(B150,sanschie!$A:$K,10,0)=0,"0",IF(VLOOKUP(B150,sanschie!$A:$K,10,0)="","0",(VLOOKUP(B150,sanschie!$A:$K,10,0))))) -> 0 | Q150: 0 | R150: =IF(B150="","",IF(H150="N",VLOOKUP(B150,sanschie!$A:$K,7,0),VLOOKUP(B150,sanschie!$A:$K,7,0))) -> 
C151: =IF(B151="","",VLOOKUP(B151,sanschie!A:E,5,0)) ->  | G151: =IF(B151="","",VLOOKUP(B151,sanschie!A:D,4,0)) ->  | H151: =IF(B151="","",VLOOKUP(B151,sanschie!A:P,16,0)) ->  | I151: =IF(B151="","",IF(H151="N",VLOOKUP(B151,sanschie!$A:$K,7,0),VLOOKUP(B151,sanschie!$A:$K,7,0)*(1-Eingabe!$O$20))) ->  | K151: =IF(B151="","",VLOOKUP(B151,sanschie!$A:$I,9,0)) ->  | L151: 0 | M151: 0 | N151: =IF(B151="","0",IF(VLOOKUP(B151,sanschie!$A:$K,10,0)=0,"0",IF(VLOOKUP(B151,sanschie!$A:$K,10,0)="","0",(VLOOKUP(B151,sanschie!$A:$K,10,0))))) -> 0 | Q151: 0 | R151: =IF(B151="","",IF(H151="N",VLOOKUP(B151,sanschie!$A:$K,7,0),VLOOKUP(B151,sanschie!$A:$K,7,0))) -> 
C152: =IF(B152="","",VLOOKUP(B152,sanschie!A:E,5,0)) ->  | G152: =IF(B152="","",VLOOKUP(B152,sanschie!A:D,4,0)) ->  | H152: =IF(B152="","",VLOOKUP(B152,sanschie!A:P,16,0)) ->  | I152: =IF(B152="","",IF(H152="N",VLOOKUP(B152,sanschie!$A:$K,7,0),VLOOKUP(B152,sanschie!$A:$K,7,0)*(1-Eingabe!$O$20))) ->  | J152: =IF(F152="","",(F152*I152)) ->  | K152: =IF(B152="","",VLOOKUP(B152,sanschie!$A:$I,9,0)) ->  | L152: 0 | M152: 0 | N152: =IF(B152="","0",IF(VLOOKUP(B152,sanschie!$A:$K,10,0)=0,"0",IF(VLOOKUP(B152,sanschie!$A:$K,10,0)="","0",(VLOOKUP(B152,sanschie!$A:$K,10,0))))) -> 0 | Q152: 0 | R152: =IF(B152="","",IF(H152="N",VLOOKUP(B152,sanschie!$A:$K,7,0),VLOOKUP(B152,sanschie!$A:$K,7,0))) -> 
C153: =IF(B153="","",VLOOKUP(B153,sanschie!A:E,5,0)) ->  | D153: =IF(F153="","",K153*F153) ->  | E153: =IF(F153="","",IF(N153="","",N153*F153)) ->  | G153: =IF(B153="","",VLOOKUP(B153,sanschie!A:D,4,0)) ->  | H153: =IF(B153="","",VLOOKUP(B153,sanschie!A:P,16,0)) ->  | I153: =IF(B153="","",IF(H153="N",VLOOKUP(B153,sanschie!$A:$K,7,0),VLOOKUP(B153,sanschie!$A:$K,7,0)*(1-Eingabe!$O$20))) ->  | K153: =IF(B153="","",VLOOKUP(B153,sanschie!$A:$I,9,0)) ->  | L153: 0 | M153: 0 | N153: =IF(B153="","0",IF(VLOOKUP(B153,sanschie!$A:$K,10,0)=0,"0",IF(VLOOKUP(B153,sanschie!$A:$K,10,0)="","0",(VLOOKUP(B153,sanschie!$A:$K,10,0))))) -> 0 | Q153: 0 | R153: =IF(B153="","",IF(H153="N",VLOOKUP(B153,sanschie!$A:$K,7,0),VLOOKUP(B153,sanschie!$A:$K,7,0))) -> 
C154: =IF(B154="","",VLOOKUP(B154,sanschie!A:E,5,0)) ->  | G154: =IF(B154="","",VLOOKUP(B154,sanschie!A:D,4,0)) ->  | H154: =IF(B154="","",VLOOKUP(B154,sanschie!A:P,16,0)) ->  | I154: =IF(B154="","",IF(H154="N",VLOOKUP(B154,sanschie!$A:$K,7,0),VLOOKUP(B154,sanschie!$A:$K,7,0)*(1-Eingabe!$O$20))) ->  | J154: =IF(F154="","",(F154*I154)) ->  | K154: =IF(B154="","",VLOOKUP(B154,sanschie!$A:$I,9,0)) ->  | L154: 0 | M154: 0 | N154: =IF(B154="","0",IF(VLOOKUP(B154,sanschie!$A:$K,10,0)=0,"0",IF(VLOOKUP(B154,sanschie!$A:$K,10,0)="","0",(VLOOKUP(B154,sanschie!$A:$K,10,0))))) -> 0 | Q154: =IF(H154=3,J154,0) -> 0 | R154: =IF(B154="","",IF(H154="N",VLOOKUP(B154,sanschie!$A:$K,7,0),VLOOKUP(B154,sanschie!$A:$K,7,0))) -> 
C155: =IF(F155=1,Vokabel!$A$391,"") ->  | F155: =IF(F157=0,"",1) ->  | J155: =SUM(J25:J154) -> 2886
B156: VL-PPL 0,6 Ø 180 | C156: =IF(F156="","",IF(A17="Technostar",'Verbindungsleitung TS'!E2,Verbindungsleitung!E2)) ->  | F156: =IF(F157=0,"",1) -> 
C157: =IF(B157="","",VLOOKUP(B157,sanschie!A:E,5,0)) ->  | D157: =IF(F157="","",K157*F157) ->  | E157: =IF(F157="","",IF(N157="","",N157*F157)) ->  | G157: =IF(B157="","",VLOOKUP(B157,sanschie!A:D,4,0)) ->  | H157: =IF(B157="","",VLOOKUP(B157,sanschie!A:P,16,0)) ->  | I157: =IF(B157="","",IF(H157="N",VLOOKUP(B157,sanschie!$A:$K,7,0),VLOOKUP(B157,sanschie!$A:$K,7,0)*(1-Eingabe!$O$20))) ->  | J157: =IF(F157="","",(F157*I157)) ->  | K157: =IF(B157="","",VLOOKUP(B157,sanschie!$A:$I,9,0)) ->  | L157: =IF(H157=1,J157,0) -> 0 | M157: =IF(H157=2,J157,0) -> 0 | N157: =IF(B157="","0",IF(VLOOKUP(B157,sanschie!$A:$K,10,0)=0,"0",IF(VLOOKUP(B157,sanschie!$A:$K,10,0)="","0",(VLOOKUP(B157,sanschie!$A:$K,10,0))))) -> 0 | Q157: =IF(H157=3,J157,0) -> 0 | R157: =IF(B157="","",IF(H157="N",VLOOKUP(B157,sanschie!$A:$K,7,0),VLOOKUP(B157,sanschie!$A:$K,7,0))) -> 
C158: =IF(B158="","",VLOOKUP(B158,sanschie!A:E,5,0)) ->  | D158: =IF(F158="","",K158*F158) ->  | E158: =IF(F158="","",IF(N158="","",N158*F158)) ->  | G158: =IF(B158="","",VLOOKUP(B158,sanschie!A:D,4,0)) ->  | H158: =IF(B158="","",VLOOKUP(B158,sanschie!A:P,16,0)) ->  | I158: =IF(B158="","",IF(H158="N",VLOOKUP(B158,sanschie!$A:$K,7,0),VLOOKUP(B158,sanschie!$A:$K,7,0)*(1-Eingabe!$O$20))) ->  | K158: =IF(B158="","",VLOOKUP(B158,sanschie!$A:$I,9,0)) ->  | L158: 0 | M158: 0 | N158: =IF(B158="","0",IF(VLOOKUP(B158,sanschie!$A:$K,10,0)=0,"0",IF(VLOOKUP(B158,sanschie!$A:$K,10,0)="","0",(VLOOKUP(B158,sanschie!$A:$K,10,0))))) -> 0 | Q158: 0 | R158: =IF(B158="","",IF(H158="N",VLOOKUP(B158,sanschie!$A:$K,7,0),VLOOKUP(B158,sanschie!$A:$K,7,0))) -> 
C159: =IF(B159="","",VLOOKUP(B159,sanschie!A:E,5,0)) ->  | G159: =IF(B159="","",VLOOKUP(B159,sanschie!A:D,4,0)) ->  | H159: =IF(B159="","",VLOOKUP(B159,sanschie!A:P,16,0)) ->  | I159: =IF(B159="","",IF(H159="N",VLOOKUP(B159,sanschie!$A:$K,7,0),VLOOKUP(B159,sanschie!$A:$K,7,0)*(1-Eingabe!$O$20))) ->  | K159: =IF(B159="","",VLOOKUP(B159,sanschie!$A:$I,9,0)) ->  | L159: 0 | M159: 0 | N159: =IF(B159="","0",IF(VLOOKUP(B159,sanschie!$A:$K,10,0)=0,"0",IF(VLOOKUP(B159,sanschie!$A:$K,10,0)="","0",(VLOOKUP(B159,sanschie!$A:$K,10,0))))) -> 0 | Q159: 0 | R159: =IF(B159="","",IF(H159="N",VLOOKUP(B159,sanschie!$A:$K,7,0),VLOOKUP(B159,sanschie!$A:$K,7,0))) -> 
C160: =IF(B160="","",VLOOKUP(B160,sanschie!A:E,5,0)) ->  | G160: =IF(B160="","",VLOOKUP(B160,sanschie!A:D,4,0)) ->  | H160: =IF(B160="","",VLOOKUP(B160,sanschie!A:P,16,0)) ->  | I160: =IF(B160="","",IF(H160="N",VLOOKUP(B160,sanschie!$A:$K,7,0),VLOOKUP(B160,sanschie!$A:$K,7,0)*(1-Eingabe!$O$20))) ->  | K160: =IF(B160="","",VLOOKUP(B160,sanschie!$A:$I,9,0)) ->  | L160: 0 | M160: 0 | N160: =IF(B160="","0",IF(VLOOKUP(B160,sanschie!$A:$K,10,0)=0,"0",IF(VLOOKUP(B160,sanschie!$A:$K,10,0)="","0",(VLOOKUP(B160,sanschie!$A:$K,10,0))))) -> 0 | Q160: 0 | R160: =IF(B160="","",IF(H160="N",VLOOKUP(B160,sanschie!$A:$K,7,0),VLOOKUP(B160,sanschie!$A:$K,7,0))) -> 
C161: =IF(B161="","",VLOOKUP(B161,sanschie!A:E,5,0)) ->  | G161: =IF(B161="","",VLOOKUP(B161,sanschie!A:D,4,0)) ->  | H161: =IF(B161="","",VLOOKUP(B161,sanschie!A:P,16,0)) ->  | I161: =IF(B161="","",IF(H161="N",VLOOKUP(B161,sanschie!$A:$K,7,0),VLOOKUP(B161,sanschie!$A:$K,7,0)*(1-Eingabe!$O$20))) ->  | K161: =IF(B161="","",VLOOKUP(B161,sanschie!$A:$I,9,0)) ->  | L161: 0 | M161: 0 | N161: =IF(B161="","0",IF(VLOOKUP(B161,sanschie!$A:$K,10,0)=0,"0",IF(VLOOKUP(B161,sanschie!$A:$K,10,0)="","0",(VLOOKUP(B161,sanschie!$A:$K,10,0))))) -> 0 | Q161: 0 | R161: =IF(B161="","",IF(H161="N",VLOOKUP(B161,sanschie!$A:$K,7,0),VLOOKUP(B161,sanschie!$A:$K,7,0))) -> 
C162: =IF(B162="","",VLOOKUP(B162,sanschie!A:E,5,0)) ->  | G162: =IF(B162="","",VLOOKUP(B162,sanschie!A:D,4,0)) ->  | H162: =IF(B162="","",VLOOKUP(B162,sanschie!A:P,16,0)) ->  | I162: =IF(B162="","",IF(H162="N",VLOOKUP(B162,sanschie!$A:$K,7,0),VLOOKUP(B162,sanschie!$A:$K,7,0)*(1-Eingabe!$O$20))) ->  | K162: =IF(B162="","",VLOOKUP(B162,sanschie!$A:$I,9,0)) ->  | L162: 0 | M162: 0 | N162: =IF(B162="","0",IF(VLOOKUP(B162,sanschie!$A:$K,10,0)=0,"0",IF(VLOOKUP(B162,sanschie!$A:$K,10,0)="","0",(VLOOKUP(B162,sanschie!$A:$K,10,0))))) -> 0 | Q162: 0 | R162: =IF(B162="","",IF(H162="N",VLOOKUP(B162,sanschie!$A:$K,7,0),VLOOKUP(B162,sanschie!$A:$K,7,0))) -> 
C163: =IF(B163="","",VLOOKUP(B163,sanschie!A:E,5,0)) ->  | G163: =IF(B163="","",VLOOKUP(B163,sanschie!A:D,4,0)) ->  | H163: =IF(B163="","",VLOOKUP(B163,sanschie!A:P,16,0)) ->  | I163: =IF(B163="","",IF(H163="N",VLOOKUP(B163,sanschie!$A:$K,7,0),VLOOKUP(B163,sanschie!$A:$K,7,0)*(1-Eingabe!$O$20))) ->  | K163: =IF(B163="","",VLOOKUP(B163,sanschie!$A:$I,9,0)) ->  | L163: 0 | M163: 0 | N163: =IF(B163="","0",IF(VLOOKUP(B163,sanschie!$A:$K,10,0)=0,"0",IF(VLOOKUP(B163,sanschie!$A:$K,10,0)="","0",(VLOOKUP(B163,sanschie!$A:$K,10,0))))) -> 0 | Q163: 0 | R163: =IF(B163="","",IF(H163="N",VLOOKUP(B163,sanschie!$A:$K,7,0),VLOOKUP(B163,sanschie!$A:$K,7,0))) -> 
C164: =IF(B164="","",VLOOKUP(B164,sanschie!A:E,5,0)) ->  | G164: =IF(B164="","",VLOOKUP(B164,sanschie!A:D,4,0)) ->  | H164: =IF(B164="","",VLOOKUP(B164,sanschie!A:P,16,0)) ->  | I164: =IF(B164="","",IF(H164="N",VLOOKUP(B164,sanschie!$A:$K,7,0),VLOOKUP(B164,sanschie!$A:$K,7,0)*(1-Eingabe!$O$20))) ->  | K164: =IF(B164="","",VLOOKUP(B164,sanschie!$A:$I,9,0)) ->  | L164: 0 | M164: 0 | N164: =IF(B164="","0",IF(VLOOKUP(B164,sanschie!$A:$K,10,0)=0,"0",IF(VLOOKUP(B164,sanschie!$A:$K,10,0)="","0",(VLOOKUP(B164,sanschie!$A:$K,10,0))))) -> 0 | Q164: 0 | R164: =IF(B164="","",IF(H164="N",VLOOKUP(B164,sanschie!$A:$K,7,0),VLOOKUP(B164,sanschie!$A:$K,7,0))) -> 
C165: =IF(B165="","",VLOOKUP(B165,sanschie!A:E,5,0)) ->  | G165: =IF(B165="","",VLOOKUP(B165,sanschie!A:D,4,0)) ->  | H165: =IF(B165="","",VLOOKUP(B165,sanschie!A:P,16,0)) ->  | I165: =IF(B165="","",IF(H165="N",VLOOKUP(B165,sanschie!$A:$K,7,0),VLOOKUP(B165,sanschie!$A:$K,7,0)*(1-Eingabe!$O$20))) ->  | K165: =IF(B165="","",VLOOKUP(B165,sanschie!$A:$I,9,0)) ->  | L165: 0 | M165: 0 | N165: =IF(B165="","0",IF(VLOOKUP(B165,sanschie!$A:$K,10,0)=0,"0",IF(VLOOKUP(B165,sanschie!$A:$K,10,0)="","0",(VLOOKUP(B165,sanschie!$A:$K,10,0))))) -> 0 | Q165: 0 | R165: =IF(B165="","",IF(H165="N",VLOOKUP(B165,sanschie!$A:$K,7,0),VLOOKUP(B165,sanschie!$A:$K,7,0))) -> 
C166: =IF(B166="","",VLOOKUP(B166,sanschie!A:E,5,0)) ->  | G166: =IF(B166="","",VLOOKUP(B166,sanschie!A:D,4,0)) ->  | H166: =IF(B166="","",VLOOKUP(B166,sanschie!A:P,16,0)) ->  | I166: =IF(B166="","",IF(H166="N",VLOOKUP(B166,sanschie!$A:$K,7,0),VLOOKUP(B166,sanschie!$A:$K,7,0)*(1-Eingabe!$O$20))) ->  | K166: =IF(B166="","",VLOOKUP(B166,sanschie!$A:$I,9,0)) ->  | L166: 0 | M166: 0 | N166: =IF(B166="","0",IF(VLOOKUP(B166,sanschie!$A:$K,10,0)=0,"0",IF(VLOOKUP(B166,sanschie!$A:$K,10,0)="","0",(VLOOKUP(B166,sanschie!$A:$K,10,0))))) -> 0 | Q166: 0 | R166: =IF(B166="","",IF(H166="N",VLOOKUP(B166,sanschie!$A:$K,7,0),VLOOKUP(B166,sanschie!$A:$K,7,0))) -> 
C167: =IF(B167="","",VLOOKUP(B167,sanschie!A:E,5,0)) ->  | G167: =IF(B167="","",VLOOKUP(B167,sanschie!A:D,4,0)) ->  | H167: =IF(B167="","",VLOOKUP(B167,sanschie!A:P,16,0)) ->  | I167: =IF(B167="","",IF(H167="N",VLOOKUP(B167,sanschie!$A:$K,7,0),VLOOKUP(B167,sanschie!$A:$K,7,0)*(1-Eingabe!$O$20))) ->  | K167: =IF(B167="","",VLOOKUP(B167,sanschie!$A:$I,9,0)) ->  | L167: 0 | M167: 0 | N167: =IF(B167="","0",IF(VLOOKUP(B167,sanschie!$A:$K,10,0)=0,"0",IF(VLOOKUP(B167,sanschie!$A:$K,10,0)="","0",(VLOOKUP(B167,sanschie!$A:$K,10,0))))) -> 0 | Q167: 0 | R167: =IF(B167="","",IF(H167="N",VLOOKUP(B167,sanschie!$A:$K,7,0),VLOOKUP(B167,sanschie!$A:$K,7,0))) -> 
C168: =IF(B168="","",VLOOKUP(B168,sanschie!A:E,5,0)) ->  | G168: =IF(B168="","",VLOOKUP(B168,sanschie!A:D,4,0)) ->  | H168: =IF(B168="","",VLOOKUP(B168,sanschie!A:P,16,0)) ->  | I168: =IF(B168="","",IF(H168="N",VLOOKUP(B168,sanschie!$A:$K,7,0),VLOOKUP(B168,sanschie!$A:$K,7,0)*(1-Eingabe!$O$20))) ->  | K168: =IF(B168="","",VLOOKUP(B168,sanschie!$A:$I,9,0)) ->  | L168: 0 | M168: 0 | N168: =IF(B168="","0",IF(VLOOKUP(B168,sanschie!$A:$K,10,0)=0,"0",IF(VLOOKUP(B168,sanschie!$A:$K,10,0)="","0",(VLOOKUP(B168,sanschie!$A:$K,10,0))))) -> 0 | Q168: 0 | R168: =IF(B168="","",IF(H168="N",VLOOKUP(B168,sanschie!$A:$K,7,0),VLOOKUP(B168,sanschie!$A:$K,7,0))) -> 
C169: =IF(B169="","",VLOOKUP(B169,sanschie!A:E,5,0)) ->  | G169: =IF(B169="","",VLOOKUP(B169,sanschie!A:D,4,0)) ->  | H169: =IF(B169="","",VLOOKUP(B169,sanschie!A:P,16,0)) ->  | I169: =IF(B169="","",IF(H169="N",VLOOKUP(B169,sanschie!$A:$K,7,0),VLOOKUP(B169,sanschie!$A:$K,7,0)*(1-Eingabe!$O$20))) ->  | K169: =IF(B169="","",VLOOKUP(B169,sanschie!$A:$I,9,0)) ->  | L169: 0 | M169: 0 | N169: =IF(B169="","0",IF(VLOOKUP(B169,sanschie!$A:$K,10,0)=0,"0",IF(VLOOKUP(B169,sanschie!$A:$K,10,0)="","0",(VLOOKUP(B169,sanschie!$A:$K,10,0))))) -> 0 | Q169: 0 | R169: =IF(B169="","",IF(H169="N",VLOOKUP(B169,sanschie!$A:$K,7,0),VLOOKUP(B169,sanschie!$A:$K,7,0))) -> 
C170: =IF(B170="","",VLOOKUP(B170,sanschie!A:E,5,0)) ->  | G170: =IF(B170="","",VLOOKUP(B170,sanschie!A:D,4,0)) ->  | H170: =IF(B170="","",VLOOKUP(B170,sanschie!A:P,16,0)) ->  | I170: =IF(B170="","",IF(H170="N",VLOOKUP(B170,sanschie!$A:$K,7,0),VLOOKUP(B170,sanschie!$A:$K,7,0)*(1-Eingabe!$O$20))) ->  | K170: =IF(B170="","",VLOOKUP(B170,sanschie!$A:$I,9,0)) ->  | L170: 0 | M170: 0 | N170: =IF(B170="","0",IF(VLOOKUP(B170,sanschie!$A:$K,10,0)=0,"0",IF(VLOOKUP(B170,sanschie!$A:$K,10,0)="","0",(VLOOKUP(B170,sanschie!$A:$K,10,0))))) -> 0 | Q170: 0 | R170: =IF(B170="","",IF(H170="N",VLOOKUP(B170,sanschie!$A:$K,7,0),VLOOKUP(B170,sanschie!$A:$K,7,0))) -> 
C171: =IF(F171=1,Vokabel!$A$393,"") ->  | F171: =IF(F156="","",1) ->  | J171: =SUM(J157:J170) -> 0
B172: =IF(Eingabe!$M$23+Eingabe!$M$24+Eingabe!$M$25=0,0,Vokabel!$A$316) -> 0 | F172: =IF(B172=0,"","1") ->  | L172: =SUM(L25:L171) -> 2886 | M172: =SUM(M25:M171) -> 0 | Q172: =SUM(Q25:Q171) -> 0
B173: =IF(Eingabe!$M$23+Eingabe!$M$24+Eingabe!$M$25=0,0,Texte!D3) -> 0 | F173: =IF(B173=0,"","1") -> 
B174: =IF(Eingabe!$M$23+Eingabe!$M$24+Eingabe!$M$25=0,0,Texte!D4) -> 0 | F174: =IF(B174=0,"","1") -> 
B175: =IF(Eingabe!$M$23+Eingabe!$M$24+Eingabe!$M$25=0,0,Texte!D5) -> 0 | F175: =IF(B175=0,"","1") -> 
B176: =IF(Eingabe!$M$23+Eingabe!$M$24+Eingabe!$M$25=0,0,Texte!D6) -> 0 | F176: =IF(B176=0,"","1") -> 
B177: =Vokabel!$A$305 -> Facharbeiterstunden | F177: =IF(Eingabe!M23="","",IF(Eingabe!M23="0","",Eingabe!M23)) ->  | G177: =Vokabel!$A$308 -> STD | I177: =Eingabe!O23 -> 0 | J177: =IF(F177="","",(F177*I177)) -> 
B178: =Vokabel!$A$306 -> Kilometer | F178: =IF(Eingabe!M24="","",IF(Eingabe!M24="0","",Eingabe!M24)) ->  | G178: km | I178: =Eingabe!O24 -> 0 | J178: =IF(F178="","",(F178*I178)) -> 
B179: =Vokabel!$A$307 -> Pauschale Montagearbeit | F179: =IF(Eingabe!M25="","",IF(Eingabe!M25="0","",Eingabe!M25)) ->  | G179: =Vokabel!$A$309 -> Pausch | I179: =Eingabe!O25 -> 0 | J179: =IF(F179="","",(F179*I179)) ->  | L179: =SUM(J177:J179) -> 0
F180: 1 | L180: =Vokabel!$A$210 -> Fracht | M180: =Vokabel!$A$209 -> per Tonne | O180: =Vokabel!$A$211 -> lief.PLZ | Q180: =Vokabel!$A$212 -> man. Fracht
F181: =IF(J187="",Vokabel!$A$201,Vokabel!$A$202) -> Summe Bauteile | J181: =SUM(J25:J154,J157:J170) -> 2886 | O181: =IF(Eingabe!$K$18="",Eingabe!$K$7,Eingabe!$K$18) -> 5312
F182: =IF(L179=0,"",Vokabel!$A$310) ->  | J182: =L179 -> 0
F183: =IF(I183="","",IF(Eingabe!$O$21="","","-"&Eingabe!$O$21*100&Vokabel!$A$203)) ->  | I183: =IF(Eingabe!$O$21=0,"",IF(Eingabe!$O$21="","",Kalkulation!$L$172)) ->  | J183: =IF(Eingabe!$O$21=0,0,IF(Eingabe!$O$21="",0,L183)) -> 0 | K183: =Eingabe!O21*100 -> 0 | L183: =-L172*Eingabe!$O$21 -> 0
F184: =IF(I184="","",IF(Eingabe!$O$22="","","-"&Eingabe!$O$22*100&Vokabel!$A$321)) ->  | I184: =IF(Eingabe!$O$22=0,"",IF(Eingabe!$O$22="","",Kalkulation!$M$172)) ->  | J184: =IF(Eingabe!$O$22=0,0,IF(Eingabe!$O$22="",0,L184)) -> 0 | K184: =Eingabe!O22*100 -> 0 | L184: =-M172*Eingabe!$O$22 -> 0
F185: =IF(I185="","",IF(Eingabe!$M$22="","","-"&Eingabe!$M$22*100&Vokabel!$A$490)) ->  | I185: =IF(Eingabe!$M$22=0,"",IF(Eingabe!$M$22="","",Kalkulation!$Q$172)) ->  | J185: =IF(Eingabe!$M$22=0,0,IF(Eingabe!$M$22="",0,L185)) -> 0 | K185: =Eingabe!M22*100 -> 0 | L185: =-Q172*Eingabe!$M$22 -> 0
F186: =IF(Daten!$D$102=2,"",IF(Daten!$D$83=1,Vokabel!$A$204,IF(Einstellungstabelle!$B$2="N","",IF(Daten!$D$102=1,Vokabel!$A$205,"")))) -> Fracht (ab Werk) | J186: =IF(Daten!$D$102=1,Kalkulation!N186,0) -> 197 | K186: =J186 -> 197 | M186: =IF(SUBTOTAL(9,D25:D170)<=1000,0,SUBTOTAL(9,D25:D170)-1000)/1000 -> 0 | N186: =IF(Q181<>0,Q181,IF(Daten!$D$83=1,Firma!E14+Firma!E14*Kalkulation!M186,IF(Einstellungstabelle!$B$2="N",0,IF(Q181=0,Einstellungstabelle!C5,Q181)))) -> 197
F187: =IF(J182+J183+J184+J186=0,"",Vokabel!$A$206) -> Nettobetrag CHF | J187: =IF(J182+J183+J184+J185+J186=0,"",SUM(J181:J186)) -> 3083 | L187: =SUM(J181:J186) -> 3083
B188: =VLOOKUP(A17,Daten!$B$147:$C$157,2,0) -> Das Angebot ist gültig bis 31.12.2023. Änderungen vorbehalten. | F188: =IF(Eingabe!O27=0,"",K188&Vokabel!$A$207) -> 7,7 % MwSt. | J188: =IF(Eingabe!O27=0,"",Kalkulation!L187*Eingabe!O27) -> 237.391 | K188: =Eingabe!O27*100 -> 7.7 | L188: =Eingabe!O27 -> 0.077
F189: =IF(Eingabe!O27=0,"",Vokabel!$A$208) -> Gesamtbetrag CHF | J189: =IF(Eingabe!O27=0,"",Kalkulation!L187+Kalkulation!J188) -> 3320.391
B192: =IF(Belegart!$A$1=2,Texte!D18,"") -> 0
B193: =IF(Belegart!$A$1=2,Texte!D19,"") -> 0
B194: =IF(Belegart!$A$1=2,Texte!D20,"") -> Wir hoffen, dass Ihnen unser Angebot zusagt und freuen uns auf Ihren Auftrag.
B195: =IF(Belegart!$A$1=2,Texte!$D$21,"") -> Freundliche Grüsse
B196: =IF(Belegart!$A$1=2,J9,"") -> Herr Mustermann
C228: =IF(B228="","",VLOOKUP(B228,sanschie!A:E,5,0)) ->  | D228: =IF(F228="","",K228*F228) ->  | E228: =IF(F228="","",IF(N228="","",N228*F228)) ->  | G228: =IF(B228="","",VLOOKUP(B228,sanschie!A:D,4,0)) ->  | H228: =IF(B228="","",VLOOKUP(B228,sanschie!A:P,16,0)) ->  | I228: =IF(B228="","",IF(H228="N",VLOOKUP(B228,sanschie!$A:$K,7,0),VLOOKUP(B228,sanschie!$A:$K,7,0)*(1-Eingabe!$O$20))) ->  | J228: =IF(F228="","",(F228*I228)) ->  | O228: =IF(Eingabe!$K$18="",Eingabe!$K$7,Eingabe!$K$18) -> 5312

Sheet sanschie (hidden)
A4: DPRANR | B4: DPRANR | C4: DASKAT | D4: DPRMEN | E4: DASAB1 | F4: WAE | H4: DASOMH | I4: DASGWW | J4: DVA020 | K4: DVA026
A6: Artikel-Nr | B6: Artikel-Nr | C6: EAN | D6: Mengeneinheit | E6: Artikelbezeichnung 1 | F6: Währung | H6: Palettenmenge | I6: Gewicht | J6: Einbaulänge | K6: Rabattfähig
A7: Kerastar 140 | B7: Kerastar 140 | D7: Anlage | E7: Kerastar Anlage Ø 140 | F7: EUR | H7: 0 | I7: 0 | K7: J
A8: Kerastar 160 | B8: Kerastar 160 | D8: Anlage | E8: Kerastar Anlage Ø 160 | F8: EUR | H8: 0 | I8: 0 | K8: J
A9: Kerastar 180 | B9: Kerastar 180 | D9: Anlage | E9: Kerastar Anlage Ø 180 | F9: EUR | H9: 0 | I9: 0 | K9: J
A10: Kerastar 200 | B10: Kerastar 200 | D10: Anlage | E10: Kerastar Anlage Ø 200 | F10: EUR | H10: 0 | I10: 0 | K10: J
A11: Kerastar 250 | B11: Kerastar 250 | D11: Anlage | E11: Kerastar Anlage Ø 250 | F11: EUR | H11: 0 | I11: 0 | K11: J
A12: Kerastar 300 | B12: Kerastar 300 | D12: Anlage | E12: Kerastar Anlage Ø 300 | F12: EUR | H12: 0 | I12: 0 | K12: J
A13: Kerastar 400 | B13: Kerastar 400 | D13: Anlage | E13: Kerastar Anlage Ø 400 | F13: EUR | H13: 0 | I13: 0 | K13: J
A14: Keranova 120 | B14: Keranova 120 | D14: Anlage | E14: Keranova Anlage Ø 120 | F14: EUR | H14: 0 | I14: 0 | K14: J
A15: Keranova 140 | B15: Keranova 140 | D15: Anlage | E15: Keranova Anlage Ø 140 | F15: EUR | H15: 0 | I15: 0 | K15: J
A16: Keranova 160 | B16: Keranova 160 | D16: Anlage | E16: Keranova Anlage Ø 160 | F16: EUR | H16: 0 | I16: 0 | K16: J
A17: Keranova 180 | B17: Keranova 180 | D17: Anlage | E17: Keranova Anlage Ø 180 | F17: EUR | H17: 0 | I17: 0 | K17: J
A18: Keranova 200 | B18: Keranova 200 | D18: Anlage | E18: Keranova Anlage Ø 200 | F18: EUR | H18: 0 | I18: 0 | K18: J
A19: Keranova 250 | B19: Keranova 250 | D19: Anlage | E19: Keranova Anlage Ø 250 | F19: EUR | H19: 0 | I19: 0 | K19: J
A20: Technostar12060 | B20: Technostar12060 | D20: Anlage | E20: Technostar Anlage Ø 60 | F20: EUR | H20: 0 | I20: 0 | K20: J
A21: Technostar12080 | B21: Technostar12080 | D21: Anlage | E21: Technostar Anlage Ø 80 | F21: EUR | H21: 0 | I21: 0 | K21: J
A22: Technostar120110 | B22: Technostar120110 | D22: Anlage | E22: Technostar Anlage Ø 110 | F22: EUR | H22: 0 | I22: 0 | K22: J
A23: Technostar120125 | B23: Technostar120125 | D23: Anlage | E23: Technostar Anlage Ø 125 | F23: EUR | H23: 0 | I23: 0 | K23: J
A24: Technostar120160 | B24: Technostar120160 | D24: Anlage | E24: Technostar Anlage Ø 160 | F24: EUR | H24: 0 | I24: 0 | K24: J
A25: Technostar120200 | B25: Technostar120200 | D25: Anlage | E25: Technostar Anlage Ø 200 | F25: EUR | H25: 0 | I25: 0 | K25: J
A26: Technostar120250 | B26: Technostar120250 | D26: Anlage | E26: Technostar Anlage Ø 250 | F26: EUR | H26: 0 | I26: 0 | K26: J
A27: Absolut 14 | B27: Absolut 14 | D27: Anlage | E27: Absolut-Kaminanlage Ø 14 | F27: EUR | H27: 0 | I27: 0 | K27: J
A28: Absolut 16 | B28: Absolut 16 | D28: Anlage | E28: Absolut-Kaminanlage Ø 16 | F28: EUR | H28: 0 | I28: 0 | K28: J
A29: Absolut 18 | B29: Absolut 18 | D29: Anlage | E29: Absolut-Kaminanlage Ø 18 | F29: EUR | H29: 0 | I29: 0 | K29: J
A30: Absolut 20 | B30: Absolut 20 | D30: Anlage | E30: Absolut-Kaminanlage Ø 20 | F30: EUR | H30: 0 | I30: 0 | K30: J
A31: Absolut 25 | B31: Absolut 25 | D31: Anlage | E31: Absolut-Kaminanlage Ø 25 | F31: EUR | H31: 0 | I31: 0 | K31: J
A32: Absolut 30 | B32: Absolut 30 | D32: Anlage | E32: Absolut-Kaminanlage Ø 30 | F32: EUR | H32: 0 | I32: 0 | K32: J
A33: Absolut 40 | B33: Absolut 40 | D33: Anlage | E33: Absolut-Kaminanlage Ø 40 | F33: EUR | H33: 0 | I33: 0 | K33: J
A34: Absolut 14TL | B34: Absolut 14TL | D34: Anlage | E34: Absolut-Kaminanlage Ø 14TL | F34: EUR | H34: 0 | I34: 0 | K34: J
A35: Absolut 16TL | B35: Absolut 16TL | D35: Anlage | E35: Absolut-Kaminanlage Ø 16TL | F35: EUR | H35: 0 | I35: 0 | K35: J
A36: Absolut 18TL | B36: Absolut 18TL | D36: Anlage | E36: Absolut-Kaminanlage Ø 18TL | F36: EUR | H36: 0 | I36: 0 | K36: J
A37: Absolut 20TL | B37: Absolut 20TL | D37: Anlage | E37: Absolut-Kaminanlage Ø 20TL | F37: EUR | H37: 0 | I37: 0 | K37: J
A38: Absolut 25TL | B38: Absolut 25TL | D38: Anlage | E38: Absolut-Kaminanlage Ø 25TL | F38: EUR | H38: 0 | I38: 0 | K38: J
A39: Absolut 30L | B39: Absolut 30L | D39: Anlage | E39: Absolut-Kaminanlage Ø 30L | F39: EUR | H39: 0 | I39: 0 | K39: J
A40: Absolut 40L | B40: Absolut 40L | D40: Anlage | E40: Absolut-Kaminanlage Ø 40L | F40: EUR | H40: 0 | I40: 0 | K40: J
A41: Absolut 1414 | B41: Absolut 1414 | D41: Anlage | E41: Absolut-Kaminanlage Ø 1414 | F41: EUR | H41: 0 | I41: 0 | K41: J
A42: Absolut 1616 | B42: Absolut 1616 | D42: Anlage | E42: Absolut-Kaminanlage Ø 1616 | F42: EUR | H42: 0 | I42: 0 | K42: J
A43: Absolut 1818 | B43: Absolut 1818 | D43: Anlage | E43: Absolut-Kaminanlage Ø 1818 | F43: EUR | H43: 0 | I43: 0 | K43: J
A44: Absolut 2020 | B44: Absolut 2020 | D44: Anlage | E44: Absolut-Kaminanlage Ø 2020 | F44: EUR | H44: 0 | I44: 0 | K44: J
A45: Absolut 14TL14 | B45: Absolut 14TL14 | D45: Anlage | E45: Absolut-Kaminanlage Ø 14TL14 | F45: EUR | H45: 0 | I45: 0 | K45: J
A46: Absolut 16TL16 | B46: Absolut 16TL16 | D46: Anlage | E46: Absolut-Kaminanlage Ø 16TL16 | F46: EUR | H46: 0 | I46: 0 | K46: J
A47: Absolut 18TL18 | B47: Absolut 18TL18 | D47: Anlage | E47: Absolut-Kaminanlage Ø 18TL18 | F47: EUR | H47: 0 | I47: 0 | K47: J
A48: Absolut 20TL20 | B48: Absolut 20TL20 | D48: Anlage | E48: Absolut-Kaminanlage Ø 20TL20 | F48: EUR | H48: 0 | I48: 0 | K48: J
A49: Absolut 1614 | B49: Absolut 1614 | D49: Anlage | E49: Absolut-Kaminanlage Ø 1614 | F49: EUR | H49: 0 | I49: 0 | K49: J
A50: Absolut 1814 | B50: Absolut 1814 | D50: Anlage | E50: Absolut-Kaminanlage Ø 1814 | F50: EUR | H50: 0 | I50: 0 | K50: J
A51: Absolut 1816 | B51: Absolut 1816 | D51: Anlage | E51: Absolut-Kaminanlage Ø 1816 | F51: EUR | H51: 0 | I51: 0 | K51: J
A52: Absolut 2014 | B52: Absolut 2014 | D52: Anlage | E52: Absolut-Kaminanlage Ø 2014 | F52: EUR | H52: 0 | I52: 0 | K52: J
A53: Absolut 2016 | B53: Absolut 2016 | D53: Anlage | E53: Absolut-Kaminanlage Ø 2016 | F53: EUR | H53: 0 | I53: 0 | K53: J
A54: Absolut 2018 | B54: Absolut 2018 | D54: Anlage | E54: Absolut-Kaminanlage Ø 2018 | F54: EUR | H54: 0 | I54: 0 | K54: J
A55: Absolut 16TL14 | B55: Absolut 16TL14 | D55: Anlage | E55: Absolut-Kaminanlage Ø 16TL14 | F55: EUR | H55: 0 | I55: 0 | K55: J
A56: Absolut 18TL14 | B56: Absolut 18TL14 | D56: Anlage | E56: Absolut-Kaminanlage Ø 18TL14 | F56: EUR | H56: 0 | I56: 0 | K56: J
A57: Absolut 18TL16 | B57: Absolut 18TL16 | D57: Anlage | E57: Absolut-Kaminanlage Ø 18TL16 | F57: EUR | H57: 0 | I57: 0 | K57: J
A58: Absolut 20TL14 | B58: Absolut 20TL14 | D58: Anlage | E58: Absolut-Kaminanlage Ø 20TL14 | F58: EUR | H58: 0 | I58: 0 | K58: J
A59: Absolut 20TL16 | B59: Absolut 20TL16 | D59: Anlage | E59: Absolut-Kaminanlage Ø 20TL16 | F59: EUR | H59: 0 | I59: 0 | K59: J
A60: Absolut 20TL18 | B60: Absolut 20TL18 | D60: Anlage | E60: Absolut-Kaminanlage Ø 20TL18 | F60: EUR | H60: 0 | I60: 0 | K60: J
A61: CHEMINEE 16 | B61: CHEMINEE 16 | D61: Anlage | E61: CHEMINEE-Kaminanlage Ø 16 | F61: EUR | H61: 0 | I61: 0 | K61: J
A62: CHEMINEE 18 | B62: CHEMINEE 18 | D62: Anlage | E62: CHEMINEE-Kaminanlage Ø 18 | F62: EUR | H62: 0 | I62: 0 | K62: J
A63: CHEMINEE 20 | B63: CHEMINEE 20 | D63: Anlage | E63: CHEMINEE-Kaminanlage Ø 20 | F63: EUR | H63: 0 | I63: 0 | K63: J
A64: CHEMINEE 25 | B64: CHEMINEE 25 | D64: Anlage | E64: CHEMINEE-Kaminanlage Ø 25 | F64: EUR | H64: 0 | I64: 0 | K64: J
A65: CHEMINEE 30 | B65: CHEMINEE 30 | D65: Anlage | E65: CHEMINEE-Kaminanlage Ø 30 | F65: EUR | H65: 0 | I65: 0 | K65: J
A66: CHEMINEE 1616 | B66: CHEMINEE 1616 | D66: Anlage | E66: CHEMINEE-Kaminanlage Ø 1616 | F66: EUR | H66: 0 | I66: 0 | K66: J
A67: CHEMINEE 1818 | B67: CHEMINEE 1818 | D67: Anlage | E67: CHEMINEE-Kaminanlage Ø 1818 | F67: EUR | H67: 0 | I67: 0 | K67: J
A68: CHEMINEE 2020 | B68: CHEMINEE 2020 | D68: Anlage | E68: CHEMINEE-Kaminanlage Ø 2020 | F68: EUR | H68: 0 | I68: 0 | K68: J
A69: CHEMINEE 2525 | B69: CHEMINEE 2525 | D69: Anlage | E69: CHEMINEE-Kaminanlage Ø 2525 | F69: EUR | H69: 0 | I69: 0 | K69: J
A70: CHEMINEE 3030 | B70: CHEMINEE 3030 | D70: Anlage | E70: CHEMINEE-Kaminanlage Ø 3030 | F70: EUR | H70: 0 | I70: 0 | K70: J
A71: ISOLIT16 | B71: ISOLIT16 | D71: Anlage | E71: Schiedel ISOLIT 16/16 | F71: EUR | H71: 0 | I71: 0 | K71: J
A72: ISOLIT20 | B72: ISOLIT20 | D72: Anlage | E72: Schiedel ISOLIT 20/20 | F72: EUR | H72: 0 | I72: 0 | K72: J
A73: ISOLIT25 | B73: ISOLIT25 | D73: Anlage | E73: Schiedel ISOLIT 25/25 | F73: EUR | H73: 0 | I73: 0 | K73: J
A74: ISOLIT30 | B74: ISOLIT30 | D74: Anlage | E74: Schiedel ISOLIT 30/30 | F74: EUR | H74: 0 | I74: 0 | K74: J
A75: ICS 80 | B75: ICS 80 | D75: Anlage | E75: Schiedel ICS 25mm 80 | F75: EUR | H75: 0 | I75: 0 | K75: J
A76: ICS 100 | B76: ICS 100 | D76: Anlage | E76: Schiedel ICS 25mm 100 | F76: EUR | H76: 0 | I76: 0 | K76: J
A77: ICS 130 | B77: ICS 130 | D77: Anlage | E77: Schiedel ICS 25mm 130 | F77: EUR | H77: 0 | I77: 0 | K77: J
A78: ICS 150 | B78: ICS 150 | D78: Anlage | E78: Schiedel ICS 25mm 150 | F78: EUR | H78: 0 | I78: 0 | K78: J
A79: ICS 180 | B79: ICS 180 | D79: Anlage | E79: Schiedel ICS 25mm 180 | F79: EUR | H79: 0 | I79: 0 | K79: J
A80: ICS 200 | B80: ICS 200 | D80: Anlage | E80: Schiedel ICS 25mm 200 | F80: EUR | H80: 0 | I80: 0 | K80: J
A81: ICS 250 | B81: ICS 250 | D81: Anlage | E81: Schiedel ICS 25mm 250 | F81: EUR | H81: 0 | I81: 0 | K81: J
A82: ICS 300 | B82: ICS 300 | D82: Anlage | E82: Schiedel ICS 25mm 300 | F82: EUR | H82: 0 | I82: 0 | K82: J
A83: ICS 350 | B83: ICS 350 | D83: Anlage | E83: Schiedel ICS 25mm 350 | F83: EUR | H83: 0 | I83: 0 | K83: J
A84: ICS 400 | B84: ICS 400 | D84: Anlage | E84: Schiedel ICS 25mm 400 | F84: EUR | H84: 0 | I84: 0 | K84: J
A85: ICS 450 | B85: ICS 450 | D85: Anlage | E85: Schiedel ICS 25mm 450 | F85: EUR | H85: 0 | I85: 0 | K85: J
A86: ICS 500 | B86: ICS 500 | D86: Anlage | E86: Schiedel ICS 25mm 500 | F86: EUR | H86: 0 | I86: 0 | K86: J
A87: ICS 550 | B87: ICS 550 | D87: Anlage | E87: Schiedel ICS 25mm 550 | F87: EUR | H87: 0 | I87: 0 | K87: J
A88: ICS 600 | B88: ICS 600 | D88: Anlage | E88: Schiedel ICS 25mm 600 | F88: EUR | H88: 0 | I88: 0 | K88: J
A89: ICS 650 | B89: ICS 650 | D89: Anlage | E89: Schiedel ICS 25mm 650 | F89: EUR | H89: 0 | I89: 0 | K89: J
A90: ICS 700 | B90: ICS 700 | D90: Anlage | E90: Schiedel ICS 25mm 700 | F90: EUR | H90: 0 | I90: 0 | K90: J
A91: ICS Matt 80 | B91: ICS Matt 80 | D91: Anlage | E91: Schiedel ICS MATT 25mm 80 | F91: EUR | H91: 0 | I91: 0 | K91: J
A92: ICS MATT 100 | B92: ICS MATT 100 | D92: Anlage | E92: Schiedel ICS MATT 25mm 100 | F92: EUR | H92: 0 | I92: 0 | K92: J
A93: ICS MATT 130 | B93: ICS MATT 130 | D93: Anlage | E93: Schiedel ICS MATT 25mm 130 | F93: EUR | H93: 0 | I93: 0 | K93: J
A94: ICS MATT 150 | B94: ICS MATT 150 | D94: Anlage | E94: Schiedel ICS MATT 25mm 150 | F94: EUR | H94: 0 | I94: 0 | K94: J
A95: ICS MATT 180 | B95: ICS MATT 180 | D95: Anlage | E95: Schiedel ICS MATT 25mm 180 | F95: EUR | H95: 0 | I95: 0 | K95: J
A96: ICS MATT 200 | B96: ICS MATT 200 | D96: Anlage | E96: Schiedel ICS MATT 25mm 200 | F96: EUR | H96: 0 | I96: 0 | K96: J
A97: ICS MATT 250 | B97: ICS MATT 250 | D97: Anlage | E97: Schiedel ICS MATT 25mm 250 | F97: EUR | H97: 0 | I97: 0 | K97: J
A98: ICS MATT 300 | B98: ICS MATT 300 | D98: Anlage | E98: Schiedel ICS MATT 25mm 300 | F98: EUR | H98: 0 | I98: 0 | K98: J
A99: ICS MATT 350 | B99: ICS MATT 350 | D99: Anlage | E99: Schiedel ICS MATT 25mm 350 | F99: EUR | H99: 0 | I99: 0 | K99: J
A100: ICS MATT 400 | B100: ICS MATT 400 | D100: Anlage | E100: Schiedel ICS MATT 25mm 400 | F100: EUR | H100: 0 | I100: 0 | K100: J
A101: ICS MATT 450 | B101: ICS MATT 450 | D101: Anlage | E101: Schiedel ICS MATT 25mm 450 | F101: EUR | H101: 0 | I101: 0 | K101: J
A102: ICS MATT 500 | B102: ICS MATT 500 | D102: Anlage | E102: Schiedel ICS MATT 25mm 500 | F102: EUR | H102: 0 | I102: 0 | K102: J
A103: ICS MATT 550 | B103: ICS MATT 550 | D103: Anlage | E103: Schiedel ICS MATT 25mm 550 | F103: EUR | H103: 0 | I103: 0 | K103: J
A104: ICS MATT 600 | B104: ICS MATT 600 | D104: Anlage | E104: Schiedel ICS MATT 25mm 600 | F104: EUR | H104: 0 | I104: 0 | K104: J
A105: ICS MATT 650 | B105: ICS MATT 650 | D105: Anlage | E105: Schiedel ICS MATT 25mm 650 | F105: EUR | H105: 0 | I105: 0 | K105: J
A106: ICS MATT 700 | B106: ICS MATT 700 | D106: Anlage | E106: Schiedel ICS MATT 25mm 700 | F106: EUR | H106: 0 | I106: 0 | K106: J
A107: ICS Kupfer 80 | B107: ICS Kupfer 80 | D107: Anlage | E107: Schiedel ICS Kupfer 80 | F107: EUR | H107: 0 | I107: 0 | K107: J
A108: ICS Kupfer 100 | B108: ICS Kupfer 100 | D108: Anlage | E108: Schiedel ICS Kupfer 100 | F108: EUR | H108: 0 | I108: 0 | K108: J
A109: ICS Kupfer 130 | B109: ICS Kupfer 130 | D109: Anlage | E109: Schiedel ICS Kupfer 130 | F109: EUR | H109: 0 | I109: 0 | K109: J
A110: ICS Kupfer 150 | B110: ICS Kupfer 150 | D110: Anlage | E110: Schiedel ICS Kupfer 150 | F110: EUR | H110: 0 | I110: 0 | K110: J
A111: ICS Kupfer 180 | B111: ICS Kupfer 180 | D111: Anlage | E111: Schiedel ICS Kupfer 180 | F111: EUR | H111: 0 | I111: 0 | K111: J
A112: ICS Kupfer 200 | B112: ICS Kupfer 200 | D112: Anlage | E112: Schiedel ICS Kupfer 200 | F112: EUR | H112: 0 | I112: 0 | K112: J
A113: ICS Kupfer 250 | B113: ICS Kupfer 250 | D113: Anlage | E113: Schiedel ICS Kupfer 250 | F113: EUR | H113: 0 | I113: 0 | K113: J
A114: ICS Kupfer 300 | B114: ICS Kupfer 300 | D114: Anlage | E114: Schiedel ICS Kupfer 300 | F114: EUR | H114: 0 | I114: 0 | K114: J
A115: ICS5000 80 | B115: ICS5000 80 | D115: Anlage | E115: Schiedel ICS5000 25mm 80 | F115: EUR | H115: 0 | I115: 0 | K115: J
A116: ICS5000 100 | B116: ICS5000 100 | D116: Anlage | E116: Schiedel ICS5000 25mm 100 | F116: EUR | H116: 0 | I116: 0 | K116: J
A117: ICS5000 130 | B117: ICS5000 130 | D117: Anlage | E117: Schiedel ICS5000 25mm 130 | F117: EUR | H117: 0 | I117: 0 | K117: J
A118: ICS5000 150 | B118: ICS5000 150 | D118: Anlage | E118: Schiedel ICS5000 25mm 150 | F118: EUR | H118: 0 | I118: 0 | K118: J
A119: ICS5000 180 | B119: ICS5000 180 | D119: Anlage | E119: Schiedel ICS5000 25mm 180 | F119: EUR | H119: 0 | I119: 0 | K119: J
A120: ICS5000 200 | B120: ICS5000 200 | D120: Anlage | E120: Schiedel ICS5000 25mm 200 | F120: EUR | H120: 0 | I120: 0 | K120: J
A121: ICS5000 250 | B121: ICS5000 250 | D121: Anlage | E121: Schiedel ICS5000 25mm 250 | F121: EUR | H121: 0 | I121: 0 | K121: J
A122: ICS5000 300 | B122: ICS5000 300 | D122: Anlage | E122: Schiedel ICS5000 25mm 300 | F122: EUR | H122: 0 | I122: 0 | K122: J
A123: ICS5000 350 | B123: ICS5000 350 | D123: Anlage | E123: Schiedel ICS5000 25mm 350 | F123: EUR | H123: 0 | I123: 0 | K123: J
A124: ICS5000 400 | B124: ICS5000 400 | D124: Anlage | E124: Schiedel ICS5000 25mm 400 | F124: EUR | H124: 0 | I124: 0 | K124: J
A125: ICS5000 450 | B125: ICS5000 450 | D125: Anlage | E125: Schiedel ICS5000 25mm 450 | F125: EUR | H125: 0 | I125: 0 | K125: J
A126: ICS5000 500 | B126: ICS5000 500 | D126: Anlage | E126: Schiedel ICS5000 25mm 500 | F126: EUR | H126: 0 | I126: 0 | K126: J
A127: ICS5000 600 | B127: ICS5000 600 | D127: Anlage | E127: Schiedel ICS5000 25mm 600 | F127: EUR | H127: 0 | I127: 0 | K127: J
A128: PRIMA PLUS 80 | B128: PRIMA PLUS 80 | D128: Anlage | E128: Schiedel Prima Plus 0,6mm Ø 80 | F128: EUR | H128: 0 | I128: 0 | K128: J
A129: PRIMA PLUS 100 | B129: PRIMA PLUS 100 | D129: Anlage | E129: Schiedel Prima Plus 0,6mm Ø 100 | F129: EUR | H129: 0 | I129: 0 | K129: J
A130: PRIMA PLUS 113 | B130: PRIMA PLUS 113 | D130: Anlage | E130: Schiedel Prima Plus 0,6mm Ø 113 | F130: EUR | H130: 0 | I130: 0 | K130: J
A131: PRIMA PLUS 130 | B131: PRIMA PLUS 130 | D131: Anlage | E131: Schiedel Prima Plus 0,6mm Ø 130 | F131: EUR | H131: 0 | I131: 0 | K131: J
A132: PRIMA PLUS 150 | B132: PRIMA PLUS 150 | D132: Anlage | E132: Schiedel Prima Plus 0,6mm Ø 150 | F132: EUR | H132: 0 | I132: 0 | K132: J
A133: PRIMA PLUS 180 | B133: PRIMA PLUS 180 | D133: Anlage | E133: Schiedel Prima Plus 0,6mm Ø 180 | F133: EUR | H133: 0 | I133: 0 | K133: J
A134: PRIMA PLUS 200 | B134: PRIMA PLUS 200 | D134: Anlage | E134: Schiedel Prima Plus 0,6mm Ø 200 | F134: EUR | H134: 0 | I134: 0 | K134: J
A135: PRIMA PLUS 230 | B135: PRIMA PLUS 230 | D135: Anlage | E135: Schiedel Prima Plus 0,6mm Ø 230 | F135: EUR | H135: 0 | I135: 0 | K135: J
A136: PRIMA PLUS 250 | B136: PRIMA PLUS 250 | D136: Anlage | E136: Schiedel Prima Plus 0,6mm Ø 250 | F136: EUR | H136: 0 | I136: 0 | K136: J
A137: PRIMA PLUS 300 | B137: PRIMA PLUS 300 | D137: Anlage | E137: Schiedel Prima Plus 0,6mm Ø 300 | F137: EUR | H137: 0 | I137: 0 | K137: J
A138: PRIMA PLUS 350 | B138: PRIMA PLUS 350 | D138: Anlage | E138: Schiedel Prima Plus 0,6mm Ø 350 | F138: EUR | H138: 0 | I138: 0 | K138: J
A139: PRIMA PLUS 400 | B139: PRIMA PLUS 400 | D139: Anlage | E139: Schiedel Prima Plus 0,6mm Ø 400 | F139: EUR | H139: 0 | I139: 0 | K139: J
A140: PRIMA PLUS 450 | B140: PRIMA PLUS 450 | D140: Anlage | E140: Schiedel Prima Plus 0,6mm Ø 450 | F140: EUR | H140: 0 | I140: 0 | K140: J
A141: PRIMA PLUS 500 | B141: PRIMA PLUS 500 | D141: Anlage | E141: Schiedel Prima Plus 0,6mm Ø 500 | F141: EUR | H141: 0 | I141: 0 | K141: J
A142: PRIMA PLUS 600 | B142: PRIMA PLUS 600 | D142: Anlage | E142: Schiedel Prima Plus 0,6mm Ø 600 | F142: EUR | H142: 0 | I142: 0 | K142: J
A143: PRIMA PLUS 700 | B143: PRIMA PLUS 700 | D143: Anlage | E143: Schiedel Prima Plus 0,6mm Ø 700 | F143: EUR | H143: 0 | I143: 0 | K143: J
A144: VL-PPL 0,6 Ø 80 | B144: VL-PPL 0,6 Ø 80 | D144: Anlage | E144: Schiedel VL-Prima 0,6 mm Ø 80 | F144: EUR | H144: 0 | I144: 0 | K144: J
A145: VL-PPL 0,6 Ø 100 | B145: VL-PPL 0,6 Ø 100 | D145: Anlage | E145: Schiedel VL-Prima 0,6 mm Ø 100 | F145: EUR | H145: 0 | I145: 0 | K145: J
A146: VL-PPL 0,6 Ø 113 | B146: VL-PPL 0,6 Ø 113 | D146: Anlage | E146: Schiedel VL-Prima 0,6 mm Ø 113 | F146: EUR | H146: 0 | I146: 0 | K146: J
A147: VL-PPL 0,6 Ø 130 | B147: VL-PPL 0,6 Ø 130 | D147: Anlage | E147: Schiedel VL-Prima 0,6 mm Ø 130 | F147: EUR | H147: 0 | I147: 0 | K147: J
A148: VL-PPL 0,6 Ø 150 | B148: VL-PPL 0,6 Ø 150 | D148: Anlage | E148: Schiedel VL-Prima 0,6 mm Ø 150 | F148: EUR | H148: 0 | I148: 0 | K148: J
A149: VL-PPL 0,6 Ø 180 | B149: VL-PPL 0,6 Ø 180 | D149: Anlage | E149: Schiedel VL-Prima 0,6 mm Ø 180 | F149: EUR | H149: 0 | I149: 0 | K149: J
A150: VL-PPL 0,6 Ø 200 | B150: VL-PPL 0,6 Ø 200 | D150: Anlage | E150: Schiedel VL-Prima 0,6 mm Ø 200 | F150: EUR | H150: 0 | I150: 0 | K150: J
A151: VL-PPL 0,6 Ø 230 | B151: VL-PPL 0,6 Ø 230 | D151: Anlage | E151: Schiedel VL-Prima 0,6 mm Ø 230 | F151: EUR | H151: 0 | I151: 0 | K151: J
A152: VL-PPL 0,6 Ø 250 | B152: VL-PPL 0,6 Ø 250 | D152: Anlage | E152: Schiedel VL-Prima 0,6 mm Ø 250 | F152: EUR | H152: 0 | I152: 0 | K152: J
A153: VL-PPL 0,6 Ø 300 | B153: VL-PPL 0,6 Ø 300 | D153: Anlage | E153: Schiedel VL-Prima 0,6 mm Ø 300 | F153: EUR | H153: 0 | I153: 0 | K153: J
A154: VL-PPL 1,0 Ø 350 | B154: VL-PPL 1,0 Ø 350 | D154: Anlage | E154: Schiedel VL-Prima 1,0 mm Ø 350 | F154: EUR | H154: 0 | I154: 0 | K154: J
A155: VL-PPL 1,0 Ø 400 | B155: VL-PPL 1,0 Ø 400 | D155: Anlage | E155: Schiedel VL-Prima 1,0 mm Ø 400 | F155: EUR | H155: 0 | I155: 0 | K155: J
A156: VL-PPL 1,0 Ø 450 | B156: VL-PPL 1,0 Ø 450 | D156: Anlage | E156: Schiedel VL-Prima 1,0 mm Ø 450 | F156: EUR | H156: 0 | I156: 0 | K156: J
A157: VL-PPL 1,0 Ø 500 | B157: VL-PPL 1,0 Ø 500 | D157: Anlage | E157: Schiedel VL-Prima 1,0 mm Ø 500 | F157: EUR | H157: 0 | I157: 0 | K157: J
A158: VL-PPL 1,0 Ø 550 | B158: VL-PPL 1,0 Ø 550 | D158: Anlage | E158: Schiedel VL-Prima 1,0 mm Ø 550 | F158: EUR | H158: 0 | I158: 0 | K158: J
A159: VL-PPL 1,0 Ø 600 | B159: VL-PPL 1,0 Ø 600 | D159: Anlage | E159: Schiedel VL-Prima 1,0 mm Ø 600 | F159: EUR | H159: 0 | I159: 0 | K159: J
A160: VL-PPL 1,0 Ø 700 | B160: VL-PPL 1,0 Ø 700 | D160: Anlage | E160: Schiedel VL-Prima 1,0 mm Ø 700 | F160: EUR | H160: 0 | I160: 0 | K160: J
A161: VL-Technostar12080 | B161: VL-Technostar12080 | D161: Anlage | E161: Schiedel VL-Technostar120 Ø80 | F161: EUR | H161: 0 | I161: 0 | K161: J
A162: VL-Technostar120110 | B162: VL-Technostar120110 | D162: Anlage | E162: Schiedel VL-Technostar120 Ø110 | F162: EUR | H162: 0 | I162: 0 | K162: J
A163: VL-Technostar120125 | B163: VL-Technostar120125 | D163: Anlage | E163: Schiedel VL-Technostar120 Ø125 | F163: EUR | H163: 0 | I163: 0 | K163: J
A164: VL-Technostar120160 | B164: VL-Technostar120160 | D164: Anlage | E164: Schiedel VL-Technostar120 Ø160 | F164: EUR | H164: 0 | I164: 0 | K164: J
A165: VL-TechnostarLAS80 | B165: VL-TechnostarLAS80 | D165: Anlage | E165: Schiedel VL-Technostar LAS Ø80 | F165: EUR | H165: 0 | I165: 0 | K165: J
A166: VL-TechnostarLAS110 | B166: VL-TechnostarLAS110 | D166: Anlage | E166: Schiedel VL-Technostar LAS Ø110 | F166: EUR | H166: 0 | I166: 0 | K166: J
A167: VL-TechnostarLAS125 | B167: VL-TechnostarLAS125 | D167: Anlage | E167: Schiedel VL-Technostar LAS Ø125 | F167: EUR | H167: 0 | I167: 0 | K167: J
A168: VL-TechnostarLAS160 | B168: VL-TechnostarLAS160 | D168: Anlage | E168: Schiedel VL-Technostar LAS Ø160 | F168: EUR | H168: 0 | I168: 0 | K168: J
L190: 1 | M190: =INDEX(L192:L193,L190,1) -> 2023
L191: Preisbasis
L192: 2023
L193: 2022
E200: =Eingabe!$J$1 -> 1
G201: Rundungskurs von Euro auf Franken 1,55
A203: Artikel-Nr | B203: Artikel-Nr | C203: EAN | D203: Mengeneinheit | E203: Artikelbezeichnung 1 | F203: Währung | G203: aktueller Preis | H203: Rab.Bez | I203: Gewicht | J203: Einbaulänge | K203: Rabattfähig | L203: Bez. Französisch | M203: Bez. Deutsch | N203: Bez. Italienisch | O203: Rab-GR | P203: Rabatt-KZ | Q203: System | R203: Preis? | S203: Preis 2022 | T203: Alte Artikelnummer AS400 | U203: SAP-Nummer von Schiedel | V203: EAN-Nr. | W203: Preis 2023 | X203: Art.Nr. Text | Y203: abw | Z203: Preis21 | AA203: ABW | AB203: im sorti | AC203: neupreis 2023 | AD203: abw
